Workbook

Sheet LDC Info
Z3: 1 | AA3: Alectra Utilities Corporation-Brampton Rate Zone
Z4: 2 | AA4: Alectra Utilities Corporation-Enersource Rate Zone
Z5: 3 | AA5: Alectra Utilities Corporation-Horizon Utilities Rate Zone
Z6: 4 | AA6: Alectra Utilities Corporation-PowerStream Rate Zone
Z7: 5 | AA7: Alectra Utilities Corporation-Guelph Rate Zone
Z8: 6 | AA8: Algoma Power Inc.
Z9: 7 | AA9: Atikokan Hydro Inc.
Z10: 8 | AA10: Bluewater Power Distribution Corporation
Z11: 9 | AA11: Brantford Power Inc.
Z12: 10 | AA12: Burlington Hydro Inc.
Z13: 11 | AA13: Canadian Niagara Power Inc.
D14: Utility Name | E14: North Bay Hydro Distribution Limited - Espanola service territory | Z14: 12 | AA14: Centre Wellington Hydro Ltd.
Z15: 13 | AA15: Chapleau Public Utilities Corporation
D16: Assigned EB Number | E16: EB-2020-0020 | Z16: 14 | AA16: Cooperative Hydro Embrun Inc.
Z17: 15 | AA17: E.L.K. Energy Inc.
D18: Name of Contact and Title | E18: Tyler Kasubeck | Z18: 16 | AA18: Elexicon Energy Inc.-Whitby Rate Zone
Z19: 17 | AA19: Elexicon Energy Inc.-Veridian Rate Zone
D20: Phone Number | E20: 705-759-3009 | Z20: 18 | AA20: Energy+ Inc.
Z21: 19 | AA21: Entegrus Powerlines Inc.-For Entegrus-Main Rate Zone
D22: Email Address | E22: tyler.kasubeck@ssmpuc.com | Z22: 20 | AA22: Entegrus Powerlines Inc.-For Former St. Thomas Energy Rate Zone
Z23: 21 | AA23: ENWIN Utilities Ltd.
D24: Test Year | E24: 2021 | Z24: 22 | AA24: EPCOR Electricity Distribution Ontario Inc.
Z25: 23 | AA25: ERTH Power Corporation - ERTH Power Main Rate Zone
D26: Bridge Year | E26: =IF(ISBLANK(E24), "", E24-1) -> 2020 | Z26: 24 | AA26: ERTH POWER CORPORATION – GODERICH RATE ZONE
Z27: 25 | AA27: Essex Powerlines Corporation
D28: Last Rebasing Year | E28: 2012 | Z28: 26 | AA28: Festival Hydro Inc.
Z29: 27 | AA29: Fort Frances Power Corporation
A30: Identify the accounting standard used for the test year | Z30: 28 | AA30: Greater Sudbury Hydro Inc.
E31: MIFRS | Z31: 29 | AA31: Grimsby Power Incorporated
Z32: 30 | AA32: Halton Hills Hydro Inc.
A33: ="Did "& E14 &" update its depreciation and capitalization policies?" -> Did North Bay Hydro Distribution Limited - Espanola service territory update its depreciation and capitalization policies? | Z33: 31 | AA33: Hearst Power Distribution Co. Ltd.
E34: Yes | Z34: 32 | AA34: Hydro 2000 Inc.
Z35: 33 | AA35: Hydro Hawkesbury Inc.
A36: If "yes" to cell E34, were the changes in policies reflected in a prior rebasing application? | Z36: 34 | AA36: Hydro One Networks Inc.
E37: Yes | Z37: 35 | AA37: Hydro One Networks Inc.-Former Haldimand County Hydro Inc. Service Area
Z38: 36 | AA38: Hydro One Networks Inc.-Former Norfolk Power Distribution Inc. Service Area
A39: ="When did "&E14&" update its actual depreciation and capitalization policies?" -> When did North Bay Hydro Distribution Limited - Espanola service territory update its actual depreciation and capitalization policies? | Z39: 37 | AA39: Hydro One Networks Inc.-Former Woodstock Hydro Services Inc. Service Area
E40: 2001-01-01 | F40: 2012 | Z40: 38 | AA40: Hydro One Remote Communites Inc.
Z41: 39 | AA41: Hydro Ottawa Limited
A42: Identify the year the applicant adopted IFRS for financial reporting purposes | Z42: 40 | AA42: InnPower Corporation
E43: 2015 | Z43: 41 | AA43: Kingston Hydro Corporation
Z44: 42 | AA44: Kitchener-Wilmot Hydro Inc.
Z45: 43 | AA45: Lakefront Utilities Inc.
A46: ="Is " & E14 & " applying for cost recovery for the test and/or future year(s) for Green Energy initiatives?" -> Is North Bay Hydro Distribution Limited - Espanola service territory applying for cost recovery for the test and/or future year(s) for Green Energy initiatives? | Z46: 44 | AA46: Lakeland Power Distribution Ltd.
E47: No | Z47: 45 | AA47: Lakeland Power Distribution Ltd.-Parry Sound Service Area
Z48: 46 | AA48: London Hydro Inc.
A49: ="Is " & E14 & " an embedded distributor?" -> Is North Bay Hydro Distribution Limited - Espanola service territory an embedded distributor? | E49: Yes | Z49: 47 | AA49: Milton Hydro Distribution Inc.
Z50: 48 | AA50: Newmarket-Tay Power Distribution Ltd.-For Former Midland Power Utility Rate Zone
Z51: 49 | AA51: Newmarket-Tay Power Distribution Ltd.-For Newmarket-Tay Power Main Rate Zone
B52: Notes | Z52: 50 | AA52: Niagara Peninsula Energy Inc.
Z53: 51 | AA53: Niagara-on-the-Lake Hydro Inc.
C54: Pale green cells represent input cells. | Z54: 52 | AA54: North Bay Hydro Distribution Limited - Espanola service territory
Z55: 53 | AA55: North Bay Hydro Distribution Limited - North Bay service territory
C56: Pale blue cells represent drop-down lists. The applicant should select the appropriate item from the drop-down list. | Z56: 54 | AA56: Northern Ontario Wires Inc.
Z57: 55 | AA57: Oakville Hydro Electricity Distribution Inc.
C58: White cells contain fixed values, automatically generated values or formulae. | N58: =IF(LEN($G58)>1, (SUMPRODUCT(--($C$81:$C$1003=$C58),--($A$81:$A$1003=$D58), --($B$81:$B$1003=$B58&"_TOTAL"), $L$1:$L$889)), "") ->  | O58: =IF(LEN($G58)>1, (SUMPRODUCT(--($C$81:$C$1003=$C58),--($A$81:$A$1003=$D58), --($B$81:$B$1003=$B58&"_TOTAL"), $M$1:$M$889)), "") ->  | Z58: 56 | AA58: Orangeville Hydro Limited
Z59: 57 | AA59: Orillia Power Distribution Corporation
Z60: 58 | AA60: Oshawa PUC Networks Inc.
Z61: 59 | AA61: Ottawa River Power Corporation
Z62: 60 | AA62: Peterborough Distribution Incorporated
Z63: 61 | AA63: PUC Distribution Inc.
Z64: 62 | AA64: Renfrew Hydro Inc.
Z65: 63 | AA65: Rideau St. Lawrence Distribution Inc.
Z66: 64 | AA66: Sioux Lookout Hydro Inc.
Z67: 65 | AA67: Synergy North Corporation-Kenora Rate Zone
Z68: 66 | AA68: Synergy North Corporation-Thunder Bay Rate Zone
Z69: 67 | AA69: Tillsonburg Hydro Inc.
Z70: 68 | AA70: Toronto Hydro-Electric System Limited
Z71: 69 | AA71: Wasaga Distribution Inc.
Z72: 70 | AA72: Waterloo North Hydro Inc.
Z73: 71 | AA73: Welland Hydro-Electric System Corp.
Z74: 72 | AA74: Wellington North Power Inc.
Z75: 73 | AA75: Westario Power Inc.

Sheet Index
A15: 1 | B15: LDC Information Sheet | E15: 20 | F15: App.2-G: Service Reliability Indicators
A16: 2 | B16: Index | E16: 21 | F16: App.2-H: Other Operating Revenue (TO BE UPDATED AT THE DRAFT RATE ORDER STAGE)
A17: 3 | B17: Cost of Service Application Flowchart | E17: 22 | F17: App.2-I: Load Forecast CDM Adjustment Workform
A18: 4 | B18: List of Key References | E18: 23 | F18: App.2-IA: Load Forecast Data Instructions
A19: 5 | B19: App.2-A: List of Requested Approvals | E19: 24 | F19: App.2-IB: Actual and Forecast Load and Customer Data
A20: 6 | B20: App.2-AA: Capital Projects Table | E20: 25 | F20: App.2-JA: OM&A Summary Analysis (TO BE UPDATED AT THE DRAFT RATE ORDER STAGE)
A21: 7 | B21: App.2-AB: Capital Expenditures (TO BE UPDATED AT THE DRAFT RATE ORDER STAGE) | E21: 26 | F21: App.2-JB: Recoverable OM&A Cost Driver Table
A22: 8 | B22: App. 2-AC: Customer Engagement Worksheet | E22: 27 | F22: App.2-JC: OM&A Programs Table
A23: 9 | B23: App.2-B: General Accounting Instructions | E23: 28 | F23: App.2-K: Employee Costs (TO BE UPDATED AT THE DRAFT RATE ORDER STAGE)
A24: 10 | B24: App.2-BA: Fixed Asset Continuity Schedule | E24: 29 | F24: App.2-L: Recoverable OM&A Cost per Customer and per FTE
A25: 11 | B25: Appendix 2-BB: Service Life Comparison | E25: 30 | F25: App.2-M: Regulatory Costs Schedule (TO BE UPDATED AT THE DRAFT RATE ORDER STAGE)
A26: 12 | B26: App.2-C_DepExp: Depreciation and Amortization Expense | E26: 31 | F26: App.2-N: Shared Services and Corporate Cost Allocation
A27: 13 | B27: App.2-D: Overhead Expenses | E27: 32 | F27: App.2-OA: Capital Structure and Cost of Capital
A28: 14 | B28: App.2-EA: Account 1575 PP&E Deferral Account (2015 IFRS Adopters) - CONTACT OEB STAFF IF TAB REQUIRED | E28: 33 | F28: App.2-OB: Debt Instruments
A29: 15 | B29: App.2-EB: Account 1576 - Accounting Changes Under CGAAP (2012 Changes) - CONTACT OEB STAFF IF TAB REQUIRED | E29: 34 | F29: App.2-Q: Cost of Serving Embedded Distributor(s)
A30: 16 | B30: App.2-EC: Account 1576 - Accounting Changes Under CGAAP (2013 Changes) - CONTACT OEB STAFF IF TAB REQUIRED | E30: 35 | F30: App.2-R: Loss Factors
A31: 17 | B31: App.2-FA: Renewable Generation Connection Investment Summary (TO BE UPDATED AT THE DRAFT RATE ORDER STAGE) | E31: 36 | F31: App.2-S: Stranded Meter Treatment- CONTACT OEB STAFF IF TAB REQUIRED
A32: 18 | B32: App.2-FB: Calculation of Renewable Generation Connection Direct Benefits/Provincial Amount: Renewable Enabling Improvement Investments (TO BE UPDATED AT THE DRAFT RATE ORDER STAGE) | E32: 37 | F32: App.2-Y: Transition to MIFRS Summary Impact - CONTACT OEB STAFF IF TAB REQUIRED
A33: 19 | B33: App.2-FC: Calculation of Renewable Generation Connection Direct Benefits/Provincial Amount: Renewable Expansion Investments (TO BE UPDATED AT THE DRAFT RATE ORDER STAGE) | E33: 38 | F33: App.2-YA: One-Time Incremental IFRS Transition Costs - CONTACT OEB STAFF IF TAB REQUIRED
E34: 39 | F34: App.2-ZA: Commodity Expense
E35: 40 | F35: App.2-ZB: Cost of Power
A42: Note: | B42: Appendices for the Tariff of Rates and Charges at Current and Proposed Rates, and for the Bill Impacts are now in a separate spreadsheet model. These appendices were formerly 2-Z and 2-W.

Sheet COS Flowchart
B4: Cost of Service Rate Application Schematic
B6: The Cost of Service Rate Application Schematic is a flowchart that is included as a guide for the components of an application. The schematic demonstrates how demand and costs interrelate to derive the revenue requirement and how the revenue requirement is allocated between classes and through fixed/variable splits to derive rates that will be compensatory for the annual revenue requirement, based on the the forecasted demand. There is no form to be filled out; therefore, this Schedule is not required to be filed.

Sheet List of Key References
B2: List of Key References
A4: A list of key references for understanding the Filing Requirements has been embedded in the document below. To access the list of references and associated hyperlinks double-click the icon below.

Sheet App.2-A_Requested_Approvals
G1: File Number: | H1: =EBNUMBER -> EB-2020-0020
G2: Exhibit:
G3: Tab:
G4: Schedule:
G5: Page:
G7: Date:
B9: Appendix 2-A
B10: List of Requested Approvals
B12: The distributor must fill out the following sheet with the complete list of specific approvals requested and relevant section(s) of the legislation must be provided. All approvals, including accounting orders (deferral and variance accounts) new rate classes, revised specific service charges or retail service charges which the applicant is seeking, must be separately identified, as well being clearly documented in the appropriate sections of the application.
B14: Additional requests may be added by copying and pasting blank input rows, as needed.
B16: If additional requests arise, or requested approvals are removed, during the processing of the application, the distributor should update this list.
B18: =CONCATENATE('LDC Info'!E14," is seeking the following approvals in this application:") -> North Bay Hydro Distribution Limited - Espanola service territory is seeking the following approvals in this application:
B20: 1 | F20: Approval to charge rates effective May 1, 2021 to recover a revenue requirement of $2,272,419 which includes a revenue deficiency of $449,736 as set out in Exhibit 6
B22: 2 | F22: Approval to transition to fully-fixed rates for residential customers
B24: 3 | F24: Approval of the proposed loss factor of 1.0673 as set out in Exhibit 8
B26: 4 | F26: Approval to charge a Retail Transmission Network Service rate as proposed and described in Exhibit 8
B28: 5 | F28: Approval to continue to charge Wholesale Market Service Charge
B30: 6 | F30: Approval to continue the Specific Service Charges and Transformer Allowance
B32: 7 | F32: Approval to dispose of Account 1508, Other Regulatory Assets, sub-accounts for Distribution Station 4 which was subject of an ICM application (EB-2013-0127)
B34: 8 | F34: Approval of the rate riders for disposition of the Lost Revenue Adjustment Mechanism Variance Account ("LRAMVA") and Lost Revenue Adjustment Mechanism ("LRAM") for lost revenue for the 2011-2019 program years, with persistence to April 30, 2021. For additional information, please refer to Exhibit 4
B36: 9 | F36: Approval of the rate riders for disposition of the Group 1 and Group 2 and Other Deferral and Variance Accounts as detailed in Exhibit 9
B38: 10 | F38: Approval of the updated province‐wide fixed monthly charge of $4.55 for MicroFIT 11 Generator Service Classification
B40: 11 | F40: Approval to continue to use Account 1509 – Impacts Arising from the COVID-19 Emergency
B42: 12 | F42: May 1, 2016 interim rates be declared final rates
B44: 13 | F44: Such other approvals as ERHDC may advise and the OEB may deem as just and reasonable.

Sheet App.2-AA_Capital Projects
H1: File Number: | I1: =EBNUMBER -> EB-2020-0020
H2: Exhibit:
H3: Tab:
H4: Schedule:
H5: Page:
H7: Date:
A9: Appendix 2-AA
A10: Capital Projects Table
J12: Orig filing
A13: Projects | B13: =D13-1 -> 2016 | C13: =D13-1 -> 2016 | D13: =E13-1 -> 2017 | E13: =F13-1 -> 2018 | F13: =BridgeYear - 1 -> 2019 | G13: =BridgeYear & " Bridge Year" -> 2020 Bridge Year | H13: =TestYear & " Test Year" -> 2021 Test Year | J13: =BridgeYear & " Bridge Year" -> 2020 Bridge Year
A14: Reporting Basis
A15: Pole Replacements
A16: Distribution Stations
A17: Poles, Towers, Fixtures | C17: 22183.75 | D17: 64088 | E17: 96375 | F17: 190196 | G17: =39440.5401282254+0.84+2.96+1.66 -> 39446.00013 | H17: 75615 | J17: 53717
A18: O/H Conductors & Devices | C18: 6743.62 | E18: 3634 | F18: 28677 | G18: 924.3913347
A19: Underground Conduit
A20: U/G Conductors & Devices | C20: 737.19 | F20: 6548 | G20: 144.9969174
A21: Line Transformers | C21: 11230.66017 | G21: 3090.487429
A22: Services - New | C22: 16727.22789 | E22: 158
A23: Meters | C23: 3503.67
A24: Sub-Total | B24: =SUM(B16:B20) -> 0 | C24: =SUM(C16:C23) -> 61126.11806 | D24: =SUM(D16:D23) -> 64088 | E24: =SUM(E16:E23) -> 100167 | F24: =SUM(F16:F23) -> 225421 | G24: 43605.87581 | H24: 75615 | J24: =SUM(J16:J23) -> 53717 | L24: =J24-G24 -> 10111.12419
A25: OH Cutout Renewal | D25: 3689 | E25: 9037 | F25: 4663 | H25: 9547
A26: Distribution Stations
A27: Poles, Towers, Fixtures
A28: O/H Conductors & Devices | J28: 52781
A29: Underground Conduit
A30: U/G Conductors & Devices
A31: Line Transformers
A32: Services - New
A33: Meters
A34: Sub-Total | B34: =SUM(B26:B30) -> 0 | C34: =SUM(C25:C33) -> 0 | D34: 3689 | E34: 9037 | F34: 4663 | G34: 0 | H34: 9547 | J34: =SUM(J25:J33) -> 52781 | L34: =J34-G34 -> 52781
A35: Spnaish River Drive | F35: 3706
A36: Distribution Stations
A37: Poles, Towers, Fixtures | G37: 20204.21635
A38: O/H Conductors & Devices | G38: 70.71144483
A39: Underground Conduit | G39: 46892.63205 | J39: 76572
A40: U/G Conductors & Devices | G40: 5476.218893 | J40: 76572
A41: Line Transformers | G41: 11820.96548 | J41: 27024
A42: Services - New | G42: 19395.01073 | J42: 45042
A43: Meters | G43: 390.8569753
A44: Sub-Total | B44: =SUM(B39:B43) -> 0 | C44: =SUM(C35:C43) -> 0 | D44: =SUM(D35:D43) -> 0 | E44: =SUM(E35:E43) -> 0 | F44: 3706 | G44: 104250.6119 | H44: 0 | J44: =SUM(J35:J43) -> 225210 | L44: =J44-G44 -> 120959.3881
A45: Massey 3 Phase Line Replacement
A46: Distribution Stations
A47: Poles, Towers, Fixtures | H47: 42984
A48: O/H Conductors & Devices | H48: 42984
A49: Underground Conduit
A50: U/G Conductors & Devices
A51: Line Transformers | H51: 15170
A52: Services - New | H52: 25285
A53: Meters
A54: Sub-Total | B54: =SUM(B46:B53) -> 0 | C54: =SUM(C45:C53) -> 0 | D54: =SUM(D45:D53) -> 0 | E54: =SUM(E45:E53) -> 0 | F54: 0 | G54: 0 | H54: 126423 | J54: =SUM(J45:J53) -> 0 | L54: =J54-G54 -> 0
A55: Duplessis road pole Line rebuild | G55: 41399.68101
A56: Distribution Stations
A57: Poles, Towers, Fixtures | J57: 55038
A58: O/H Conductors & Devices
A59: Underground Conduit
A60: U/G Conductors & Devices
A61: Line Transformers
A62: Services - New
A63: Meters
A64: Sub-Total | C64: =SUM(C55:C63) -> 0 | D64: =SUM(D55:D63) -> 0 | E64: =SUM(E55:E63) -> 0 | F64: 0 | G64: 41399.68101 | H64: 0 | J64: =SUM(J55:J63) -> 55038 | L64: =J64-G64 -> 13638.31899
A65: Cross Lot Relocations | D65: 39070 | G65: 1214.946368 | J65: 48038
A66: Distribution Stations
A67: Poles, Towers, Fixtures | E67: 38491 | F67: 42827
A68: O/H Conductors & Devices | E68: 38163 | F68: 34130
A69: Underground Conduit
A70: U/G Conductors & Devices | E70: 141 | F70: 4807
A71: Line Transformers | E71: 2737
A72: Services - New
A73: Meters
A74: Sub-Total | C74: =SUM(C65:C73) -> 0 | D74: =SUM(D65:D73) -> 39070 | E74: =SUM(E65:E73) -> 79532 | F74: 81764 | G74: 1214.946368 | H74: 0 | J74: =SUM(J65:J73) -> 48038 | L74: =J74-G74 -> 46823.05363
A75: Double Bucklet Truck
A76: Distribution Stations
A77: Poles, Towers, Fixtures
A78: O/H Conductors & Devices
A79: Underground Conduit
A80: U/G Conductors & Devices
A81: Line Transformers
A82: Services - New
A83: Meters
A84: Vehicles | F84: 70339
A85: Sub-Total | C85: =SUM(C75:C84) -> 0 | D85: 0 | E85: 0 | F85: 70339 | G85: 0 | H85: 0 | J85: =SUM(J75:J84) -> 0 | L85: =J85-G85 -> 0
A86: Replace Submarine Cable
A87: Distribution Stations
A88: Poles, Towers, Fixtures
A89: O/H Conductors & Devices
A90: Underground Conduit
A91: U/G Conductors & Devices | D91: 61733 | E91: 184153.3243
A92: Line Transformers
A93: Services - New
A94: Meters
A95: Sub-Total | C95: =SUM(C86:C94) -> 0 | D95: 61733 | E95: 184153.3243 | F95: 0 | G95: 0 | H95: 0 | J95: =SUM(J86:J94) -> 0 | L95: =J95-G95 -> 0
A96: Conductor Replacements - Tie Feeders F3-F5
A97: Distribution Stations
A98: Poles, Towers, Fixtures | D98: 39388.80322
A99: O/H Conductors & Devices | D99: 128690.7505
A100: Underground Conduit | D100: 0
A101: U/G Conductors & Devices | D101: 5055.971586
A102: Line Transformers | D102: 3367.172961
A103: Services - New | D103: 0
A104: Meters | D104: 0
A105: Sub-total | C105: =SUM(C96:C104) -> 0 | D105: =SUM(D96:D104) -> 176502.6982 | E105: =SUM(E96:E104) -> 0 | F105: 0 | G105: 0 | H105: 0 | J105: =SUM(J96:J104) -> 0 | L105: =J105-G105 -> 0
A106: Conductor Replacements - Tie Feeders F1-F8
A107: Distribution Stations
A108: Poles, Towers, Fixtures | C108: 30009.31066 | D108: 4782.121262
A109: O/H Conductors & Devices | C109: 121638.3632 | D109: 77844.30921
A110: Underground Conduit | D110: 0
A111: U/G Conductors & Devices | D111: 13877.60053
A112: Line Transformers | D112: 0
A113: Services - New | C113: 2076.434743 | D113: 0
A114: Meters | D114: 0
A115: Sub-Total | B115: =SUM(B106:B114) -> 0 | C115: 153724.1086 | D115: 96504.031 | E115: 0 | F115: 0 | G115: 0 | H115: 0 | J115: =SUM(J106:J114) -> 0 | L115: =J115-G115 -> 0
A116: 44kV Loop
A117: Distribution Stations
A118: Poles, Towers, Fixtures | C118: 6206.608452
A119: O/H Conductors & Devices | C119: 26558.13054
A120: Underground Conduit
A121: U/G Conductors & Devices | C121: 12899.85211
A122: Line Transformers | C122: 13244.35983
A123: Services - New | C123: 8607.687371
A124: Meters
A125: Sub-Total | B125: =SUM(B116:B124) -> 0 | C125: 67516.6383 | D125: 0 | E125: 0 | F125: 0 | G125: 0 | H125: 0 | J125: =SUM(J116:J124) -> 0 | L125: =J125-G125 -> 0
A126: Clear Lake | H126: 41821
A127: Distribution Stations
A128: Poles, Towers, Fixtures | G128: 55797.46689
A129: O/H Conductors & Devices | G129: 9135.387893
A130: Underground Conduit | G130: 154.7705672
A131: U/G Conductors & Devices | G131: 41.57361175
A132: Line Transformers | G132: 5769.510472
A133: Services - New | G133: 259.2273369
A134: Meters | G134: 15.36418601
A135: Sub-Total | B135: =SUM(B126:B134) -> 0 | C135: 0 | D135: 0 | E135: 0 | F135: 0 | G135: 71173.30096 | H135: 41821 | L135: =J135-G135 -> -71173.30096
A136: Long Term Load Transfer
A137: Distribution Stations | D137: 55211.5016
A138: Poles, Towers, Fixtures | D138: 77380.45388
A139: O/H Conductors & Devices | D139: 0
A140: Underground Conduit | D140: 0
A141: U/G Conductors & Devices | D141: 26665.96924
A142: Line Transformers | D142: 2403.968666
A143: Services - New
A144: Meters
A145: Sub-Total | B145: =SUM(B140:B144) -> 0 | C145: =SUM(C136:C144) -> 0 | D145: =SUM(D136:D144) -> 161661.8934 | E145: =SUM(E137:E144) -> 0 | F145: 0 | G145: 0 | H145: 0 | J145: =SUM(J137:J144) -> 0 | L145: =J145-G145 -> 0
A146: Miscellaneous
A147: Misc. Facilities | C147: 3018.55 | G147: 35594.39 | H147: 25000 | J147: 35000 | L147: =J147-G147 -> -594.39
A148: Land | L148: 0
A149: Vehicle | C149: 43617.29 | G149: 10639.34 | L149: -10639.34
A150: Tools and Equipment | C150: 4657.58 | F150: 7166 | G150: 5237.15 | H150: 8000 | J150: 8000 | L150: 2762.85
A151: IT Equipment | F151: 7759 | G151: 11194.93 | J151: =5000+10000 -> 15000 | L151: 3805.07
A152: New & Upgrade Services | C152: =5096.66+26343.35 -> 31440.01 | D152: =11373+5087 -> 16460 | E152: =35499+1531 -> 37030 | F152: =341+18302 -> 18643 | G152: =23759.4130346533+3277.83+9389.42 -> 36426.66303 | H152: =4514+20513 -> 25027 | J152: =13670+21925 -> 35595 | L152: -831.6630347
A153: Sacred Heart School Service | D153: 661 | E153: 111 | F153: 18028 | L153: 0
A154: Joint Use Poles | F154: 0 | H154: 2656 | J154: 2521 | L154: 2521
A155: City Projects - line relocations | F155: 0 | G155: 268.5741262 | H155: 7762 | J155: 11845 | L155: 11576.42587
A156: Meters | D156: 3024 | F156: 0 | G156: 17396.14184 | H156: =7161+9258 -> 16419 | J156: =24965+7407 -> 32372 | L156: 14975.85816
A157: MIST Meters | G157: 15854.94071 | J157: 37900 | L157: 22045.05929
A158: OH Transformer Renewal | C158: 5238.08 | D158: 18468 | E158: 16612 | F158: 21996 | G158: 21549.57404 | H158: 40654 | J158: 28793 | L158: 7243.42596
A159: Clearlake | L159: 0
A160: Brentwood Subdivision | F160: 1459 | G160: 30359.95765 | J160: 27821 | L160: -2538.95765
A161: OH Forced Outages | G161: =11233.631789629+1922.43 -> 13156.06179 | H161: 5587 | J161: 5905 | L161: -7251.06179
A162: Kbar Replacement | G162: 859.15 | H162: 12268 | J162: 23793 | L162: 22933.85
A163: Transclosure Replacement | H163: 38795 | L163: 0
A164: UG Forced Outages | E164: 3536 | G164: =3928.34775261933+8114.82 -> 12043.16775 | H164: 2925 | J164: 3161 | L164: -8882.167753
A165: MS 3 Conductor Replacement | H165: 46318 | J165: 2000 | L165: 2000
A166: Insulator Replacement | G166: 20613.87603 | L166: -20613.87603
A167: Substation Misc. Projects | G167: 2695.02 | H167: 3612 | J167: 3940 | L167: 1244.98
A168: Spruce Street Project | G168: 41060.37611 | L168: -41060.37611
A169: Mead Project | C169: 40177.43 | L169: 0
A170: 4kV Feeder at MS 2 | C170: 15887.49 | D170: 6813 | L170: 0
A171: Miscellaneous Subtotal | B171: =SUM(B147:B170) -> 0 | C171: =SUM(C147:C170) -> 144036.43 | D171: 45426 | E171: 57289 | F171: 75051 | G171: 274949.3131 | H171: 235023 | J171: =SUM(J147:J170) -> 273646 | L171: =J171-G171 -> -1303.313073
A173: Total | B173: =SUMPRODUCT(--($A15:$A85="Sub-Total"), B$15:B$85)+B85 -> 0 | C173: =C171+C145+C115+C105+C95+C85+C74+C64+C54+C44+C34+C24+C125+C135 -> 426403.2949 | D173: =D171+D145+D115+D105+D95+D85+D74+D64+D54+D44+D34+D24+D125+D135 -> 648674.6226 | E173: 430178.3243 | F173: 460944 | G173: 536593.7291 | H173: 488429 | J173: =J171+J145+J115+J105+J95+J85+J74+J64+J54+J44+J34+J24 -> 708430 | L173: =J173-G173 -> 171836.2709
A174: Less Renewable Generation Facility Assets and Other Non-Rate-Regulated Utility Assets (input as negative)
A175: Total | B175: 0 | C175: =C173+C174 -> 426403.2949 | D175: 648674.6226 | E175: 430178.3243 | F175: 460944 | G175: 536593.7291 | H175: 488429 | J175: =J173+J174 -> 708430
A177: Notes:
A179: 1 Please provide a breakdown of the major components of each capital project undertaken in each year. Please ensure that all projects below the materiality threshold are included in the miscellaneous line. Add more projects as required.
A180: 2 The applicant should group projects appropriately and avoid presentations that result in classification of significant components of the capital budget in the miscellaneous category.

Sheet App.2-AB_Capital Expenditures
AE1: File Number: | AG1: =EBNUMBER -> EB-2020-0020
AE2: Exhibit:
AE3: Tab:
AE4: Schedule:
A5: TO BE UPDATED AT THE DRAFT RATE ORDER STAGE | AE5: Page:
AE7: Date:
A9: Appendix 2-AB
A10: Table 2 - Capital Expenditure Summary from Chapter 5 Consolidated Distribution System Plan Filing Requirements
A11: First year of Forecast Period:
A12: =TestYear -> 2021
A13: CATEGORY | B13: Historical Period (previous plan1 & actual) | AC13: Forecast Period (planned)
B14: =E14-1 -> 2012 | E14: =H14-1 -> 2013 | H14: =K14-1 -> 2014 | K14: =N14-1 -> 2015 | N14: =Q14-1 -> 2016 | Q14: =T14-1 -> 2017 | T14: =W14-1 -> 2018 | W14: =Z14-1 -> 2019 | Z14: =AC14-1 -> 2020 | AC14: =A12 -> 2021 | AD14: =AC14+1 -> 2022 | AE14: =AD14+1 -> 2023 | AF14: =AE14+1 -> 2024 | AG14: =AF14+1 -> 2025
B15: Plan | C15: Actual | D15: Var | E15: Plan | F15: Actual | G15: Var | H15: Plan | I15: Actual | J15: Var | K15: Plan | L15: Actual | M15: Var | N15: Plan | O15: Actual | P15: Var | Q15: Plan | R15: Actual | S15: Var | T15: Plan | U15: Actual | V15: Var | W15: Plan | X15: Actual | Y15: Var | Z15: Plan | AA15: Actual2 | AB15: Var
B16: $ '000 | D16: % | E16: $ '000 | G16: % | H16: $ '000 | J16: % | K16: $ '000 | M16: % | N16: $ '000 | P16: % | Q16: $ '000 | S16: % | T16: $ '000 | V16: % | W16: $ '000 | Y16: % | Z16: $ '000 | AB16: % | AC16: $ '000
A17: System Access | B17: 68 | C17: 87 | D17: =IF(ISERROR((C17-B17)/B17),"--",(C17-B17)/B17) -> 0.2794117647 | G17: =IF(ISERROR((F17-E17)/E17),"--",(F17-E17)/E17) -> -- | J17: =IF(ISERROR((I17-H17)/H17),"--",(I17-H17)/H17) -> -- | M17: =IF(ISERROR((L17-K17)/K17),"--",(L17-K17)/K17) -> -- | N17: 90.795 | O17: 31.44001 | P17: =IF(ISERROR((O17-N17)/N17),"--",(O17-N17)/N17) -> -0.6537253153 | Q17: 242.465 | R17: 181.944 | S17: =IF(ISERROR((R17-Q17)/Q17),"--",(R17-Q17)/Q17) -> -0.2496071598 | T17: 108.702 | U17: 37.142 | V17: =IF(ISERROR((U17-T17)/T17),"--",(U17-T17)/T17) -> -0.6583135545 | W17: 107.964 | X17: 38.13 | Y17: =IF(ISERROR((X17-W17)/W17),"--",(X17-W17)/W17) -> -0.64682672 | Z17: 148.055 | AA17: 90.917 | AB17: =IF(ISERROR((AA17-Z17)/Z17),"--",(AA17-Z17)/Z17) -> -0.3859241498 | AC17: 51.864
A18: System Renewal | B18: 779 | C18: 835 | D18: =IF(ISERROR((C18-B18)/B18),"--",(C18-B18)/B18) -> 0.07188703466 | G18: =IF(ISERROR((F18-E18)/E18),"--",(F18-E18)/E18) -> -- | J18: =IF(ISERROR((I18-H18)/H18),"--",(I18-H18)/H18) -> -- | M18: =IF(ISERROR((L18-K18)/K18),"--",(L18-K18)/K18) -> -- | N18: 553.507 | O18: 346.68841 | P18: =IF(ISERROR((O18-N18)/N18),"--",(O18-N18)/N18) -> -0.3736512637 | Q18: 453.677 | R18: 466.867 | S18: =IF(ISERROR((R18-Q18)/Q18),"--",(R18-Q18)/Q18) -> 0.02907354792 | T18: 446.098 | U18: 393.037 | V18: =IF(ISERROR((U18-T18)/T18),"--",(U18-T18)/T18) -> -0.1189447162 | W18: 416.541 | X18: 337.55 | Y18: =IF(ISERROR((X18-W18)/W18),"--",(X18-W18)/W18) -> -0.1896355941 | Z18: 502.375 | AA18: =383.012 -> 383.012 | AB18: =IF(ISERROR((AA18-Z18)/Z18),"--",(AA18-Z18)/Z18) -> -0.2375974123 | AC18: 403.565
A19: System Service | D19: -- | G19: -- | J19: -- | M19: -- | P19: -- | S19: -- | V19: -- | Y19: -- | AB19: --
A20: General Plant | B20: 195 | C20: 20 | D20: -0.8974358974 | G20: -- | J20: -- | M20: -- | N20: 476 | O20: 48.27487 | P20: -0.8985822059 | Q20: 415 | R20: 0 | S20: -1 | T20: 12.5 | U20: 0 | V20: -1 | W20: 12.5 | X20: 85.264 | Y20: 5.82112 | Z20: 58 | AA20: 62.665 | AB20: 0.08043103448 | AC20: 33
A21: TOTAL EXPENDITURE | B21: =SUM(B17:B20) -> 1042 | C21: =SUM(C17:C20) -> 942 | D21: -0.09596928983 | E21: =SUM(E17:E20) -> 0 | F21: =SUM(F17:F20) -> 0 | G21: -- | H21: =SUM(H17:H20) -> 0 | I21: =SUM(I17:I20) -> 0 | J21: -- | K21: =SUM(K17:K20) -> 0 | L21: =SUM(L17:L20) -> 0 | M21: -- | N21: =SUM(N17:N20) -> 1120.302 | O21: =SUM(O17:O20) -> 426.40329 | P21: -0.6193854068 | Q21: 1111.142 | R21: 648.811 | S21: -0.4160863328 | T21: 567.3 | U21: 430.179 | V21: -0.241708091 | W21: 537.005 | X21: 460.944 | Y21: -0.1416392771 | Z21: 708.43 | AA21: 536.594 | AB21: -0.2425588978 | AC21: 488.429 | AD21: 0 | AE21: 0 | AF21: 0 | AG21: =SUM(AG17:AG20) -> 0
A22: Capital Contributions | B22: 16.477 | C22: 71 | D22: 3.309036839 | G22: -- | J22: -- | M22: -- | N22: 13 | O22: 47.33185 | P22: 2.640911538 | Q22: 18.358 | R22: 3.293 | S22: -0.8206231616 | T22: 23.58 | U22: 40.269 | V22: 0.7077608142 | W22: 29.616 | X22: 39.29 | Y22: 0.326647758 | Z22: 63.83 | AA22: 5.147 | AB22: -0.9193639355 | AC22: 25
A23: Net Capital Expenditures | B23: =B21-B22 -> 1025.523 | C23: 871 | D23: -0.1506772642 | G23: -- | J23: -- | M23: -- | N23: =N21-N22 -> 1107.302 | O23: =O21-O22 -> 379.07144 | P23: -0.6576621012 | Q23: =Q21-Q22 -> 1092.784 | R23: =R21-R22 -> 645.518 | S23: -0.4092903996 | T23: =T21-T22 -> 543.72 | U23: =U21-U22 -> 389.91 | V23: -0.2828845729 | W23: =W21-W22 -> 507.389 | X23: =X21-X22 -> 421.654 | Y23: -0.1689729182 | Z23: =Z21-Z22 -> 644.6 | AA23: =AA21-AA22 -> 531.447 | AB23: -0.1755398697 | AC23: =AC21-AC22 -> 463.429
A24: System O&M | B24: 646.506 | C24: 670.031 | D24: 0.03638790669 | G24: -- | J24: -- | M24: -- | N24: 631.131 | O24: 646.88635 | P24: 0.02496367632 | Q24: 647.033 | R24: 585.99 | S24: -0.09434294696 | T24: 649.318 | U24: 641.113 | V24: -0.01263633535 | W24: 688.23 | X24: 720.494 | Y24: 0.04687967685 | Z24: 723.495 | AA24: 716.681 | AB24: -0.009418171515 | AC24: 735
A26: Notes to the Table:
A27: 1. Historical “previous plan” data is not required unless a plan has previously been filed. However, use the last OEB-approved, at least on a Total (Capital) Expenditure basis for the last cost of service rebasing year, and the applicant should include their planned budget in each subsequent historical year up to and including the Bridge Year.
A28: 2. Indicate the number of months of 'actual' data included in the last year of the Historical Period (normally a 'bridge' year):
A30: Explanatory Notes on Variances (complete only if applicable)
A31: Notes on shifts in forecast vs. historical budgets by category
A34: Notes on year over year Plan vs. Actual variances for Total Expenditures
A37: Notes on Plan vs. Actual variance trends for individual expenditure categories

Sheet Hidden_CAPEX (hidden)
A1: Utility Name | B1: EB Number | C1: Test Year | D1: Bridge Year | E1: Last Rebasing Year | F1: Category | G1: Year | H1: Plan | I1: Actual
A2: ='LDC Info'!$E$14 -> North Bay Hydro Distribution Limited - Espanola service territory | B2: =EBNUMBER -> EB-2020-0020 | C2: =TestYear -> 2021 | D2: =BridgeYear -> 2020 | E2: =RebaseYear -> 2012 | F2: System Access | G2: ='App.2-AB_Capital Expenditures'!B14 -> 2012 | H2: ='App.2-AB_Capital Expenditures'!B17 -> 68 | I2: ='App.2-AB_Capital Expenditures'!C17 -> 87
A3: ='LDC Info'!$E$14 -> North Bay Hydro Distribution Limited - Espanola service territory | B3: EB-2020-0020 | C3: 2021 | D3: 2020 | E3: 2012 | F3: System Renewal | G3: ='App.2-AB_Capital Expenditures'!B14 -> 2012 | H3: ='App.2-AB_Capital Expenditures'!B18 -> 779 | I3: ='App.2-AB_Capital Expenditures'!C18 -> 835
A4: ='LDC Info'!$E$14 -> North Bay Hydro Distribution Limited - Espanola service territory | B4: EB-2020-0020 | C4: 2021 | D4: 2020 | E4: 2012 | F4: System Service | G4: ='App.2-AB_Capital Expenditures'!B14 -> 2012 | H4: ='App.2-AB_Capital Expenditures'!B19 -> 0 | I4: ='App.2-AB_Capital Expenditures'!C19 -> 0
A5: ='LDC Info'!$E$14 -> North Bay Hydro Distribution Limited - Espanola service territory | B5: EB-2020-0020 | C5: 2021 | D5: 2020 | E5: 2012 | F5: General Plant | G5: ='App.2-AB_Capital Expenditures'!B14 -> 2012 | H5: ='App.2-AB_Capital Expenditures'!B20 -> 195 | I5: ='App.2-AB_Capital Expenditures'!C20 -> 20
A6: ='LDC Info'!$E$14 -> North Bay Hydro Distribution Limited - Espanola service territory | B6: EB-2020-0020 | C6: 2021 | D6: 2020 | E6: 2012 | F6: Total Expenditure | G6: ='App.2-AB_Capital Expenditures'!B14 -> 2012 | H6: ='App.2-AB_Capital Expenditures'!B21 -> 1042 | I6: ='App.2-AB_Capital Expenditures'!C21 -> 942
A7: ='LDC Info'!$E$14 -> North Bay Hydro Distribution Limited - Espanola service territory | B7: EB-2020-0020 | C7: 2021 | D7: 2020 | E7: 2012 | F7: Capital Contributions | G7: ='App.2-AB_Capital Expenditures'!B14 -> 2012 | H7: ='App.2-AB_Capital Expenditures'!B22 -> 16.477 | I7: ='App.2-AB_Capital Expenditures'!C22 -> 71
A8: ='LDC Info'!$E$14 -> North Bay Hydro Distribution Limited - Espanola service territory | B8: EB-2020-0020 | C8: 2021 | D8: 2020 | E8: 2012 | F8: Net Capital Expenditures | G8: ='App.2-AB_Capital Expenditures'!B14 -> 2012 | H8: ='App.2-AB_Capital Expenditures'!B23 -> 1025.523 | I8: ='App.2-AB_Capital Expenditures'!C23 -> 871
A9: ='LDC Info'!$E$14 -> North Bay Hydro Distribution Limited - Espanola service territory | B9: EB-2020-0020 | C9: 2021 | D9: 2020 | E9: 2012 | F9: System O&M | G9: ='App.2-AB_Capital Expenditures'!B14 -> 2012 | H9: ='App.2-AB_Capital Expenditures'!B24 -> 646.506 | I9: ='App.2-AB_Capital Expenditures'!C24 -> 670.031
A10: ='LDC Info'!$E$14 -> North Bay Hydro Distribution Limited - Espanola service territory | B10: EB-2020-0020 | C10: 2021 | D10: 2020 | E10: 2012 | F10: System Access | G10: ='App.2-AB_Capital Expenditures'!E14 -> 2013 | H10: ='App.2-AB_Capital Expenditures'!E17 -> 0 | I10: ='App.2-AB_Capital Expenditures'!F17 -> 0
A11: ='LDC Info'!$E$14 -> North Bay Hydro Distribution Limited - Espanola service territory | B11: EB-2020-0020 | C11: 2021 | D11: 2020 | E11: 2012 | F11: System Renewal | G11: ='App.2-AB_Capital Expenditures'!E14 -> 2013 | H11: ='App.2-AB_Capital Expenditures'!E18 -> 0 | I11: ='App.2-AB_Capital Expenditures'!F18 -> 0
A12: ='LDC Info'!$E$14 -> North Bay Hydro Distribution Limited - Espanola service territory | B12: EB-2020-0020 | C12: 2021 | D12: 2020 | E12: 2012 | F12: System Service | G12: ='App.2-AB_Capital Expenditures'!E14 -> 2013 | H12: ='App.2-AB_Capital Expenditures'!E19 -> 0 | I12: ='App.2-AB_Capital Expenditures'!F19 -> 0
A13: ='LDC Info'!$E$14 -> North Bay Hydro Distribution Limited - Espanola service territory | B13: EB-2020-0020 | C13: 2021 | D13: 2020 | E13: 2012 | F13: General Plant | G13: ='App.2-AB_Capital Expenditures'!E14 -> 2013 | H13: ='App.2-AB_Capital Expenditures'!E20 -> 0 | I13: ='App.2-AB_Capital Expenditures'!F20 -> 0
A14: ='LDC Info'!$E$14 -> North Bay Hydro Distribution Limited - Espanola service territory | B14: EB-2020-0020 | C14: 2021 | D14: 2020 | E14: 2012 | F14: Total Expenditure | G14: ='App.2-AB_Capital Expenditures'!E14 -> 2013 | H14: ='App.2-AB_Capital Expenditures'!E21 -> 0 | I14: ='App.2-AB_Capital Expenditures'!F21 -> 0
A15: ='LDC Info'!$E$14 -> North Bay Hydro Distribution Limited - Espanola service territory | B15: EB-2020-0020 | C15: 2021 | D15: 2020 | E15: 2012 | F15: Capital Contributions | G15: ='App.2-AB_Capital Expenditures'!E14 -> 2013 | H15: ='App.2-AB_Capital Expenditures'!E22 -> 0 | I15: ='App.2-AB_Capital Expenditures'!F22 -> 0
A16: ='LDC Info'!$E$14 -> North Bay Hydro Distribution Limited - Espanola service territory | B16: EB-2020-0020 | C16: 2021 | D16: 2020 | E16: 2012 | F16: Net Capital Expenditures | G16: ='App.2-AB_Capital Expenditures'!E14 -> 2013 | H16: ='App.2-AB_Capital Expenditures'!E23 -> 0 | I16: ='App.2-AB_Capital Expenditures'!F23 -> 0
A17: ='LDC Info'!$E$14 -> North Bay Hydro Distribution Limited - Espanola service territory | B17: EB-2020-0020 | C17: 2021 | D17: 2020 | E17: 2012 | F17: System O&M | G17: ='App.2-AB_Capital Expenditures'!E14 -> 2013 | H17: ='App.2-AB_Capital Expenditures'!E24 -> 0 | I17: ='App.2-AB_Capital Expenditures'!F24 -> 0
A18: ='LDC Info'!$E$14 -> North Bay Hydro Distribution Limited - Espanola service territory | B18: EB-2020-0020 | C18: 2021 | D18: 2020 | E18: 2012 | F18: System Access | G18: ='App.2-AB_Capital Expenditures'!H14 -> 2014 | H18: ='App.2-AB_Capital Expenditures'!H17 -> 0 | I18: ='App.2-AB_Capital Expenditures'!I17 -> 0
A19: ='LDC Info'!$E$14 -> North Bay Hydro Distribution Limited - Espanola service territory | B19: EB-2020-0020 | C19: 2021 | D19: 2020 | E19: 2012 | F19: System Renewal | G19: ='App.2-AB_Capital Expenditures'!H14 -> 2014 | H19: ='App.2-AB_Capital Expenditures'!H18 -> 0 | I19: ='App.2-AB_Capital Expenditures'!I18 -> 0
A20: ='LDC Info'!$E$14 -> North Bay Hydro Distribution Limited - Espanola service territory | B20: EB-2020-0020 | C20: 2021 | D20: 2020 | E20: 2012 | F20: System Service | G20: ='App.2-AB_Capital Expenditures'!H14 -> 2014 | H20: ='App.2-AB_Capital Expenditures'!H19 -> 0 | I20: ='App.2-AB_Capital Expenditures'!I19 -> 0
A21: ='LDC Info'!$E$14 -> North Bay Hydro Distribution Limited - Espanola service territory | B21: EB-2020-0020 | C21: 2021 | D21: 2020 | E21: 2012 | F21: General Plant | G21: ='App.2-AB_Capital Expenditures'!H14 -> 2014 | H21: ='App.2-AB_Capital Expenditures'!H20 -> 0 | I21: ='App.2-AB_Capital Expenditures'!I20 -> 0
A22: ='LDC Info'!$E$14 -> North Bay Hydro Distribution Limited - Espanola service territory | B22: EB-2020-0020 | C22: 2021 | D22: 2020 | E22: 2012 | F22: Total Expenditure | G22: ='App.2-AB_Capital Expenditures'!H14 -> 2014 | H22: ='App.2-AB_Capital Expenditures'!H21 -> 0 | I22: ='App.2-AB_Capital Expenditures'!I21 -> 0
A23: ='LDC Info'!$E$14 -> North Bay Hydro Distribution Limited - Espanola service territory | B23: EB-2020-0020 | C23: 2021 | D23: 2020 | E23: 2012 | F23: Capital Contributions | G23: ='App.2-AB_Capital Expenditures'!H14 -> 2014 | H23: ='App.2-AB_Capital Expenditures'!H22 -> 0 | I23: ='App.2-AB_Capital Expenditures'!I22 -> 0
A24: ='LDC Info'!$E$14 -> North Bay Hydro Distribution Limited - Espanola service territory | B24: EB-2020-0020 | C24: 2021 | D24: 2020 | E24: 2012 | F24: Net Capital Expenditures | G24: ='App.2-AB_Capital Expenditures'!H14 -> 2014 | H24: ='App.2-AB_Capital Expenditures'!H23 -> 0 | I24: ='App.2-AB_Capital Expenditures'!I23 -> 0
A25: ='LDC Info'!$E$14 -> North Bay Hydro Distribution Limited - Espanola service territory | B25: EB-2020-0020 | C25: 2021 | D25: 2020 | E25: 2012 | F25: System O&M | G25: ='App.2-AB_Capital Expenditures'!H14 -> 2014 | H25: ='App.2-AB_Capital Expenditures'!H24 -> 0 | I25: ='App.2-AB_Capital Expenditures'!I24 -> 0
A26: ='LDC Info'!$E$14 -> North Bay Hydro Distribution Limited - Espanola service territory | B26: EB-2020-0020 | C26: 2021 | D26: 2020 | E26: 2012 | F26: System Access | G26: ='App.2-AB_Capital Expenditures'!K14 -> 2015 | H26: ='App.2-AB_Capital Expenditures'!K17 -> 0 | I26: ='App.2-AB_Capital Expenditures'!L17 -> 0
A27: ='LDC Info'!$E$14 -> North Bay Hydro Distribution Limited - Espanola service territory | B27: EB-2020-0020 | C27: 2021 | D27: 2020 | E27: 2012 | F27: System Renewal | G27: ='App.2-AB_Capital Expenditures'!K14 -> 2015 | H27: ='App.2-AB_Capital Expenditures'!K18 -> 0 | I27: ='App.2-AB_Capital Expenditures'!L18 -> 0
A28: ='LDC Info'!$E$14 -> North Bay Hydro Distribution Limited - Espanola service territory | B28: EB-2020-0020 | C28: 2021 | D28: 2020 | E28: 2012 | F28: System Service | G28: ='App.2-AB_Capital Expenditures'!K14 -> 2015 | H28: ='App.2-AB_Capital Expenditures'!K19 -> 0 | I28: ='App.2-AB_Capital Expenditures'!L19 -> 0
A29: ='LDC Info'!$E$14 -> North Bay Hydro Distribution Limited - Espanola service territory | B29: EB-2020-0020 | C29: 2021 | D29: 2020 | E29: 2012 | F29: General Plant | G29: ='App.2-AB_Capital Expenditures'!K14 -> 2015 | H29: ='App.2-AB_Capital Expenditures'!K20 -> 0 | I29: ='App.2-AB_Capital Expenditures'!L20 -> 0
A30: ='LDC Info'!$E$14 -> North Bay Hydro Distribution Limited - Espanola service territory | B30: EB-2020-0020 | C30: 2021 | D30: 2020 | E30: 2012 | F30: Total Expenditure | G30: ='App.2-AB_Capital Expenditures'!K14 -> 2015 | H30: ='App.2-AB_Capital Expenditures'!K21 -> 0 | I30: ='App.2-AB_Capital Expenditures'!L21 -> 0
A31: ='LDC Info'!$E$14 -> North Bay Hydro Distribution Limited - Espanola service territory | B31: EB-2020-0020 | C31: 2021 | D31: 2020 | E31: 2012 | F31: Capital Contributions | G31: ='App.2-AB_Capital Expenditures'!K14 -> 2015 | H31: ='App.2-AB_Capital Expenditures'!K22 -> 0 | I31: ='App.2-AB_Capital Expenditures'!L22 -> 0
A32: ='LDC Info'!$E$14 -> North Bay Hydro Distribution Limited - Espanola service territory | B32: EB-2020-0020 | C32: 2021 | D32: 2020 | E32: 2012 | F32: Net Capital Expenditures | G32: ='App.2-AB_Capital Expenditures'!K14 -> 2015 | H32: ='App.2-AB_Capital Expenditures'!K23 -> 0 | I32: ='App.2-AB_Capital Expenditures'!L23 -> 0
A33: ='LDC Info'!$E$14 -> North Bay Hydro Distribution Limited - Espanola service territory | B33: EB-2020-0020 | C33: 2021 | D33: 2020 | E33: 2012 | F33: System O&M | G33: ='App.2-AB_Capital Expenditures'!K14 -> 2015 | H33: ='App.2-AB_Capital Expenditures'!K24 -> 0 | I33: ='App.2-AB_Capital Expenditures'!L24 -> 0
A34: ='LDC Info'!$E$14 -> North Bay Hydro Distribution Limited - Espanola service territory | B34: =EBNUMBER -> EB-2020-0020 | C34: =TestYear -> 2021 | D34: =BridgeYear -> 2020 | E34: =RebaseYear -> 2012 | F34: System Access | G34: ='App.2-AB_Capital Expenditures'!N14 -> 2016 | H34: ='App.2-AB_Capital Expenditures'!N17 -> 90.795 | I34: ='App.2-AB_Capital Expenditures'!O17 -> 31.44001
A35: ='LDC Info'!$E$14 -> North Bay Hydro Distribution Limited - Espanola service territory | B35: EB-2020-0020 | C35: 2021 | D35: 2020 | E35: 2012 | F35: System Renewal | G35: ='App.2-AB_Capital Expenditures'!N14 -> 2016 | H35: ='App.2-AB_Capital Expenditures'!N18 -> 553.507 | I35: ='App.2-AB_Capital Expenditures'!O18 -> 346.68841
A36: ='LDC Info'!$E$14 -> North Bay Hydro Distribution Limited - Espanola service territory | B36: EB-2020-0020 | C36: 2021 | D36: 2020 | E36: 2012 | F36: System Service | G36: ='App.2-AB_Capital Expenditures'!N14 -> 2016 | H36: ='App.2-AB_Capital Expenditures'!N19 -> 0 | I36: ='App.2-AB_Capital Expenditures'!O19 -> 0
A37: ='LDC Info'!$E$14 -> North Bay Hydro Distribution Limited - Espanola service territory | B37: EB-2020-0020 | C37: 2021 | D37: 2020 | E37: 2012 | F37: General Plant | G37: ='App.2-AB_Capital Expenditures'!N14 -> 2016 | H37: ='App.2-AB_Capital Expenditures'!N20 -> 476 | I37: ='App.2-AB_Capital Expenditures'!O20 -> 48.27487
A38: ='LDC Info'!$E$14 -> North Bay Hydro Distribution Limited - Espanola service territory | B38: EB-2020-0020 | C38: 2021 | D38: 2020 | E38: 2012 | F38: Total Expenditure | G38: ='App.2-AB_Capital Expenditures'!N14 -> 2016 | H38: ='App.2-AB_Capital Expenditures'!N21 -> 1120.302 | I38: ='App.2-AB_Capital Expenditures'!O21 -> 426.40329
A39: ='LDC Info'!$E$14 -> North Bay Hydro Distribution Limited - Espanola service territory | B39: EB-2020-0020 | C39: 2021 | D39: 2020 | E39: 2012 | F39: Capital Contributions | G39: ='App.2-AB_Capital Expenditures'!N14 -> 2016 | H39: ='App.2-AB_Capital Expenditures'!N22 -> 13 | I39: ='App.2-AB_Capital Expenditures'!O22 -> 47.33185
A40: ='LDC Info'!$E$14 -> North Bay Hydro Distribution Limited - Espanola service territory | B40: EB-2020-0020 | C40: 2021 | D40: 2020 | E40: 2012 | F40: Net Capital Expenditures | G40: ='App.2-AB_Capital Expenditures'!N14 -> 2016 | H40: ='App.2-AB_Capital Expenditures'!N23 -> 1107.302 | I40: ='App.2-AB_Capital Expenditures'!O23 -> 379.07144
A41: ='LDC Info'!$E$14 -> North Bay Hydro Distribution Limited - Espanola service territory | B41: EB-2020-0020 | C41: 2021 | D41: 2020 | E41: 2012 | F41: System O&M | G41: ='App.2-AB_Capital Expenditures'!N14 -> 2016 | H41: ='App.2-AB_Capital Expenditures'!N24 -> 631.131 | I41: ='App.2-AB_Capital Expenditures'!O24 -> 646.88635
A42: ='LDC Info'!$E$14 -> North Bay Hydro Distribution Limited - Espanola service territory | B42: EB-2020-0020 | C42: 2021 | D42: 2020 | E42: 2012 | F42: System Access | G42: ='App.2-AB_Capital Expenditures'!Q14 -> 2017 | H42: ='App.2-AB_Capital Expenditures'!Q17 -> 242.465 | I42: ='App.2-AB_Capital Expenditures'!R17 -> 181.944
A43: ='LDC Info'!$E$14 -> North Bay Hydro Distribution Limited - Espanola service territory | B43: EB-2020-0020 | C43: 2021 | D43: 2020 | E43: 2012 | F43: System Renewal | G43: ='App.2-AB_Capital Expenditures'!Q14 -> 2017 | H43: ='App.2-AB_Capital Expenditures'!Q18 -> 453.677 | I43: ='App.2-AB_Capital Expenditures'!R18 -> 466.867
A44: ='LDC Info'!$E$14 -> North Bay Hydro Distribution Limited - Espanola service territory | B44: EB-2020-0020 | C44: 2021 | D44: 2020 | E44: 2012 | F44: System Service | G44: ='App.2-AB_Capital Expenditures'!Q14 -> 2017 | H44: ='App.2-AB_Capital Expenditures'!Q19 -> 0 | I44: ='App.2-AB_Capital Expenditures'!R19 -> 0
A45: ='LDC Info'!$E$14 -> North Bay Hydro Distribution Limited - Espanola service territory | B45: EB-2020-0020 | C45: 2021 | D45: 2020 | E45: 2012 | F45: General Plant | G45: ='App.2-AB_Capital Expenditures'!Q14 -> 2017 | H45: ='App.2-AB_Capital Expenditures'!Q20 -> 415 | I45: ='App.2-AB_Capital Expenditures'!R20 -> 0
A46: ='LDC Info'!$E$14 -> North Bay Hydro Distribution Limited - Espanola service territory | B46: EB-2020-0020 | C46: 2021 | D46: 2020 | E46: 2012 | F46: Total Expenditure | G46: ='App.2-AB_Capital Expenditures'!Q14 -> 2017 | H46: ='App.2-AB_Capital Expenditures'!Q21 -> 1111.142 | I46: ='App.2-AB_Capital Expenditures'!R21 -> 648.811
A47: ='LDC Info'!$E$14 -> North Bay Hydro Distribution Limited - Espanola service territory | B47: EB-2020-0020 | C47: 2021 | D47: 2020 | E47: 2012 | F47: Capital Contributions | G47: ='App.2-AB_Capital Expenditures'!Q14 -> 2017 | H47: ='App.2-AB_Capital Expenditures'!Q22 -> 18.358 | I47: ='App.2-AB_Capital Expenditures'!R22 -> 3.293
A48: ='LDC Info'!$E$14 -> North Bay Hydro Distribution Limited - Espanola service territory | B48: EB-2020-0020 | C48: 2021 | D48: 2020 | E48: 2012 | F48: Net Capital Expenditures | G48: ='App.2-AB_Capital Expenditures'!Q14 -> 2017 | H48: ='App.2-AB_Capital Expenditures'!Q23 -> 1092.784 | I48: ='App.2-AB_Capital Expenditures'!R23 -> 645.518
A49: ='LDC Info'!$E$14 -> North Bay Hydro Distribution Limited - Espanola service territory | B49: EB-2020-0020 | C49: 2021 | D49: 2020 | E49: 2012 | F49: System O&M | G49: ='App.2-AB_Capital Expenditures'!Q14 -> 2017 | H49: ='App.2-AB_Capital Expenditures'!Q24 -> 647.033 | I49: ='App.2-AB_Capital Expenditures'!R24 -> 585.99
A50: ='LDC Info'!$E$14 -> North Bay Hydro Distribution Limited - Espanola service territory | B50: EB-2020-0020 | C50: 2021 | D50: 2020 | E50: 2012 | F50: System Access | G50: ='App.2-AB_Capital Expenditures'!T14 -> 2018 | H50: ='App.2-AB_Capital Expenditures'!T17 -> 108.702 | I50: ='App.2-AB_Capital Expenditures'!U17 -> 37.142
A51: ='LDC Info'!$E$14 -> North Bay Hydro Distribution Limited - Espanola service territory | B51: EB-2020-0020 | C51: 2021 | D51: 2020 | E51: 2012 | F51: System Renewal | G51: ='App.2-AB_Capital Expenditures'!T14 -> 2018 | H51: ='App.2-AB_Capital Expenditures'!T18 -> 446.098 | I51: ='App.2-AB_Capital Expenditures'!U18 -> 393.037
A52: ='LDC Info'!$E$14 -> North Bay Hydro Distribution Limited - Espanola service territory | B52: EB-2020-0020 | C52: 2021 | D52: 2020 | E52: 2012 | F52: System Service | G52: ='App.2-AB_Capital Expenditures'!T14 -> 2018 | H52: ='App.2-AB_Capital Expenditures'!T19 -> 0 | I52: ='App.2-AB_Capital Expenditures'!U19 -> 0
A53: ='LDC Info'!$E$14 -> North Bay Hydro Distribution Limited - Espanola service territory | B53: EB-2020-0020 | C53: 2021 | D53: 2020 | E53: 2012 | F53: General Plant | G53: ='App.2-AB_Capital Expenditures'!T14 -> 2018 | H53: ='App.2-AB_Capital Expenditures'!T20 -> 12.5 | I53: ='App.2-AB_Capital Expenditures'!U20 -> 0
A54: ='LDC Info'!$E$14 -> North Bay Hydro Distribution Limited - Espanola service territory | B54: EB-2020-0020 | C54: 2021 | D54: 2020 | E54: 2012 | F54: Total Expenditure | G54: ='App.2-AB_Capital Expenditures'!T14 -> 2018 | H54: ='App.2-AB_Capital Expenditures'!T21 -> 567.3 | I54: ='App.2-AB_Capital Expenditures'!U21 -> 430.179
A55: ='LDC Info'!$E$14 -> North Bay Hydro Distribution Limited - Espanola service territory | B55: EB-2020-0020 | C55: 2021 | D55: 2020 | E55: 2012 | F55: Capital Contributions | G55: ='App.2-AB_Capital Expenditures'!T14 -> 2018 | H55: ='App.2-AB_Capital Expenditures'!T22 -> 23.58 | I55: ='App.2-AB_Capital Expenditures'!U22 -> 40.269
A56: ='LDC Info'!$E$14 -> North Bay Hydro Distribution Limited - Espanola service territory | B56: EB-2020-0020 | C56: 2021 | D56: 2020 | E56: 2012 | F56: Net Capital Expenditures | G56: ='App.2-AB_Capital Expenditures'!T14 -> 2018 | H56: ='App.2-AB_Capital Expenditures'!T23 -> 543.72 | I56: ='App.2-AB_Capital Expenditures'!U23 -> 389.91
A57: ='LDC Info'!$E$14 -> North Bay Hydro Distribution Limited - Espanola service territory | B57: EB-2020-0020 | C57: 2021 | D57: 2020 | E57: 2012 | F57: System O&M | G57: ='App.2-AB_Capital Expenditures'!T14 -> 2018 | H57: ='App.2-AB_Capital Expenditures'!T24 -> 649.318 | I57: ='App.2-AB_Capital Expenditures'!U24 -> 641.113
A58: ='LDC Info'!$E$14 -> North Bay Hydro Distribution Limited - Espanola service territory | B58: EB-2020-0020 | C58: 2021 | D58: 2020 | E58: 2012 | F58: System Access | G58: ='App.2-AB_Capital Expenditures'!W14 -> 2019 | H58: ='App.2-AB_Capital Expenditures'!W17 -> 107.964 | I58: ='App.2-AB_Capital Expenditures'!X17 -> 38.13
A59: ='LDC Info'!$E$14 -> North Bay Hydro Distribution Limited - Espanola service territory | B59: EB-2020-0020 | C59: 2021 | D59: 2020 | E59: 2012 | F59: System Renewal | G59: ='App.2-AB_Capital Expenditures'!W14 -> 2019 | H59: ='App.2-AB_Capital Expenditures'!W18 -> 416.541 | I59: ='App.2-AB_Capital Expenditures'!X18 -> 337.55
A60: ='LDC Info'!$E$14 -> North Bay Hydro Distribution Limited - Espanola service territory | B60: EB-2020-0020 | C60: 2021 | D60: 2020 | E60: 2012 | F60: System Service | G60: ='App.2-AB_Capital Expenditures'!W14 -> 2019 | H60: ='App.2-AB_Capital Expenditures'!W19 -> 0 | I60: ='App.2-AB_Capital Expenditures'!X19 -> 0
A61: ='LDC Info'!$E$14 -> North Bay Hydro Distribution Limited - Espanola service territory | B61: EB-2020-0020 | C61: 2021 | D61: 2020 | E61: 2012 | F61: General Plant | G61: ='App.2-AB_Capital Expenditures'!W14 -> 2019 | H61: ='App.2-AB_Capital Expenditures'!W20 -> 12.5 | I61: ='App.2-AB_Capital Expenditures'!X20 -> 85.264
A62: ='LDC Info'!$E$14 -> North Bay Hydro Distribution Limited - Espanola service territory | B62: EB-2020-0020 | C62: 2021 | D62: 2020 | E62: 2012 | F62: Total Expenditure | G62: ='App.2-AB_Capital Expenditures'!W14 -> 2019 | H62: ='App.2-AB_Capital Expenditures'!W21 -> 537.005 | I62: ='App.2-AB_Capital Expenditures'!X21 -> 460.944
A63: ='LDC Info'!$E$14 -> North Bay Hydro Distribution Limited - Espanola service territory | B63: EB-2020-0020 | C63: 2021 | D63: 2020 | E63: 2012 | F63: Capital Contributions | G63: ='App.2-AB_Capital Expenditures'!W14 -> 2019 | H63: ='App.2-AB_Capital Expenditures'!W22 -> 29.616 | I63: ='App.2-AB_Capital Expenditures'!X22 -> 39.29
A64: ='LDC Info'!$E$14 -> North Bay Hydro Distribution Limited - Espanola service territory | B64: EB-2020-0020 | C64: 2021 | D64: 2020 | E64: 2012 | F64: Net Capital Expenditures | G64: ='App.2-AB_Capital Expenditures'!W14 -> 2019 | H64: ='App.2-AB_Capital Expenditures'!W23 -> 507.389 | I64: ='App.2-AB_Capital Expenditures'!X23 -> 421.654
A65: ='LDC Info'!$E$14 -> North Bay Hydro Distribution Limited - Espanola service territory | B65: EB-2020-0020 | C65: 2021 | D65: 2020 | E65: 2012 | F65: System O&M | G65: ='App.2-AB_Capital Expenditures'!W14 -> 2019 | H65: ='App.2-AB_Capital Expenditures'!W24 -> 688.23 | I65: ='App.2-AB_Capital Expenditures'!X24 -> 720.494
A66: ='LDC Info'!$E$14 -> North Bay Hydro Distribution Limited - Espanola service territory | B66: =EBNUMBER -> EB-2020-0020 | C66: =TestYear -> 2021 | D66: =BridgeYear -> 2020 | E66: =RebaseYear -> 2012 | F66: System Access | G66: ='App.2-AB_Capital Expenditures'!Z14 -> 2020 | H66: ='App.2-AB_Capital Expenditures'!Z17 -> 148.055 | I66: ='App.2-AB_Capital Expenditures'!AA17 -> 90.917
A67: ='LDC Info'!$E$14 -> North Bay Hydro Distribution Limited - Espanola service territory | B67: EB-2020-0020 | C67: 2021 | D67: 2020 | E67: 2012 | F67: System Renewal | G67: ='App.2-AB_Capital Expenditures'!Z14 -> 2020 | H67: ='App.2-AB_Capital Expenditures'!Z18 -> 502.375 | I67: ='App.2-AB_Capital Expenditures'!AA18 -> 383.012
A68: ='LDC Info'!$E$14 -> North Bay Hydro Distribution Limited - Espanola service territory | B68: EB-2020-0020 | C68: 2021 | D68: 2020 | E68: 2012 | F68: System Service | G68: ='App.2-AB_Capital Expenditures'!Z14 -> 2020 | H68: ='App.2-AB_Capital Expenditures'!Z19 -> 0 | I68: ='App.2-AB_Capital Expenditures'!AA19 -> 0
A69: ='LDC Info'!$E$14 -> North Bay Hydro Distribution Limited - Espanola service territory | B69: EB-2020-0020 | C69: 2021 | D69: 2020 | E69: 2012 | F69: General Plant | G69: ='App.2-AB_Capital Expenditures'!Z14 -> 2020 | H69: ='App.2-AB_Capital Expenditures'!Z20 -> 58 | I69: ='App.2-AB_Capital Expenditures'!AA20 -> 62.665
A70: ='LDC Info'!$E$14 -> North Bay Hydro Distribution Limited - Espanola service territory | B70: EB-2020-0020 | C70: 2021 | D70: 2020 | E70: 2012 | F70: Total Expenditure | G70: ='App.2-AB_Capital Expenditures'!Z14 -> 2020 | H70: ='App.2-AB_Capital Expenditures'!Z21 -> 708.43 | I70: ='App.2-AB_Capital Expenditures'!AA21 -> 536.594
A71: ='LDC Info'!$E$14 -> North Bay Hydro Distribution Limited - Espanola service territory | B71: EB-2020-0020 | C71: 2021 | D71: 2020 | E71: 2012 | F71: Capital Contributions | G71: ='App.2-AB_Capital Expenditures'!Z14 -> 2020 | H71: ='App.2-AB_Capital Expenditures'!Z22 -> 63.83 | I71: ='App.2-AB_Capital Expenditures'!AA22 -> 5.147
A72: ='LDC Info'!$E$14 -> North Bay Hydro Distribution Limited - Espanola service territory | B72: EB-2020-0020 | C72: 2021 | D72: 2020 | E72: 2012 | F72: Net Capital Expenditures | G72: ='App.2-AB_Capital Expenditures'!Z14 -> 2020 | H72: ='App.2-AB_Capital Expenditures'!Z23 -> 644.6 | I72: ='App.2-AB_Capital Expenditures'!AA23 -> 531.447
A73: ='LDC Info'!$E$14 -> North Bay Hydro Distribution Limited - Espanola service territory | B73: EB-2020-0020 | C73: 2021 | D73: 2020 | E73: 2012 | F73: System O&M | G73: ='App.2-AB_Capital Expenditures'!Z14 -> 2020 | H73: ='App.2-AB_Capital Expenditures'!Z24 -> 723.495 | I73: ='App.2-AB_Capital Expenditures'!AA24 -> 716.681
A74: ='LDC Info'!$E$14 -> North Bay Hydro Distribution Limited - Espanola service territory | B74: EB-2020-0020 | C74: 2021 | D74: 2020 | E74: 2012 | F74: System Access | G74: ='App.2-AB_Capital Expenditures'!AC14 -> 2021 | H74: ='App.2-AB_Capital Expenditures'!AC17 -> 51.864
A75: ='LDC Info'!$E$14 -> North Bay Hydro Distribution Limited - Espanola service territory | B75: EB-2020-0020 | C75: 2021 | D75: 2020 | E75: 2012 | F75: System Renewal | G75: ='App.2-AB_Capital Expenditures'!AC14 -> 2021 | H75: ='App.2-AB_Capital Expenditures'!AC18 -> 403.565
A76: ='LDC Info'!$E$14 -> North Bay Hydro Distribution Limited - Espanola service territory | B76: EB-2020-0020 | C76: 2021 | D76: 2020 | E76: 2012 | F76: System Service | G76: ='App.2-AB_Capital Expenditures'!AC14 -> 2021 | H76: ='App.2-AB_Capital Expenditures'!AC19 -> 0
A77: ='LDC Info'!$E$14 -> North Bay Hydro Distribution Limited - Espanola service territory | B77: EB-2020-0020 | C77: 2021 | D77: 2020 | E77: 2012 | F77: General Plant | G77: ='App.2-AB_Capital Expenditures'!AC14 -> 2021 | H77: ='App.2-AB_Capital Expenditures'!AC20 -> 33
A78: ='LDC Info'!$E$14 -> North Bay Hydro Distribution Limited - Espanola service territory | B78: EB-2020-0020 | C78: 2021 | D78: 2020 | E78: 2012 | F78: Total Expenditure | G78: ='App.2-AB_Capital Expenditures'!AC14 -> 2021 | H78: ='App.2-AB_Capital Expenditures'!AC21 -> 488.429
A79: ='LDC Info'!$E$14 -> North Bay Hydro Distribution Limited - Espanola service territory | B79: EB-2020-0020 | C79: 2021 | D79: 2020 | E79: 2012 | F79: Capital Contributions | G79: ='App.2-AB_Capital Expenditures'!AC14 -> 2021 | H79: ='App.2-AB_Capital Expenditures'!AC22 -> 25
A80: ='LDC Info'!$E$14 -> North Bay Hydro Distribution Limited - Espanola service territory | B80: EB-2020-0020 | C80: 2021 | D80: 2020 | E80: 2012 | F80: Net Capital Expenditures | G80: ='App.2-AB_Capital Expenditures'!AC14 -> 2021 | H80: ='App.2-AB_Capital Expenditures'!AC23 -> 463.429
A81: ='LDC Info'!$E$14 -> North Bay Hydro Distribution Limited - Espanola service territory | B81: EB-2020-0020 | C81: 2021 | D81: 2020 | E81: 2012 | F81: System O&M | G81: ='App.2-AB_Capital Expenditures'!AC14 -> 2021 | H81: ='App.2-AB_Capital Expenditures'!AC24 -> 735
A82: ='LDC Info'!$E$14 -> North Bay Hydro Distribution Limited - Espanola service territory | B82: EB-2020-0020 | C82: 2021 | D82: 2020 | E82: 2012 | F82: System Access | G82: ='App.2-AB_Capital Expenditures'!AD14 -> 2022 | H82: ='App.2-AB_Capital Expenditures'!AD17 -> 0
A83: ='LDC Info'!$E$14 -> North Bay Hydro Distribution Limited - Espanola service territory | B83: EB-2020-0020 | C83: 2021 | D83: 2020 | E83: 2012 | F83: System Renewal | G83: ='App.2-AB_Capital Expenditures'!AD14 -> 2022 | H83: ='App.2-AB_Capital Expenditures'!AD18 -> 0
A84: ='LDC Info'!$E$14 -> North Bay Hydro Distribution Limited - Espanola service territory | B84: EB-2020-0020 | C84: 2021 | D84: 2020 | E84: 2012 | F84: System Service | G84: ='App.2-AB_Capital Expenditures'!AD14 -> 2022 | H84: ='App.2-AB_Capital Expenditures'!AD19 -> 0
A85: ='LDC Info'!$E$14 -> North Bay Hydro Distribution Limited - Espanola service territory | B85: EB-2020-0020 | C85: 2021 | D85: 2020 | E85: 2012 | F85: General Plant | G85: ='App.2-AB_Capital Expenditures'!AD14 -> 2022 | H85: ='App.2-AB_Capital Expenditures'!AD20 -> 0
A86: ='LDC Info'!$E$14 -> North Bay Hydro Distribution Limited - Espanola service territory | B86: EB-2020-0020 | C86: 2021 | D86: 2020 | E86: 2012 | F86: Total Expenditure | G86: ='App.2-AB_Capital Expenditures'!AD14 -> 2022 | H86: ='App.2-AB_Capital Expenditures'!AD21 -> 0
A87: ='LDC Info'!$E$14 -> North Bay Hydro Distribution Limited - Espanola service territory | B87: EB-2020-0020 | C87: 2021 | D87: 2020 | E87: 2012 | F87: Capital Contributions | G87: ='App.2-AB_Capital Expenditures'!AD14 -> 2022 | H87: ='App.2-AB_Capital Expenditures'!AD22 -> 0
A88: ='LDC Info'!$E$14 -> North Bay Hydro Distribution Limited - Espanola service territory | B88: EB-2020-0020 | C88: 2021 | D88: 2020 | E88: 2012 | F88: Net Capital Expenditures | G88: ='App.2-AB_Capital Expenditures'!AD14 -> 2022 | H88: ='App.2-AB_Capital Expenditures'!AD23 -> 0
A89: ='LDC Info'!$E$14 -> North Bay Hydro Distribution Limited - Espanola service territory | B89: EB-2020-0020 | C89: 2021 | D89: 2020 | E89: 2012 | F89: System O&M | G89: ='App.2-AB_Capital Expenditures'!AD14 -> 2022 | H89: ='App.2-AB_Capital Expenditures'!AD24 -> 0
A90: ='LDC Info'!$E$14 -> North Bay Hydro Distribution Limited - Espanola service territory | B90: EB-2020-0020 | C90: 2021 | D90: 2020 | E90: 2012 | F90: System Access | G90: ='App.2-AB_Capital Expenditures'!AE14 -> 2023 | H90: ='App.2-AB_Capital Expenditures'!AE17 -> 0
A91: ='LDC Info'!$E$14 -> North Bay Hydro Distribution Limited - Espanola service territory | B91: EB-2020-0020 | C91: 2021 | D91: 2020 | E91: 2012 | F91: System Renewal | G91: ='App.2-AB_Capital Expenditures'!AE14 -> 2023 | H91: ='App.2-AB_Capital Expenditures'!AE18 -> 0
A92: ='LDC Info'!$E$14 -> North Bay Hydro Distribution Limited - Espanola service territory | B92: EB-2020-0020 | C92: 2021 | D92: 2020 | E92: 2012 | F92: System Service | G92: ='App.2-AB_Capital Expenditures'!AE14 -> 2023 | H92: ='App.2-AB_Capital Expenditures'!AE19 -> 0
A93: ='LDC Info'!$E$14 -> North Bay Hydro Distribution Limited - Espanola service territory | B93: EB-2020-0020 | C93: 2021 | D93: 2020 | E93: 2012 | F93: General Plant | G93: ='App.2-AB_Capital Expenditures'!AE14 -> 2023 | H93: ='App.2-AB_Capital Expenditures'!AE20 -> 0
A94: ='LDC Info'!$E$14 -> North Bay Hydro Distribution Limited - Espanola service territory | B94: EB-2020-0020 | C94: 2021 | D94: 2020 | E94: 2012 | F94: Total Expenditure | G94: ='App.2-AB_Capital Expenditures'!AE14 -> 2023 | H94: ='App.2-AB_Capital Expenditures'!AE21 -> 0
A95: ='LDC Info'!$E$14 -> North Bay Hydro Distribution Limited - Espanola service territory | B95: EB-2020-0020 | C95: 2021 | D95: 2020 | E95: 2012 | F95: Capital Contributions | G95: ='App.2-AB_Capital Expenditures'!AE14 -> 2023 | H95: ='App.2-AB_Capital Expenditures'!AE22 -> 0
A96: ='LDC Info'!$E$14 -> North Bay Hydro Distribution Limited - Espanola service territory | B96: EB-2020-0020 | C96: 2021 | D96: 2020 | E96: 2012 | F96: Net Capital Expenditures | G96: ='App.2-AB_Capital Expenditures'!AE14 -> 2023 | H96: ='App.2-AB_Capital Expenditures'!AE23 -> 0
A97: ='LDC Info'!$E$14 -> North Bay Hydro Distribution Limited - Espanola service territory | B97: EB-2020-0020 | C97: 2021 | D97: 2020 | E97: 2012 | F97: System O&M | G97: ='App.2-AB_Capital Expenditures'!AE14 -> 2023 | H97: ='App.2-AB_Capital Expenditures'!AE24 -> 0
A98: ='LDC Info'!$E$14 -> North Bay Hydro Distribution Limited - Espanola service territory | B98: =EBNUMBER -> EB-2020-0020 | C98: =TestYear -> 2021 | D98: =BridgeYear -> 2020 | E98: =RebaseYear -> 2012 | F98: System Access | G98: ='App.2-AB_Capital Expenditures'!AF14 -> 2024 | H98: ='App.2-AB_Capital Expenditures'!AF17 -> 0
A99: ='LDC Info'!$E$14 -> North Bay Hydro Distribution Limited - Espanola service territory | B99: EB-2020-0020 | C99: 2021 | D99: 2020 | E99: 2012 | F99: System Renewal | G99: ='App.2-AB_Capital Expenditures'!AF14 -> 2024 | H99: ='App.2-AB_Capital Expenditures'!AF18 -> 0
A100: ='LDC Info'!$E$14 -> North Bay Hydro Distribution Limited - Espanola service territory | B100: EB-2020-0020 | C100: 2021 | D100: 2020 | E100: 2012 | F100: System Service | G100: ='App.2-AB_Capital Expenditures'!AF14 -> 2024 | H100: ='App.2-AB_Capital Expenditures'!AF19 -> 0
A101: ='LDC Info'!$E$14 -> North Bay Hydro Distribution Limited - Espanola service territory | B101: EB-2020-0020 | C101: 2021 | D101: 2020 | E101: 2012 | F101: General Plant | G101: ='App.2-AB_Capital Expenditures'!AF14 -> 2024 | H101: ='App.2-AB_Capital Expenditures'!AF20 -> 0
A102: ='LDC Info'!$E$14 -> North Bay Hydro Distribution Limited - Espanola service territory | B102: EB-2020-0020 | C102: 2021 | D102: 2020 | E102: 2012 | F102: Total Expenditure | G102: ='App.2-AB_Capital Expenditures'!AF14 -> 2024 | H102: ='App.2-AB_Capital Expenditures'!AF21 -> 0
A103: ='LDC Info'!$E$14 -> North Bay Hydro Distribution Limited - Espanola service territory | B103: EB-2020-0020 | C103: 2021 | D103: 2020 | E103: 2012 | F103: Capital Contributions | G103: ='App.2-AB_Capital Expenditures'!AF14 -> 2024 | H103: ='App.2-AB_Capital Expenditures'!AF22 -> 0
A104: ='LDC Info'!$E$14 -> North Bay Hydro Distribution Limited - Espanola service territory | B104: EB-2020-0020 | C104: 2021 | D104: 2020 | E104: 2012 | F104: Net Capital Expenditures | G104: ='App.2-AB_Capital Expenditures'!AF14 -> 2024 | H104: ='App.2-AB_Capital Expenditures'!AF23 -> 0
A105: ='LDC Info'!$E$14 -> North Bay Hydro Distribution Limited - Espanola service territory | B105: EB-2020-0020 | C105: 2021 | D105: 2020 | E105: 2012 | F105: System O&M | G105: ='App.2-AB_Capital Expenditures'!AF14 -> 2024 | H105: ='App.2-AB_Capital Expenditures'!AF24 -> 0
A106: ='LDC Info'!$E$14 -> North Bay Hydro Distribution Limited - Espanola service territory | B106: EB-2020-0020 | C106: 2021 | D106: 2020 | E106: 2012 | F106: System Access | G106: ='App.2-AB_Capital Expenditures'!AG14 -> 2025 | H106: ='App.2-AB_Capital Expenditures'!AG17 -> 0
A107: ='LDC Info'!$E$14 -> North Bay Hydro Distribution Limited - Espanola service territory | B107: EB-2020-0020 | C107: 2021 | D107: 2020 | E107: 2012 | F107: System Renewal | G107: ='App.2-AB_Capital Expenditures'!AG14 -> 2025 | H107: ='App.2-AB_Capital Expenditures'!AG18 -> 0
A108: ='LDC Info'!$E$14 -> North Bay Hydro Distribution Limited - Espanola service territory | B108: EB-2020-0020 | C108: 2021 | D108: 2020 | E108: 2012 | F108: System Service | G108: ='App.2-AB_Capital Expenditures'!AG14 -> 2025 | H108: ='App.2-AB_Capital Expenditures'!AG19 -> 0
A109: ='LDC Info'!$E$14 -> North Bay Hydro Distribution Limited - Espanola service territory | B109: EB-2020-0020 | C109: 2021 | D109: 2020 | E109: 2012 | F109: General Plant | G109: ='App.2-AB_Capital Expenditures'!AG14 -> 2025 | H109: ='App.2-AB_Capital Expenditures'!AG20 -> 0
A110: ='LDC Info'!$E$14 -> North Bay Hydro Distribution Limited - Espanola service territory | B110: EB-2020-0020 | C110: 2021 | D110: 2020 | E110: 2012 | F110: Total Expenditure | G110: ='App.2-AB_Capital Expenditures'!AG14 -> 2025 | H110: ='App.2-AB_Capital Expenditures'!AG21 -> 0
A111: ='LDC Info'!$E$14 -> North Bay Hydro Distribution Limited - Espanola service territory | B111: EB-2020-0020 | C111: 2021 | D111: 2020 | E111: 2012 | F111: Capital Contributions | G111: ='App.2-AB_Capital Expenditures'!AG14 -> 2025 | H111: ='App.2-AB_Capital Expenditures'!AG22 -> 0
A112: ='LDC Info'!$E$14 -> North Bay Hydro Distribution Limited - Espanola service territory | B112: EB-2020-0020 | C112: 2021 | D112: 2020 | E112: 2012 | F112: Net Capital Expenditures | G112: ='App.2-AB_Capital Expenditures'!AG14 -> 2025 | H112: ='App.2-AB_Capital Expenditures'!AG23 -> 0
A113: ='LDC Info'!$E$14 -> North Bay Hydro Distribution Limited - Espanola service territory | B113: EB-2020-0020 | C113: 2021 | D113: 2020 | E113: 2012 | F113: System O&M | G113: ='App.2-AB_Capital Expenditures'!AG14 -> 2025 | H113: ='App.2-AB_Capital Expenditures'!AG24 -> 0

Sheet App.2-AC_Customer Engagement
B1: File Number: | C1: =EBNUMBER -> EB-2020-0020
B2: Exhibit:
B3: Tab:
B4: Schedule:
B5: Page:
B7: Date:
A9: Appendix 2-AC
A10: Customer Engagement Activities Summary
A12: Provide a list of customer engagement activities | B12: Provide a list of customer needs and preferences identified through each engagement activity | C12: Actions taken to respond to identified needs and preferences. If no action was taken, explain why.
A13: COS-SPECIFIC CUSTOMER ENGAGEMENT
A14: SURVEYS
A15: Bi-annual Customer Satisfaction Survey - Residential and Commercial Customers (2015, 2017 & 2019) | B15: In 2015, 2017 and 2019, customer satisfaction surveys were conducted by the third party organization, UtilityPulse, with both residential and commercial customers. 1. Reliability 2.Better prices / lower rates 3. Customer communication / online access 4. Outage Notification | C15: ERHDC has made improvements such as, but not limited to, the following areas: 1. Reliability Smart Meter/AMI data utilization for pro-active service delivery Customer Information System (CIS) upgrade to improve services and response times for customers Improvements in vegetation management and infrastructure renewal VPR Partnership for assistance for those in need during emergencies Accountability training to ensure employees work efficiently 3. Customer Communication/Online Access Customer Connect online platform to view detailed consumption Improvements in customer service; rebranding as Customer Care Customer Care training for management and staff Website upgrades, social media and local media communications Energy conservation promoted via advertising, website, social media COS Customer Engagement Survey 4. Outage Notification Upgrades to the phone system to handle more calls during outages Atlas Notification System for planned outages Website and media release information Public Notices
A16: Public Awareness of Electrical Safety Survey (2015, 2016 & 2019) | B16: Ensuring the utility can provide safe electrical distribution Education and awareness about electrical safety, equipment, infrastructure Ensuring the utilities' operations are safe for workers and public Ontario One Call - Call Before You Dig Awareness | C16: ERHDC's latest safety awarness score was 85% Website Safety Section Purchase of Promotional "Dig Safe" for the Ontario One Call program "Give 'Em a Brake" marketing for worker safety
A17: FOCUS GROUPS
A18: COMMUNITY EVENT INTERACTIONS
A19: Retail Product Consultation Coupon Campaigns | B19: Energy efficient products Conservation home upgrades | C19: Partnerships with local hardware and home supply stores CDM product consultations in-store Promote energy efficient products, how it will help kWh usage Coupons to purchase products Conservation tips/tools available
A20: Festivals (Pumpkin Fest) | B20: Rate information Provincial rebates and regulations Face-to-face interactions with customers Ability to ask questions and have conversations about high costs Individual concerns | C20: CDM promoted HEAR program, initiatives Explained Time-of-Use, Smart Meters, Online Services such as Customer Connect), capital projects, and sign-up customers for programs when eligible Customer Care & CDM reps on-site to answer questions personally
A22: SAFETY
A23: Marketing Campaigns "Give Our Workers a Brake" and the "Call Before you Dig" | B23: Providing a safe electrical service Ensuring that safety is our top priority with workers/community | C23: Marketing campaigns to promote safety Providing in-house underground utility location services to the community
A24: CUSTOMER CARE
A25: Customer C.A.R.E. Training | B25: Customers want to be treated fairly Customer-focus and valued Speak with a professional that can resolve their problems | C25: Entire customer service staff underwent customer care training that included: How to ensure is customer centered in everything we do Customer Loyalty Review of Customer Satisfaction survey (UtilityPulse-2017), what actual customers have said they want/need Effective communication, active listening Why customers get upset, resolving customer concerns Also re-branded its Customer Service to Customer Care to improve overall experience for each customer. Customer Care department will take the time to go through a person's bill with them. The representatives will connect customers with an Engineer or Planner to assist with questions related to neighbourhood projects.
A26: Internal Training | B26: Consistent messaging from employees Knowledgeable, professional staff Information about electricity rates, industry changes, government rebates, and conservation program initiatives | C26: Monthly staff meetings (include info about OEB backgrounders, winter disconnections, rate changes) CDM and Line Departments provide Customer Care, Billing and Metering departments with presentations review programs available Line department provides Customer Care department with presentations to help with terminology and understanding of the electrical distribution system
A27: Customer Information System (CIS) and MCare (Electronic Service Orders) | B27: Reliability with services offered Customer satisfaction Overall trust in ERHDC | C27: ERHDC introduced the system upgrades to assist with inefficiencies with metering services, wrong meter readings, and customer billing issues. Upgraded from Harris to NorthStar system Shorter wait times, quicker response Improved communication between customer and Customer Care, to ensure we can provide reliable services for our customers.
A28: Customer Connect | B28: Monitoring consumption Customer control, ability to review bills Needed assistance with understanding bill breakdown How to manage usage, Time-of-Use Help with lowering bills | C28: ERHDC introduced the Customer Connect option Online customer platform for easy access to information Ability to view current and historical data Allows for real-time access so the Customer Care department can analyze customer's bills, review spikes and provide information for better consumption habits based on the individual's usage
A29: Vulnerable Persons' Registry | B29: Disabled customers or customers that experience any type of barrier Emergency services Reliability Ensuring safety is a priority for the community | C29: ERHDC partnered with the Canadian Red Cross Confidential database Alerts Operations and Customer Care whenever an outage may impact a vulnerable person(s). Standard operating procedure includes cooperation with emergency services so ERHDC contacts first responders. Better communication during emergencies Ability to assist those in need, vulnerable/disabled
A30: COMMUNITY SUPPORT
A31: Community Outreach | B31: Corporate Social Responsibility Donations Event Sponsorships Investments back into the Community | C31: Pumpkin Festival Sponsorship LEAP Program - Since 2012, donated over $16,000 to help low-income customers pay their electricity bills
A32: COMMUNICATIONS
A33: Online Communications | B33: Accessibility to information Knowledge of power outages Industry changes Conservation Program Availability Upcoming events, promotions Online services | C33: Website - Upgraded to user-friendly, online Customer-focused portal "Customer Connect" for monitored consumption data, tree trimming services, "Call Before You Dig", infrastructure renewal projects, conservation tips, and program initiatives for homes and businesses
A34: Public Notices | B34: Accessibility to information Knowledge of power outages Reliability | C34: ERHDC provides public notices to neighbourhoods in advance of planned major projects that could be impactive to property or service These notices are hand delivered to ensure customers receive them and are aware of any issues that may affect them or their routines
A35: Public Relations / Media Relations | B35: Accessibility to information Power Outage Notification Industry updates, Government rebates Conservation Program Availability Upcoming events, promotions Rate changes | C35: Information provided to local online, print and radio media channels to ensure customers of all demographics receive the same information. Press releases
A36: Advertising | B36: Accessibility to information | C36: Public Service Announcements Time-of-Use ads Conservation tips Tree trimming, worker safety
A37: Bill Inserts | B37: Improve rates Increase communication | C37: ERHDC utilizes bill inserts to communicate regulatory information, new initiatives (such as the Atlas Outage Notification System), Government rebates, CDM programs and eligibility
A38: Paperless Billing (E-Billing) | B38: Reducing environmental impact Online access to bill (current and previous) Convenience | C38: Online resource for customers 24/7 Access with Customer Connect platform (historical & current data) Paperless Billing Campaign is a future initiative to increase enrollment
A39: Note: Use "ALT-ENTER" to go to the next line within a cell

Sheet App.2-B_Acctg Instructions
A1: General Instructions to MIFRS Appendices
A2: Types of Schedules to File
A4: The purpose of this tab is to provide general instructions. The specific instructions to each appendix are listed in footnotes of each appendix.
A6: The typical applicant is expected to have made capitalization and depreciation policy changes under CGAAP as permitted by the OEB on January 1, 2012 or mandated by the OEB by January 1, 2013, and adopted IFRS for reporting purposes on January 1, 2015 (transition date January 1, 2014). Most distributors filing for 2021 rates have rebased with these accounting changes reflected in a prior rebasing application. If that is the case, information relating to pre-accounting policy changes is not generally required. Most distributors may have rebased under MIFRS. If that is the case, information related to the accounting standard used prior to IFRS is not generally required. The information to be provided by applicants will depend on when the accounting policy changes were made and when they last rebased. In general, applicants should provide the following information in the appendices:
E9: Reflecting Accounting Policy Changes in Current Application | G9: Reflected Accounting Policy Changes in Prior Application3 | H9: Rebased under MIFRS in Prior Application3
E10: Accounting Policy Changes in 2012 and Adopted IFRS in 2015 | F10: Accounting Policy Changes in 2013 and Adopted IFRS in 2015 | G10: Adopted IFRS in 2015 | H10: IFRS Since 2015
B11: 2021 | C11: Test | E11: MIFRS | F11: MIFRS | G11: MIFRS | H11: MIFRS
A12: Information to be filed in 2019 CoS Application | B12: 2020 | C12: Bridge | E12: MIFRS | F12: MIFRS | G12: MIFRS | H12: MIFRS
B13: 2019 | C13: Bridge | E13: MIFRS | F13: MIFRS | G13: MIFRS | H13: MIFRS
B14: 2018 | C14: Bridge | E14: MIFRS | F14: MIFRS | G14: MIFRS | H14: MIFRS
B15: 2017 | C15: Historical | E15: MIFRS | F15: MIFRS | G15: MIFRS | H15: MIFRS
B16: 2016 | C16: Historical | E16: MIFRS | F16: MIFRS | G16: MIFRS | H16: MIFRS
B17: 2015 | C17: Historical | E17: MIFRS and Revised CGAAP1 | F17: MIFRS and Revised CGAAP1 | G17: MIFRS and Revised CGAAP1 | H17: N/A
B18: 2014 | C18: Historical | E18: Revised CGAAP | F18: CGAAP and Revised CGAAP2 | G18: N/A | H18: N/A
B19: 2013 | C19: Historical | E19: CGAAP and Revised CGAAP2 | F19: N/A | G19: N/A | H19: N/A
A21: 1) For the transition year (2014), the applicant may file two appendices, one under Revised CGAAP and one under MIFRS, depending on the materiality of impacts. See the specific instructions under each appendix below for further details.
A22: 2) For applicants that are reflecting accounting policy changes for the first time in a rebasing application, the applicant must file two appendices in the year that the applicant implemented changes to its capitalization and depreciation policies (2012 or 2013), one before and one after the policy changes.
A23: 3) Applicants should provide CGAAP and Revised CGAAP schedules (i.e. as indicated in the first two columns of the above table) to support balances in Account 1576 if the account has yet to be disposed of.
A26: Appendix 2-BA - Fixed Asset Schedule
A28: Applicants are to provide Appendix 2-BA in accordance with the years and corresponding accounting standards noted in the above table to provide a year over year continuity in fixed assets.
A29: If this is the first application where the applicant is rebasing under MIFRS, the applicant should file two appendices, one under Revised CGAAP and one under MIFRS for the transition year (2014), if the change between Revised CGAAP and MIFRS is material. If the change from the accounting standards is not material, the applicant may choose to only provide one appendix under MIFRS. However, the applicant must also indicate the fixed asset net book value balance under Revised CGAAP, the total dollar value of the change and explain why it is not material.
A33: The applicant must establish the continuity of historical cost for gross assets and accumulated depreciation by asset class by ensuring that the opening balance in the year agrees to the closing balance in the prior year.
A36: Appendix 2-Cx - Depreciation and Amortization
A38: Applicants are to provide Appendix 2-C in accordance with the years and corresponding accounting standards listed in the above table.
A39: Appendix 2-C is to be used under all of the scenarios presented in the table above. In the appendix, the applicant will need to indicate which scenario applies. The appendix is to be duplicated for each year and for each accounting standard required as per the above table.
A40: Depreciation accounting policy changes were mandated by the OEB by January 1, 2013. In general, no further changes to an applicant's depreciation policy (i.e. assets' service lives) are expected after the OEB mandated changes by January 1, 2013, unless a change is determined to be necessary in accordance with the depreciation review required under IFRS. If the applicant has made any changes to its depreciation policy subsequent to the OEB mandated changes, for the year of the change, applicants must quantify the change in depreciation. If there are significant changes to multiple asset classes, the applicant must complete Appendix 2-C before and after the change. Applicants must also explain the nature of the change, the reason for the change, quantify the impact of the change.
A42: Appendix 2-E - Account 1575, IFRS-CGAAP Transitional PP&E Amounts (2-EA), Account 1576, Accounting Changes Under CGAAP (2-EB, 2-EC) CONTACT OEB STAFF IF TAB REQUIRED
A44: 1) For an applicant that has a balance in Account 1576 to dispose:
A45: · | B45: If an applicant changed capitalization and depreciation policies effective January 1, 2012, the applicant must complete Appendix 2-EB
A46: · | B46: If an applicant changed capitalization and depreciation policies effective January 1, 2013, the applicant must complete Appendix 2-EC
A48: 2) For an applicant that has a balance in Account 1575 to dispose:
A49: · | B49: The applicant must complete 2-EA
A50: If the applicant did not make any further PP&E accounting policy changes beyond the capitalization and depreciation policy changes as mandated by the OEB by January 1, 2013 (i.e. no further changes made on transition to IFRS), the applicant must indicate this and does not need to complete Appendix 2-EA.
A54: Appendix 2-Y - Summary of Impacts to Revenue Requirement from Transition to MIFRS CONTACT OEB STAFF IF TAB REQUIRED
A56: Applicants must complete Appendix 2-Y if this is the first rebasing application under MIFRS. An applicant must provide a summary of the dollar impacts of MIFRS to each component of the revenue requirement (e.g. rate base, operating costs, etc.), including the overall impact on the proposed revenue requirement. Accordingly, the applicant must identify financial differences and resulting revenue requirement impacts arising from the adoption of MIFRS as compared to CGAAP. If the applicant is reflecting the changes in capitalization and depreciation policies for the first time in a rebasing application as well, then a comparison between MIFRS and CGAAP before the change in accounting policies should be completed. If the applicant changed capitalization and depreciation policies and reflected these changes in a prior rebasing application, then a comparison between MIFRS and CGAAP after the change in accounting policies should be completed.

Sheet App.2-BA_Fixed Asset Cont
M1: File Number: | N1: =EBNUMBER -> EB-2020-0020
M2: Exhibit:
M3: Tab:
M4: Schedule:
M5: Page:
M7: Date:
A9: Appendix 2-BA
A10: Fixed Asset Continuity Schedule 1
E12: Accounting Standard | G12: MIFRS
E13: Year | G13: 2021
D15: Cost | J15: Accumulated Depreciation
A16: CCA Class 2 | B16: OEB Account 3 | C16: Description 3 | D16: Opening Balance | E16: Additions 4 | F16: Adjustment Sub 4 ICM | G16: Disposals 6 | H16: Closing Balance | I16: Opening Balance | J16: Additions | K16: Adjustment Sub 4 ICM | L16: Disposals 6 | M16: Closing Balance | N16: Net Book Value
B17: 1609 | C17: Capital Contributions Paid | D17: 0 | H17: =D17+E17+G17 -> 0 | I17: 0 | M17: =I17+J17+L17 -> 0 | N17: =H17+M17 -> 0
A18: 12 | B18: 1611 | C18: Computer Software (Formally known as Account 1925) | D18: 55256.3 | H18: =D18+E18+G18 -> 55256.3 | I18: 6801.98 | J18: 97.34 | M18: =I18+J18+L18 -> 6899.32 | N18: =H18-M18 -> 48356.98
A19: CEC | B19: 1612 | C19: Land Rights (Formally known as Account 1906) | D19: 0 | H19: =D19+E19+G19 -> 0 | I19: 0 | M19: =I19+J19+L19 -> 0 | N19: 0
A20: N/A | B20: 1805 | C20: Land | D20: 88880.7 | H20: =D20+E20+G20 -> 88880.7 | I20: 0 | M20: =I20+J20+L20 -> 0 | N20: 88880.7
A21: 47 | B21: 1808 | C21: Buildings | D21: 389801.23 | E21: 25000 | H21: =D21+E21+G21 -> 414801.23 | I21: 203473.74 | J21: 5131 | M21: =I21+J21+L21 -> 208604.74 | N21: 206196.49
A22: 13 | B22: 1810 | C22: Leasehold Improvements | D22: 0 | H22: 0 | I22: 0 | M22: 0 | N22: 0
A23: 47 | B23: 1815 | C23: Transformer Station Equipment >50 kV | D23: 0 | H23: 0 | I23: 0 | M23: 0 | N23: 0
A24: 47 | B24: 1820 | C24: Distribution Station Equipment <50 kV | D24: 2185331.19 | E24: 3612 | H24: 2188943.19 | I24: 580618.13 | J24: 3549 | K24: 33804 | M24: =I24+J24+L24+K24 -> 617971.13 | N24: 1570972.06
A25: 47 | B25: 1825 | C25: Storage Battery Equipment | D25: 0 | H25: 0 | I25: 0 | M25: 0 | N25: 0
A26: 47 | B26: 1830 | C26: Poles, Towers & Fixtures | D26: 3633597.13 | E26: 175195 | H26: 3808792.13 | I26: 1679800.98 | J26: 58545 | K26: 5592 | M26: =I26+J26+L26+K26 -> 1743937.98 | N26: 2064854.15
A27: 47 | B27: 1835 | C27: Overhead Conductors & Devices | D27: 2494971.25 | E27: 100079 | H27: 2595050.25 | I27: 957662.79 | J27: 29727 | M27: 987389.79 | N27: 1607660.46
A28: 47 | B28: 1840 | C28: Underground Conduit | D28: 786919.16 | H28: 786919.16 | I28: 629537.3979 | J28: 5052.64 | M28: 634590.0379 | N28: 152329.1221
A29: 47 | B29: 1845 | C29: Underground Conductors & Devices | D29: 540772.2 | E29: 53666 | H29: 594438.2 | I29: 79212.40625 | J29: 12071.41 | M29: 91283.81625 | N29: 503154.3838
A30: 47 | B30: 1850 | C30: Line Transformers | D30: 1143945.22 | E30: 56146 | H30: 1200091.22 | I30: 734931.801 | J30: 13901.15 | M30: 748832.951 | N30: 451258.269
A31: 47 | B31: 1855 | C31: Services (Overhead & Underground) | D31: 441209.01 | E31: 50312 | H31: 491521.01 | I31: 88956.53628 | J31: 7207.94 | M31: 96164.47628 | N31: 395356.5337
A32: 47 | B32: 1860 | C32: Meters | D32: 808427.27 | E32: 16419 | H32: 824846.27 | I32: 575683.2443 | J32: 55362.4 | M32: 631045.6443 | N32: 193800.6257
A33: 47 | B33: 1860 | C33: Meters (Smart Meters) | D33: 0 | H33: 0 | I33: 0 | M33: 0 | N33: 0
A34: N/A | B34: 1905 | C34: Land | D34: 0 | H34: 0 | I34: 0 | M34: 0 | N34: 0
A35: 47 | B35: 1908 | C35: Buildings & Fixtures | D35: 0 | H35: 0 | I35: 0 | M35: 0 | N35: 0
A36: 13 | B36: 1910 | C36: Leasehold Improvements | D36: 0 | H36: 0 | I36: 0 | M36: 0 | N36: 0
A37: 8 | B37: 1915 | C37: Office Furniture & Equipment (10 years) | D37: 0 | H37: 0 | I37: 0 | M37: 0 | N37: 0
A38: 8 | B38: 1915 | C38: Office Furniture & Equipment (5 years) | D38: 64000.35 | H38: 64000.35 | I38: 64000.45 | M38: 64000.45 | N38: -0.1
A39: 10 | B39: 1920 | C39: Computer Equipment - Hardware | D39: 169240.71 | E39: 8000 | H39: 177240.71 | I39: 198535.12 | J39: 1788 | M39: 200323.12 | N39: -23082.41
A40: 45 | B40: 1920 | C40: Computer Equip.-Hardware(Post Mar. 22/04) | D40: 0 | H40: 0 | I40: 0 | M40: 0 | N40: 0
A41: 50 | B41: 1920 | C41: Computer Equip.-Hardware(Post Mar. 19/07) | D41: 0 | H41: 0 | I41: 0 | M41: 0 | N41: 0
A42: 10 | B42: 1930 | C42: Transportation Equipment | D42: 443606.74 | H42: 443606.74 | I42: 218373.53 | J42: 27340.11 | M42: 245713.64 | N42: 197893.1
A43: 8 | B43: 1935 | C43: Stores Equipment | D43: 10537.76 | H43: 10537.76 | I43: 10537.76 | M43: 10537.76 | N43: 0
A44: 8 | B44: 1940 | C44: Tools, Shop & Garage Equipment | D44: 169790.56 | H44: 169790.56 | I44: 153096.6 | J44: 2777.91 | M44: 155874.51 | N44: 13916.05
A45: 8 | B45: 1945 | C45: Measurement & Testing Equipment | D45: 11947.98 | H45: 11947.98 | I45: 10564.34 | J45: 346 | M45: 10910.34 | N45: 1037.64
A46: 8 | B46: 1950 | C46: Power Operated Equipment | D46: 0 | H46: 0 | M46: 0 | N46: 0
A47: 8 | B47: 1955 | C47: Communications Equipment | D47: 19256.84 | H47: 19256.84 | I47: 19256.24 | M47: 19256.24 | N47: 0.6
A48: 8 | B48: 1955 | C48: Communication Equipment (Smart Meters) | D48: 0 | H48: 0 | I48: 0 | M48: 0 | N48: 0
A49: 8 | B49: 1960 | C49: Miscellaneous Equipment | D49: 0 | H49: 0 | I49: 0 | M49: 0 | N49: 0
A50: 47 | B50: 1970 | C50: Load Management Controls Customer Premises | D50: 0 | H50: 0 | I50: 0 | M50: 0 | N50: 0
A51: 47 | B51: 1975 | C51: Load Management Controls Utility Premises | D51: 0 | H51: 0 | I51: 0 | M51: 0 | N51: 0
A52: 47 | B52: 1980 | C52: System Supervisor Equipment | D52: 0 | H52: 0 | I52: 0 | M52: 0 | N52: 0
A53: 47 | B53: 1985 | C53: Miscellaneous Fixed Assets | D53: 0 | H53: 0 | I53: 0 | M53: 0 | N53: 0
A54: 47 | B54: 1990 | C54: Other Tangible Property | D54: 10120.66 | H54: 10120.66 | I54: 10120.66 | M54: 10120.66 | N54: 0
A55: 47 | B55: 1995 | C55: Contributions & Grants | D55: 0 | H55: 0 | I55: 0 | M55: 0 | N55: 0
A56: 47 | B56: 2440 | C56: Deferred Revenue5 | D56: -550375.08 | E56: -25000 | H56: -575375.08 | I56: -152306.85 | J56: -8335.66 | M56: =I56+J56+L56 -> -160642.51 | N56: -414732.57
B57: 2005 | C57: Property Under Finance Lease7 | D57: 0 | H57: 0 | I57: 0 | M57: 0 | N57: 0
C58: Sub-Total | D58: =SUM(D16:D57) -> 12917237.18 | E58: =SUM(E16:E57) -> 463429 | H58: =SUM(H17:H57) -> 13380666.18 | I58: =SUM(I16:I57) -> 6068856.856 | J58: 214561.24 | K58: 39396 | L58: 0 | M58: =SUM(M17:M57) -> 6322814.096 | N58: =SUM(N17:N57) -> 7057852.084
C59: Less Socialized Renewable Energy Generation Investments (input as negative) | H59: =D59+E59+G59 -> 0 | M59: =I59+J59+L59 -> 0 | N59: =H59+M59 -> 0
C60: Less Other Non Rate-Regulated Utility Assets (input as negative) | H60: 0 | M60: =I60+J60+L60 -> 0 | N60: =H60+M60 -> 0
C61: Total PP&E | D61: =SUM(D58:D60) -> 12917237.18 | E61: =SUM(E58:E60) -> 463429 | G61: =SUM(G58:G60) -> 0 | H61: =SUM(H58:H60) -> 13380666.18 | I61: =SUM(I58:I60) -> 6068856.856 | J61: 214561.24 | K61: 39396 | L61: 0 | M61: 6322814.096 | N61: 7057852.084
C62: Depreciation Expense adj. from gain or loss on the retirement of assets (pool of like assets), if applicable6
C63: Total | J63: =J61+J62 -> 214561.24
I65: Less: Fully Allocated Depreciation
A66: 10 | C66: Transportation | I66: Transportation | L66: =J42 -> 27340.11
A67: 8 | C67: Stores Equipment | I67: Stores Equipment
A68: 47 | C68: Deferred Revenue | I68: Deferred Revenue
I69: Net Depreciation | L69: =J63-L66-L67-L68 -> 187221.13
A71: Notes:
A73: 1 | B73: Tables in the format outlined above covering all fixed asset accounts should be submitted for the Test Year, Bridge Year and all relevant historical years. At a minimum , the applicant must provide data for the earlier of: 1) all historical years back to its last rebasing; or 2) at least three years of historical actuals, in addition to Bridge Year and Test Year forecasts.
A76: 2 | B76: The "CCA Class" for fixed assets should generally agree with the CCA Class used for tax purposes in Tax Returns. Fixed Assets sub-components may be used where the underlying asset components are classified under multiple CCA Classes for tax purposes. If an applicant uses any different classes from those shown in the table, an explanation should be provided. (also see note 3).
A79: 3 | B79: The table may need to be customized for a utility's asset categories or for any new asset accounts announced or authorized by the OEB.
A81: 4 | B81: The additions in column (E) must not include construction work in progress (CWIP).
A83: 5 | B83: Effective on the date of IFRS adoption, customer contributions will no longer be recorded in Account 1995 Contributions & Grants, but will be recorded in Account 2440, Deferred Revenues. Amortization of deferred revenue will be removed from the depreciation expense shown on this fixed asset continuity schedule as it should be included as income in Appendix 2-H Other Revenues.
A85: 6 | B85: The applicant must ensure that all asset disposals have been clearly identified in the Chapter 2 Appendices for all historic, bridge and test years. Where a distributor for general financial reporting purposes under IFRS has accounted for the amount of gain or loss on the retirement of assets in a pool of like assets as a charge or credit to income, for reporting and rate application filings, the distributor shall reclassify such gains and losses as depreciation expense, and disclose the amount separately.
A89: 7 | B89: This account includes the amount recorded under finance leases for plant leased from others and used by the utility in its utility operations.
E92: Accounting Standard | G92: MIFRS
E93: Year | G93: 2020
D95: Cost | J95: Accumulated Depreciation
A96: CCA Class 2 | B96: OEB Account 3 | C96: Description 3 | D96: Opening Balance | E96: Additions 4 | F96: Adjustment Sub 4 ICM | G96: Disposals 6 | H96: Closing Balance | I96: Opening Balance | J96: Additions | K96: Adjustment Sub 4 ICM | L96: Disposals 6 | M96: Closing Balance | N96: Net Book Value
B97: 1609 | C97: Capital Contributions Paid | D97: =H156 -> 0 | H97: =D97+E97+G97+F97 -> 0 | I97: =M156 -> 0 | M97: =I97+J97+L97+K97 -> 0 | N97: =H97-M97 -> 0
A98: 12 | B98: 1611 | C98: Computer Software (Formally known as Account 1925) | D98: =H157 -> 45256.3 | H98: =D98+E98+G98+F98 -> 45256.3 | I98: =M157 -> 6801.98 | M98: =I98+J98+L98+K98 -> 6801.98 | N98: 38454.32 | R98: 10000 | U98: 55256.3 | W98: =R98-E98 -> 10000
A99: CEC | B99: 1612 | C99: Land Rights (Formally known as Account 1906) | D99: 0 | H99: 0 | I99: 0 | M99: 0 | N99: 0 | U99: 0 | W99: =R99-E99 -> 0
A100: N/A | B100: 1805 | C100: Land | D100: 88880.7 | H100: 88880.7 | I100: 0 | M100: 0 | N100: 88880.7 | U100: 88880.7 | W100: 0
A101: 47 | B101: 1808 | C101: Buildings | D101: 354801.23 | E101: 35594.39 | H101: 390395.62 | I101: 198201.74 | J101: 4631.32 | M101: 202833.06 | N101: 187562.56 | R101: 35000 | U101: 389801.23 | W101: -594.39
A102: 13 | B102: 1810 | C102: Leasehold Improvements | D102: 0 | H102: 0 | I102: 0 | M102: 0 | N102: 0 | U102: 0 | W102: 0
A103: 47 | B103: 1815 | C103: Transformer Station Equipment >50 kV | D103: 0 | H103: 0 | I103: 0 | M103: 0 | N103: 0 | U103: 0 | W103: 0
A104: 47 | B104: 1820 | C104: Distribution Station Equipment <50 kV | D104: 489375.19 | E104: 2695.02 | F104: 1690036 | H104: 2182106.21 | I104: 341813.73 | J104: =3476.95+33804 -> 37280.95 | K104: 201430 | M104: 580524.68 | N104: 1601581.53 | R104: 5920 | S104: 1690036 | U104: 2185331.19 | W104: 3224.98
A105: 47 | B105: 1825 | C105: Storage Battery Equipment | D105: 0 | H105: 0 | I105: 0 | M105: 0 | N105: 0 | U105: 0 | W105: 0
A106: 47 | B106: 1830 | C106: Poles, Towers & Fixtures | D106: 3230231.63 | E106: 178579.73 | F106: 259198 | H106: 3668009.36 | I106: 1583033.75 | J106: =54165+5592 -> 59757 | K106: 39077 | M106: 1681867.75 | N106: 1986141.61 | R106: 144169 | S106: 259198 | U106: 3633598.63 | W106: -34410.73
A107: 47 | B107: 1835 | C107: Overhead Conductors & Devices | D107: 2409296.71 | E107: 57340.87 | H107: 2466637.58 | I107: 929154.87 | J107: 28059 | M107: 957213.87 | N107: 1509423.71 | R107: 85675 | U107: 2494971.71 | W107: 28334.13
A108: 47 | B108: 1840 | C108: Underground Conduit | D108: 710347.16 | E108: 57145.7 | H108: 767492.86 | I108: 623999.11 | J108: 10729.77 | M108: 634728.88 | N108: 132763.98 | R108: 76572 | U108: 786919.16 | W108: 19426.3
A109: 47 | B109: 1845 | C109: Underground Conductors & Devices | D109: 409424.81 | E109: 41470.75 | H109: 450895.56 | I109: 66224.75 | J109: 5052.64 | M109: 71277.39 | N109: 379618.17 | R109: 131346 | U109: 540770.81 | W109: 89875.25
A110: 47 | B110: 1850 | C110: Line Transformers | D110: 1087719.64 | E110: 63059.67 | H110: 1150779.31 | I110: 723174.17 | J110: 12497.49 | M110: 735671.66 | N110: 415107.65 | R110: 56225 | U110: 1143944.64 | W110: -6834.67
A111: 47 | B111: 1855 | C111: Services (Overhead & Underground) | D111: 360572.19 | E111: 37982.58 | H111: 398554.77 | I111: 81707.6 | J111: 5950.14 | M111: 87657.74 | N111: 310897.03 | R111: 80637 | U111: 441209.19 | W111: 42654.42
A112: 47 | B112: 1860 | C112: Meters | D112: 738154.27 | E112: 35651.69 | H112: 773805.96 | I112: 519552.4 | J112: 54267.78 | M112: 573820.18 | N112: 199985.78 | R112: 70273 | U112: 808427.27 | W112: 34621.31
A113: 47 | B113: 1860 | C113: Meters (Smart Meters) | D113: 0 | H113: 0 | I113: 0 | M113: 0 | N113: 0 | U113: 0 | W113: 0
A114: N/A | B114: 1905 | C114: Land | D114: 0 | H114: 0 | I114: 0 | M114: 0 | N114: 0 | U114: 0 | W114: 0
A115: 47 | B115: 1908 | C115: Buildings & Fixtures | D115: 0 | H115: 0 | I115: 0 | M115: 0 | N115: 0 | U115: 0 | W115: 0
A116: 13 | B116: 1910 | C116: Leasehold Improvements | D116: 0 | H116: 0 | I116: 0 | M116: 0 | N116: 0 | U116: 0 | W116: 0
A117: 8 | B117: 1915 | C117: Office Furniture & Equipment (10 years) | D117: 0 | H117: 0 | I117: 0 | M117: 0 | N117: 0 | U117: 0 | W117: 0
A118: 8 | B118: 1915 | C118: Office Furniture & Equipment (5 years) | D118: 64000.35 | H118: 64000.35 | I118: 64000.45 | M118: 64000.45 | N118: -0.1 | P118: 5786043.61 | U118: 64000.35 | W118: 0
A119: 10 | B119: 1920 | C119: Computer Equipment - Hardware | D119: 164240.71 | E119: 11194.93 | H119: 175435.64 | I119: 195534.82 | J119: 1788 | M119: 197322.82 | N119: -21887.18 | P119: =P118-M141 -> -277476.79 | R119: 5000 | U119: 169240.71 | W119: -6194.93
A120: 45 | B120: 1920 | C120: Computer Equip.-Hardware(Post Mar. 22/04) | D120: 0 | H120: 0 | I120: 0 | M120: 0 | N120: 0 | P120: 33804 | U120: 0 | W120: 0
A121: 50 | B121: 1920 | C121: Computer Equip.-Hardware(Post Mar. 19/07) | D121: 0 | H121: 0 | I121: 0 | M121: 0 | N121: 0 | P121: 5592 | U121: 0 | W121: 0
A122: 10 | B122: 1930 | C122: Transportation Equipment | D122: 443606.24 | E122: 10639.34 | H122: 454245.58 | I122: 191093.78 | J122: 27340.11 | M122: 218433.89 | N122: 235811.69 | P122: =P121+P120+P119 -> -238080.79 | U122: 443606.24 | W122: -10639.34
A123: 8 | B123: 1935 | C123: Stores Equipment | D123: 10537.76 | H123: 10537.76 | I123: 10537.76 | M123: 10537.76 | N123: 0 | P123: =P122+K138 -> 2426.21 | U123: 10537.76 | W123: 0
A124: 8 | B124: 1940 | C124: Tools, Shop & Garage Equipment | D124: 161790.56 | E124: 5237.15 | H124: 167027.71 | I124: 149750.6 | J124: 1977.71 | M124: 151728.31 | N124: 15299.4 | R124: 8000 | U124: 169790.56 | W124: 2762.85
A125: 8 | B125: 1945 | C125: Measurement & Testing Equipment | D125: 11947.98 | H125: 11947.98 | I125: 10217.84 | J125: 346 | M125: 10563.84 | N125: 1384.14 | U125: 11947.98 | W125: 0
A126: 8 | B126: 1950 | C126: Power Operated Equipment | D126: 0 | H126: 0 | I126: 0 | M126: 0 | N126: 0 | U126: 0 | W126: 0
A127: 8 | B127: 1955 | C127: Communications Equipment | D127: 19256.84 | H127: 19256.84 | I127: 19256.24 | M127: 19256.24 | N127: 0.6 | U127: 19256.84 | W127: 0
A128: 8 | B128: 1955 | C128: Communication Equipment (Smart Meters) | D128: 0 | H128: 0 | I128: 0 | M128: 0 | N128: 0 | U128: 0 | W128: 0
A129: 8 | B129: 1960 | C129: Miscellaneous Equipment | D129: 0 | H129: 0 | I129: 0 | M129: 0 | N129: 0 | U129: 0 | W129: 0
A130: 47 | B130: 1970 | C130: Load Management Controls Customer Premises | D130: 0 | H130: 0 | I130: 0 | M130: 0 | N130: 0 | U130: 0 | W130: 0
A131: 47 | B131: 1975 | C131: Load Management Controls Utility Premises | D131: 0 | H131: 0 | I131: 0 | M131: 0 | N131: 0 | U131: 0 | W131: 0
A132: 47 | B132: 1980 | C132: System Supervisor Equipment | D132: 0 | H132: 0 | I132: 0 | M132: 0 | N132: 0 | U132: 0 | W132: 0
A133: 47 | B133: 1985 | C133: Miscellaneous Fixed Assets | D133: 10120.66 | H133: 10120.66 | I133: 10120.66 | M133: 10120.66 | N133: 0 | U133: 10120.66 | W133: 0
A134: 47 | B134: 1990 | C134: Other Tangible Property | D134: 0 | H134: 0 | I134: 0 | M134: 0 | N134: 0 | U134: 0 | W134: 0
A135: 47 | B135: 1995 | C135: Contributions & Grants | D135: -486545.81 | E135: -5146.51 | H135: -491692.32 | I135: -140604.1 | J135: -10236.66 | M135: -150840.76 | N135: -340851.56 | R135: -63830 | U135: -550375.81 | W135: -58683.49
A136: 47 | B136: 2440 | C136: Deferred Revenue5 | D136: 0 | H136: 0 | I136: 0 | M136: 0 | N136: 0
B137: 2005 | C137: Property Under Finance Lease7 | D137: 0 | H137: 0 | I137: 0 | M137: 0 | N137: 0
C138: Sub-Total | D138: =SUM(D97:D137) -> 10323015.12 | E138: =SUM(E97:E137) -> 531445.31 | F138: =SUM(F97:F137) -> 1949234 | G138: =SUM(G97:G137) -> 0 | H138: 12803694.43 | I138: 5583572.15 | J138: 239441.25 | K138: 240507 | L138: 0 | M138: 6063520.4 | N138: 6740174.03 | R138: 644987 | T138: 0 | U138: 12917236.12 | W138: =R138-E138 -> 113541.69
C139: Less Socialized Renewable Energy Generation Investments (input as negative) | H139: =D139+E139+G139 -> 0 | M139: =I139+J139+L139 -> 0 | N139: =H139+M139 -> 0
C140: Less Other Non Rate-Regulated Utility Assets (input as negative) | H140: =D140+E140+G140 -> 0 | M140: =I140+J140+L140 -> 0 | N140: =H140+M140 -> 0
C141: Total PP&E | D141: =SUM(D138:D140) -> 10323015.12 | E141: =SUM(E138:E140) -> 531445.31 | F141: =SUM(F138:F140) -> 1949234 | G141: =SUM(G138:G140) -> 0 | H141: 12803694.43 | I141: 5583572.15 | J141: 239441.25 | K141: 240507 | L141: 0 | M141: 6063520.4 | N141: 6740174.03
C142: Depreciation Expense adj. from gain or loss on the retirement of assets (pool of like assets), if applicable6
C143: Total | J143: =J141+J142 -> 239441.25
E144: 30754.95 | F144: WIP | N144: =M141-K141-L147 -> 5783617.4
E145: =E144+E141 -> 562200.26 | I145: Less: Fully Allocated Depreciation
A146: 10 | C146: Transportation | I146: Transportation | L146: =J122 -> 27340.11
A147: 8 | C147: Stores Equipment | I147: Sub 4 in 2020 deprec | L147: =33804+5592 -> 39396
A148: 47 | C148: Deferred Revenue | I148: Deferred Revenue
I149: Net Depreciation | L149: =J143-L146-L147-L148 -> 172705.14
E151: Accounting Standard | G151: MIFRS
E152: Year | G152: 2019
D154: Cost | J154: Accumulated Depreciation
A155: CCA Class 2 | B155: OEB Account 3 | C155: Description 3 | D155: Opening Balance | E155: Additions 4 | G155: Disposals 6 | H155: Closing Balance | I155: Opening Balance | J155: Additions | L155: Disposals 6 | M155: Closing Balance | N155: Net Book Value
B156: 1609 | C156: Capital Contributions Paid | D156: =H219 -> 0 | H156: =D156+E156+G156 -> 0 | I156: =M219 -> 0 | M156: =I156+J156+L156 -> 0 | N156: =H156-M156 -> 0
A157: 12 | B157: 1611 | C157: Computer Software (Formally known as Account 1925) | D157: =H220 -> 45256.3 | H157: 45256.3 | I157: =M220 -> 6702 | J157: 99.98 | M157: 6801.98 | N157: 38454.32
A158: CEC | B158: 1612 | C158: Land Rights (Formally known as Account 1906) | D158: 0 | H158: 0 | I158: 0 | M158: 0 | N158: 0
A159: N/A | B159: 1805 | C159: Land | D159: 88880.7 | H159: 88880.7 | I159: 0 | M159: 0 | N159: 88880.7
A160: 47 | B160: 1808 | C160: Buildings | D160: 354801.23 | H160: 354801.23 | I160: 193629.74 | J160: 4572 | M160: 198201.74 | N160: 156599.49
A161: 13 | B161: 1810 | C161: Leasehold Improvements | D161: 0 | H161: 0 | I161: 0 | M161: 0 | N161: 0
A162: 47 | B162: 1815 | C162: Transformer Station Equipment >50 kV | D162: 0 | H162: 0 | I162: 0 | M162: 0 | N162: 0
A163: 47 | B163: 1820 | C163: Distribution Station Equipment <50 kV | D163: 489375.19 | H163: 489375.19 | I163: 338362.23 | J163: 3451.5 | M163: 341813.73 | N163: 147561.46
A164: 47 | B164: 1825 | C164: Storage Battery Equipment | D164: 0 | H164: 0 | I164: 0 | M164: 0 | N164: 0
A165: 47 | B165: 1830 | C165: Poles, Towers & Fixtures | D165: 3012095.64 | E165: 218135.99 | H165: 3230231.63 | I165: 1534238 | J165: 48795.75 | M165: 1583033.75 | N165: 1647197.88
A166: 47 | B166: 1835 | C166: Overhead Conductors & Devices | D166: 2347420.92 | E166: 61875.79 | H166: 2409296.71 | I166: 902069.87 | J166: 27085 | M166: 929154.87 | N166: 1480141.84
A167: 47 | B167: 1840 | C167: Underground Conduit | D167: 710347.16 | H167: 710347.16 | I167: 620375.11 | J167: 3624 | M167: 623999.11 | N167: 86348.05
A168: 47 | B168: 1845 | C168: Underground Conductors & Devices | D168: 393049.45 | E168: 16375.36 | H168: 409424.81 | I168: 56537 | J168: 9687.75 | M168: 66224.75 | N168: 343200.06
A169: 47 | B169: 1850 | C169: Line Transformers | D169: 1029705.7 | E169: 58013.94 | H169: 1087719.64 | I169: 712680.67 | J169: 10493.5 | M169: 723174.17 | N169: 364545.47
A170: 47 | B170: 1855 | C170: Services (Overhead & Underground) | D170: 347860.28 | E170: 12711.91 | H170: 360572.19 | I170: 76452 | J170: 5255.6 | M170: 81707.6 | N170: 278864.59
A171: 47 | B171: 1860 | C171: Meters | D171: 738035.54 | E171: 118.73 | H171: 738154.27 | I171: 467667.4 | J171: 51885 | M171: 519552.4 | N171: 218601.87
A172: 47 | B172: 1860 | C172: Meters (Smart Meters) | D172: 0 | H172: 0 | I172: 0 | M172: 0 | N172: 0
A173: N/A | B173: 1905 | C173: Land | D173: 0 | H173: 0 | I173: 0 | M173: 0 | N173: 0
A174: 47 | B174: 1908 | C174: Buildings & Fixtures | D174: 0 | H174: 0 | I174: 0 | M174: 0 | N174: 0
A175: 13 | B175: 1910 | C175: Leasehold Improvements | D175: 0 | H175: 0 | I175: 0 | M175: 0 | N175: 0
A176: 8 | B176: 1915 | C176: Office Furniture & Equipment (10 years) | D176: 0 | H176: 0 | I176: 0 | M176: 0 | N176: 0
A177: 8 | B177: 1915 | C177: Office Furniture & Equipment (5 years) | D177: 64000.35 | H177: 64000.35 | I177: 64000.45 | M177: 64000.45 | N177: -0.1
A178: 10 | B178: 1920 | C178: Computer Equipment - Hardware | D178: 156481.66 | E178: 7759.05 | H178: 164240.71 | I178: 193746.82 | J178: 1788 | M178: 195534.82 | N178: -31294.11
A179: 45 | B179: 1920 | C179: Computer Equip.-Hardware(Post Mar. 22/04) | D179: 0 | H179: 0 | I179: 0 | M179: 0 | N179: 0
A180: 50 | B180: 1920 | C180: Computer Equip.-Hardware(Post Mar. 19/07) | D180: 0 | H180: 0 | I180: 0 | M180: 0 | N180: 0
A181: 10 | B181: 1930 | C181: Transportation Equipment | D181: 641704.34 | E181: 70338.5 | G181: -268436.6 | H181: 443606.24 | I181: 432251.03 | J181: 27279.75 | L181: -268437 | M181: 191093.78 | N181: 252512.46
A182: 8 | B182: 1935 | C182: Stores Equipment | D182: 10537.76 | H182: 10537.76 | I182: 10537.76 | M182: 10537.76 | N182: 0
A183: 8 | B183: 1940 | C183: Tools, Shop & Garage Equipment | D183: 154624.81 | E183: 7165.75 | H183: 161790.56 | I183: 147971.66 | J183: 1778.94 | M183: 149750.6 | N183: 12039.96
A184: 8 | B184: 1945 | C184: Measurement & Testing Equipment | D184: 11947.98 | H184: 11947.98 | I184: 9871.84 | J184: 346 | M184: 10217.84 | N184: 1730.14
A185: 8 | B185: 1950 | C185: Power Operated Equipment | D185: 0 | H185: 0 | I185: 0 | M185: 0 | N185: 0
A186: 8 | B186: 1955 | C186: Communications Equipment | D186: 19256.84 | H186: 19256.84 | I186: 19256.24 | M186: 19256.24 | N186: 0.6
A187: 8 | B187: 1955 | C187: Communication Equipment (Smart Meters) | D187: 0 | H187: 0 | I187: 0 | M187: 0 | N187: 0
A188: 8 | B188: 1960 | C188: Miscellaneous Equipment | D188: 0 | H188: 0 | I188: 0 | M188: 0 | N188: 0
A189: 47 | B189: 1970 | C189: Load Management Controls Customer Premises | D189: 0 | H189: 0 | I189: 0 | M189: 0 | N189: 0
A190: 47 | B190: 1975 | C190: Load Management Controls Utility Premises | D190: 0 | H190: 0 | I190: 0 | M190: 0 | N190: 0
A191: 47 | B191: 1980 | C191: System Supervisor Equipment | D191: 0 | H191: 0 | I191: 0 | M191: 0 | N191: 0
A192: 47 | B192: 1985 | C192: Miscellaneous Fixed Assets | D192: 10120.66 | H192: 10120.66 | I192: 10120.66 | M192: 10120.66 | N192: 0
A193: 47 | B193: 1990 | C193: Other Tangible Property | D193: 0 | H193: 0 | I193: 0 | M193: 0 | N193: 0
A194: 47 | B194: 1995 | C194: Contributions & Grants | D194: -447256.18 | E194: -39289.63 | H194: -486545.81 | I194: -130497.1 | J194: -10107 | M194: -140604.1 | N194: -345941.71
A195: 47 | B195: 2440 | C195: Deferred Revenue5 | D195: 0 | H195: 0 | I195: 0 | M195: 0 | N195: 0
B196: 2005 | C196: Property Under Finance Lease7 | D196: 0 | H196: 0 | I196: 0 | M196: 0 | N196: 0
C197: Sub-Total | D197: =SUM(D156:D196) -> 10178246.33 | E197: =SUM(E156:E196) -> 413205.39 | G197: =SUM(G156:G196) -> -268436.6 | H197: =SUM(H156:H196) -> 10323015.12 | I197: =SUM(I156:I196) -> 5665973.38 | J197: =SUM(J156:J196) -> 186035.77 | L197: =SUM(L156:L196) -> -268437 | M197: =SUM(M156:M196) -> 5583572.15 | N197: =SUM(N156:N196) -> 4739442.97
C198: Less Socialized Renewable Energy Generation Investments (input as negative) | H198: =D198+E198+G198 -> 0 | M198: =I198+J198+L198 -> 0 | N198: =H198+M198 -> 0
C199: Less Other Non Rate-Regulated Utility Assets (input as negative) | H199: =D199+E199+G199 -> 0 | M199: =I199+J199+L199 -> 0 | N199: =H199+M199 -> 0
C200: Total PP&E | D200: =SUM(D197:D199) -> 10178246.33 | E200: =SUM(E197:E199) -> 413205.39 | G200: =SUM(G197:G199) -> -268436.6 | H200: =SUM(H197:H199) -> 10323015.12 | I200: =SUM(I197:I199) -> 5665973.38 | J200: =SUM(J197:J199) -> 186035.77 | L200: =SUM(L197:L199) -> -268437 | M200: =SUM(M197:M199) -> 5583572.15 | N200: =SUM(N197:N199) -> 4739442.97
C201: Depreciation Expense adj. from gain or loss on the retirement of assets (pool of like assets), if applicable6
C202: Total | J202: =J200+J201 -> 186035.77
I204: Less: Fully Allocated Depreciation
A205: 10 | C205: Transportation | I205: Transportation | L205: 27280
A206: 8 | C206: Stores Equipment | I206: Stores Equipment
A207: 47 | C207: Deferred Revenue | I207: Deferred Revenue
I208: Net Depreciation | L208: =J202-L205-L206-L207 -> 158755.77
D210: Additions From Above | E210: =SUM(E156:E193) -> 452495.02
D211: CWIP | E211: 8449
D212: Total Additions including CWIp | E212: =E210+E211 -> 460944.02 | F212: Agrees to Additions within Capital Projects in App2-AA_Capital Projects & App2-AB_Capital Expenditures
E214: Accounting Standard | G214: MIFRS
E215: Year | G215: 2018
D217: Cost | J217: Accumulated Depreciation
A218: CCA Class 2 | B218: OEB Account 3 | C218: Description 3 | D218: Opening Balance | E218: Additions 4 | G218: Disposals 6 | H218: Closing Balance | I218: Opening Balance | J218: Additions | L218: Disposals 6 | M218: Closing Balance | N218: Net Book Value
B219: 1609 | C219: Capital Contributions Paid | D219: =H283 -> 0 | H219: =D219+E219+G219 -> 0 | I219: =M283 -> 0 | M219: =I219+J219+L219 -> 0 | N219: =H219-M219 -> 0
A220: 12 | B220: 1611 | C220: Computer Software (Formally known as Account 1925) | D220: =H284 -> 45256.3 | H220: 45256.3 | I220: =M284 -> 6702 | M220: 6702 | N220: 38554.3
A221: CEC | B221: 1612 | C221: Land Rights (Formally known as Account 1906) | D221: 0 | H221: 0 | I221: 0 | M221: 0 | N221: 0
A222: N/A | B222: 1805 | C222: Land | D222: 88880.7 | H222: 88880.7 | I222: 0 | M222: 0 | N222: 88880.7
A223: 47 | B223: 1808 | C223: Buildings | D223: 354801.23 | H223: 354801.23 | I223: 189057.74 | J223: 4572 | M223: 193629.74 | N223: 161171.49
A224: 13 | B224: 1810 | C224: Leasehold Improvements | D224: 0 | H224: 0 | I224: 0 | M224: 0 | N224: 0
A225: 47 | B225: 1815 | C225: Transformer Station Equipment >50 kV | D225: 0 | H225: 0 | I225: 0 | M225: 0 | N225: 0
A226: 47 | B226: 1820 | C226: Distribution Station Equipment <50 kV | D226: 489375.19 | H226: 489375.19 | I226: 334912.23 | J226: 3450 | M226: 338362.23 | N226: 151012.96
... 399 more rows

Sheet Appendix 2-BB Service Life
N1: File Number: | P1: ='LDC Info'!E16 -> EB-2020-0020
N2: Exhibit:
N3: Tab:
N4: Schedule:
N5: Page:
N7: Date:
A9: Appendix 2-BB
A10: Service Life Comparison
A11: Table F-1 from Kinetrics Report1
C15: Asset Details | F15: Useful Life | J15: USoA Account Number | K15: USoA Account Description | L15: Current | N15: Proposed | P15: Outside Range of Min, Max TUL?
A16: Parent* | B16: # | C16: Category| Component | Type | F16: MIN UL | G16: TUL | H16: MAX UL | L16: Years | M16: Rate | N16: Years | O16: Rate | P16: Below Min TUL | Q16: Above Max TUL
A17: OH | B17: 1 | C17: Fully Dressed Wood Poles | D17: Overall | F17: 35 | G17: 45 | H17: 75 | J17: 1830 | K17: Poles, Towers and Fixtures | L17: 40 | M17: =IF(ISERROR(1/L17), "", 1/L17) -> 0.025 | N17: 40 | O17: =IF(ISERROR(1/N17), "", 1/N17) -> 0.025 | P17: =IF(ISBLANK(N17),"",IF(N17<F17,"Yes","No")) -> No | Q17: =IF(ISBLANK(N17),"",IF(N17>H17,"Yes","No")) -> No
D18: Cross Arm | E18: Wood | F18: 20 | G18: 40 | H18: 55 | M18: =IF(ISERROR(1/L18), "", 1/L18) ->  | O18: =IF(ISERROR(1/N18), "", 1/N18) ->  | P18: =IF(ISBLANK(N18),"",IF(N18<F18,"Yes","No")) ->  | Q18: =IF(ISBLANK(N18),"",IF(N18>H18,"Yes","No")) -> 
E19: Steel | F19: 30 | G19: 70 | H19: 95
B20: 2 | C20: Fully Dressed Concrete Poles | D20: Overall | F20: 50 | G20: 60 | H20: 80
D21: Cross Arm | E21: Wood | F21: 20 | G21: 40 | H21: 55
E22: Steel | F22: 30 | G22: 70 | H22: 95
B23: 3 | C23: Fully Dressed Steel Poles | D23: Overall | F23: 60 | G23: 60 | H23: 80
D24: Cross Arm | E24: Wood | F24: 20 | G24: 40 | H24: 55
E25: Steel | F25: 30 | G25: 70 | H25: 95
B26: 4 | C26: OH Line Switch | F26: 30 | G26: 45 | H26: 55
B27: 5 | C27: OH Line Switch Motor | F27: 15 | G27: 25 | H27: 25
B28: 6 | C28: OH Line Switch RTU | F28: 15 | G28: 20 | H28: 20
B29: 7 | C29: OH Integral Switches | F29: 35 | G29: 45 | H29: 60
B30: 8 | C30: OH Conductors | F30: 50 | G30: 60 | H30: 75 | J30: 1835 | K30: Overhead Conductors and Devices | L30: 60 | M30: 0.01666666667 | N30: 60 | O30: 0.01666666667 | P30: No | Q30: No
B31: 9 | C31: OH Transformers & Voltage Regulators | F31: 30 | G31: 40 | H31: 60 | J31: 1850 | K31: Line Transformers | L31: 40 | M31: 0.025 | N31: 40 | O31: 0.025 | P31: No | Q31: No
B32: 10 | C32: OH Shunt Capacitor Banks | F32: 25 | G32: 30 | H32: 40
B33: 11 | C33: Reclosers | F33: 25 | G33: 40 | H33: 55
A34: TS & MS | B34: 12 | C34: Power Transformers | D34: Overall | F34: 30 | G34: 45 | H34: 60 | J34: 1820 | K34: Distribution Station Equipment <50kV | L34: 50 | M34: 0.02 | N34: 50 | O34: 0.02 | P34: No | Q34: No
D35: Bushing | F35: 10 | G35: 20 | H35: 30
D36: Tap Changer | F36: 20 | G36: 30 | H36: 60
B37: 13 | C37: Station Service Transformer | F37: 30 | G37: 45 | H37: 55
B38: 14 | C38: Station Grounding Transformer | F38: 30 | G38: 40 | H38: 40
B39: 15 | C39: Station DC System | D39: Overall | F39: 10 | G39: 20 | H39: 30
D40: Battery Bank | F40: 10 | G40: 15 | H40: 15
D41: Charger | F41: 20 | G41: 20 | H41: 30
B42: 16 | C42: Station Metal Clad Switchgear | D42: Overall | F42: 30 | G42: 40 | H42: 60 | J42: 1820 | K42: Distribution Station Equipment<50kV | L42: 50 | M42: 0.02 | N42: 50 | O42: 0.02 | P42: No | Q42: No
D43: Removable Breaker | F43: 25 | G43: 40 | H43: 60
B44: 17 | C44: Station Independent Breakers | F44: 35 | G44: 45 | H44: 65 | J44: 1820 | K44: Distribution Station Equipment<50kV | L44: 50 | M44: 0.02 | N44: 50 | O44: 0.02 | P44: No | Q44: No
B45: 18 | C45: Station Switch | F45: 30 | G45: 50 | H45: 60 | J45: 1820 | K45: Distribution Station Equipment<50kV | L45: 50 | M45: 0.02 | N45: 50 | O45: 0.02 | P45: No | Q45: No
B46: 19 | C46: Electromechanical Relays | F46: 25 | G46: 35 | H46: 50
B47: 20 | C47: Solid State Relays | F47: 10 | G47: 30 | H47: 45
B48: 21 | C48: Digital & Numeric Relays | F48: 15 | G48: 20 | H48: 20
B49: 22 | C49: Rigid Busbars | F49: 30 | G49: 55 | H49: 60
B50: 23 | C50: Steel Structure | F50: 35 | G50: 50 | H50: 90
A51: UG | B51: 24 | C51: Primary Paper Insulated Lead Covered (PILC) Cables | F51: 60 | G51: 65 | H51: 75
B52: 25 | C52: Primary Ethylene-Propylene Rubber (EPR) Cables | F52: 20 | G52: 25 | H52: 25
B53: 26 | C53: Primary Non-Tree Retardant (TR) Cross Linked Polyethylene (XLPE) Cables Direct Buried | F53: 20 | G53: 25 | H53: 30
B54: 27 | C54: Primary Non-TR XLPE Cables in Duct | F54: 20 | G54: 25 | H54: 30
B55: 30 | C55: Secondary PILC Cables | F55: 70 | G55: 75 | H55: 80
B56: 31 | C56: Secondary Cables Direct Buried | F56: 25 | G56: 35 | H56: 40 | J56: 1845 | K56: Underground Conductors and Devices | L56: 40 | M56: 0.025 | N56: 40 | O56: 0.025 | P56: No | Q56: No
B57: 32 | C57: Secondary Cables in Duct | F57: 35 | G57: 40 | H57: 60
B58: 33 | C58: Network Tranformers | D58: Overall | F58: 20 | G58: 35 | H58: 50 | J58: 1845 | K58: Underground Conductors and Devices | L58: 40 | M58: 0.025 | N58: 40 | O58: 0.025 | P58: No | Q58: No
D59: Protector | F59: 20 | G59: 35 | H59: 40
B60: 34 | C60: Pad-Mounted Transformers | F60: 25 | G60: 40 | H60: 45
B61: 35 | C61: Submersible/Vault Transformers | F61: 25 | G61: 35 | H61: 45 | J61: 1850 | K61: Line Transformers | L61: 40 | M61: 0.025 | N61: 40 | O61: 0.025 | P61: No | Q61: No
B62: 36 | C62: UG Foundation | F62: 35 | G62: 55 | H62: 70
B63: 37 | C63: UG Vaults | D63: Overall | F63: 40 | G63: 60 | H63: 80 | J63: 1840 | K63: Underground Conduit | L63: 40 | M63: 0.025 | N63: 40 | O63: 0.025 | P63: No | Q63: No
D64: Roof | F64: 20 | G64: 30 | H64: 45
B65: 38 | C65: UG Vault Switches | F65: 20 | G65: 35 | H65: 50
B66: 39 | C66: Pad-Mounted Switchgear | F66: 20 | G66: 30 | H66: 45
B67: 40 | C67: Ducts | F67: 30 | G67: 50 | H67: 85
B68: 41 | C68: Concrete Encased Duct Banks | F68: 35 | G68: 55 | H68: 80
B69: 42 | C69: Cable Chambers | F69: 50 | G69: 60 | H69: 80
A70: S | B70: 43 | C70: Remote SCADA | F70: 15 | G70: 20 | H70: 30
A73: Table F-2 from Kinetrics Report1
C75: Asset Details | F75: Useful Life Range | J75: USoA Account Number | K75: USoA Account Description | L75: Current | N75: Proposed | P75: Outside Range of Min, Max TUL?
B76: # | C76: Category| Component | Type | L76: Years | M76: Rate | N76: Years | O76: Rate | P76: Below Min Range | Q76: Above Max Range
B77: 1 | C77: Office Equipment | F77: 5 | G77: 15 | J77: 1915 | K77: Office Furniture/Equipment | L77: 10 | M77: =IF(ISERROR(1/L77), "", 1/L77) -> 0.1 | N77: 10 | O77: =IF(ISERROR(1/N77), "", 1/N77) -> 0.1 | P77: =IF(ISBLANK(N77),"",IF(N77<F77,"Yes","No")) -> No | Q77: =IF(ISBLANK(N77),"",IF(N77>G77,"Yes","No")) -> No
B78: 2 | C78: Vehicles | D78: Trucks & Buckets | F78: 5 | G78: 15 | J78: 1930 | K78: Transportation Equipments | L78: 15 | M78: =IF(ISERROR(1/L78), "", 1/L78) -> 0.06666666667 | N78: 15 | O78: =IF(ISERROR(1/N78), "", 1/N78) -> 0.06666666667 | P78: =IF(ISBLANK(N78),"",IF(N78<F78,"Yes","No")) -> No | Q78: =IF(ISBLANK(N78),"",IF(N78>G78,"Yes","No")) -> No
D79: Trailers | F79: 5 | G79: 20 | J79: 1930 | K79: Transportation Equipments | L79: 15 | M79: 0.06666666667 | N79: 15 | O79: 0.06666666667 | P79: No | Q79: No
D80: Vans | F80: 5 | G80: 10
B81: 3 | C81: Administrative Buildings | F81: 50 | G81: 75 | J81: 1808 | L81: 50 | M81: 0.02 | N81: 50 | O81: 0.02 | P81: No | Q81: No
B82: 4 | C82: Leasehold Improvements | F82: Lease dependent | P82: =IF(ISBLANK(N82),"",IF(N82<F82,"Yes","No")) ->  | Q82: =IF(ISBLANK(N82),"",IF(N82>G82,"Yes","No")) -> 
B83: 5 | C83: Station Buildings | D83: Station Buildings | F83: 50 | G83: 75 | J83: 1808 | K83: Buildings & Fixtures | L83: 50 | M83: 0.02 | N83: 50 | O83: 0.02 | P83: No | Q83: No
D84: Parking | F84: 25 | G84: 30
D85: Fence | F85: 25 | G85: 60 | J85: 1808 | K85: Buildings & Fixtures | L85: 50 | M85: 0.02 | N85: 50 | O85: 0.02 | P85: No | Q85: No
D86: Roof | F86: 20 | G86: 30
B87: 6 | C87: Computer Equipment | D87: Hardware | F87: 3 | G87: 5 | J87: 1920 | K87: Computer Equipment - Hardward | L87: 5 | M87: 0.2 | N87: 5 | O87: 0.2 | P87: No | Q87: No
D88: Software | F88: 2 | G88: 5 | J88: 1611 | K88: Computer Software | L88: 5 | M88: 0.2 | N88: 5 | O88: 0.2 | P88: No | Q88: No
B89: 7 | C89: Equipment | D89: Power Operated | F89: 5 | G89: 10
D90: Stores | F90: 5 | G90: 10
D91: Tools, Shop, Garage Equipment | F91: 5 | G91: 10 | J91: 1940 | K91: Tools, Shop and Garage Equipment | L91: 10 | M91: 0.1 | N91: 10 | O91: 0.1 | P91: No | Q91: No
D92: Measurement & Testing Equipment | F92: 5 | G92: 10 | J92: 1945 | K92: Measurement and Testing Equipment | L92: 10 | M92: 0.1 | N92: 10 | O92: 0.1 | P92: No | Q92: No
B93: 8 | C93: Communication | D93: Towers | F93: 60 | G93: 70
D94: Wireless | F94: 2 | G94: 10
B95: 9 | C95: Residential Energy Meters | F95: 25 | G95: 35
B96: 10 | C96: Industrial/Commercial Energy Meters | F96: 25 | G96: 35
B97: 11 | C97: Wholesale Energy Meters | F97: 15 | G97: 30
B98: 12 | C98: Current & Potential Transformer (CT & PT) | F98: 35 | G98: 50
B99: 13 | C99: Smart Meters | F99: 5 | G99: 15 | J99: 1860 | K99: Meters | L99: 15 | M99: 0.06666666667 | N99: 15 | O99: 0.06666666667 | P99: No | Q99: No
B100: 14 | C100: Repeaters - Smart Metering | F100: 10 | G100: 15
B101: 15 | C101: Data Collectors - Smart Metering | F101: 15 | G101: 20
A104: * TS & MS = Transformer and Municipal Stations UG = Underground Systems S = Monitoring and Control Systems
A106: Note 1: | B106: Tables F-1 and F-2 above are to be used as a reference in order to complete columns J, K, L and N.
B107: See pages 17-19 of Kinetrics Report

Sheet App.2-C_DepExp
A9: Appendix 2-C
A10: Depreciation and Amortization Expense
A12: This appendix is to be completed in conjunction with the accounting instructions in Appendix 2-B
A15: Scenario that applies | C15: Applicable Years and Accounting Standard | S15: Year Reflected in Schedule Below | T15: Accounting Standard Reflected in Schedule Below
A16: Rebasing for the first time with depreciation policy changes made in 2012. | C16: This appendix must be duplicated and completed for the years 2012 to 2018. The appendix for 2012 is to be completed under CGAAP (prior to changes in depreciation policies). The appendix for 2012 to 2014 must be completed under Revised CGAAP (after changes in depreciation policies). The appendix for 2014 to 2018 is to be completed under MIFRS (2014 if changes to MIFRS are material).
A17: Rebasing for the first time with depreciation policy changes made in 2013. | C17: This appendix must be duplicated and completed for the years 2013 to 2018. The appendix for 2013 is to be completed under CGAAP (prior to changes in depreciation policies). The appendix for 2013 to 2014 must be completed under Revised CGAAP (after changes in depreciation policies). The appendix for 2014 to 2018 is to be completed under MIFRS (2014 if changes to MIFRS are material).
A18: Already rebased with depreciation policy changes in a prior rate application | C18: This appendix must be completed for 2014 to 2018. The appendix for 2014 is to be completed under Revised CGAAP (after changes in depreciation policies). The appendix for 2014 to 2018 is to be completed under MIFRS (2014 if changes to MIFRS are material). | S18: 2013 | T18: Revised CGAAP
C21: Book Values | K21: Service Lives | O21: Depreciation Expense
A22: Account | B22: Description | C22: Opening Net Book Value of Existing Assets as at Date of Policy Change (Jan. 1) 1 | D22: Less Fully Depreciated 7 | E22: IFRS Adjustments | F22: Net Amount of Existing Assets Before Policy Change to be Depreciated | G22: Opening Gross Book Value of Assets Acquired After Policy Change 2 | H22: Less Fully Depreciated 8 | I22: Net Amount of Assets Acquired After Policy Change to be Depreciated | J22: Current Year Additions | K22: Average Remaining Life of Assets Existing Before Policy Change 3 | L22: Depreciation Rate Assets Acquired After Policy Change | M22: Life of Assets Acquired After Policy Change 4 | N22: Depreciation Rate on New Additions | O22: Depreciation Expense on Assets Existing Before Policy Change | P22: Depreciation Expense on Assets Acquired After Policy Change | Q22: Depreciation Expense on Current Year Additions 5 | R22: Total Current Year Depreciation Expense | S22: Depreciation Expense per Appendix 2-BA Fixed Assets, Column J | T22: Variance 6
C23: a | D23: b | F23: c = a-b | G23: d | H23: e | I23: f = d- e | J23: g | K23: h | L23: i = 1/h | M23: j | N23: k = 1/j | O23: l = c/h | P23: m = f/j | Q23: n = (g*.5)/j | R23: o = l+m+n | S23: p | T23: q = p-o
A24: 1706 | B24: Land Rights | C24: =SUMIF('App.2-BA_Fixed Asset Cont'!$B$583:$B$623,'App.2-C_DepExp'!A24,'App.2-BA_Fixed Asset Cont'!$N$583:$N$623) -> 0 | E24: =SUMIF('App.2-BA_Fixed Asset Cont'!$B$524:$B$565,'App.2-C_DepExp'!A24,'App.2-BA_Fixed Asset Cont'!$F$524:$F$565) -> 0 | F24: =C24-D24+E24 -> 0 | I24: =G24-H24 -> 0 | J24: =SUMIF('App.2-BA_Fixed Asset Cont'!$B$524:$B$565,'App.2-C_DepExp'!A24,'App.2-BA_Fixed Asset Cont'!$E$524:$E$565) -> 0 | L24: =IF(K24=0,0,1/K24) -> 0 | N24: =IF(M24=0,0,1/M24) -> 0 | O24: =IF(K24=0,0,+F24/K24) -> 0 | P24: =IF(M24=0,0,+I24/M24) -> 0 | Q24: =IF(M24=0,0,+(J24*0.5)/M24) -> 0 | R24: =IF(ISERROR(+O24+P24+Q24), 0, +O24+P24+Q24) -> 0 | S24: =SUMIF('App.2-BA_Fixed Asset Cont'!$B$524:$B$565,'App.2-C_DepExp'!A24,'App.2-BA_Fixed Asset Cont'!$J$524:$J$565) -> 0 | T24: =IF(ISERROR(+S24-122), 0, +S24-R24) -> 0
A25: 1725 | B25: Poles and Fixtures | C25: =SUMIF('App.2-BA_Fixed Asset Cont'!$B$583:$B$623,'App.2-C_DepExp'!A25,'App.2-BA_Fixed Asset Cont'!$N$583:$N$623) -> 0 | E25: =SUMIF('App.2-BA_Fixed Asset Cont'!$B$524:$B$565,'App.2-C_DepExp'!A25,'App.2-BA_Fixed Asset Cont'!$F$524:$F$565) -> 0 | F25: =C25-D25+E25 -> 0 | I25: 0 | J25: =SUMIF('App.2-BA_Fixed Asset Cont'!$B$524:$B$565,'App.2-C_DepExp'!A25,'App.2-BA_Fixed Asset Cont'!$E$524:$E$565) -> 0 | L25: =IF(K25=0,0,1/K25) -> 0 | N25: 0 | O25: 0 | P25: 0 | Q25: =IF(M25=0,0,+(J25*0.5)/M25) -> 0 | R25: =IF(ISERROR(+O25+P25+Q25), 0, +O25+P25+Q25) -> 0 | S25: =SUMIF('App.2-BA_Fixed Asset Cont'!$B$524:$B$565,'App.2-C_DepExp'!A25,'App.2-BA_Fixed Asset Cont'!$J$524:$J$565) -> 0 | T25: =IF(ISERROR(+S25-122), 0, +S25-R25) -> 0
A26: 1730 | B26: Overhead Conductors & Devices | C26: =SUMIF('App.2-BA_Fixed Asset Cont'!$B$583:$B$623,'App.2-C_DepExp'!A26,'App.2-BA_Fixed Asset Cont'!$N$583:$N$623) -> 0 | E26: =SUMIF('App.2-BA_Fixed Asset Cont'!$B$524:$B$565,'App.2-C_DepExp'!A26,'App.2-BA_Fixed Asset Cont'!$F$524:$F$565) -> 0 | F26: 0 | I26: 0 | J26: =SUMIF('App.2-BA_Fixed Asset Cont'!$B$524:$B$565,'App.2-C_DepExp'!A26,'App.2-BA_Fixed Asset Cont'!$E$524:$E$565) -> 0 | L26: 0 | N26: 0 | O26: 0 | P26: 0 | Q26: 0 | R26: 0 | S26: =SUMIF('App.2-BA_Fixed Asset Cont'!$B$524:$B$565,'App.2-C_DepExp'!A26,'App.2-BA_Fixed Asset Cont'!$J$524:$J$565) -> 0 | T26: =IF(ISERROR(+S26-122), 0, +S26-R26) -> 0
A27: 1735 | B27: Underground Conduit | C27: =SUMIF('App.2-BA_Fixed Asset Cont'!$B$583:$B$623,'App.2-C_DepExp'!A27,'App.2-BA_Fixed Asset Cont'!$N$583:$N$623) -> 0 | E27: =SUMIF('App.2-BA_Fixed Asset Cont'!$B$524:$B$565,'App.2-C_DepExp'!A27,'App.2-BA_Fixed Asset Cont'!$F$524:$F$565) -> 0 | F27: 0 | I27: 0 | J27: =SUMIF('App.2-BA_Fixed Asset Cont'!$B$524:$B$565,'App.2-C_DepExp'!A27,'App.2-BA_Fixed Asset Cont'!$E$524:$E$565) -> 0 | L27: 0 | N27: 0 | O27: 0 | P27: 0 | Q27: 0 | R27: 0 | S27: =SUMIF('App.2-BA_Fixed Asset Cont'!$B$524:$B$565,'App.2-C_DepExp'!A27,'App.2-BA_Fixed Asset Cont'!$J$524:$J$565) -> 0 | T27: 0
A28: 1740 | B28: Underground Conductors & Devices | C28: =SUMIF('App.2-BA_Fixed Asset Cont'!$B$583:$B$623,'App.2-C_DepExp'!A28,'App.2-BA_Fixed Asset Cont'!$N$583:$N$623) -> 0 | E28: =SUMIF('App.2-BA_Fixed Asset Cont'!$B$524:$B$565,'App.2-C_DepExp'!A28,'App.2-BA_Fixed Asset Cont'!$F$524:$F$565) -> 0 | F28: 0 | I28: 0 | J28: =SUMIF('App.2-BA_Fixed Asset Cont'!$B$524:$B$565,'App.2-C_DepExp'!A28,'App.2-BA_Fixed Asset Cont'!$E$524:$E$565) -> 0 | L28: 0 | N28: 0 | O28: 0 | P28: 0 | Q28: 0 | R28: 0 | S28: =SUMIF('App.2-BA_Fixed Asset Cont'!$B$524:$B$565,'App.2-C_DepExp'!A28,'App.2-BA_Fixed Asset Cont'!$J$524:$J$565) -> 0 | T28: 0
A29: 1611 | B29: Computer Software (Formally known as Account 1925) | C29: 0 | E29: =SUMIF('App.2-BA_Fixed Asset Cont'!$B$524:$B$565,'App.2-C_DepExp'!A29,'App.2-BA_Fixed Asset Cont'!$F$524:$F$565) -> 0 | F29: 0 | I29: =G29-H29 -> 0 | J29: =SUMIF('App.2-BA_Fixed Asset Cont'!$B$524:$B$565,'App.2-C_DepExp'!A29,'App.2-BA_Fixed Asset Cont'!$E$524:$E$565) -> 0 | L29: =IF(K29=0,0,1/K29) -> 0 | N29: =IF(M29=0,0,1/M29) -> 0 | O29: 0 | P29: 0 | Q29: 0 | R29: =IF(ISERROR(+O29+P29+Q29), 0, +O29+P29+Q29) -> 0 | S29: 0 | T29: =IF(ISERROR(+S29-122), 0, +S29-R29) -> 0
A30: 1612 | B30: Land Rights (Formally known as Account 1906) | C30: =SUMIF('App.2-BA_Fixed Asset Cont'!$B$583:$B$623,'App.2-C_DepExp'!A30,'App.2-BA_Fixed Asset Cont'!$N$583:$N$623) -> 0 | E30: =SUMIF('App.2-BA_Fixed Asset Cont'!$B$524:$B$565,'App.2-C_DepExp'!A30,'App.2-BA_Fixed Asset Cont'!$F$524:$F$565) -> 0 | F30: 0 | I30: =G30-H30 -> 0 | J30: =SUMIF('App.2-BA_Fixed Asset Cont'!$B$524:$B$565,'App.2-C_DepExp'!A30,'App.2-BA_Fixed Asset Cont'!$E$524:$E$565) -> 0 | L30: =IF(K30=0,0,1/K30) -> 0 | N30: =IF(M30=0,0,1/M30) -> 0 | O30: 0 | P30: 0 | Q30: 0 | R30: =IF(ISERROR(+O30+P30+Q30), 0, +O30+P30+Q30) -> 0 | S30: =SUMIF('App.2-BA_Fixed Asset Cont'!$B$524:$B$565,'App.2-C_DepExp'!A30,'App.2-BA_Fixed Asset Cont'!$J$524:$J$565) -> 0 | T30: 0
A31: 1805 | B31: Land | C31: =SUMIF('App.2-BA_Fixed Asset Cont'!$B$583:$B$623,'App.2-C_DepExp'!A31,'App.2-BA_Fixed Asset Cont'!$N$583:$N$623) -> 88880.7 | E31: =SUMIF('App.2-BA_Fixed Asset Cont'!$B$524:$B$565,'App.2-C_DepExp'!A31,'App.2-BA_Fixed Asset Cont'!$F$524:$F$565) -> 0 | F31: 88880.7 | I31: 0 | J31: =SUMIF('App.2-BA_Fixed Asset Cont'!$B$524:$B$565,'App.2-C_DepExp'!A31,'App.2-BA_Fixed Asset Cont'!$E$524:$E$565) -> 0 | L31: 0 | M31: 0 | N31: 0 | O31: 0 | P31: 0 | Q31: 0 | R31: 0 | S31: =SUMIF('App.2-BA_Fixed Asset Cont'!$B$524:$B$565,'App.2-C_DepExp'!A31,'App.2-BA_Fixed Asset Cont'!$J$524:$J$565) -> 0 | T31: 0
A32: 1806 | B32: Land Rights | C32: =SUMIF('App.2-BA_Fixed Asset Cont'!$B$583:$B$623,'App.2-C_DepExp'!A32,'App.2-BA_Fixed Asset Cont'!$N$583:$N$623) -> 0 | E32: =SUMIF('App.2-BA_Fixed Asset Cont'!$B$524:$B$565,'App.2-C_DepExp'!A32,'App.2-BA_Fixed Asset Cont'!$F$524:$F$565) -> 0 | F32: 0 | I32: 0 | J32: =SUMIF('App.2-BA_Fixed Asset Cont'!$B$524:$B$565,'App.2-C_DepExp'!A32,'App.2-BA_Fixed Asset Cont'!$E$524:$E$565) -> 0 | L32: 0 | N32: 0 | O32: 0 | P32: 0 | Q32: 0 | R32: 0 | S32: =SUMIF('App.2-BA_Fixed Asset Cont'!$B$524:$B$565,'App.2-C_DepExp'!A32,'App.2-BA_Fixed Asset Cont'!$J$524:$J$565) -> 0 | T32: 0
A33: 1808 | B33: Buildings | C33: =SUMIF('App.2-BA_Fixed Asset Cont'!$B$583:$B$623,'App.2-C_DepExp'!A33,'App.2-BA_Fixed Asset Cont'!$N$583:$N$623) -> 175552.94 | E33: =SUMIF('App.2-BA_Fixed Asset Cont'!$B$524:$B$565,'App.2-C_DepExp'!A33,'App.2-BA_Fixed Asset Cont'!$F$524:$F$565) -> 5765 | F33: 181317.94 | I33: 0 | J33: =SUMIF('App.2-BA_Fixed Asset Cont'!$B$524:$B$565,'App.2-C_DepExp'!A33,'App.2-BA_Fixed Asset Cont'!$E$524:$E$565) -> 0 | K33: 40.90185879 | L33: 0.02444876663 | M33: 50 | N33: 0.02 | O33: =IF(K33=0,0,+F33/K33) -> 4433 | P33: 0 | Q33: 0 | R33: =IF(ISERROR(+O33+P33+Q33), 0, +O33+P33+Q33) -> 4433 | S33: =SUMIF('App.2-BA_Fixed Asset Cont'!$B$524:$B$565,'App.2-C_DepExp'!A33,'App.2-BA_Fixed Asset Cont'!$J$524:$J$565) -> 4433 | T33: =IF(ISERROR(+S33-122), 0, +S33-R33) -> 0
A34: 1810 | B34: Leasehold Improvements | C34: =SUMIF('App.2-BA_Fixed Asset Cont'!$B$583:$B$623,'App.2-C_DepExp'!A34,'App.2-BA_Fixed Asset Cont'!$N$583:$N$623) -> 0 | E34: =SUMIF('App.2-BA_Fixed Asset Cont'!$B$524:$B$565,'App.2-C_DepExp'!A34,'App.2-BA_Fixed Asset Cont'!$F$524:$F$565) -> 0 | F34: 0 | I34: 0 | J34: =SUMIF('App.2-BA_Fixed Asset Cont'!$B$524:$B$565,'App.2-C_DepExp'!A34,'App.2-BA_Fixed Asset Cont'!$E$524:$E$565) -> 0 | L34: 0 | N34: 0 | O34: 0 | P34: 0 | Q34: 0 | R34: 0 | S34: =SUMIF('App.2-BA_Fixed Asset Cont'!$B$524:$B$565,'App.2-C_DepExp'!A34,'App.2-BA_Fixed Asset Cont'!$J$524:$J$565) -> 0 | T34: =IF(ISERROR(+S34-122), 0, +S34-R34) -> 0
A35: 1815 | B35: Transformer Station Equipment >50 kV | C35: =SUMIF('App.2-BA_Fixed Asset Cont'!$B$583:$B$623,'App.2-C_DepExp'!A35,'App.2-BA_Fixed Asset Cont'!$N$583:$N$623) -> 0 | E35: =SUMIF('App.2-BA_Fixed Asset Cont'!$B$524:$B$565,'App.2-C_DepExp'!A35,'App.2-BA_Fixed Asset Cont'!$F$524:$F$565) -> 0 | F35: 0 | I35: 0 | J35: =SUMIF('App.2-BA_Fixed Asset Cont'!$B$524:$B$565,'App.2-C_DepExp'!A35,'App.2-BA_Fixed Asset Cont'!$E$524:$E$565) -> 0 | L35: 0 | N35: 0 | O35: 0 | P35: 0 | Q35: 0 | R35: 0 | S35: =SUMIF('App.2-BA_Fixed Asset Cont'!$B$524:$B$565,'App.2-C_DepExp'!A35,'App.2-BA_Fixed Asset Cont'!$J$524:$J$565) -> 0 | T35: 0
A36: 1820 | B36: Distribution Station Equipment <50 kV | C36: =SUMIF('App.2-BA_Fixed Asset Cont'!$B$583:$B$623,'App.2-C_DepExp'!A36,'App.2-BA_Fixed Asset Cont'!$N$583:$N$623) -> 161095.96 | E36: =SUMIF('App.2-BA_Fixed Asset Cont'!$B$524:$B$565,'App.2-C_DepExp'!A36,'App.2-BA_Fixed Asset Cont'!$F$524:$F$565) -> 10618 | F36: 171713.96 | I36: 0 | J36: =SUMIF('App.2-BA_Fixed Asset Cont'!$B$524:$B$565,'App.2-C_DepExp'!A36,'App.2-BA_Fixed Asset Cont'!$E$524:$E$565) -> 0 | K36: 49.77216232 | L36: 0.02009155225 | M36: 50 | N36: 0.02 | O36: 3450 | P36: 0 | Q36: 0 | R36: 3450 | S36: =SUMIF('App.2-BA_Fixed Asset Cont'!$B$524:$B$565,'App.2-C_DepExp'!A36,'App.2-BA_Fixed Asset Cont'!$J$524:$J$565) -> 3450 | T36: 0
A37: 1825 | B37: Storage Battery Equipment | C37: =SUMIF('App.2-BA_Fixed Asset Cont'!$B$583:$B$623,'App.2-C_DepExp'!A37,'App.2-BA_Fixed Asset Cont'!$N$583:$N$623) -> 0 | E37: =SUMIF('App.2-BA_Fixed Asset Cont'!$B$524:$B$565,'App.2-C_DepExp'!A37,'App.2-BA_Fixed Asset Cont'!$F$524:$F$565) -> 0 | F37: 0 | I37: 0 | J37: =SUMIF('App.2-BA_Fixed Asset Cont'!$B$524:$B$565,'App.2-C_DepExp'!A37,'App.2-BA_Fixed Asset Cont'!$E$524:$E$565) -> 0 | L37: 0 | N37: 0 | O37: 0 | P37: 0 | Q37: 0 | R37: 0 | S37: =SUMIF('App.2-BA_Fixed Asset Cont'!$B$524:$B$565,'App.2-C_DepExp'!A37,'App.2-BA_Fixed Asset Cont'!$J$524:$J$565) -> 0 | T37: 0
A38: 1830 | B38: Poles, Towers & Fixtures | C38: =SUMIF('App.2-BA_Fixed Asset Cont'!$B$583:$B$623,'App.2-C_DepExp'!A38,'App.2-BA_Fixed Asset Cont'!$N$583:$N$623) -> 878998.74 | E38: =SUMIF('App.2-BA_Fixed Asset Cont'!$B$524:$B$565,'App.2-C_DepExp'!A38,'App.2-BA_Fixed Asset Cont'!$F$524:$F$565) -> 37482 | F38: 916480.74 | I38: 0 | J38: =SUMIF('App.2-BA_Fixed Asset Cont'!$B$524:$B$565,'App.2-C_DepExp'!A38,'App.2-BA_Fixed Asset Cont'!$E$524:$E$565) -> 199030 | K38: 36.44022385 | L38: 0.02744220244 | M38: 40 | N38: 0.025 | O38: =IF(K38=0,0,+F38/K38) -> 25150.25 | P38: 0 | Q38: 2487.875 | R38: 27638.125 | S38: =SUMIF('App.2-BA_Fixed Asset Cont'!$B$524:$B$565,'App.2-C_DepExp'!A38,'App.2-BA_Fixed Asset Cont'!$J$524:$J$565) -> 30126 | T38: =IF(ISERROR(+S38-122), 0, +S38-R38) -> 2487.875
A39: 1835 | B39: Overhead Conductors & Devices | C39: =SUMIF('App.2-BA_Fixed Asset Cont'!$B$583:$B$623,'App.2-C_DepExp'!A39,'App.2-BA_Fixed Asset Cont'!$N$583:$N$623) -> 510815.11 | E39: =SUMIF('App.2-BA_Fixed Asset Cont'!$B$524:$B$565,'App.2-C_DepExp'!A39,'App.2-BA_Fixed Asset Cont'!$F$524:$F$565) -> 25105 | F39: 535920.11 | I39: 0 | J39: =SUMIF('App.2-BA_Fixed Asset Cont'!$B$524:$B$565,'App.2-C_DepExp'!A39,'App.2-BA_Fixed Asset Cont'!$E$524:$E$565) -> 110902 | K39: 56.6413949 | L39: 0.01765493244 | M39: 60 | N39: 0.01666666667 | O39: =IF(K39=0,0,+F39/K39) -> 9461.633333 | P39: 0 | Q39: 924.1833333 | R39: =IF(ISERROR(+O39+P39+Q39), 0, +O39+P39+Q39) -> 10385.81667 | S39: =SUMIF('App.2-BA_Fixed Asset Cont'!$B$524:$B$565,'App.2-C_DepExp'!A39,'App.2-BA_Fixed Asset Cont'!$J$524:$J$565) -> 11310 | T39: =IF(ISERROR(+S39-122), 0, +S39-R39) -> 924.1833333
A40: 1840 | B40: Underground Conduit | C40: =SUMIF('App.2-BA_Fixed Asset Cont'!$B$583:$B$623,'App.2-C_DepExp'!A40,'App.2-BA_Fixed Asset Cont'!$N$583:$N$623) -> 99203.7 | E40: =SUMIF('App.2-BA_Fixed Asset Cont'!$B$524:$B$565,'App.2-C_DepExp'!A40,'App.2-BA_Fixed Asset Cont'!$F$524:$F$565) -> 9593 | F40: 108796.7 | I40: 0 | J40: =SUMIF('App.2-BA_Fixed Asset Cont'!$B$524:$B$565,'App.2-C_DepExp'!A40,'App.2-BA_Fixed Asset Cont'!$E$524:$E$565) -> 0 | K40: 30.61246483 | L40: 0.03266643198 | M40: 40 | N40: 0.025 | O40: 3554 | P40: 0 | Q40: 0 | R40: 3554 | S40: =SUMIF('App.2-BA_Fixed Asset Cont'!$B$524:$B$565,'App.2-C_DepExp'!A40,'App.2-BA_Fixed Asset Cont'!$J$524:$J$565) -> 3554 | T40: 0
A41: 1845 | B41: Underground Conductors & Devices | C41: =SUMIF('App.2-BA_Fixed Asset Cont'!$B$583:$B$623,'App.2-C_DepExp'!A41,'App.2-BA_Fixed Asset Cont'!$N$583:$N$623) -> 80496.52 | E41: =SUMIF('App.2-BA_Fixed Asset Cont'!$B$524:$B$565,'App.2-C_DepExp'!A41,'App.2-BA_Fixed Asset Cont'!$F$524:$F$565) -> 1088 | F41: 81584.52 | I41: 0 | J41: =SUMIF('App.2-BA_Fixed Asset Cont'!$B$524:$B$565,'App.2-C_DepExp'!A41,'App.2-BA_Fixed Asset Cont'!$E$524:$E$565) -> 2959 | K41: 35.01443976 | L41: 0.02855964587 | M41: 40 | N41: 0.025 | O41: 2330.025 | P41: 0 | Q41: 36.9875 | R41: 2367.0125 | S41: =SUMIF('App.2-BA_Fixed Asset Cont'!$B$524:$B$565,'App.2-C_DepExp'!A41,'App.2-BA_Fixed Asset Cont'!$J$524:$J$565) -> 2404 | T41: 36.9875
A42: 1850 | B42: Line Transformers | C42: =SUMIF('App.2-BA_Fixed Asset Cont'!$B$583:$B$623,'App.2-C_DepExp'!A42,'App.2-BA_Fixed Asset Cont'!$N$583:$N$623) -> 207647.69 | E42: =SUMIF('App.2-BA_Fixed Asset Cont'!$B$524:$B$565,'App.2-C_DepExp'!A42,'App.2-BA_Fixed Asset Cont'!$F$524:$F$565) -> 13023 | F42: 220670.69 | I42: 0 | J42: =SUMIF('App.2-BA_Fixed Asset Cont'!$B$524:$B$565,'App.2-C_DepExp'!A42,'App.2-BA_Fixed Asset Cont'!$E$524:$E$565) -> 40093 | K42: 33.61486898 | L42: 0.02974874008 | M42: 40 | N42: 0.025 | O42: =IF(K42=0,0,+F42/K42) -> 6564.675 | P42: 0 | Q42: 501.1625 | R42: =IF(ISERROR(+O42+P42+Q42), 0, +O42+P42+Q42) -> 7065.8375 | S42: =SUMIF('App.2-BA_Fixed Asset Cont'!$B$524:$B$565,'App.2-C_DepExp'!A42,'App.2-BA_Fixed Asset Cont'!$J$524:$J$565) -> 7567 | T42: 501.1625
A43: 1855 | B43: Services (Overhead & Underground) | C43: =SUMIF('App.2-BA_Fixed Asset Cont'!$B$583:$B$623,'App.2-C_DepExp'!A43,'App.2-BA_Fixed Asset Cont'!$N$583:$N$623) -> 184179.24 | E43: =SUMIF('App.2-BA_Fixed Asset Cont'!$B$524:$B$565,'App.2-C_DepExp'!A43,'App.2-BA_Fixed Asset Cont'!$F$524:$F$565) -> 7070 | F43: 191249.24 | I43: 0 | J43: =SUMIF('App.2-BA_Fixed Asset Cont'!$B$524:$B$565,'App.2-C_DepExp'!A43,'App.2-BA_Fixed Asset Cont'!$E$524:$E$565) -> 36478 | K43: 57.08875733 | L43: 0.01751658377 | M43: 60 | N43: 0.01666666667 | O43: 3350.033333 | P43: 0 | Q43: 303.9833333 | R43: 3654.016667 | S43: =SUMIF('App.2-BA_Fixed Asset Cont'!$B$524:$B$565,'App.2-C_DepExp'!A43,'App.2-BA_Fixed Asset Cont'!$J$524:$J$565) -> 3958 | T43: 303.9833333
A44: 1860 | B44: Meters | C44: =SUMIF('App.2-BA_Fixed Asset Cont'!$B$583:$B$623,'App.2-C_DepExp'!A44,'App.2-BA_Fixed Asset Cont'!$N$583:$N$623) -> 549852 | E44: =SUMIF('App.2-BA_Fixed Asset Cont'!$B$524:$B$565,'App.2-C_DepExp'!A44,'App.2-BA_Fixed Asset Cont'!$F$524:$F$565) -> 0 | F44: 549852 | I44: 0 | J44: =SUMIF('App.2-BA_Fixed Asset Cont'!$B$524:$B$565,'App.2-C_DepExp'!A44,'App.2-BA_Fixed Asset Cont'!$E$524:$E$565) -> 764.83 | K44: 10.96502214 | L44: 0.0911990863 | M44: 15 | N44: 0.06666666667 | O44: =IF(K44=0,0,+F44/K44) -> 50146 | P44: 0 | Q44: =IF(M44=0,0,+(J44*0.5)/M44) -> 25.49433333 | R44: 50171.49433 | S44: =SUMIF('App.2-BA_Fixed Asset Cont'!$B$524:$B$565,'App.2-C_DepExp'!A44,'App.2-BA_Fixed Asset Cont'!$J$524:$J$565) -> 50195 | T44: 23.50566667
A45: 1860 | B45: Meters (Smart Meters) | E45: =SUMIF('App.2-BA_Fixed Asset Cont'!$B$524:$B$565,'App.2-C_DepExp'!A45,'App.2-BA_Fixed Asset Cont'!$F$524:$F$565) -> 0 | F45: 0 | I45: 0 | L45: 0 | N45: 0 | O45: 0 | P45: 0 | Q45: 0 | R45: 0 | T45: 0
A46: 1905 | B46: Land | C46: =SUMIF('App.2-BA_Fixed Asset Cont'!$B$583:$B$623,'App.2-C_DepExp'!A46,'App.2-BA_Fixed Asset Cont'!$N$583:$N$623) -> 0 | E46: =SUMIF('App.2-BA_Fixed Asset Cont'!$B$524:$B$565,'App.2-C_DepExp'!A46,'App.2-BA_Fixed Asset Cont'!$F$524:$F$565) -> 0 | F46: 0 | I46: 0 | J46: =SUMIF('App.2-BA_Fixed Asset Cont'!$B$524:$B$565,'App.2-C_DepExp'!A46,'App.2-BA_Fixed Asset Cont'!$E$524:$E$565) -> 0 | L46: 0 | N46: 0 | O46: 0 | P46: 0 | Q46: 0 | R46: 0 | S46: =SUMIF('App.2-BA_Fixed Asset Cont'!$B$524:$B$565,'App.2-C_DepExp'!A46,'App.2-BA_Fixed Asset Cont'!$J$524:$J$565) -> 0 | T46: 0
A47: 1908 | B47: Buildings & Fixtures | C47: =SUMIF('App.2-BA_Fixed Asset Cont'!$B$583:$B$623,'App.2-C_DepExp'!A47,'App.2-BA_Fixed Asset Cont'!$N$583:$N$623) -> 0 | E47: =SUMIF('App.2-BA_Fixed Asset Cont'!$B$524:$B$565,'App.2-C_DepExp'!A47,'App.2-BA_Fixed Asset Cont'!$F$524:$F$565) -> 0 | F47: 0 | I47: 0 | J47: =SUMIF('App.2-BA_Fixed Asset Cont'!$B$524:$B$565,'App.2-C_DepExp'!A47,'App.2-BA_Fixed Asset Cont'!$E$524:$E$565) -> 0 | L47: 0 | N47: 0 | O47: 0 | P47: 0 | Q47: 0 | R47: 0 | S47: =SUMIF('App.2-BA_Fixed Asset Cont'!$B$524:$B$565,'App.2-C_DepExp'!A47,'App.2-BA_Fixed Asset Cont'!$J$524:$J$565) -> 0 | T47: 0
A48: 1910 | B48: Leasehold Improvements | C48: =SUMIF('App.2-BA_Fixed Asset Cont'!$B$583:$B$623,'App.2-C_DepExp'!A48,'App.2-BA_Fixed Asset Cont'!$N$583:$N$623) -> 0 | E48: =SUMIF('App.2-BA_Fixed Asset Cont'!$B$524:$B$565,'App.2-C_DepExp'!A48,'App.2-BA_Fixed Asset Cont'!$F$524:$F$565) -> 0 | F48: 0 | I48: 0 | J48: =SUMIF('App.2-BA_Fixed Asset Cont'!$B$524:$B$565,'App.2-C_DepExp'!A48,'App.2-BA_Fixed Asset Cont'!$E$524:$E$565) -> 0 | L48: 0 | N48: 0 | O48: 0 | P48: 0 | Q48: 0 | R48: 0 | S48: =SUMIF('App.2-BA_Fixed Asset Cont'!$B$524:$B$565,'App.2-C_DepExp'!A48,'App.2-BA_Fixed Asset Cont'!$J$524:$J$565) -> 0 | T48: 0
A49: 1915 | B49: Office Furniture & Equipment (10 years) | E49: =SUMIF('App.2-BA_Fixed Asset Cont'!$B$524:$B$565,'App.2-C_DepExp'!A49,'App.2-BA_Fixed Asset Cont'!$F$524:$F$565) -> 0 | F49: 0 | I49: 0 | J49: =SUMIF('App.2-BA_Fixed Asset Cont'!$B$524:$B$565,'App.2-C_DepExp'!A49,'App.2-BA_Fixed Asset Cont'!$E$524:$E$565) -> 0 | L49: 0 | N49: 0 | O49: 0 | P49: 0 | Q49: 0 | R49: 0 | T49: 0
A50: 1915 | B50: Office Furniture & Equipment (5 years) | C50: =SUMIF('App.2-BA_Fixed Asset Cont'!$B$583:$B$623,'App.2-C_DepExp'!A50,'App.2-BA_Fixed Asset Cont'!$N$583:$N$623) -> -1897.1 | E50: =SUMIF('App.2-BA_Fixed Asset Cont'!$B$524:$B$565,'App.2-C_DepExp'!A50,'App.2-BA_Fixed Asset Cont'!$F$524:$F$565) -> 0 | F50: -1897.1 | I50: 0 | J50: =SUMIF('App.2-BA_Fixed Asset Cont'!$B$524:$B$565,'App.2-C_DepExp'!A50,'App.2-BA_Fixed Asset Cont'!$E$524:$E$565) -> 0 | K50: 1.02049489 | L50: 0.979916715 | M50: 10 | N50: 0.1 | O50: -1859 | P50: 0 | Q50: 0 | R50: -1859 | S50: =SUMIF('App.2-BA_Fixed Asset Cont'!$B$524:$B$565,'App.2-C_DepExp'!A50,'App.2-BA_Fixed Asset Cont'!$J$524:$J$565) -> -1859 | T50: -2.273736754e-13
A51: 1920 | B51: Computer Equipment - Hardware | C51: =SUMIF('App.2-BA_Fixed Asset Cont'!$B$583:$B$623,'App.2-C_DepExp'!A29,'App.2-BA_Fixed Asset Cont'!$N$583:$N$623)+SUMIF('App.2-BA_Fixed Asset Cont'!$B$583:$B$623,'App.2-C_DepExp'!A51,'App.2-BA_Fixed Asset Cont'!$N$583:$N$623) -> 13510.93 | E51: =SUMIF('App.2-BA_Fixed Asset Cont'!$B$524:$B$565,'App.2-C_DepExp'!A51,'App.2-BA_Fixed Asset Cont'!$F$524:$F$565) -> 0 | F51: 13510.93 | I51: 0 | J51: =SUMIF('App.2-BA_Fixed Asset Cont'!$B$524:$B$565,'App.2-C_DepExp'!A51,'App.2-BA_Fixed Asset Cont'!$E$524:$E$565) -> 0 | K51: 1.501047661 | L51: 0.6662013644 | M51: 5 | N51: 0.2 | O51: =IF(K51=0,0,+F51/K51) -> 9001 | P51: 0 | Q51: 0 | R51: 9001 | S51: ='App.2-BA_Fixed Asset Cont'!J525+'App.2-BA_Fixed Asset Cont'!J546 -> 9001 | T51: 0
A52: 1920 | B52: Computer Equip.-Hardware(Post Mar. 22/04) | E52: =SUMIF('App.2-BA_Fixed Asset Cont'!$B$524:$B$565,'App.2-C_DepExp'!A52,'App.2-BA_Fixed Asset Cont'!$F$524:$F$565) -> 0 | F52: 0 | I52: 0 | J52: =SUMIF('App.2-BA_Fixed Asset Cont'!$B$524:$B$565,'App.2-C_DepExp'!A52,'App.2-BA_Fixed Asset Cont'!$E$524:$E$565) -> 0 | L52: 0 | N52: 0 | O52: 0 | P52: 0 | Q52: 0 | R52: 0 | T52: 0
A53: 1920 | B53: Computer Equip.-Hardware(Post Mar. 19/07) | E53: =SUMIF('App.2-BA_Fixed Asset Cont'!$B$524:$B$565,'App.2-C_DepExp'!A53,'App.2-BA_Fixed Asset Cont'!$F$524:$F$565) -> 0 | F53: 0 | I53: 0 | J53: =SUMIF('App.2-BA_Fixed Asset Cont'!$B$524:$B$565,'App.2-C_DepExp'!A53,'App.2-BA_Fixed Asset Cont'!$E$524:$E$565) -> 0 | L53: 0 | N53: 0 | O53: 0 | P53: 0 | Q53: 0 | R53: 0 | T53: 0
A54: 1925 | B54: Computer Software | C54: =SUMIF('App.2-BA_Fixed Asset Cont'!$B$583:$B$623,'App.2-C_DepExp'!A54,'App.2-BA_Fixed Asset Cont'!$N$583:$N$623) -> 0 | E54: =SUMIF('App.2-BA_Fixed Asset Cont'!$B$524:$B$565,'App.2-C_DepExp'!A54,'App.2-BA_Fixed Asset Cont'!$F$524:$F$565) -> 0 | F54: 0 | I54: 0 | J54: =SUMIF('App.2-BA_Fixed Asset Cont'!$B$524:$B$565,'App.2-C_DepExp'!A54,'App.2-BA_Fixed Asset Cont'!$E$524:$E$565) -> 0 | L54: 0 | N54: 0 | O54: 0 | P54: 0 | Q54: 0 | R54: 0 | S54: =SUMIF('App.2-BA_Fixed Asset Cont'!$B$524:$B$565,'App.2-C_DepExp'!A54,'App.2-BA_Fixed Asset Cont'!$J$524:$J$565) -> 0 | T54: 0
A55: 1930 | B55: Transportation Equipment | C55: =SUMIF('App.2-BA_Fixed Asset Cont'!$B$583:$B$623,'App.2-C_DepExp'!A55,'App.2-BA_Fixed Asset Cont'!$N$583:$N$623) -> 20818.07 | D55: =-SUMIF('App.2-BA_Fixed Asset Cont'!$B$524:$B$565,'App.2-C_DepExp'!A55,'App.2-BA_Fixed Asset Cont'!$G$524:$G$565)+SUMIF('App.2-BA_Fixed Asset Cont'!$B$524:$B$565,'App.2-C_DepExp'!A55,'App.2-BA_Fixed Asset Cont'!$L$524:$L$565) -> -59095 | E55: =SUMIF('App.2-BA_Fixed Asset Cont'!$B$524:$B$565,'App.2-C_DepExp'!A55,'App.2-BA_Fixed Asset Cont'!$F$524:$F$565) -> 12766 | F55: =C55-D55+E55 -> 92679.07 | I55: 0 | J55: =SUMIF('App.2-BA_Fixed Asset Cont'!$B$524:$B$565,'App.2-C_DepExp'!A55,'App.2-BA_Fixed Asset Cont'!$E$524:$E$565) -> 216949 | K55: 7.772655376 | L55: 0.1286561608 | M55: 15 | N55: 0.06666666667 | O55: =IF(K55=0,0,+F55/K55) -> 11923.73333 | P55: 0 | Q55: =IF(M55=0,0,+(J55*0.5)/M55) -> 7231.633333 | R55: 19155.36667 | S55: =SUMIF('App.2-BA_Fixed Asset Cont'!$B$524:$B$565,'App.2-C_DepExp'!A55,'App.2-BA_Fixed Asset Cont'!$J$524:$J$565) -> 26387 | T55: =IF(ISERROR(+S55-122), 0, +S55-R55) -> 7231.633333
A56: 1935 | B56: Stores Equipment | C56: =SUMIF('App.2-BA_Fixed Asset Cont'!$B$583:$B$623,'App.2-C_DepExp'!A56,'App.2-BA_Fixed Asset Cont'!$N$583:$N$623) -> 2103.76 | E56: =SUMIF('App.2-BA_Fixed Asset Cont'!$B$524:$B$565,'App.2-C_DepExp'!A56,'App.2-BA_Fixed Asset Cont'!$F$524:$F$565) -> 0 | F56: 2103.76 | I56: 0 | J56: =SUMIF('App.2-BA_Fixed Asset Cont'!$B$524:$B$565,'App.2-C_DepExp'!A56,'App.2-BA_Fixed Asset Cont'!$E$524:$E$565) -> 0 | K56: 3.723469027 | L56: 0.2685667567 | M56: 10 | N56: 0.1 | O56: 565 | P56: 0 | Q56: 0 | R56: 565 | S56: =SUMIF('App.2-BA_Fixed Asset Cont'!$B$524:$B$565,'App.2-C_DepExp'!A56,'App.2-BA_Fixed Asset Cont'!$J$524:$J$565) -> 565 | T56: 0
A57: 1940 | B57: Tools, Shop & Garage Equipment | C57: =SUMIF('App.2-BA_Fixed Asset Cont'!$B$583:$B$623,'App.2-C_DepExp'!A57,'App.2-BA_Fixed Asset Cont'!$N$583:$N$623) -> 10424.88 | E57: =SUMIF('App.2-BA_Fixed Asset Cont'!$B$524:$B$565,'App.2-C_DepExp'!A57,'App.2-BA_Fixed Asset Cont'!$F$524:$F$565) -> 2 | F57: 10426.88 | I57: 0 | J57: =SUMIF('App.2-BA_Fixed Asset Cont'!$B$524:$B$565,'App.2-C_DepExp'!A57,'App.2-BA_Fixed Asset Cont'!$E$524:$E$565) -> 0 | K57: 4.219232637 | L57: 0.2370099224 | M57: 10 | N57: 0.1 | O57: 2471.27402 | P57: 0 | Q57: 0 | R57: 2471.27402 | S57: =SUMIF('App.2-BA_Fixed Asset Cont'!$B$524:$B$565,'App.2-C_DepExp'!A57,'App.2-BA_Fixed Asset Cont'!$J$524:$J$565) -> 2471 | T57: -0.2740198448
A58: 1945 | B58: Measurement & Testing Equipment | C58: =SUMIF('App.2-BA_Fixed Asset Cont'!$B$583:$B$623,'App.2-C_DepExp'!A58,'App.2-BA_Fixed Asset Cont'!$N$583:$N$623) -> 1851.6 | E58: =SUMIF('App.2-BA_Fixed Asset Cont'!$B$524:$B$565,'App.2-C_DepExp'!A58,'App.2-BA_Fixed Asset Cont'!$F$524:$F$565) -> 0 | F58: 1851.6 | I58: 0 | J58: =SUMIF('App.2-BA_Fixed Asset Cont'!$B$524:$B$565,'App.2-C_DepExp'!A58,'App.2-BA_Fixed Asset Cont'!$E$524:$E$565) -> 0 | K58: 1.12490887 | L58: 0.8889608987 | M58: 10 | N58: 0.1 | O58: 1646 | P58: 0 | Q58: 0 | R58: 1646 | S58: =SUMIF('App.2-BA_Fixed Asset Cont'!$B$524:$B$565,'App.2-C_DepExp'!A58,'App.2-BA_Fixed Asset Cont'!$J$524:$J$565) -> 1646 | T58: 0
A59: 1950 | B59: Power Operated Equipment | C59: =SUMIF('App.2-BA_Fixed Asset Cont'!$B$583:$B$623,'App.2-C_DepExp'!A59,'App.2-BA_Fixed Asset Cont'!$N$583:$N$623) -> 0 | E59: =SUMIF('App.2-BA_Fixed Asset Cont'!$B$524:$B$565,'App.2-C_DepExp'!A59,'App.2-BA_Fixed Asset Cont'!$F$524:$F$565) -> 0 | F59: 0 | I59: 0 | J59: =SUMIF('App.2-BA_Fixed Asset Cont'!$B$524:$B$565,'App.2-C_DepExp'!A59,'App.2-BA_Fixed Asset Cont'!$E$524:$E$565) -> 0 | L59: 0 | N59: 0 | O59: 0 | P59: 0 | Q59: 0 | R59: 0 | S59: =SUMIF('App.2-BA_Fixed Asset Cont'!$B$524:$B$565,'App.2-C_DepExp'!A59,'App.2-BA_Fixed Asset Cont'!$J$524:$J$565) -> 0 | T59: 0
A60: 1955 | B60: Communications Equipment | C60: =SUMIF('App.2-BA_Fixed Asset Cont'!$B$583:$B$623,'App.2-C_DepExp'!A60,'App.2-BA_Fixed Asset Cont'!$N$583:$N$623) -> 73 | E60: =SUMIF('App.2-BA_Fixed Asset Cont'!$B$524:$B$565,'App.2-C_DepExp'!A60,'App.2-BA_Fixed Asset Cont'!$F$524:$F$565) -> 0 | F60: 73 | I60: 0 | J60: =SUMIF('App.2-BA_Fixed Asset Cont'!$B$524:$B$565,'App.2-C_DepExp'!A60,'App.2-BA_Fixed Asset Cont'!$E$524:$E$565) -> 1242.64 | K60: 1 | L60: =IF(K60=0,0,1/K60) -> 1 | M60: 0 | N60: 0 | O60: 73 | P60: 0 | Q60: 0 | R60: 73 | S60: =SUMIF('App.2-BA_Fixed Asset Cont'!$B$524:$B$565,'App.2-C_DepExp'!A60,'App.2-BA_Fixed Asset Cont'!$J$524:$J$565) -> 72 | T60: -1
A61: 1955 | B61: Communication Equipment (Smart Meters) | C61: 0 | E61: =SUMIF('App.2-BA_Fixed Asset Cont'!$B$524:$B$565,'App.2-C_DepExp'!A61,'App.2-BA_Fixed Asset Cont'!$F$524:$F$565) -> 0 | F61: 0 | I61: 0 | L61: 0 | N61: 0 | O61: 0 | P61: 0 | Q61: 0 | R61: 0 | T61: 0
A62: 1960 | B62: Miscellaneous Equipment | C62: =SUMIF('App.2-BA_Fixed Asset Cont'!$B$583:$B$623,'App.2-C_DepExp'!A62,'App.2-BA_Fixed Asset Cont'!$N$583:$N$623) -> 0 | E62: =SUMIF('App.2-BA_Fixed Asset Cont'!$B$524:$B$565,'App.2-C_DepExp'!A62,'App.2-BA_Fixed Asset Cont'!$F$524:$F$565) -> 0 | F62: 0 | I62: 0 | J62: =SUMIF('App.2-BA_Fixed Asset Cont'!$B$524:$B$565,'App.2-C_DepExp'!A62,'App.2-BA_Fixed Asset Cont'!$E$524:$E$565) -> 0 | L62: 0 | N62: 0 | O62: 0 | P62: 0 | Q62: 0 | R62: 0 | S62: =SUMIF('App.2-BA_Fixed Asset Cont'!$B$524:$B$565,'App.2-C_DepExp'!A62,'App.2-BA_Fixed Asset Cont'!$J$524:$J$565) -> 0 | T62: 0
A63: 1970 | B63: Load Management Controls Customer Premises | C63: =SUMIF('App.2-BA_Fixed Asset Cont'!$B$583:$B$623,'App.2-C_DepExp'!A63,'App.2-BA_Fixed Asset Cont'!$N$583:$N$623) -> 0 | E63: =SUMIF('App.2-BA_Fixed Asset Cont'!$B$524:$B$565,'App.2-C_DepExp'!A63,'App.2-BA_Fixed Asset Cont'!$F$524:$F$565) -> 0 | F63: 0 | I63: 0 | J63: =SUMIF('App.2-BA_Fixed Asset Cont'!$B$524:$B$565,'App.2-C_DepExp'!A63,'App.2-BA_Fixed Asset Cont'!$E$524:$E$565) -> 0 | L63: 0 | N63: 0 | O63: 0 | P63: 0 | Q63: 0 | R63: 0 | S63: =SUMIF('App.2-BA_Fixed Asset Cont'!$B$524:$B$565,'App.2-C_DepExp'!A63,'App.2-BA_Fixed Asset Cont'!$J$524:$J$565) -> 0 | T63: 0
A64: 1975 | B64: Load Management Controls Utility Premises | C64: =SUMIF('App.2-BA_Fixed Asset Cont'!$B$583:$B$623,'App.2-C_DepExp'!A64,'App.2-BA_Fixed Asset Cont'!$N$583:$N$623) -> 0 | E64: =SUMIF('App.2-BA_Fixed Asset Cont'!$B$524:$B$565,'App.2-C_DepExp'!A64,'App.2-BA_Fixed Asset Cont'!$F$524:$F$565) -> 0 | F64: 0 | I64: 0 | J64: =SUMIF('App.2-BA_Fixed Asset Cont'!$B$524:$B$565,'App.2-C_DepExp'!A64,'App.2-BA_Fixed Asset Cont'!$E$524:$E$565) -> 0 | L64: 0 | N64: 0 | O64: 0 | P64: 0 | Q64: 0 | R64: 0 | S64: =SUMIF('App.2-BA_Fixed Asset Cont'!$B$524:$B$565,'App.2-C_DepExp'!A64,'App.2-BA_Fixed Asset Cont'!$J$524:$J$565) -> 0 | T64: 0
A65: 1980 | B65: System Supervisor Equipment | C65: =SUMIF('App.2-BA_Fixed Asset Cont'!$B$583:$B$623,'App.2-C_DepExp'!A65,'App.2-BA_Fixed Asset Cont'!$N$583:$N$623) -> 0 | E65: =SUMIF('App.2-BA_Fixed Asset Cont'!$B$524:$B$565,'App.2-C_DepExp'!A65,'App.2-BA_Fixed Asset Cont'!$F$524:$F$565) -> 0 | F65: 0 | I65: 0 | J65: =SUMIF('App.2-BA_Fixed Asset Cont'!$B$524:$B$565,'App.2-C_DepExp'!A65,'App.2-BA_Fixed Asset Cont'!$E$524:$E$565) -> 0 | L65: 0 | N65: 0 | O65: 0 | P65: 0 | Q65: 0 | R65: 0 | S65: =SUMIF('App.2-BA_Fixed Asset Cont'!$B$524:$B$565,'App.2-C_DepExp'!A65,'App.2-BA_Fixed Asset Cont'!$J$524:$J$565) -> 0 | T65: 0
A66: 1985 | B66: Miscellaneous Fixed Assets | C66: =SUMIF('App.2-BA_Fixed Asset Cont'!$B$583:$B$623,'App.2-C_DepExp'!A66,'App.2-BA_Fixed Asset Cont'!$N$583:$N$623) -> 0 | E66: =SUMIF('App.2-BA_Fixed Asset Cont'!$B$524:$B$565,'App.2-C_DepExp'!A66,'App.2-BA_Fixed Asset Cont'!$F$524:$F$565) -> 0 | F66: 0 | I66: 0 | J66: =SUMIF('App.2-BA_Fixed Asset Cont'!$B$524:$B$565,'App.2-C_DepExp'!A66,'App.2-BA_Fixed Asset Cont'!$E$524:$E$565) -> 0 | L66: 0 | N66: 0 | O66: 0 | P66: 0 | Q66: 0 | R66: 0 | S66: =SUMIF('App.2-BA_Fixed Asset Cont'!$B$524:$B$565,'App.2-C_DepExp'!A66,'App.2-BA_Fixed Asset Cont'!$J$524:$J$565) -> 0 | T66: 0
A67: 1990 | B67: Other Tangible Property | C67: =SUMIF('App.2-BA_Fixed Asset Cont'!$B$583:$B$623,'App.2-C_DepExp'!A67,'App.2-BA_Fixed Asset Cont'!$N$583:$N$623) -> 0 | E67: =SUMIF('App.2-BA_Fixed Asset Cont'!$B$524:$B$565,'App.2-C_DepExp'!A67,'App.2-BA_Fixed Asset Cont'!$F$524:$F$565) -> 0 | F67: 0 | I67: 0 | J67: =SUMIF('App.2-BA_Fixed Asset Cont'!$B$524:$B$565,'App.2-C_DepExp'!A67,'App.2-BA_Fixed Asset Cont'!$E$524:$E$565) -> 0 | L67: 0 | N67: 0 | O67: 0 | P67: 0 | Q67: 0 | R67: 0 | S67: =SUMIF('App.2-BA_Fixed Asset Cont'!$B$524:$B$565,'App.2-C_DepExp'!A67,'App.2-BA_Fixed Asset Cont'!$J$524:$J$565) -> 0 | T67: 0
A68: 1995 | B68: Contributions & Grants | C68: =SUMIF('App.2-BA_Fixed Asset Cont'!$B$583:$B$623,'App.2-C_DepExp'!A68,'App.2-BA_Fixed Asset Cont'!$N$583:$N$623) -> -242118.72 | E68: =SUMIF('App.2-BA_Fixed Asset Cont'!$B$524:$B$565,'App.2-C_DepExp'!A68,'App.2-BA_Fixed Asset Cont'!$F$524:$F$565) -> -4581 | F68: -246699.72 | G68: 0 | I68: 0 | J68: =SUMIF('App.2-BA_Fixed Asset Cont'!$B$524:$B$565,'App.2-C_DepExp'!A68,'App.2-BA_Fixed Asset Cont'!$E$524:$E$565) -> -20968 | K68: 34.83081832 | L68: 0.02871020689 | M68: 40 | N68: 0.025 | O68: =IF(K68=0,0,+F68/K68) -> -7082.8 | P68: 0 | Q68: -262.1 | R68: =IF(ISERROR(+O68+P68+Q68), 0, +O68+P68+Q68) -> -7344.9 | S68: =SUMIF('App.2-BA_Fixed Asset Cont'!$B$524:$B$565,'App.2-C_DepExp'!A68,'App.2-BA_Fixed Asset Cont'!$J$524:$J$565) -> -7607 | T68: =IF(ISERROR(+S68-122), 0, +S68-R68) -> -262.1
B69: Total | C69: =SUM(C24:C68) -> 2741489.02 | D69: =SUM(D24:D68) -> -59095 | E69: 117931 | F69: 2918515.02 | G69: 0 | H69: 0 | I69: 0 | J69: 587450.47 | O69: =SUM(O24:O68) -> 125177.824 | P69: 0 | Q69: 11249.21933 | R69: 136427.0434 | S69: =SUM(S24:S68) -> 147673 | T69: 11245.95665
C70: ='App.2-BA_Fixed Asset Cont'!N627-'App.2-C_DepExp'!C69 -> 0 | E70: =E69-'App.2-BA_Fixed Asset Cont'!F568 -> 0 | J70: =J69-'App.2-BA_Fixed Asset Cont'!E568 -> 0 | S70: =S69-'App.2-BA_Fixed Asset Cont'!J570 -> 0 | T70: =S69-R69 -> 11245.95665
A74: Scenario that applies | C74: Applicable Years and Accounting Standard | S74: Year Reflected in Schedule Below | T74: Accounting Standard Reflected in Schedule Below
A75: Rebasing for the first time with depreciation policy changes made in 2012. | C75: This appendix must be duplicated and completed for the years 2012 to 2018. The appendix for 2012 is to be completed under CGAAP (prior to changes in depreciation policies). The appendix for 2012 to 2014 must be completed under Revised CGAAP (after changes in depreciation policies). The appendix for 2014 to 2018 is to be completed under MIFRS (2014 if changes to MIFRS are material).
A76: Rebasing for the first time with depreciation policy changes made in 2013. | C76: This appendix must be duplicated and completed for the years 2013 to 2018. The appendix for 2013 is to be completed under CGAAP (prior to changes in depreciation policies). The appendix for 2013 to 2014 must be completed under Revised CGAAP (after changes in depreciation policies). The appendix for 2014 to 2018 is to be completed under MIFRS (2014 if changes to MIFRS are material).
A77: Already rebased with depreciation policy changes in a prior rate application | C77: This appendix must be completed for 2014 to 2018. The appendix for 2014 is to be completed under Revised CGAAP (after changes in depreciation policies). The appendix for 2014 to 2018 is to be completed under MIFRS (2014 if changes to MIFRS are material). | S77: 2014 | T77: MIFRS
C80: Book Values | K80: Service Lives | O80: Depreciation Expense
A81: Account | B81: Description | C81: Opening Net Book Value of Existing Assets as at Date of Policy Change (Jan. 1) 1 | D81: Less Fully Depreciated 7 | E81: IFRS Adjustments | F81: Net Amount of Existing Assets Before Policy Change to be Depreciated | G81: Opening Gross Book Value of Assets Acquired After Policy Change 2 | H81: Less Fully Depreciated 8 | I81: Net Amount of Assets Acquired After Policy Change to be Depreciated | J81: Current Year Additions | K81: Average Remaining Life of Assets Existing Before Policy Change 3 | L81: Depreciation Rate Assets Acquired After Policy Change | M81: Life of Assets Acquired After Policy Change 4 | N81: Depreciation Rate on New Additions | O81: Depreciation Expense on Assets Existing Before Policy Change | P81: Depreciation Expense on Assets Acquired After Policy Change | Q81: Depreciation Expense on Current Year Additions 5 | R81: Total Current Year Depreciation Expense | S81: Depreciation Expense per Appendix 2-BA Fixed Assets, Column J | T81: Variance 6
C82: a | D82: b | F82: c = a-b | G82: d | H82: e | I82: f = d- e | J82: g | K82: h | L82: i = 1/h | M82: j | N82: k = 1/j | O82: l = c/h | P82: m = f/j | Q82: n = (g*.5)/j | R82: o = l+m+n | S82: p | T82: q = p-o
A83: 1706 | B83: Land Rights | C83: =C24-O24 -> 0 | D83: =D24 -> 0 | E83: 0 | F83: =C83-D83+E83 -> 0 | G83: =+G24+J24 -> 0 | I83: =G83-H83 -> 0 | J83: =SUMIF('App.2-BA_Fixed Asset Cont'!$B$465:$B$505,'App.2-C_DepExp'!A83,'App.2-BA_Fixed Asset Cont'!$E$465:$E$505) -> 0 | L83: =IF(K83=0,0,1/K83) -> 0 | M83: =M24 -> 0 | N83: =IF(M83=0,0,1/M83) -> 0 | O83: =IF(K83=0,0,+F83/K83) -> 0 | P83: =IF(M83=0,0,+I83/M83) -> 0 | Q83: =IF(M83=0,0,+(J83*0.5)/M83) -> 0 | R83: =IF(ISERROR(+O83+P83+Q83), 0, +O83+P83+Q83) -> 0 | S83: =SUMIF('App.2-BA_Fixed Asset Cont'!$B$465:$B$505,'App.2-C_DepExp'!A83,'App.2-BA_Fixed Asset Cont'!$J$465:$J$505) -> 0 | T83: =IF(ISERROR(+S83-122), 0, +S83-R83) -> 0
A84: 1725 | B84: Poles and Fixtures | C84: =C25 -> 0 | D84: 0 | E84: 0 | F84: =C84-D84+E84 -> 0 | G84: =+G25+J25 -> 0 | I84: =G84-H84 -> 0 | J84: =SUMIF('App.2-BA_Fixed Asset Cont'!$B$465:$B$505,'App.2-C_DepExp'!A84,'App.2-BA_Fixed Asset Cont'!$E$465:$E$505) -> 0 | L84: 0 | M84: =M25 -> 0 | N84: 0 | O84: 0 | P84: 0 | Q84: =IF(M84=0,0,+(J84*0.5)/M84) -> 0 | R84: 0 | S84: =SUMIF('App.2-BA_Fixed Asset Cont'!$B$465:$B$505,'App.2-C_DepExp'!A84,'App.2-BA_Fixed Asset Cont'!$J$465:$J$505) -> 0 | T84: =IF(ISERROR(+S84-122), 0, +S84-R84) -> 0
A85: 1730 | B85: Overhead Conductors & Devices | C85: =C26 -> 0 | D85: 0 | E85: 0 | F85: 0 | G85: 0 | I85: 0 | J85: =SUMIF('App.2-BA_Fixed Asset Cont'!$B$465:$B$505,'App.2-C_DepExp'!A85,'App.2-BA_Fixed Asset Cont'!$E$465:$E$505) -> 0 | L85: 0 | M85: 0 | N85: 0 | O85: 0 | P85: 0 | Q85: 0 | R85: 0 | S85: =SUMIF('App.2-BA_Fixed Asset Cont'!$B$465:$B$505,'App.2-C_DepExp'!A85,'App.2-BA_Fixed Asset Cont'!$J$465:$J$505) -> 0 | T85: =IF(ISERROR(+S85-122), 0, +S85-R85) -> 0
A86: 1735 | B86: Underground Conduit | C86: =C27 -> 0 | D86: 0 | E86: 0 | F86: 0 | G86: 0 | I86: 0 | J86: =SUMIF('App.2-BA_Fixed Asset Cont'!$B$465:$B$505,'App.2-C_DepExp'!A86,'App.2-BA_Fixed Asset Cont'!$E$465:$E$505) -> 0 | L86: 0 | M86: 0 | N86: 0 | O86: 0 | P86: 0 | Q86: 0 | R86: 0 | S86: =SUMIF('App.2-BA_Fixed Asset Cont'!$B$465:$B$505,'App.2-C_DepExp'!A86,'App.2-BA_Fixed Asset Cont'!$J$465:$J$505) -> 0 | T86: 0
A87: 1740 | B87: Underground Conductors & Devices | C87: =C28 -> 0 | D87: 0 | E87: 0 | F87: 0 | G87: 0 | I87: 0 | J87: =SUMIF('App.2-BA_Fixed Asset Cont'!$B$465:$B$505,'App.2-C_DepExp'!A87,'App.2-BA_Fixed Asset Cont'!$E$465:$E$505) -> 0 | L87: 0 | M87: 0 | N87: 0 | O87: 0 | P87: 0 | Q87: 0 | R87: 0 | S87: =SUMIF('App.2-BA_Fixed Asset Cont'!$B$465:$B$505,'App.2-C_DepExp'!A87,'App.2-BA_Fixed Asset Cont'!$J$465:$J$505) -> 0 | T87: 0
A88: 1611 | B88: Computer Software (Formally known as Account 1925) | C88: =C29 -> 0 | D88: 0 | E88: 0 | F88: 0 | G88: 0 | I88: =G88-H88 -> 0 | J88: =SUMIF('App.2-BA_Fixed Asset Cont'!$B$465:$B$505,'App.2-C_DepExp'!A88,'App.2-BA_Fixed Asset Cont'!$E$465:$E$505) -> 0 | L88: =IF(K88=0,0,1/K88) -> 0 | M88: 0 | N88: =IF(M88=0,0,1/M88) -> 0 | O88: 0 | P88: 0 | Q88: 0 | R88: =IF(ISERROR(+O88+P88+Q88), 0, +O88+P88+Q88) -> 0 | S88: 0 | T88: =IF(ISERROR(+S88-122), 0, +S88-R88) -> 0
A89: 1612 | B89: Land Rights (Formally known as Account 1906) | C89: =C30 -> 0 | D89: 0 | E89: 0 | F89: 0 | G89: 0 | I89: =G89-H89 -> 0 | J89: =SUMIF('App.2-BA_Fixed Asset Cont'!$B$465:$B$505,'App.2-C_DepExp'!A89,'App.2-BA_Fixed Asset Cont'!$E$465:$E$505) -> 0 | L89: =IF(K89=0,0,1/K89) -> 0 | M89: 0 | N89: =IF(M89=0,0,1/M89) -> 0 | O89: 0 | P89: 0 | Q89: 0 | R89: =IF(ISERROR(+O89+P89+Q89), 0, +O89+P89+Q89) -> 0 | S89: =SUMIF('App.2-BA_Fixed Asset Cont'!$B$465:$B$505,'App.2-C_DepExp'!A89,'App.2-BA_Fixed Asset Cont'!$J$465:$J$505) -> 0 | T89: =IF(ISERROR(+S89-122), 0, +S89-R89) -> 0
A90: 1805 | B90: Land | C90: =C31 -> 88880.7 | D90: 0 | E90: 0 | F90: 88880.7 | G90: 0 | I90: 0 | J90: =SUMIF('App.2-BA_Fixed Asset Cont'!$B$465:$B$505,'App.2-C_DepExp'!A90,'App.2-BA_Fixed Asset Cont'!$E$465:$E$505) -> 0 | L90: 0 | M90: 0 | N90: 0 | O90: 0 | P90: 0 | Q90: 0 | R90: 0 | S90: =SUMIF('App.2-BA_Fixed Asset Cont'!$B$465:$B$505,'App.2-C_DepExp'!A90,'App.2-BA_Fixed Asset Cont'!$J$465:$J$505) -> 0 | T90: 0
A91: 1806 | B91: Land Rights | C91: =C32 -> 0 | D91: 0 | E91: 0 | F91: 0 | G91: 0 | I91: 0 | J91: =SUMIF('App.2-BA_Fixed Asset Cont'!$B$465:$B$505,'App.2-C_DepExp'!A91,'App.2-BA_Fixed Asset Cont'!$E$465:$E$505) -> 0 | L91: 0 | M91: 0 | N91: 0 | O91: 0 | P91: 0 | Q91: 0 | R91: 0 | S91: =SUMIF('App.2-BA_Fixed Asset Cont'!$B$465:$B$505,'App.2-C_DepExp'!A91,'App.2-BA_Fixed Asset Cont'!$J$465:$J$505) -> 0 | T91: 0
A92: 1808 | B92: Buildings | C92: =C33 -> 175552.94 | D92: 0 | E92: 5765 | F92: 181317.94 | G92: 0 | I92: 0 | J92: =SUMIF('App.2-BA_Fixed Asset Cont'!$B$465:$B$505,'App.2-C_DepExp'!A92,'App.2-BA_Fixed Asset Cont'!$E$465:$E$505) -> 0 | K92: 40.90185879 | L92: 0.02444876663 | M92: 50 | N92: 0.02 | O92: 4433 | P92: =IF(M92=0,0,+I92/M92) -> 0 | Q92: 0 | R92: 4433 | S92: =SUMIF('App.2-BA_Fixed Asset Cont'!$B$465:$B$505,'App.2-C_DepExp'!A92,'App.2-BA_Fixed Asset Cont'!$J$465:$J$505) -> 4433 | T92: =IF(ISERROR(+S92-122), 0, +S92-R92) -> 0
A93: 1810 | B93: Leasehold Improvements | C93: =C34 -> 0 | D93: 0 | E93: 0 | F93: 0 | G93: 0 | I93: 0 | J93: =SUMIF('App.2-BA_Fixed Asset Cont'!$B$465:$B$505,'App.2-C_DepExp'!A93,'App.2-BA_Fixed Asset Cont'!$E$465:$E$505) -> 0 | L93: 0 | M93: 0 | N93: 0 | O93: 0 | P93: 0 | Q93: 0 | R93: 0 | S93: =SUMIF('App.2-BA_Fixed Asset Cont'!$B$465:$B$505,'App.2-C_DepExp'!A93,'App.2-BA_Fixed Asset Cont'!$J$465:$J$505) -> 0 | T93: 0
A94: 1815 | B94: Transformer Station Equipment >50 kV | C94: =C35 -> 0 | D94: 0 | E94: 0 | F94: 0 | G94: 0 | I94: 0 | J94: =SUMIF('App.2-BA_Fixed Asset Cont'!$B$465:$B$505,'App.2-C_DepExp'!A94,'App.2-BA_Fixed Asset Cont'!$E$465:$E$505) -> 0 | L94: 0 | M94: 0 | N94: 0 | O94: 0 | P94: 0 | Q94: 0 | R94: 0 | S94: =SUMIF('App.2-BA_Fixed Asset Cont'!$B$465:$B$505,'App.2-C_DepExp'!A94,'App.2-BA_Fixed Asset Cont'!$J$465:$J$505) -> 0 | T94: 0
A95: 1820 | B95: Distribution Station Equipment <50 kV | C95: =C36 -> 161095.96 | D95: 0 | E95: 10618 | F95: 171713.96 | G95: 0 | I95: 0 | J95: =SUMIF('App.2-BA_Fixed Asset Cont'!$B$465:$B$505,'App.2-C_DepExp'!A95,'App.2-BA_Fixed Asset Cont'!$E$465:$E$505) -> 0 | K95: 49.77216232 | L95: 0.02009155225 | M95: 50 | N95: 0.02 | O95: 3450 | P95: 0 | Q95: 0 | R95: 3450 | S95: =SUMIF('App.2-BA_Fixed Asset Cont'!$B$465:$B$505,'App.2-C_DepExp'!A95,'App.2-BA_Fixed Asset Cont'!$J$465:$J$505) -> 3450 | T95: 0
A96: 1825 | B96: Storage Battery Equipment | C96: =C37 -> 0 | D96: 0 | E96: 0 | F96: 0 | G96: 0 | I96: 0 | J96: =SUMIF('App.2-BA_Fixed Asset Cont'!$B$465:$B$505,'App.2-C_DepExp'!A96,'App.2-BA_Fixed Asset Cont'!$E$465:$E$505) -> 0 | L96: 0 | M96: 0 | N96: 0 | O96: 0 | P96: 0 | Q96: 0 | R96: 0 | S96: =SUMIF('App.2-BA_Fixed Asset Cont'!$B$465:$B$505,'App.2-C_DepExp'!A96,'App.2-BA_Fixed Asset Cont'!$J$465:$J$505) -> 0 | T96: 0
A97: 1830 | B97: Poles, Towers & Fixtures | C97: =C38 -> 878998.74 | D97: 0 | E97: 37482 | F97: 916480.74 | G97: 199030 | I97: 199030 | J97: =SUMIF('App.2-BA_Fixed Asset Cont'!$B$465:$B$505,'App.2-C_DepExp'!A97,'App.2-BA_Fixed Asset Cont'!$E$465:$E$505) -> 124174.71 | K97: 36.44022385 | L97: 0.02744220244 | M97: 40 | N97: 0.025 | O97: 25150.25 | P97: 4975.75 | Q97: 1552.183875 | R97: 31678.18387 | S97: =SUMIF('App.2-BA_Fixed Asset Cont'!$B$465:$B$505,'App.2-C_DepExp'!A97,'App.2-BA_Fixed Asset Cont'!$J$465:$J$505) -> 33232 | T97: =IF(ISERROR(+S97-122), 0, +S97-R97) -> 1553.816125
A98: 1835 | B98: Overhead Conductors & Devices | C98: =C39 -> 510815.11 | D98: 0 | E98: 25105 | F98: 535920.11 | G98: 110902 | I98: 110902 | J98: =SUMIF('App.2-BA_Fixed Asset Cont'!$B$465:$B$505,'App.2-C_DepExp'!A98,'App.2-BA_Fixed Asset Cont'!$E$465:$E$505) -> 121422.34 | K98: 56.6413949 | L98: 0.01765493244 | M98: 60 | N98: 0.01666666667 | O98: 9461.633333 | P98: 1848.366667 | Q98: 1011.852833 | R98: 12321.85283 | S98: =SUMIF('App.2-BA_Fixed Asset Cont'!$B$465:$B$505,'App.2-C_DepExp'!A98,'App.2-BA_Fixed Asset Cont'!$J$465:$J$505) -> 13335 | T98: 1013.147167
A99: 1840 | B99: Underground Conduit | C99: =C40 -> 99203.7 | D99: 0 | E99: 9593 | F99: 108796.7 | G99: 0 | I99: 0 | J99: =SUMIF('App.2-BA_Fixed Asset Cont'!$B$465:$B$505,'App.2-C_DepExp'!A99,'App.2-BA_Fixed Asset Cont'!$E$465:$E$505) -> 0 | K99: 30.61246483 | L99: 0.03266643198 | M99: 40 | N99: 0.025 | O99: 3554 | P99: 0 | Q99: 0 | R99: 3554 | S99: =SUMIF('App.2-BA_Fixed Asset Cont'!$B$465:$B$505,'App.2-C_DepExp'!A99,'App.2-BA_Fixed Asset Cont'!$J$465:$J$505) -> 3554 | T99: 0
A100: 1845 | B100: Underground Conductors & Devices | C100: =C41 -> 80496.52 | D100: 0 | E100: 1088 | F100: 81584.52 | G100: 2959 | I100: 2959 | J100: =SUMIF('App.2-BA_Fixed Asset Cont'!$B$465:$B$505,'App.2-C_DepExp'!A100,'App.2-BA_Fixed Asset Cont'!$E$465:$E$505) -> 0 | K100: 35.01443976 | L100: 0.02855964587 | M100: 40 | N100: 0.025 | O100: 2330.025 | P100: 73.975 | Q100: 0 | R100: 2404 | S100: =SUMIF('App.2-BA_Fixed Asset Cont'!$B$465:$B$505,'App.2-C_DepExp'!A100,'App.2-BA_Fixed Asset Cont'!$J$465:$J$505) -> 2404 | T100: 0
A101: 1850 | B101: Line Transformers | C101: =C42 -> 207647.69 | D101: 0 | E101: 13023 | F101: 220670.69 | G101: 40093 | I101: 40093 | J101: =SUMIF('App.2-BA_Fixed Asset Cont'!$B$465:$B$505,'App.2-C_DepExp'!A101,'App.2-BA_Fixed Asset Cont'!$E$465:$E$505) -> 9564.83 | K101: 33.61486898 | L101: 0.02974874008 | M101: 40 | N101: 0.025 | O101: 6564.675 | P101: 1002.325 | Q101: 119.560375 | R101: 7686.560375 | S101: =SUMIF('App.2-BA_Fixed Asset Cont'!$B$465:$B$505,'App.2-C_DepExp'!A101,'App.2-BA_Fixed Asset Cont'!$J$465:$J$505) -> 7816 | T101: 129.439625
A102: 1855 | B102: Services (Overhead & Underground) | C102: =C43 -> 184179.24 | D102: 0 | E102: 7070 | F102: 191249.24 | G102: 36478 | I102: 36478 | J102: =SUMIF('App.2-BA_Fixed Asset Cont'!$B$465:$B$505,'App.2-C_DepExp'!A102,'App.2-BA_Fixed Asset Cont'!$E$465:$E$505) -> 5872.25 | K102: 69.74394843 | L102: 0.01433816155 | M102: 60 | N102: 0.01666666667 | O102: 2742.1625 | P102: 607.9666667 | Q102: 48.93541667 | R102: 3399.064583 | S102: =SUMIF('App.2-BA_Fixed Asset Cont'!$B$465:$B$505,'App.2-C_DepExp'!A102,'App.2-BA_Fixed Asset Cont'!$J$465:$J$505) -> 3448 | T102: 48.93541667
A103: 1860 | B103: Meters | C103: =C44 -> 549852 | D103: 0 | E103: 0 | F103: 549852 | G103: 764.83 | I103: 764.83 | J103: =SUMIF('App.2-BA_Fixed Asset Cont'!$B$465:$B$505,'App.2-C_DepExp'!A103,'App.2-BA_Fixed Asset Cont'!$E$465:$E$505) -> 2356.39 | K103: 10.96502214 | L103: 0.0911990863 | M103: 15 | N103: 0.06666666667 | O103: 50146 | P103: 50.98866667 | Q103: 78.54633333 | R103: 50275.535 | S103: =SUMIF('App.2-BA_Fixed Asset Cont'!$B$465:$B$505,'App.2-C_DepExp'!A103,'App.2-BA_Fixed Asset Cont'!$J$465:$J$505) -> 50352 | T103: 76.465
A104: 1860 | B104: Meters (Smart Meters) | C104: =C45 -> 0 | D104: 0 | E104: 0 | F104: 0 | G104: 0 | I104: 0 | L104: 0 | M104: 0 | N104: 0 | O104: 0 | P104: 0 | Q104: 0 | R104: 0 | T104: 0
A105: 1905 | B105: Land | C105: =C46 -> 0 | D105: 0 | E105: 0 | F105: 0 | G105: 0 | I105: 0 | J105: =SUMIF('App.2-BA_Fixed Asset Cont'!$B$465:$B$505,'App.2-C_DepExp'!A105,'App.2-BA_Fixed Asset Cont'!$E$465:$E$505) -> 0 | L105: 0 | M105: 0 | N105: 0 | O105: 0 | P105: 0 | Q105: 0 | R105: 0 | S105: =SUMIF('App.2-BA_Fixed Asset Cont'!$B$465:$B$505,'App.2-C_DepExp'!A105,'App.2-BA_Fixed Asset Cont'!$J$465:$J$505) -> 0 | T105: 0
A106: 1908 | B106: Buildings & Fixtures | C106: =C47 -> 0 | D106: 0 | E106: 0 | F106: 0 | G106: 0 | I106: 0 | J106: =SUMIF('App.2-BA_Fixed Asset Cont'!$B$465:$B$505,'App.2-C_DepExp'!A106,'App.2-BA_Fixed Asset Cont'!$E$465:$E$505) -> 0 | L106: 0 | M106: 0 | N106: 0 | O106: 0 | P106: 0 | Q106: 0 | R106: 0 | S106: =SUMIF('App.2-BA_Fixed Asset Cont'!$B$465:$B$505,'App.2-C_DepExp'!A106,'App.2-BA_Fixed Asset Cont'!$J$465:$J$505) -> 0 | T106: 0
A107: 1910 | B107: Leasehold Improvements | C107: =C48 -> 0 | D107: 0 | E107: 0 | F107: 0 | G107: 0 | I107: 0 | J107: =SUMIF('App.2-BA_Fixed Asset Cont'!$B$465:$B$505,'App.2-C_DepExp'!A107,'App.2-BA_Fixed Asset Cont'!$E$465:$E$505) -> 0 | L107: 0 | M107: 0 | N107: 0 | O107: 0 | P107: 0 | Q107: 0 | R107: 0 | S107: =SUMIF('App.2-BA_Fixed Asset Cont'!$B$465:$B$505,'App.2-C_DepExp'!A107,'App.2-BA_Fixed Asset Cont'!$J$465:$J$505) -> 0 | T107: 0
A108: 1915 | B108: Office Furniture & Equipment (10 years) | C108: =C49 -> 0 | D108: 0 | E108: 0 | F108: 0 | G108: 0 | I108: 0 | J108: =SUMIF('App.2-BA_Fixed Asset Cont'!$B$465:$B$505,'App.2-C_DepExp'!A108,'App.2-BA_Fixed Asset Cont'!$E$465:$E$505) -> 0 | L108: 0 | M108: 0 | N108: 0 | O108: 0 | P108: 0 | Q108: 0 | R108: 0 | S108: =SUMIF('App.2-BA_Fixed Asset Cont'!$B$465:$B$505,'App.2-C_DepExp'!A108,'App.2-BA_Fixed Asset Cont'!$J$465:$J$505) -> 0 | T108: 0
A109: 1915 | B109: Office Furniture & Equipment (5 years) | C109: =C50 -> -1897.1 | D109: 0 | E109: 0 | F109: -1897.1 | G109: 0 | I109: 0 | J109: =SUMIF('App.2-BA_Fixed Asset Cont'!$B$465:$B$505,'App.2-C_DepExp'!A109,'App.2-BA_Fixed Asset Cont'!$E$465:$E$505) -> 0 | K109: 0 | L109: 0 | M109: 10 | N109: 0.1 | O109: 0 | P109: 0 | Q109: 0 | R109: 0 | S109: =SUMIF('App.2-BA_Fixed Asset Cont'!$B$465:$B$505,'App.2-C_DepExp'!A109,'App.2-BA_Fixed Asset Cont'!$J$465:$J$505) -> 0 | T109: 0
A110: 1920 | B110: Computer Equipment - Hardware | C110: =C51 -> 13510.93 | D110: 0 | E110: 0 | F110: 13510.93 | G110: 0 | I110: 0 | J110: =SUMIF('App.2-BA_Fixed Asset Cont'!$B$465:$B$505,'App.2-C_DepExp'!A110,'App.2-BA_Fixed Asset Cont'!$E$465:$E$505) -> 1062.77 | K110: 4.294028882 | L110: =IF(K110=0,0,1/K110) -> 0.2328815263 | M110: 5 | N110: 0.2 | O110: =IF(K110=0,0,+F110/K110) -> 3146.446 | P110: =IF(M110=0,0,+I110/M110) -> 0 | Q110: 106.277 | R110: 3252.723 | S110: ='App.2-BA_Fixed Asset Cont'!J466+'App.2-BA_Fixed Asset Cont'!J487 -> 3359 | T110: =IF(ISERROR(+S110-122), 0, +S110-R110) -> 106.277
A111: 1920 | B111: Computer Equip.-Hardware(Post Mar. 22/04) | C111: =C52 -> 0 | D111: 0 | E111: 0 | F111: 0 | G111: 0 | I111: 0 | L111: 0 | M111: 0 | N111: 0 | O111: 0 | P111: 0 | Q111: 0 | R111: 0 | T111: 0
A112: 1920 | B112: Computer Equip.-Hardware(Post Mar. 19/07) | C112: =C53 -> 0 | D112: 0 | E112: 0 | F112: 0 | G112: 0 | I112: 0 | L112: 0 | M112: 0 | N112: 0 | O112: 0 | P112: 0 | Q112: 0 | R112: 0 | T112: 0
A113: 1925 | B113: Computer Software | C113: =C54 -> 0 | D113: 0 | E113: 0 | F113: 0 | G113: 0 | I113: 0 | J113: =SUMIF('App.2-BA_Fixed Asset Cont'!$B$465:$B$505,'App.2-C_DepExp'!A113,'App.2-BA_Fixed Asset Cont'!$E$465:$E$505) -> 0 | L113: 0 | M113: 0 | N113: 0 | O113: 0 | P113: 0 | Q113: 0 | R113: 0 | S113: =SUMIF('App.2-BA_Fixed Asset Cont'!$B$465:$B$505,'App.2-C_DepExp'!A113,'App.2-BA_Fixed Asset Cont'!$J$465:$J$505) -> 0 | T113: 0
A114: 1930 | B114: Transportation Equipment | C114: =C55 -> 20818.07 | D114: -59095 | E114: 12766 | F114: 92679.07 | G114: 216949 | I114: 216949 | J114: =SUMIF('App.2-BA_Fixed Asset Cont'!$B$465:$B$505,'App.2-C_DepExp'!A114,'App.2-BA_Fixed Asset Cont'!$E$465:$E$505) -> 810.9 | K114: 10.01218983 | L114: 0.09987825011 | M114: 15 | N114: 0.06666666667 | O114: 9256.623333 | P114: 14463.26667 | Q114: 27.03 | R114: 23746.92 | S114: =SUMIF('App.2-BA_Fixed Asset Cont'!$B$465:$B$505,'App.2-C_DepExp'!A114,'App.2-BA_Fixed Asset Cont'!$J$465:$J$505) -> 23773.95 | T114: =IF(ISERROR(+S114-122), 0, +S114-R114) -> 27.03
A115: 1935 | B115: Stores Equipment | C115: =C56 -> 2103.76 | D115: 0 | E115: 0 | F115: 2103.76 | G115: 0 | I115: 0 | J115: =SUMIF('App.2-BA_Fixed Asset Cont'!$B$465:$B$505,'App.2-C_DepExp'!A115,'App.2-BA_Fixed Asset Cont'!$E$465:$E$505) -> 0 | K115: 0 | L115: 0 | M115: 10 | N115: 0.1 | O115: 0 | P115: 0 | Q115: 0 | R115: 0 | S115: =SUMIF('App.2-BA_Fixed Asset Cont'!$B$465:$B$505,'App.2-C_DepExp'!A115,'App.2-BA_Fixed Asset Cont'!$J$465:$J$505) -> 0 | T115: 0
A116: 1940 | B116: Tools, Shop & Garage Equipment | C116: =C57 -> 10424.88 | D116: 0 | E116: 2 | F116: 10426.88 | G116: 0 | I116: 0 | J116: =SUMIF('App.2-BA_Fixed Asset Cont'!$B$465:$B$505,'App.2-C_DepExp'!A116,'App.2-BA_Fixed Asset Cont'!$E$465:$E$505) -> 6857.01 | K116: 6.280121833 | L116: 0.1592325796 | M116: 10 | N116: 0.1 | O116: 1660.299 | P116: 0 | Q116: 342.8505 | R116: 2003.1495 | S116: =SUMIF('App.2-BA_Fixed Asset Cont'!$B$465:$B$505,'App.2-C_DepExp'!A116,'App.2-BA_Fixed Asset Cont'!$J$465:$J$505) -> 2346 | T116: 342.8505
A117: 1945 | B117: Measurement & Testing Equipment | C117: =C58 -> 1851.6 | D117: 0 | E117: 0 | F117: 1851.6 | G117: 0 | I117: 0 | J117: =SUMIF('App.2-BA_Fixed Asset Cont'!$B$465:$B$505,'App.2-C_DepExp'!A117,'App.2-BA_Fixed Asset Cont'!$E$465:$E$505) -> 0 | K117: 35.60769231 | L117: 0.0280838194 | M117: 10 | N117: 0.1 | O117: 52 | P117: 0 | Q117: 0 | R117: 52 | S117: =SUMIF('App.2-BA_Fixed Asset Cont'!$B$465:$B$505,'App.2-C_DepExp'!A117,'App.2-BA_Fixed Asset Cont'!$J$465:$J$505) -> 52 | T117: 7.105427358e-15
A118: 1950 | B118: Power Operated Equipment | C118: =C59 -> 0 | D118: 0 | E118: 0 | F118: 0 | G118: 0 | I118: 0 | J118: =SUMIF('App.2-BA_Fixed Asset Cont'!$B$465:$B$505,'App.2-C_DepExp'!A118,'App.2-BA_Fixed Asset Cont'!$E$465:$E$505) -> 0 | L118: 0 | M118: 0 | N118: 0 | O118: 0 | P118: 0 | Q118: 0 | R118: 0 | S118: =SUMIF('App.2-BA_Fixed Asset Cont'!$B$465:$B$505,'App.2-C_DepExp'!A118,'App.2-BA_Fixed Asset Cont'!$J$465:$J$505) -> 0 | T118: 0
A119: 1955 | B119: Communications Equipment | C119: =C60 -> 73 | D119: 0 | E119: 0 | F119: 73 | G119: 1242.64 | I119: 1242.64 | J119: =SUMIF('App.2-BA_Fixed Asset Cont'!$B$465:$B$505,'App.2-C_DepExp'!A119,'App.2-BA_Fixed Asset Cont'!$E$465:$E$505) -> 0 | K119: 0 | L119: 0 | M119: 0 | N119: 0 | O119: 0 | P119: 0 | Q119: 0 | R119: 0 | S119: =SUMIF('App.2-BA_Fixed Asset Cont'!$B$465:$B$505,'App.2-C_DepExp'!A119,'App.2-BA_Fixed Asset Cont'!$J$465:$J$505) -> 0 | T119: 0
A120: 1955 | B120: Communication Equipment (Smart Meters) | C120: =C61 -> 0 | D120: 0 | E120: 0 | F120: 0 | G120: 0 | I120: 0 | J120: =SUMIF('App.2-BA_Fixed Asset Cont'!$B$465:$B$505,'App.2-C_DepExp'!A120,'App.2-BA_Fixed Asset Cont'!$E$465:$E$505) -> 0 | L120: 0 | M120: 0 | N120: 0 | O120: 0 | P120: 0 | Q120: 0 | R120: 0 | S120: =SUMIF('App.2-BA_Fixed Asset Cont'!$B$465:$B$505,'App.2-C_DepExp'!A120,'App.2-BA_Fixed Asset Cont'!$J$465:$J$505) -> 0 | T120: 0
A121: 1960 | B121: Miscellaneous Equipment | C121: =C62 -> 0 | D121: 0 | E121: 0 | F121: 0 | G121: 0 | I121: 0 | J121: =SUMIF('App.2-BA_Fixed Asset Cont'!$B$465:$B$505,'App.2-C_DepExp'!A121,'App.2-BA_Fixed Asset Cont'!$E$465:$E$505) -> 0 | L121: 0 | M121: 0 | N121: 0 | O121: 0 | P121: 0 | Q121: 0 | R121: 0 | S121: =SUMIF('App.2-BA_Fixed Asset Cont'!$B$465:$B$505,'App.2-C_DepExp'!A121,'App.2-BA_Fixed Asset Cont'!$J$465:$J$505) -> 0 | T121: 0
A122: 1970 | B122: Load Management Controls Customer Premises | C122: =C63 -> 0 | D122: 0 | E122: 0 | F122: 0 | G122: 0 | I122: 0 | J122: =SUMIF('App.2-BA_Fixed Asset Cont'!$B$465:$B$505,'App.2-C_DepExp'!A122,'App.2-BA_Fixed Asset Cont'!$E$465:$E$505) -> 0 | L122: 0 | M122: 0 | N122: 0 | O122: 0 | P122: 0 | Q122: 0 | R122: 0 | S122: =SUMIF('App.2-BA_Fixed Asset Cont'!$B$465:$B$505,'App.2-C_DepExp'!A122,'App.2-BA_Fixed Asset Cont'!$J$465:$J$505) -> 0 | T122: 0
A123: 1975 | B123: Load Management Controls Utility Premises | C123: =C64 -> 0 | D123: 0 | E123: 0 | F123: 0 | G123: 0 | I123: 0 | J123: =SUMIF('App.2-BA_Fixed Asset Cont'!$B$465:$B$505,'App.2-C_DepExp'!A123,'App.2-BA_Fixed Asset Cont'!$E$465:$E$505) -> 0 | L123: 0 | M123: 0 | N123: 0 | O123: 0 | P123: 0 | Q123: 0 | R123: 0 | S123: =SUMIF('App.2-BA_Fixed Asset Cont'!$B$465:$B$505,'App.2-C_DepExp'!A123,'App.2-BA_Fixed Asset Cont'!$J$465:$J$505) -> 0 | T123: 0
A124: 1980 | B124: System Supervisor Equipment | C124: =C65 -> 0 | D124: 0 | E124: 0 | F124: 0 | G124: 0 | I124: 0 | J124: =SUMIF('App.2-BA_Fixed Asset Cont'!$B$465:$B$505,'App.2-C_DepExp'!A124,'App.2-BA_Fixed Asset Cont'!$E$465:$E$505) -> 0 | L124: 0 | M124: 0 | N124: 0 | O124: 0 | P124: 0 | Q124: 0 | R124: 0 | S124: =SUMIF('App.2-BA_Fixed Asset Cont'!$B$465:$B$505,'App.2-C_DepExp'!A124,'App.2-BA_Fixed Asset Cont'!$J$465:$J$505) -> 0 | T124: 0
A125: 1985 | B125: Miscellaneous Fixed Assets | C125: =C66 -> 0 | D125: 0 | E125: 0 | F125: 0 | G125: 0 | I125: 0 | J125: =SUMIF('App.2-BA_Fixed Asset Cont'!$B$465:$B$505,'App.2-C_DepExp'!A125,'App.2-BA_Fixed Asset Cont'!$E$465:$E$505) -> 0 | L125: 0 | M125: 0 | N125: 0 | O125: 0 | P125: 0 | Q125: 0 | R125: 0 | S125: =SUMIF('App.2-BA_Fixed Asset Cont'!$B$465:$B$505,'App.2-C_DepExp'!A125,'App.2-BA_Fixed Asset Cont'!$J$465:$J$505) -> 0 | T125: 0
A126: 1990 | B126: Other Tangible Property | C126: =C67 -> 0 | D126: 0 | E126: 0 | F126: 0 | G126: 0 | I126: 0 | J126: =SUMIF('App.2-BA_Fixed Asset Cont'!$B$465:$B$505,'App.2-C_DepExp'!A126,'App.2-BA_Fixed Asset Cont'!$E$465:$E$505) -> 0 | L126: 0 | M126: 0 | N126: 0 | O126: 0 | P126: 0 | Q126: 0 | R126: 0 | S126: =SUMIF('App.2-BA_Fixed Asset Cont'!$B$465:$B$505,'App.2-C_DepExp'!A126,'App.2-BA_Fixed Asset Cont'!$J$465:$J$505) -> 0 | T126: 0
A127: 1995 | B127: Contributions & Grants | C127: =C68 -> -242118.72 | D127: 0 | E127: -4581 | F127: -246699.72 | G127: -20968 | I127: -20968 | J127: =SUMIF('App.2-BA_Fixed Asset Cont'!$B$465:$B$505,'App.2-C_DepExp'!A127,'App.2-BA_Fixed Asset Cont'!$E$465:$E$505) -> -3297.12 | K127: 34.83292321 | L127: 0.02870847198 | M127: 40 | N127: 0.025 | O127: -7082.372 | P127: -524.2 | Q127: -41.214 | R127: -7647.786 | S127: =SUMIF('App.2-BA_Fixed Asset Cont'!$B$465:$B$505,'App.2-C_DepExp'!A127,'App.2-BA_Fixed Asset Cont'!$J$465:$J$505) -> -7689 | T127: -41.214
B128: Total | C128: =SUM(C83:C127) -> 2741489.02 | D128: =SUM(D83:D127) -> -59095 | E128: 117931 | F128: 2918515.02 | G128: 587450.47 | H128: =SUM(H83:H127) -> 0 | I128: 587450.47 | J128: 268824.08 | O128: =SUM(O83:O127) -> 114864.7422 | P128: 22498.43867 | Q128: 3246.022333 | R128: 140609.2032 | S128: 143865.95 | T128: =SUM(T83:T127) -> 3256.746833
C129: =F128+I128+J128-S128-'App.2-BA_Fixed Asset Cont'!N568 -> 272631.13 | J129: =J128-'App.2-BA_Fixed Asset Cont'!E509 -> 0 | S129: =S128-'App.2-BA_Fixed Asset Cont'!J511 -> 0 | T129: =S128-R128 -> 3256.746833
A132: Scenario that applies | C132: Applicable Years and Accounting Standard | S132: Year Reflected in Schedule Below | T132: Accounting Standard Reflected in Schedule Below
A133: Rebasing for the first time with depreciation policy changes made in 2012. | C133: This appendix must be duplicated and completed for the years 2012 to 2018. The appendix for 2012 is to be completed under CGAAP (prior to changes in depreciation policies). The appendix for 2012 to 2014 must be completed under Revised CGAAP (after changes in depreciation policies). The appendix for 2014 to 2018 is to be completed under MIFRS (2014 if changes to MIFRS are material).
A134: Rebasing for the first time with depreciation policy changes made in 2013. | C134: This appendix must be duplicated and completed for the years 2013 to 2018. The appendix for 2013 is to be completed under CGAAP (prior to changes in depreciation policies). The appendix for 2013 to 2014 must be completed under Revised CGAAP (after changes in depreciation policies). The appendix for 2014 to 2018 is to be completed under MIFRS (2014 if changes to MIFRS are material).
A135: Already rebased with depreciation policy changes in a prior rate application | C135: This appendix must be completed for 2014 to 2018. The appendix for 2014 is to be completed under Revised CGAAP (after changes in depreciation policies). The appendix for 2014 to 2018 is to be completed under MIFRS (2014 if changes to MIFRS are material). | S135: 2015 | T135: MIFRS
C138: Book Values | K138: Service Lives | O138: Depreciation Expense
A139: Account | B139: Description | C139: Opening Net Book Value of Existing Assets as at Date of Policy Change (Jan. 1) 1 | D139: Less Fully Depreciated 7 | E139: IFRS Adjustments | F139: Net Amount of Existing Assets Before Policy Change to be Depreciated | G139: Opening Gross Book Value of Assets Acquired After Policy Change 2 | H139: Less Fully Depreciated 8 | I139: Net Amount of Assets Acquired After Policy Change to be Depreciated | J139: Current Year Additions | K139: Average Remaining Life of Assets Existing Before Policy Change 3 | L139: Depreciation Rate Assets Acquired After Policy Change | M139: Life of Assets Acquired After Policy Change 4 | N139: Depreciation Rate on New Additions | O139: Depreciation Expense on Assets Existing Before Policy Change | P139: Depreciation Expense on Assets Acquired After Policy Change | Q139: Depreciation Expense on Current Year Additions 5 | R139: Total Current Year Depreciation Expense | S139: Depreciation Expense per Appendix 2-BA Fixed Assets, Column J | T139: Variance 6
C140: a | D140: b | F140: c = a-b | G140: d | H140: e | I140: f = d- e | J140: g | K140: h | L140: i = 1/h | M140: j | N140: k = 1/j | O140: l = c/h | P140: m = f/j | Q140: n = (g*.5)/j | R140: o = l+m+n | S140: p | T140: q = p-o
A141: 1706 | B141: Land Rights | C141: =C24 -> 0 | D141: =D24 -> 0 | E141: =E24+SUMIF('App.2-BA_Fixed Asset Cont'!$B$406:$B$446,'App.2-C_DepExp'!A172,'App.2-BA_Fixed Asset Cont'!$F$406:$F$446) -> 0 | F141: =C141-D141+E141 -> 0 | G141: =+G83+J83 -> 0 | I141: =G141-H141 -> 0 | J141: =SUMIF('App.2-BA_Fixed Asset Cont'!$B$406:$B$446,'App.2-C_DepExp'!A141,'App.2-BA_Fixed Asset Cont'!$E$406:$E$446) -> 0 | L141: =IF(K141=0,0,1/K141) -> 0 | M141: =M83 -> 0 | N141: =IF(M141=0,0,1/M141) -> 0 | O141: =IF(K141=0,0,+F141/K141) -> 0 | P141: =IF(M141=0,0,+I141/M141) -> 0 | Q141: =IF(M141=0,0,+(J141*0.5)/M141) -> 0 | R141: =IF(ISERROR(+O141+P141+Q141), 0, +O141+P141+Q141) -> 0 | S141: =SUMIF('App.2-BA_Fixed Asset Cont'!$B$406:$B$446,'App.2-C_DepExp'!A141,'App.2-BA_Fixed Asset Cont'!$J$406:$J$446) -> 0 | T141: =IF(ISERROR(+S141-122), 0, +S141-R141) -> 0
A142: 1725 | B142: Poles and Fixtures | C142: =C25 -> 0 | D142: 0 | E142: 0 | F142: =C142-D142+E142 -> 0 | G142: =+G84+J84 -> 0 | I142: 0 | J142: =SUMIF('App.2-BA_Fixed Asset Cont'!$B$406:$B$446,'App.2-C_DepExp'!A142,'App.2-BA_Fixed Asset Cont'!$E$406:$E$446) -> 0 | L142: 0 | M142: =M84 -> 0 | N142: 0 | O142: 0 | P142: 0 | Q142: =IF(M142=0,0,+(J142*0.5)/M142) -> 0 | R142: 0 | S142: =SUMIF('App.2-BA_Fixed Asset Cont'!$B$406:$B$446,'App.2-C_DepExp'!A142,'App.2-BA_Fixed Asset Cont'!$J$406:$J$446) -> 0 | T142: =IF(ISERROR(+S142-122), 0, +S142-R142) -> 0
A143: 1730 | B143: Overhead Conductors & Devices | C143: =C26 -> 0 | D143: 0 | E143: 0 | F143: 0 | G143: 0 | I143: 0 | J143: =SUMIF('App.2-BA_Fixed Asset Cont'!$B$406:$B$446,'App.2-C_DepExp'!A143,'App.2-BA_Fixed Asset Cont'!$E$406:$E$446) -> 0 | L143: 0 | M143: 0 | N143: 0 | O143: 0 | P143: 0 | Q143: 0 | R143: 0 | S143: =SUMIF('App.2-BA_Fixed Asset Cont'!$B$406:$B$446,'App.2-C_DepExp'!A143,'App.2-BA_Fixed Asset Cont'!$J$406:$J$446) -> 0 | T143: =IF(ISERROR(+S143-122), 0, +S143-R143) -> 0
A144: 1735 | B144: Underground Conduit | C144: =C27 -> 0 | D144: 0 | E144: 0 | F144: 0 | G144: 0 | I144: 0 | J144: =SUMIF('App.2-BA_Fixed Asset Cont'!$B$406:$B$446,'App.2-C_DepExp'!A144,'App.2-BA_Fixed Asset Cont'!$E$406:$E$446) -> 0 | L144: 0 | M144: 0 | N144: 0 | O144: 0 | P144: 0 | Q144: 0 | R144: 0 | S144: =SUMIF('App.2-BA_Fixed Asset Cont'!$B$406:$B$446,'App.2-C_DepExp'!A144,'App.2-BA_Fixed Asset Cont'!$J$406:$J$446) -> 0 | T144: 0
A145: 1740 | B145: Underground Conductors & Devices | C145: =C28 -> 0 | D145: 0 | E145: 0 | F145: 0 | G145: 0 | I145: 0 | J145: =SUMIF('App.2-BA_Fixed Asset Cont'!$B$406:$B$446,'App.2-C_DepExp'!A145,'App.2-BA_Fixed Asset Cont'!$E$406:$E$446) -> 0 | L145: 0 | M145: 0 | N145: 0 | O145: 0 | P145: 0 | Q145: 0 | R145: 0 | S145: =SUMIF('App.2-BA_Fixed Asset Cont'!$B$406:$B$446,'App.2-C_DepExp'!A145,'App.2-BA_Fixed Asset Cont'!$J$406:$J$446) -> 0 | T145: 0
A146: 1611 | B146: Computer Software (Formally known as Account 1925) | C146: =C29 -> 0 | D146: 0 | E146: 0 | F146: 0 | G146: 0 | I146: =G146-H146 -> 0 | J146: =SUMIF('App.2-BA_Fixed Asset Cont'!$B$406:$B$446,'App.2-C_DepExp'!A146,'App.2-BA_Fixed Asset Cont'!$E$406:$E$446) -> 0 | L146: =IF(K146=0,0,1/K146) -> 0 | M146: 0 | N146: =IF(M146=0,0,1/M146) -> 0 | O146: 0 | P146: 0 | Q146: 0 | R146: =IF(ISERROR(+O146+P146+Q146), 0, +O146+P146+Q146) -> 0 | S146: 0 | T146: 0
A147: 1612 | B147: Land Rights (Formally known as Account 1906) | C147: =C30 -> 0 | D147: 0 | E147: 0 | F147: 0 | G147: 0 | I147: =G147-H147 -> 0 | J147: =SUMIF('App.2-BA_Fixed Asset Cont'!$B$406:$B$446,'App.2-C_DepExp'!A147,'App.2-BA_Fixed Asset Cont'!$E$406:$E$446) -> 0 | L147: =IF(K147=0,0,1/K147) -> 0 | M147: 0 | N147: =IF(M147=0,0,1/M147) -> 0 | O147: 0 | P147: 0 | Q147: 0 | R147: =IF(ISERROR(+O147+P147+Q147), 0, +O147+P147+Q147) -> 0 | S147: =SUMIF('App.2-BA_Fixed Asset Cont'!$B$406:$B$446,'App.2-C_DepExp'!A147,'App.2-BA_Fixed Asset Cont'!$J$406:$J$446) -> 0 | T147: 0
A148: 1805 | B148: Land | C148: =C31 -> 88880.7 | D148: 0 | E148: 0 | F148: 88880.7 | G148: 0 | I148: 0 | J148: =SUMIF('App.2-BA_Fixed Asset Cont'!$B$406:$B$446,'App.2-C_DepExp'!A148,'App.2-BA_Fixed Asset Cont'!$E$406:$E$446) -> 0 | L148: 0 | M148: 0 | N148: 0 | O148: 0 | P148: 0 | Q148: 0 | R148: 0 | S148: =SUMIF('App.2-BA_Fixed Asset Cont'!$B$406:$B$446,'App.2-C_DepExp'!A148,'App.2-BA_Fixed Asset Cont'!$J$406:$J$446) -> 0 | T148: 0
A149: 1806 | B149: Land Rights | C149: =C32 -> 0 | D149: 0 | E149: 0 | F149: 0 | G149: 0 | I149: 0 | J149: =SUMIF('App.2-BA_Fixed Asset Cont'!$B$406:$B$446,'App.2-C_DepExp'!A149,'App.2-BA_Fixed Asset Cont'!$E$406:$E$446) -> 0 | L149: 0 | M149: 0 | N149: 0 | O149: 0 | P149: 0 | Q149: 0 | R149: 0 | S149: =SUMIF('App.2-BA_Fixed Asset Cont'!$B$406:$B$446,'App.2-C_DepExp'!A149,'App.2-BA_Fixed Asset Cont'!$J$406:$J$446) -> 0 | T149: 0
A150: 1808 | B150: Buildings | C150: =C33 -> 175552.94 | D150: 0 | E150: 5765 | F150: 181317.94 | G150: 0 | I150: 0 | J150: =SUMIF('App.2-BA_Fixed Asset Cont'!$B$406:$B$446,'App.2-C_DepExp'!A150,'App.2-BA_Fixed Asset Cont'!$E$406:$E$446) -> 3929 | K150: 40.89798395 | L150: 0.024451083 | M150: 50 | N150: 0.02 | O150: =IF(K150=0,0,+F150/K150) -> 4433.42 | P150: 0 | Q150: 39.29 | R150: 4472.71 | S150: =SUMIF('App.2-BA_Fixed Asset Cont'!$B$406:$B$446,'App.2-C_DepExp'!A150,'App.2-BA_Fixed Asset Cont'!$J$406:$J$446) -> 4512 | T150: 39.29
A151: 1810 | B151: Leasehold Improvements | C151: =C34 -> 0 | D151: 0 | E151: 0 | F151: 0 | G151: 0 | I151: 0 | J151: =SUMIF('App.2-BA_Fixed Asset Cont'!$B$406:$B$446,'App.2-C_DepExp'!A151,'App.2-BA_Fixed Asset Cont'!$E$406:$E$446) -> 0 | L151: 0 | M151: 0 | N151: 0 | O151: 0 | P151: 0 | Q151: 0 | R151: 0 | S151: =SUMIF('App.2-BA_Fixed Asset Cont'!$B$406:$B$446,'App.2-C_DepExp'!A151,'App.2-BA_Fixed Asset Cont'!$J$406:$J$446) -> 0 | T151: 0
A152: 1815 | B152: Transformer Station Equipment >50 kV | C152: =C35 -> 0 | D152: 0 | E152: 0 | F152: 0 | G152: 0 | I152: 0 | J152: =SUMIF('App.2-BA_Fixed Asset Cont'!$B$406:$B$446,'App.2-C_DepExp'!A152,'App.2-BA_Fixed Asset Cont'!$E$406:$E$446) -> 0 | L152: 0 | M152: 0 | N152: 0 | O152: 0 | P152: 0 | Q152: 0 | R152: 0 | S152: =SUMIF('App.2-BA_Fixed Asset Cont'!$B$406:$B$446,'App.2-C_DepExp'!A152,'App.2-BA_Fixed Asset Cont'!$J$406:$J$446) -> 0 | T152: 0
A153: 1820 | B153: Distribution Station Equipment <50 kV | C153: =C36 -> 161095.96 | D153: 0 | E153: 10618 | F153: 171713.96 | G153: 0 | I153: 0 | J153: =SUMIF('App.2-BA_Fixed Asset Cont'!$B$406:$B$446,'App.2-C_DepExp'!A153,'App.2-BA_Fixed Asset Cont'!$E$406:$E$446) -> 0 | K153: 49.77216232 | L153: 0.02009155225 | M153: 50 | N153: 0.02 | O153: 3450 | P153: 0 | Q153: 0 | R153: 3450 | S153: =SUMIF('App.2-BA_Fixed Asset Cont'!$B$406:$B$446,'App.2-C_DepExp'!A153,'App.2-BA_Fixed Asset Cont'!$J$406:$J$446) -> 3450 | T153: 0
A154: 1825 | B154: Storage Battery Equipment | C154: =C37 -> 0 | D154: 0 | E154: 0 | F154: 0 | G154: 0 | I154: 0 | J154: =SUMIF('App.2-BA_Fixed Asset Cont'!$B$406:$B$446,'App.2-C_DepExp'!A154,'App.2-BA_Fixed Asset Cont'!$E$406:$E$446) -> 0 | L154: 0 | M154: 0 | N154: 0 | O154: 0 | P154: 0 | Q154: 0 | R154: 0 | S154: =SUMIF('App.2-BA_Fixed Asset Cont'!$B$406:$B$446,'App.2-C_DepExp'!A154,'App.2-BA_Fixed Asset Cont'!$J$406:$J$446) -> 0 | T154: 0
A155: 1830 | B155: Poles, Towers & Fixtures | C155: =C38 -> 878998.74 | D155: 0 | E155: 37482 | F155: =C155-D155+E155 -> 916480.74 | G155: 323204.71 | I155: 323204.71 | J155: =SUMIF('App.2-BA_Fixed Asset Cont'!$B$406:$B$446,'App.2-C_DepExp'!A155,'App.2-BA_Fixed Asset Cont'!$E$406:$E$446) -> 150341.94 | K155: 36.44734841 | L155: 0.02743683817 | M155: 40 | N155: 0.025 | O155: 25145.33375 | P155: 8080.11775 | Q155: 1879.27425 | R155: 35104.72575 | S155: =SUMIF('App.2-BA_Fixed Asset Cont'!$B$406:$B$446,'App.2-C_DepExp'!A155,'App.2-BA_Fixed Asset Cont'!$J$406:$J$446) -> 36984 | T155: 1879.27425
A156: 1835 | B156: Overhead Conductors & Devices | C156: =C39 -> 510815.11 | D156: 0 | E156: 25105 | F156: 535920.11 | G156: 232324.34 | I156: 232324.34 | J156: =SUMIF('App.2-BA_Fixed Asset Cont'!$B$406:$B$446,'App.2-C_DepExp'!A156,'App.2-BA_Fixed Asset Cont'!$E$406:$E$446) -> 304465.49 | K156: 56.85851667 | L156: 0.01758751474 | M156: 60 | N156: 0.01666666667 | O156: 9425.502833 | P156: 3872.072333 | Q156: 2537.212417 | R156: 15834.78758 | S156: =SUMIF('App.2-BA_Fixed Asset Cont'!$B$406:$B$446,'App.2-C_DepExp'!A156,'App.2-BA_Fixed Asset Cont'!$J$406:$J$446) -> 18372 | T156: 2537.212417
A157: 1840 | B157: Underground Conduit | C157: =C40 -> 99203.7 | D157: 0 | E157: 9593 | F157: 108796.7 | G157: 0 | I157: 0 | J157: =SUMIF('App.2-BA_Fixed Asset Cont'!$B$406:$B$446,'App.2-C_DepExp'!A157,'App.2-BA_Fixed Asset Cont'!$E$406:$E$446) -> 2785.35 | K157: 30.60931045 | L157: 0.03266979835 | M157: 40 | N157: 0.025 | O157: 3554.36625 | P157: 0 | Q157: 34.816875 | R157: 3589.183125 | S157: =SUMIF('App.2-BA_Fixed Asset Cont'!$B$406:$B$446,'App.2-C_DepExp'!A157,'App.2-BA_Fixed Asset Cont'!$J$406:$J$446) -> 3624 | T157: 34.816875
A158: 1845 | B158: Underground Conductors & Devices | C158: =C41 -> 80496.52 | D158: 0 | E158: 1088 | F158: 81584.52 | G158: 2959 | I158: 2959 | J158: =SUMIF('App.2-BA_Fixed Asset Cont'!$B$406:$B$446,'App.2-C_DepExp'!A158,'App.2-BA_Fixed Asset Cont'!$E$406:$E$446) -> 7151.58 | K158: 35.01127676 | L158: 0.02856222602 | M158: 40 | N158: 0.025 | O158: 2330.2355 | P158: 73.975 | Q158: 89.39475 | R158: 2493.60525 | S158: =SUMIF('App.2-BA_Fixed Asset Cont'!$B$406:$B$446,'App.2-C_DepExp'!A158,'App.2-BA_Fixed Asset Cont'!$J$406:$J$446) -> 2583 | T158: 89.39475
A159: 1850 | B159: Line Transformers | C159: =C42 -> 207647.69 | D159: 0 | E159: 13023 | F159: 220670.69 | G159: 49657.83 | I159: 49657.83 | J159: =SUMIF('App.2-BA_Fixed Asset Cont'!$B$406:$B$446,'App.2-C_DepExp'!A159,'App.2-BA_Fixed Asset Cont'!$E$406:$E$446) -> 19680.32 | K159: 33.33119076 | L159: 0.03000192844 | M159: 40 | N159: 0.025 | O159: 6620.54625 | P159: 1241.44575 | Q159: 246.004 | R159: 8107.996 | S159: =SUMIF('App.2-BA_Fixed Asset Cont'!$B$406:$B$446,'App.2-C_DepExp'!A159,'App.2-BA_Fixed Asset Cont'!$J$406:$J$446) -> 8354 | T159: 246.004
A160: 1855 | B160: Services (Overhead & Underground) | C160: =C43 -> 184179.24 | D160: 0 | E160: 7070 | F160: 191249.24 | G160: 42350.25 | I160: 42350.25 | J160: =SUMIF('App.2-BA_Fixed Asset Cont'!$B$406:$B$446,'App.2-C_DepExp'!A160,'App.2-BA_Fixed Asset Cont'!$E$406:$E$446) -> 8648 | K160: 57.08882833 | L160: 0.01751656198 | M160: 60 | N160: 0.01666666667 | O160: 3350.029167 | P160: 705.8375 | Q160: 72.06666667 | R160: 4127.933333 | S160: =SUMIF('App.2-BA_Fixed Asset Cont'!$B$406:$B$446,'App.2-C_DepExp'!A160,'App.2-BA_Fixed Asset Cont'!$J$406:$J$446) -> 4200 | T160: 72.06666667
A161: 1860 | B161: Meters | C161: =C44 -> 549852 | D161: 0 | E161: 0 | F161: 549852 | G161: 3121.22 | I161: 3121.22 | J161: =SUMIF('App.2-BA_Fixed Asset Cont'!$B$406:$B$446,'App.2-C_DepExp'!A161,'App.2-BA_Fixed Asset Cont'!$E$406:$E$446) -> 2751.07 | K161: 10.96556823 | L161: 0.09119454447 | M161: 15 | N161: 0.06666666667 | O161: 50143.50267 | P161: 208.0813333 | Q161: 91.70233333 | R161: 50443.28633 | S161: =SUMIF('App.2-BA_Fixed Asset Cont'!$B$406:$B$446,'App.2-C_DepExp'!A161,'App.2-BA_Fixed Asset Cont'!$J$406:$J$446) -> 50535 | T161: 91.71366667
A162: 1860 | B162: Meters (Smart Meters) | C162: =C45 -> 0 | D162: 0 | E162: 0 | F162: 0 | G162: 0 | I162: 0 | L162: 0 | M162: 0 | N162: 0 | O162: 0 | P162: 0 | Q162: 0 | R162: 0 | T162: 0
A163: 1905 | B163: Land | C163: =C46 -> 0 | D163: 0 | E163: 0 | F163: 0 | G163: 0 | I163: 0 | J163: =SUMIF('App.2-BA_Fixed Asset Cont'!$B$406:$B$446,'App.2-C_DepExp'!A163,'App.2-BA_Fixed Asset Cont'!$E$406:$E$446) -> 0 | L163: 0 | M163: 0 | N163: 0 | O163: 0 | P163: 0 | Q163: 0 | R163: 0 | S163: =SUMIF('App.2-BA_Fixed Asset Cont'!$B$406:$B$446,'App.2-C_DepExp'!A163,'App.2-BA_Fixed Asset Cont'!$J$406:$J$446) -> 0 | T163: 0
A164: 1908 | B164: Buildings & Fixtures | C164: =C47 -> 0 | D164: 0 | E164: 0 | F164: 0 | G164: 0 | I164: 0 | J164: =SUMIF('App.2-BA_Fixed Asset Cont'!$B$406:$B$446,'App.2-C_DepExp'!A164,'App.2-BA_Fixed Asset Cont'!$E$406:$E$446) -> 0 | L164: 0 | M164: 0 | N164: 0 | O164: 0 | P164: 0 | Q164: 0 | R164: 0 | S164: =SUMIF('App.2-BA_Fixed Asset Cont'!$B$406:$B$446,'App.2-C_DepExp'!A164,'App.2-BA_Fixed Asset Cont'!$J$406:$J$446) -> 0 | T164: 0
A165: 1910 | B165: Leasehold Improvements | C165: =C48 -> 0 | D165: 0 | E165: 0 | F165: 0 | G165: 0 | I165: 0 | J165: =SUMIF('App.2-BA_Fixed Asset Cont'!$B$406:$B$446,'App.2-C_DepExp'!A165,'App.2-BA_Fixed Asset Cont'!$E$406:$E$446) -> 0 | L165: 0 | M165: 0 | N165: 0 | O165: 0 | P165: 0 | Q165: 0 | R165: 0 | S165: =SUMIF('App.2-BA_Fixed Asset Cont'!$B$406:$B$446,'App.2-C_DepExp'!A165,'App.2-BA_Fixed Asset Cont'!$J$406:$J$446) -> 0 | T165: 0
A166: 1915 | B166: Office Furniture & Equipment (10 years) | C166: =C49 -> 0 | D166: 0 | E166: 0 | F166: 0 | G166: 0 | I166: 0 | J166: =SUMIF('App.2-BA_Fixed Asset Cont'!$B$406:$B$446,'App.2-C_DepExp'!A166,'App.2-BA_Fixed Asset Cont'!$E$406:$E$446) -> 0 | L166: 0 | M166: 0 | N166: 0 | O166: 0 | P166: 0 | Q166: 0 | R166: 0 | T166: 0
A167: 1915 | B167: Office Furniture & Equipment (5 years) | C167: =C50 -> -1897.1 | D167: 0 | E167: 0 | F167: -1897.1 | G167: 0 | I167: 0 | J167: =SUMIF('App.2-BA_Fixed Asset Cont'!$B$406:$B$446,'App.2-C_DepExp'!A167,'App.2-BA_Fixed Asset Cont'!$E$406:$E$446) -> 0 | K167: 49.92368421 | L167: 0.02003057298 | M167: 10 | N167: 0.1 | O167: -38 | P167: 0 | Q167: 0 | R167: -38 | S167: =SUMIF('App.2-BA_Fixed Asset Cont'!$B$406:$B$446,'App.2-C_DepExp'!A167,'App.2-BA_Fixed Asset Cont'!$J$406:$J$446) -> -38 | T167: 0
A168: 1920 | B168: Computer Equipment - Hardware | C168: =C51 -> 13510.93 | D168: 0 | E168: 0 | F168: 13510.93 | G168: 1062.77 | I168: 1062.77 | J168: =SUMIF('App.2-BA_Fixed Asset Cont'!$B$406:$B$446,'App.2-C_DepExp'!A168,'App.2-BA_Fixed Asset Cont'!$E$406:$E$446) -> 0 | K168: 19.5684094 | L168: 0.05110277383 | M168: 5 | N168: 0.2 | O168: 690.446 | P168: 212.554 | Q168: 0 | R168: 903 | S168: =SUMIF('App.2-BA_Fixed Asset Cont'!$B$406:$B$446,'App.2-C_DepExp'!A168,'App.2-BA_Fixed Asset Cont'!$J$406:$J$446)+SUMIF('App.2-BA_Fixed Asset Cont'!$B$406:$B$446,'App.2-C_DepExp'!A146,'App.2-BA_Fixed Asset Cont'!$J$406:$J$446) -> 903 | T168: 0
A169: 1920 | B169: Computer Equip.-Hardware(Post Mar. 22/04) | C169: =C52 -> 0 | D169: 0 | E169: 0 | F169: 0 | G169: 0 | I169: 0 | J169: =SUMIF('App.2-BA_Fixed Asset Cont'!$B$406:$B$446,'App.2-C_DepExp'!A169,'App.2-BA_Fixed Asset Cont'!$E$406:$E$446) -> 0 | L169: 0 | M169: 0 | N169: 0 | O169: 0 | P169: 0 | Q169: 0 | R169: 0 | T169: 0
A170: 1920 | B170: Computer Equip.-Hardware(Post Mar. 19/07) | C170: =C53 -> 0 | D170: 0 | E170: 0 | F170: 0 | G170: 0 | I170: 0 | J170: =SUMIF('App.2-BA_Fixed Asset Cont'!$B$406:$B$446,'App.2-C_DepExp'!A170,'App.2-BA_Fixed Asset Cont'!$E$406:$E$446) -> 0 | L170: 0 | M170: 0 | N170: 0 | O170: 0 | P170: 0 | Q170: 0 | R170: 0 | T170: 0
A171: 1925 | B171: Computer Software | C171: =C54 -> 0 | D171: 0 | E171: 0 | F171: 0 | G171: 0 | I171: 0 | J171: =SUMIF('App.2-BA_Fixed Asset Cont'!$B$406:$B$446,'App.2-C_DepExp'!A171,'App.2-BA_Fixed Asset Cont'!$E$406:$E$446) -> 0 | L171: 0 | M171: 0 | N171: 0 | O171: 0 | P171: 0 | Q171: 0 | R171: 0 | S171: =SUMIF('App.2-BA_Fixed Asset Cont'!$B$406:$B$446,'App.2-C_DepExp'!A171,'App.2-BA_Fixed Asset Cont'!$J$406:$J$446) -> 0 | T171: 0
A172: 1930 | B172: Transportation Equipment | C172: =C55 -> 20818.07 | D172: -59095 | E172: =E55+SUMIF('App.2-BA_Fixed Asset Cont'!$B$406:$B$446,'App.2-C_DepExp'!A172,'App.2-BA_Fixed Asset Cont'!$F$406:$F$446) -> 12766 | F172: 92679.07 | G172: 217759.9 | I172: 217759.9 | J172: =SUMIF('App.2-BA_Fixed Asset Cont'!$B$406:$B$446,'App.2-C_DepExp'!A172,'App.2-BA_Fixed Asset Cont'!$E$406:$E$446) -> 0 | K172: 11.85203858 | L172: 0.0843736707 | M172: 15 | N172: 0.06666666667 | O172: 7819.673333 | P172: =IF(M172=0,0,+I172/M172) -> 14517.32667 | Q172: 0 | R172: 22337 | S172: =SUMIF('App.2-BA_Fixed Asset Cont'!$B$406:$B$446,'App.2-C_DepExp'!A172,'App.2-BA_Fixed Asset Cont'!$J$406:$J$446) -> 22337 | T172: 0
A173: 1935 | B173: Stores Equipment | C173: =C56 -> 2103.76 | D173: 0 | E173: 0 | F173: 2103.76 | G173: 0 | I173: 0 | J173: =SUMIF('App.2-BA_Fixed Asset Cont'!$B$406:$B$446,'App.2-C_DepExp'!A173,'App.2-BA_Fixed Asset Cont'!$E$406:$E$446) -> 0 | K173: 1.367178767 | L173: 0.7314332433 | M173: 10 | N173: 0.1 | O173: 1538.76 | P173: 0 | Q173: 0 | R173: 1538.76 | S173: =SUMIF('App.2-BA_Fixed Asset Cont'!$B$406:$B$446,'App.2-C_DepExp'!A173,'App.2-BA_Fixed Asset Cont'!$J$406:$J$446) -> 1538.76 | T173: 0
A174: 1940 | B174: Tools, Shop & Garage Equipment | C174: =C57 -> 10424.88 | D174: 0 | E174: 2 | F174: 10426.88 | G174: 6857.01 | I174: 6857.01 | J174: =SUMIF('App.2-BA_Fixed Asset Cont'!$B$406:$B$446,'App.2-C_DepExp'!A174,'App.2-BA_Fixed Asset Cont'!$E$406:$E$446) -> 0 | K174: 6.272565886 | L174: 0.1594243916 | M174: 10 | N174: 0.1 | O174: 1662.299 | P174: 685.701 | Q174: 0 | R174: 2348 | S174: =SUMIF('App.2-BA_Fixed Asset Cont'!$B$406:$B$446,'App.2-C_DepExp'!A174,'App.2-BA_Fixed Asset Cont'!$J$406:$J$446) -> 2348 | T174: 0
A175: 1945 | B175: Measurement & Testing Equipment | C175: =C58 -> 1851.6 | D175: 0 | E175: 0 | F175: 1851.6 | G175: 0 | I175: 0 | J175: =SUMIF('App.2-BA_Fixed Asset Cont'!$B$406:$B$446,'App.2-C_DepExp'!A175,'App.2-BA_Fixed Asset Cont'!$E$406:$E$446) -> 3464.38 | K175: 35.9101664 | L175: 0.02784726723 | M175: 10 | N175: 0.1 | O175: 51.562 | P175: 0 | Q175: 173.219 | R175: 224.781 | S175: =SUMIF('App.2-BA_Fixed Asset Cont'!$B$406:$B$446,'App.2-C_DepExp'!A175,'App.2-BA_Fixed Asset Cont'!$J$406:$J$446) -> 398 | T175: 173.219
A176: 1950 | B176: Power Operated Equipment | C176: =C59 -> 0 | D176: 0 | E176: 0 | F176: 0 | G176: 0 | I176: 0 | J176: =SUMIF('App.2-BA_Fixed Asset Cont'!$B$406:$B$446,'App.2-C_DepExp'!A176,'App.2-BA_Fixed Asset Cont'!$E$406:$E$446) -> 0 | L176: 0 | M176: 0 | N176: 0 | O176: 0 | P176: 0 | Q176: 0 | R176: 0 | S176: =SUMIF('App.2-BA_Fixed Asset Cont'!$B$406:$B$446,'App.2-C_DepExp'!A176,'App.2-BA_Fixed Asset Cont'!$J$406:$J$446) -> 0 | T176: 0
A177: 1955 | B177: Communications Equipment | C177: =C60 -> 73 | D177: 0 | E177: 0 | F177: 73 | G177: 1242.64 | I177: 1242.64 | J177: =SUMIF('App.2-BA_Fixed Asset Cont'!$B$406:$B$446,'App.2-C_DepExp'!A177,'App.2-BA_Fixed Asset Cont'!$E$406:$E$446) -> 0 | K177: 0.0598956077 | L177: 16.69571507 | M177: 50 | N177: 0.02 | O177: 1218.7872 | P177: 24.8528 | Q177: 0 | R177: 1243.64 | S177: =SUMIF('App.2-BA_Fixed Asset Cont'!$B$406:$B$446,'App.2-C_DepExp'!A177,'App.2-BA_Fixed Asset Cont'!$J$406:$J$446) -> 1243.64 | T177: -2.273736754e-13
A178: 1955 | B178: Communication Equipment (Smart Meters) | C178: =C61 -> 0 | D178: 0 | E178: 0 | F178: 0 | G178: 0 | I178: 0 | J178: =SUMIF('App.2-BA_Fixed Asset Cont'!$B$406:$B$446,'App.2-C_DepExp'!A178,'App.2-BA_Fixed Asset Cont'!$E$406:$E$446) -> 0 | L178: 0 | M178: 0 | N178: 0 | O178: 0 | P178: 0 | Q178: 0 | R178: 0 | T178: 0
A179: 1960 | B179: Miscellaneous Equipment | C179: =C62 -> 0 | D179: 0 | E179: 0 | F179: 0 | G179: 0 | I179: 0 | J179: =SUMIF('App.2-BA_Fixed Asset Cont'!$B$406:$B$446,'App.2-C_DepExp'!A179,'App.2-BA_Fixed Asset Cont'!$E$406:$E$446) -> 0 | L179: 0 | M179: 0 | N179: 0 | O179: 0 | P179: 0 | Q179: 0 | R179: 0 | S179: =SUMIF('App.2-BA_Fixed Asset Cont'!$B$406:$B$446,'App.2-C_DepExp'!A179,'App.2-BA_Fixed Asset Cont'!$J$406:$J$446) -> 0 | T179: 0
A180: 1970 | B180: Load Management Controls Customer Premises | C180: =C63 -> 0 | D180: 0 | E180: 0 | F180: 0 | G180: 0 | I180: 0 | J180: =SUMIF('App.2-BA_Fixed Asset Cont'!$B$406:$B$446,'App.2-C_DepExp'!A180,'App.2-BA_Fixed Asset Cont'!$E$406:$E$446) -> 0 | L180: 0 | M180: 0 | N180: 0 | O180: 0 | P180: 0 | Q180: 0 | R180: 0 | S180: =SUMIF('App.2-BA_Fixed Asset Cont'!$B$406:$B$446,'App.2-C_DepExp'!A180,'App.2-BA_Fixed Asset Cont'!$J$406:$J$446) -> 0 | T180: 0
A181: 1975 | B181: Load Management Controls Utility Premises | C181: =C64 -> 0 | D181: 0 | E181: 0 | F181: 0 | G181: 0 | I181: 0 | J181: =SUMIF('App.2-BA_Fixed Asset Cont'!$B$406:$B$446,'App.2-C_DepExp'!A181,'App.2-BA_Fixed Asset Cont'!$E$406:$E$446) -> 0 | L181: 0 | M181: 0 | N181: 0 | O181: 0 | P181: 0 | Q181: 0 | R181: 0 | S181: =SUMIF('App.2-BA_Fixed Asset Cont'!$B$406:$B$446,'App.2-C_DepExp'!A181,'App.2-BA_Fixed Asset Cont'!$J$406:$J$446) -> 0 | T181: 0
A182: 1980 | B182: System Supervisor Equipment | C182: =C65 -> 0 | D182: 0 | E182: 0 | F182: 0 | G182: 0 | I182: 0 | J182: =SUMIF('App.2-BA_Fixed Asset Cont'!$B$406:$B$446,'App.2-C_DepExp'!A182,'App.2-BA_Fixed Asset Cont'!$E$406:$E$446) -> 0 | L182: 0 | M182: 0 | N182: 0 | O182: 0 | P182: 0 | Q182: 0 | R182: 0 | S182: =SUMIF('App.2-BA_Fixed Asset Cont'!$B$406:$B$446,'App.2-C_DepExp'!A182,'App.2-BA_Fixed Asset Cont'!$J$406:$J$446) -> 0 | T182: 0
A183: 1985 | B183: Miscellaneous Fixed Assets | C183: =C66 -> 0 | D183: 0 | E183: 0 | F183: 0 | G183: 0 | I183: 0 | J183: =SUMIF('App.2-BA_Fixed Asset Cont'!$B$406:$B$446,'App.2-C_DepExp'!A183,'App.2-BA_Fixed Asset Cont'!$E$406:$E$446) -> 0 | L183: 0 | M183: 0 | N183: 0 | O183: 0 | P183: 0 | Q183: 0 | R183: 0 | S183: =SUMIF('App.2-BA_Fixed Asset Cont'!$B$406:$B$446,'App.2-C_DepExp'!A183,'App.2-BA_Fixed Asset Cont'!$J$406:$J$446) -> 0 | T183: 0
A184: 1990 | B184: Other Tangible Property | C184: =C67 -> 0 | D184: 0 | E184: 0 | F184: 0 | G184: 0 | I184: 0 | J184: =SUMIF('App.2-BA_Fixed Asset Cont'!$B$406:$B$446,'App.2-C_DepExp'!A184,'App.2-BA_Fixed Asset Cont'!$E$406:$E$446) -> 0 | L184: 0 | M184: 0 | N184: 0 | O184: 0 | P184: 0 | Q184: 0 | R184: 0 | S184: =SUMIF('App.2-BA_Fixed Asset Cont'!$B$406:$B$446,'App.2-C_DepExp'!A184,'App.2-BA_Fixed Asset Cont'!$J$406:$J$446) -> 0 | T184: 0
A185: 1995 | B185: Contributions & Grants | C185: =C68 -> -242118.72 | D185: 0 | E185: -4581 | F185: =C185-D185+E185 -> -246699.72 | G185: -24265.12 | I185: -24265.12 | J185: =SUMIF('App.2-BA_Fixed Asset Cont'!$B$406:$B$446,'App.2-C_DepExp'!A185,'App.2-BA_Fixed Asset Cont'!$E$406:$E$446) -> -4714 | K185: 0 | L185: 0 | M185: 40 | N185: 0.025 | O185: 0 | P185: 0 | Q185: -58.925 | R185: -58.925 | S185: =SUMIF('App.2-BA_Fixed Asset Cont'!$B$406:$B$446,'App.2-C_DepExp'!A185,'App.2-BA_Fixed Asset Cont'!$J$406:$J$446) -> 0 | T185: =IF(ISERROR(+S185-122), 0, +S185-R185) -> 58.925
B186: Total | C186: =SUM(C141:C185) -> 2741489.02 | D186: =SUM(D141:D185) -> -59095 | E186: 117931 | F186: =SUM(F141:F185) -> 2918515.02 | G186: 856274.55 | H186: 0 | I186: 856274.55 | J186: 498503.13 | O186: =SUM(O141:O185) -> 121396.464 | P186: 29621.96413 | Q186: 5104.055292 | R186: 156122.4834 | S186: 161344.4 | T186: 5221.916625
C187: =F186+I186+J186-S186-'App.2-BA_Fixed Asset Cont'!N450 -> 530602.95 | J187: =J186-'App.2-BA_Fixed Asset Cont'!E450 -> 0 | S187: =S186-'App.2-BA_Fixed Asset Cont'!J452 -> 0 | T187: =S186-R186 -> 5221.916625
A190: Scenario that applies | C190: Applicable Years and Accounting Standard | S190: Year Reflected in Schedule Below | T190: Accounting Standard Reflected in Schedule Below
A191: Rebasing for the first time with depreciation policy changes made in 2012. | C191: This appendix must be duplicated and completed for the years 2012 to 2018. The appendix for 2012 is to be completed under CGAAP (prior to changes in depreciation policies). The appendix for 2012 to 2014 must be completed under Revised CGAAP (after changes in depreciation policies). The appendix for 2014 to 2018 is to be completed under MIFRS (2014 if changes to MIFRS are material).
A192: Rebasing for the first time with depreciation policy changes made in 2013. | C192: This appendix must be duplicated and completed for the years 2013 to 2018. The appendix for 2013 is to be completed under CGAAP (prior to changes in depreciation policies). The appendix for 2013 to 2014 must be completed under Revised CGAAP (after changes in depreciation policies). The appendix for 2014 to 2018 is to be completed under MIFRS (2014 if changes to MIFRS are material).
A193: Already rebased with depreciation policy changes in a prior rate application | C193: This appendix must be completed for 2014 to 2018. The appendix for 2014 is to be completed under Revised CGAAP (after changes in depreciation policies). The appendix for 2014 to 2018 is to be completed under MIFRS (2014 if changes to MIFRS are material). | S193: 2016 | T193: MIFRS
C196: Book Values | K196: Service Lives | O196: Depreciation Expense
A197: Account | B197: Description | C197: Opening Net Book Value of Existing Assets as at Date of Policy Change (Jan. 1) 1 | D197: Less Fully Depreciated 7 | E197: IFRS Adjustments | F197: Net Amount of Existing Assets Before Policy Change to be Depreciated | G197: Opening Gross Book Value of Assets Acquired After Policy Change 2 | H197: Less Fully Depreciated 8 | I197: Net Amount of Assets Acquired After Policy Change to be Depreciated | J197: Current Year Additions | K197: Average Remaining Life of Assets Existing Before Policy Change 3 | L197: Depreciation Rate Assets Acquired After Policy Change | M197: Life of Assets Acquired After Policy Change 4 | N197: Depreciation Rate on New Additions | O197: Depreciation Expense on Assets Existing Before Policy Change | P197: Depreciation Expense on Assets Acquired After Policy Change | Q197: Depreciation Expense on Current Year Additions 5 | R197: Total Current Year Depreciation Expense | S197: Depreciation Expense per Appendix 2-BA Fixed Assets, Column J | T197: Variance 6
C198: a | D198: b | F198: c = a-b | G198: d | H198: e | I198: f = d- e | J198: g | K198: h | L198: i = 1/h | M198: j | N198: k = 1/j | O198: l = c/h | P198: m = f/j | Q198: n = (g*.5)/j | R198: o = l+m+n | S198: p | T198: q = p-o
A199: 1706 | B199: Land Rights | C199: =C141 -> 0 | D199: =D141 -> 0 | E199: 0 | F199: =C199-D199+E199 -> 0 | G199: =+G141+J141 -> 0 | I199: =G199-H199 -> 0 | J199: =SUMIF('App.2-BA_Fixed Asset Cont'!$B$346:$B$386,'App.2-C_DepExp'!A199,'App.2-BA_Fixed Asset Cont'!$E$346:$E$386) -> 0 | L199: =IF(K199=0,0,1/K199) -> 0 | M199: =M141 -> 0 | N199: =IF(M199=0,0,1/M199) -> 0 | O199: =IF(K199=0,0,+F199/K199) -> 0 | P199: =IF(M199=0,0,+I199/M199) -> 0 | Q199: =IF(M199=0,0,+(J199*0.5)/M199) -> 0 | R199: =IF(ISERROR(+O199+P199+Q199), 0, +O199+P199+Q199) -> 0 | S199: =SUMIF('App.2-BA_Fixed Asset Cont'!$B$346:$B$387,'App.2-C_DepExp'!A199,'App.2-BA_Fixed Asset Cont'!$J$346:$J$387) -> 0 | T199: =IF(ISERROR(+S199-122), 0, +S199-R199) -> 0
A200: 1725 | B200: Poles and Fixtures | C200: =C142 -> 0 | D200: 0 | E200: 0 | F200: =C200-D200+E200 -> 0 | G200: =+G142+J142 -> 0 | I200: 0 | J200: =SUMIF('App.2-BA_Fixed Asset Cont'!$B$346:$B$386,'App.2-C_DepExp'!A200,'App.2-BA_Fixed Asset Cont'!$E$346:$E$386) -> 0 | L200: 0 | M200: =M142 -> 0 | N200: 0 | O200: 0 | P200: 0 | Q200: =IF(M200=0,0,+(J200*0.5)/M200) -> 0 | R200: 0 | S200: =SUMIF('App.2-BA_Fixed Asset Cont'!$B$346:$B$387,'App.2-C_DepExp'!A200,'App.2-BA_Fixed Asset Cont'!$J$346:$J$387) -> 0 | T200: =IF(ISERROR(+S200-122), 0, +S200-R200) -> 0
A201: 1730 | B201: Overhead Conductors & Devices | C201: =C143 -> 0 | D201: 0 | E201: 0 | F201: 0 | G201: 0 | I201: 0 | J201: =SUMIF('App.2-BA_Fixed Asset Cont'!$B$346:$B$386,'App.2-C_DepExp'!A201,'App.2-BA_Fixed Asset Cont'!$E$346:$E$386) -> 0 | L201: 0 | M201: 0 | N201: 0 | O201: 0 | P201: 0 | Q201: 0 | R201: 0 | S201: =SUMIF('App.2-BA_Fixed Asset Cont'!$B$346:$B$387,'App.2-C_DepExp'!A201,'App.2-BA_Fixed Asset Cont'!$J$346:$J$387) -> 0 | T201: =IF(ISERROR(+S201-122), 0, +S201-R201) -> 0
A202: 1735 | B202: Underground Conduit | C202: =C144 -> 0 | D202: 0 | E202: 0 | F202: 0 | G202: 0 | I202: 0 | J202: =SUMIF('App.2-BA_Fixed Asset Cont'!$B$346:$B$386,'App.2-C_DepExp'!A202,'App.2-BA_Fixed Asset Cont'!$E$346:$E$386) -> 0 | L202: 0 | M202: 0 | N202: 0 | O202: 0 | P202: 0 | Q202: 0 | R202: 0 | S202: =SUMIF('App.2-BA_Fixed Asset Cont'!$B$346:$B$387,'App.2-C_DepExp'!A202,'App.2-BA_Fixed Asset Cont'!$J$346:$J$387) -> 0 | T202: 0
A203: 1740 | B203: Underground Conductors & Devices | C203: =C145 -> 0 | D203: 0 | E203: 0 | F203: 0 | G203: 0 | I203: 0 | J203: =SUMIF('App.2-BA_Fixed Asset Cont'!$B$346:$B$386,'App.2-C_DepExp'!A203,'App.2-BA_Fixed Asset Cont'!$E$346:$E$386) -> 0 | L203: 0 | M203: 0 | N203: 0 | O203: 0 | P203: 0 | Q203: 0 | R203: 0 | S203: =SUMIF('App.2-BA_Fixed Asset Cont'!$B$346:$B$387,'App.2-C_DepExp'!A203,'App.2-BA_Fixed Asset Cont'!$J$346:$J$387) -> 0 | T203: 0
A204: 1611 | B204: Computer Software (Formally known as Account 1925) | C204: =C146 -> 0 | D204: 0 | E204: 0 | F204: 0 | G204: 0 | I204: =G204-H204 -> 0 | J204: =SUMIF('App.2-BA_Fixed Asset Cont'!$B$346:$B$386,'App.2-C_DepExp'!A204,'App.2-BA_Fixed Asset Cont'!$E$346:$E$386) -> 0 | L204: =IF(K204=0,0,1/K204) -> 0 | M204: 0 | N204: =IF(M204=0,0,1/M204) -> 0 | O204: 0 | P204: 0 | Q204: 0 | R204: =IF(ISERROR(+O204+P204+Q204), 0, +O204+P204+Q204) -> 0 | S204: =SUMIF('App.2-BA_Fixed Asset Cont'!$B$346:$B$387,'App.2-C_DepExp'!A204,'App.2-BA_Fixed Asset Cont'!$J$346:$J$387) -> 0 | T204: =IF(ISERROR(+S204-122), 0, +S204-R204) -> 0
A205: 1612 | B205: Land Rights (Formally known as Account 1906) | C205: =C147 -> 0 | D205: 0 | E205: 0 | F205: 0 | G205: 0 | I205: =G205-H205 -> 0 | J205: =SUMIF('App.2-BA_Fixed Asset Cont'!$B$346:$B$386,'App.2-C_DepExp'!A205,'App.2-BA_Fixed Asset Cont'!$E$346:$E$386) -> 0 | L205: =IF(K205=0,0,1/K205) -> 0 | M205: 0 | N205: =IF(M205=0,0,1/M205) -> 0 | O205: 0 | P205: 0 | Q205: 0 | R205: =IF(ISERROR(+O205+P205+Q205), 0, +O205+P205+Q205) -> 0 | S205: =SUMIF('App.2-BA_Fixed Asset Cont'!$B$346:$B$387,'App.2-C_DepExp'!A205,'App.2-BA_Fixed Asset Cont'!$J$346:$J$387) -> 0 | T205: =IF(ISERROR(+S205-122), 0, +S205-R205) -> 0
A206: 1805 | B206: Land | C206: =C148 -> 88880.7 | D206: 0 | E206: 0 | F206: 88880.7 | G206: 0 | I206: 0 | J206: =SUMIF('App.2-BA_Fixed Asset Cont'!$B$346:$B$386,'App.2-C_DepExp'!A206,'App.2-BA_Fixed Asset Cont'!$E$346:$E$386) -> 0 | L206: 0 | M206: 0 | N206: 0 | O206: 0 | P206: 0 | Q206: 0 | R206: 0 | S206: =SUMIF('App.2-BA_Fixed Asset Cont'!$B$346:$B$387,'App.2-C_DepExp'!A206,'App.2-BA_Fixed Asset Cont'!$J$346:$J$387) -> 0 | T206: 0
A207: 1806 | B207: Land Rights | C207: =C149 -> 0 | D207: 0 | E207: 0 | F207: 0 | G207: 0 | I207: 0 | J207: =SUMIF('App.2-BA_Fixed Asset Cont'!$B$346:$B$386,'App.2-C_DepExp'!A207,'App.2-BA_Fixed Asset Cont'!$E$346:$E$386) -> 0 | L207: 0 | M207: 0 | N207: 0 | O207: 0 | P207: 0 | Q207: 0 | R207: 0 | S207: =SUMIF('App.2-BA_Fixed Asset Cont'!$B$346:$B$387,'App.2-C_DepExp'!A207,'App.2-BA_Fixed Asset Cont'!$J$346:$J$387) -> 0 | T207: 0
A208: 1808 | B208: Buildings | C208: =C150 -> 175552.94 | D208: 0 | E208: 5765 | F208: 181317.94 | G208: 3929 | I208: 3929 | J208: =SUMIF('App.2-BA_Fixed Asset Cont'!$B$346:$B$386,'App.2-C_DepExp'!A208,'App.2-BA_Fixed Asset Cont'!$E$346:$E$386) -> 3018.55 | K208: 40.90185879 | L208: 0.02444876663 | M208: 50 | N208: 0.02 | O208: 4433 | P208: 78.58 | Q208: 30.1855 | R208: 4541.7655 | S208: =SUMIF('App.2-BA_Fixed Asset Cont'!$B$346:$B$387,'App.2-C_DepExp'!A208,'App.2-BA_Fixed Asset Cont'!$J$346:$J$387) -> 4572 | T208: =IF(ISERROR(+S208-122), 0, +S208-R208) -> 30.2345
A209: 1810 | B209: Leasehold Improvements | C209: =C151 -> 0 | D209: 0 | E209: 0 | F209: 0 | G209: 0 | I209: 0 | J209: =SUMIF('App.2-BA_Fixed Asset Cont'!$B$346:$B$386,'App.2-C_DepExp'!A209,'App.2-BA_Fixed Asset Cont'!$E$346:$E$386) -> 0 | L209: 0 | M209: 0 | N209: 0 | O209: 0 | P209: 0 | Q209: 0 | R209: 0 | S209: =SUMIF('App.2-BA_Fixed Asset Cont'!$B$346:$B$387,'App.2-C_DepExp'!A209,'App.2-BA_Fixed Asset Cont'!$J$346:$J$387) -> 0 | T209: =IF(ISERROR(+S209-122), 0, +S209-R209) -> 0
A210: 1815 | B210: Transformer Station Equipment >50 kV | C210: =C152 -> 0 | D210: 0 | E210: 0 | F210: 0 | G210: 0 | I210: 0 | J210: =SUMIF('App.2-BA_Fixed Asset Cont'!$B$346:$B$386,'App.2-C_DepExp'!A210,'App.2-BA_Fixed Asset Cont'!$E$346:$E$386) -> 0 | L210: 0 | M210: 0 | N210: 0 | O210: 0 | P210: 0 | Q210: 0 | R210: 0 | S210: =SUMIF('App.2-BA_Fixed Asset Cont'!$B$346:$B$387,'App.2-C_DepExp'!A210,'App.2-BA_Fixed Asset Cont'!$J$346:$J$387) -> 0 | T210: 0
A211: 1820 | B211: Distribution Station Equipment <50 kV | C211: =C153 -> 161095.96 | D211: 0 | E211: 10618 | F211: 171713.96 | G211: 0 | I211: 0 | J211: =SUMIF('App.2-BA_Fixed Asset Cont'!$B$346:$B$386,'App.2-C_DepExp'!A211,'App.2-BA_Fixed Asset Cont'!$E$346:$E$386) -> 0 | K211: 49.77216232 | L211: 0.02009155225 | M211: 50 | N211: 0.02 | O211: 3450 | P211: 0 | Q211: 0 | R211: 3450 | S211: =SUMIF('App.2-BA_Fixed Asset Cont'!$B$346:$B$387,'App.2-C_DepExp'!A211,'App.2-BA_Fixed Asset Cont'!$J$346:$J$387) -> 3450 | T211: 0
A212: 1825 | B212: Storage Battery Equipment | C212: =C154 -> 0 | D212: 0 | E212: 0 | F212: 0 | G212: 0 | I212: 0 | J212: =SUMIF('App.2-BA_Fixed Asset Cont'!$B$346:$B$386,'App.2-C_DepExp'!A212,'App.2-BA_Fixed Asset Cont'!$E$346:$E$386) -> 0 | L212: 0 | M212: 0 | N212: 0 | O212: 0 | P212: 0 | Q212: 0 | R212: 0 | S212: =SUMIF('App.2-BA_Fixed Asset Cont'!$B$346:$B$387,'App.2-C_DepExp'!A212,'App.2-BA_Fixed Asset Cont'!$J$346:$J$387) -> 0 | T212: 0
A213: 1830 | B213: Poles, Towers & Fixtures | C213: =C155 -> 878998.74 | D213: 0 | E213: 37482 | F213: =C213-D213+E213 -> 916480.74 | G213: 473546.65 | I213: 473546.65 | J213: =SUMIF('App.2-BA_Fixed Asset Cont'!$B$346:$B$386,'App.2-C_DepExp'!A213,'App.2-BA_Fixed Asset Cont'!$E$346:$E$386) -> 107064.73 | K213: 42.95322492 | L213: 0.023281139 | M213: 40 | N213: 0.025 | O213: 21336.7155 | P213: 11838.66625 | Q213: 1338.309125 | R213: 34513.69088 | S213: =SUMIF('App.2-BA_Fixed Asset Cont'!$B$346:$B$387,'App.2-C_DepExp'!A213,'App.2-BA_Fixed Asset Cont'!$J$346:$J$387) -> 35852 | T213: 1338.309125
A214: 1835 | B214: Overhead Conductors & Devices | C214: =C156 -> 510815.11 | D214: 0 | E214: 25105 | F214: 535920.11 | G214: 536789.83 | I214: 536789.83 | J214: =SUMIF('App.2-BA_Fixed Asset Cont'!$B$346:$B$386,'App.2-C_DepExp'!A214,'App.2-BA_Fixed Asset Cont'!$E$346:$E$386) -> 194728.06 | K214: 69.45537422 | L214: 0.01439773396 | M214: 60 | N214: 0.01666666667 | O214: 7716.035167 | P214: 8946.497167 | Q214: 1622.733833 | R214: 18285.26617 | S214: =SUMIF('App.2-BA_Fixed Asset Cont'!$B$346:$B$387,'App.2-C_DepExp'!A214,'App.2-BA_Fixed Asset Cont'!$J$346:$J$387) -> 19908 | T214: 1622.733833
A215: 1840 | B215: Underground Conduit | C215: =C157 -> 99203.7 | D215: 0 | E215: 9593 | F215: 108796.7 | G215: 2785.35 | I215: 2785.35 | J215: =SUMIF('App.2-BA_Fixed Asset Cont'!$B$346:$B$386,'App.2-C_DepExp'!A215,'App.2-BA_Fixed Asset Cont'!$E$346:$E$386) -> 0 | K215: 30.60931045 | L215: 0.03266979835 | M215: 40 | N215: 0.025 | O215: 3554.36625 | P215: 69.63375 | Q215: 0 | R215: 3624 | S215: =SUMIF('App.2-BA_Fixed Asset Cont'!$B$346:$B$387,'App.2-C_DepExp'!A215,'App.2-BA_Fixed Asset Cont'!$J$346:$J$387) -> 3624 | T215: 0
A216: 1845 | B216: Underground Conductors & Devices | C216: =C158 -> 80496.52 | D216: 0 | E216: 1088 | F216: 81584.52 | G216: 10110.58 | I216: 10110.58 | J216: =SUMIF('App.2-BA_Fixed Asset Cont'!$B$346:$B$386,'App.2-C_DepExp'!A216,'App.2-BA_Fixed Asset Cont'!$E$346:$E$386) -> 13637.04 | K216: 35.01016496 | L216: 0.02856313306 | M216: 40 | N216: 0.025 | O216: 2330.3095 | P216: 252.7645 | Q216: 170.463 | R216: 2753.537 | S216: =SUMIF('App.2-BA_Fixed Asset Cont'!$B$346:$B$387,'App.2-C_DepExp'!A216,'App.2-BA_Fixed Asset Cont'!$J$346:$J$387) -> 2924 | T216: 170.463
A217: 1850 | B217: Line Transformers | C217: =C159 -> 207647.69 | D217: 0 | E217: 13023 | F217: 220670.69 | G217: 69338.15 | I217: 69338.15 | J217: =SUMIF('App.2-BA_Fixed Asset Cont'!$B$346:$B$386,'App.2-C_DepExp'!A217,'App.2-BA_Fixed Asset Cont'!$E$346:$E$386) -> 28765.02 | K217: 33.61617093 | L217: 0.02974758791 | M217: 40 | N217: 0.025 | O217: 6564.42075 | P217: 1733.45375 | Q217: 359.56275 | R217: 8657.43725 | S217: =SUMIF('App.2-BA_Fixed Asset Cont'!$B$346:$B$387,'App.2-C_DepExp'!A217,'App.2-BA_Fixed Asset Cont'!$J$346:$J$387) -> 9017 | T217: 359.56275
A218: 1855 | B218: Services (Overhead & Underground) | C218: =C160 -> 184179.24 | D218: 0 | E218: 7070 | F218: 191249.24 | G218: 50998.25 | I218: 50998.25 | J218: =SUMIF('App.2-BA_Fixed Asset Cont'!$B$346:$B$386,'App.2-C_DepExp'!A218,'App.2-BA_Fixed Asset Cont'!$E$346:$E$386) -> 27411.35 | K218: 58.82468278 | L218: 0.01699966668 | M218: 60 | N218: 0.01666666667 | O218: 3251.173333 | P218: 849.9708333 | Q218: 228.4279167 | R218: 4329.572083 | S218: =SUMIF('App.2-BA_Fixed Asset Cont'!$B$346:$B$387,'App.2-C_DepExp'!A218,'App.2-BA_Fixed Asset Cont'!$J$346:$J$387) -> 4558 | T218: 228.4279167
A219: 1860 | B219: Meters | C219: =C161 -> 549852 | D219: 0 | E219: 0 | F219: 549852 | G219: 5872.29 | I219: 5872.29 | J219: =SUMIF('App.2-BA_Fixed Asset Cont'!$B$346:$B$386,'App.2-C_DepExp'!A219,'App.2-BA_Fixed Asset Cont'!$E$346:$E$386) -> 3503.67 | K219: 10.96390605 | L219: 0.09120837001 | M219: 15 | N219: 0.06666666667 | O219: 50151.10467 | P219: 391.486 | Q219: 116.789 | R219: 50659.37967 | S219: =SUMIF('App.2-BA_Fixed Asset Cont'!$B$346:$B$387,'App.2-C_DepExp'!A219,'App.2-BA_Fixed Asset Cont'!$J$346:$J$387) -> 50776.18 | T219: 116.8003333
A220: 1860 | B220: Meters (Smart Meters) | C220: =C162 -> 0 | D220: 0 | E220: 0 | F220: 0 | G220: 0 | I220: 0 | L220: 0 | M220: 0 | N220: 0 | O220: 0 | P220: 0 | Q220: 0 | R220: 0 | T220: 0
A221: 1905 | B221: Land | C221: =C163 -> 0 | D221: 0 | E221: 0 | F221: 0 | G221: 0 | I221: 0 | J221: =SUMIF('App.2-BA_Fixed Asset Cont'!$B$346:$B$386,'App.2-C_DepExp'!A221,'App.2-BA_Fixed Asset Cont'!$E$346:$E$386) -> 0 | L221: 0 | M221: 0 | N221: 0 | O221: 0 | P221: 0 | Q221: 0 | R221: 0 | S221: =SUMIF('App.2-BA_Fixed Asset Cont'!$B$346:$B$387,'App.2-C_DepExp'!A221,'App.2-BA_Fixed Asset Cont'!$J$346:$J$387) -> 0 | T221: 0
A222: 1908 | B222: Buildings & Fixtures | C222: =C164 -> 0 | D222: 0 | E222: 0 | F222: 0 | G222: 0 | I222: 0 | J222: =SUMIF('App.2-BA_Fixed Asset Cont'!$B$346:$B$386,'App.2-C_DepExp'!A222,'App.2-BA_Fixed Asset Cont'!$E$346:$E$386) -> 0 | L222: 0 | M222: 0 | N222: 0 | O222: 0 | P222: 0 | Q222: 0 | R222: 0 | S222: =SUMIF('App.2-BA_Fixed Asset Cont'!$B$346:$B$387,'App.2-C_DepExp'!A222,'App.2-BA_Fixed Asset Cont'!$J$346:$J$387) -> 0 | T222: 0
A223: 1910 | B223: Leasehold Improvements | C223: =C165 -> 0 | D223: 0 | E223: 0 | F223: 0 | G223: 0 | I223: 0 | J223: =SUMIF('App.2-BA_Fixed Asset Cont'!$B$346:$B$386,'App.2-C_DepExp'!A223,'App.2-BA_Fixed Asset Cont'!$E$346:$E$386) -> 0 | L223: 0 | M223: 0 | N223: 0 | O223: 0 | P223: 0 | Q223: 0 | R223: 0 | S223: =SUMIF('App.2-BA_Fixed Asset Cont'!$B$346:$B$387,'App.2-C_DepExp'!A223,'App.2-BA_Fixed Asset Cont'!$J$346:$J$387) -> 0 | T223: 0
A224: 1915 | B224: Office Furniture & Equipment (10 years) | C224: =C166 -> 0 | D224: 0 | E224: 0 | F224: 0 | G224: 0 | I224: 0 | J224: =SUMIF('App.2-BA_Fixed Asset Cont'!$B$346:$B$386,'App.2-C_DepExp'!A224,'App.2-BA_Fixed Asset Cont'!$E$346:$E$386) -> 0 | L224: 0 | M224: 0 | N224: 0 | O224: 0 | P224: 0 | Q224: 0 | R224: 0 | S224: =SUMIF('App.2-BA_Fixed Asset Cont'!$B$346:$B$387,'App.2-C_DepExp'!A224,'App.2-BA_Fixed Asset Cont'!$J$346:$J$387) -> 0 | T224: 0
A225: 1915 | B225: Office Furniture & Equipment (5 years) | C225: =C167 -> -1897.1 | D225: 0 | E225: 0 | F225: -1897.1 | G225: 0 | I225: 0 | J225: =SUMIF('App.2-BA_Fixed Asset Cont'!$B$346:$B$386,'App.2-C_DepExp'!A225,'App.2-BA_Fixed Asset Cont'!$E$346:$E$386) -> 0 | K225: 0 | L225: 0 | M225: 10 | N225: 0.1 | O225: 0 | P225: 0 | Q225: 0 | R225: 0 | S225: =SUMIF('App.2-BA_Fixed Asset Cont'!$B$346:$B$387,'App.2-C_DepExp'!A225,'App.2-BA_Fixed Asset Cont'!$J$346:$J$387) -> 0 | T225: 0
A226: 1920 | B226: Computer Equipment - Hardware | C226: =C168 -> 13510.93 | D226: 0 | E226: 0 | F226: 13510.93 | G226: 1062.77 | I226: 1062.77 | J226: =SUMIF('App.2-BA_Fixed Asset Cont'!$B$346:$B$386,'App.2-C_DepExp'!A226,'App.2-BA_Fixed Asset Cont'!$E$346:$E$386) -> 0 | K226: 39.6871365 | L226: 0.02519708118 | M226: 5 | N226: 0.2 | O226: 340.436 | P226: 212.554 | Q226: 0 | R226: 552.99 | S226: =SUMIF('App.2-BA_Fixed Asset Cont'!$B$346:$B$387,'App.2-C_DepExp'!A226,'App.2-BA_Fixed Asset Cont'!$J$346:$J$387) -> 552.99 | T226: 0
... 304 more rows

Sheet App.2-D_Overhead
G1: File Number: | H1: =EBNUMBER -> EB-2020-0020
G2: Exhibit:
G3: Tab:
G4: Schedule:
G5: Page:
G7: Date:
A9: Appendix 2-D
A10: Overhead Expense
A12: Applicants are to provide a breakdown of OM&A before capitalization in the below table. OM&A before capitalization may be broken down by cost center, program, drivers or another format best suited to focus on capitalized vs. uncapitalized OM&A.
A14: OM&A Before Capitalization
B15: =F15-4 -> 2017 | C15: =F15-3 -> 2018 | D15: =F15-2 -> 2019 | E15: =F15-1 -> 2020 | F15: =TestYear -> 2021
B16: Historical Year | C16: Historical Year | D16: Historical Year | E16: Bridge Year | F16: Test Year
A17: Total OM&A | B17: 1438400.04 | C17: 1460892.57 | D17: 1729122.4 | E17: 1578387.48 | F17: 1705431
A27: Total OM&A Before Capitalization (B) | B27: =SUM(B17:B26) -> 1438400.04 | C27: =SUM(C17:C26) -> 1460892.57 | D27: =SUM(D17:D26) -> 1729122.4 | E27: =SUM(E17:E26) -> 1578387.48 | F27: =SUM(F17:F26) -> 1705431
A29: Applicants are to provide a breakdown of capitalized OM&A in the below table. Capitalized OM&A may be broken down using the categories listed in the table below if possible. Otherwise, applicants are to provide its own break down of capitalized OM&A.
A31: Capitalized OM&A | G31: Directly | H31: Explanation for Change in Overhead Capitalized
B32: =F32-4 -> 2017 | C32: =F32-3 -> 2018 | D32: =F32-2 -> 2019 | E32: =F32-1 -> 2020 | F32: =TestYear -> 2021 | G32: Attributable?
B33: Historical Year | C33: Historical Year | D33: Historical Year | E33: Bridge Year | F33: Test Year | G33: (Yes/No)
A34: Supervisory Salaries & Benefits | B34: 38856 | C34: 50653 | D34: 59494.81 | E34: 48031 | F34: 50000 | G34: Yes
A45: Insert description of additional item(s) and new rows if needed
A47: Total Capitalized OM&A (A) | B47: =SUM(B34:B46) -> 38856 | C47: =SUM(C34:C46) -> 50653 | D47: =SUM(D34:D46) -> 59494.81 | E47: =SUM(E34:E46) -> 48031 | F47: =SUM(F34:F46) -> 50000
A49: % of Capitalized OM&A (=A/B) | B49: =IF(ISERROR(B47/B27),"0%",B47/B27) -> 0.02701334741 | C49: =IF(ISERROR(C47/C27),"0%",C47/C27) -> 0.03467263852 | D49: =IF(ISERROR(D47/D27),"0%",D47/D27) -> 0.03440751794 | E49: =IF(ISERROR(E47/E27),"0%",E47/E27) -> 0.03043042385 | F49: =IF(ISERROR(F47/F27),"0%",F47/F27) -> 0.02931810199

Sheet App.2-EA_Account 1575 (2015) (hidden)
H1: File Number: | I1: =EBNUMBER -> EB-2020-0020
H2: Exhibit:
H3: Tab:
H4: Schedule:
H5: Page:
H7: Date:
A9: Appendix 2-EA
A10: Account 1575 - IFRS-CGAAP Transitional PP&E Amounts
A11: 2015 Adopters of IFRS for Financial Reporting Purposes
A13: For applicants that adopted IFRS on January 1, 2015 for financial reporting purposes
B17: 2014 | C17: =TestYear-3 -> 2018 | D17: =TestYear-2 -> 2019 | E17: =CONCATENATE(TestYear-1," Bridge Year") -> 2020 Bridge Year | F17: =CONCATENATE(TestYear," Rebasing Year") -> 2021 Rebasing Year
A18: Reporting Basis | B18: CGAAP | C18: CGAAP | D18: CGAAP | E18: MIFRS | F18: MIFRS
B19: Actual | C19: Actual | D19: Actual | E19: Forecast | F19: Forecast
D20: $ | E20: $
A21: PP&E Values under CGAAP
A22: Opening net PP&E - Note 1 | C22: =+B25 -> 0 | D22: =+C25 -> 0 | E22: =+D25 -> 0
A23: Net Additions - Note 4
A24: Net Depreciation (amounts should be negative) - Note 4
A25: Closing net PP&E (1) | B25: =SUM(B22:B24) -> 0 | C25: =SUM(C22:C24) -> 0 | D25: =SUM(D22:D24) -> 0 | E25: =SUM(E22:E24) -> 0
A27: PP&E Values under MIFRS (Starts from 2014, the transition year)
A28: Opening net PP&E - Note 1 | C28: =+B31 -> 0 | D28: =+C31 -> 0 | E28: =+D31 -> 0
A29: Net Additions - Note 4
A30: Net Depreciation (amounts should be negative) - Note 4
A31: Closing net PP&E (2) | B31: =SUM(B28:B30) -> 0 | C31: =SUM(C28:C30) -> 0 | D31: =SUM(D28:D30) -> 0 | E31: =SUM(E28:E30) -> 0
A33: Difference in Closing net PP&E, former CGAAP vs. revised CGAAP | B33: =B25-B31 -> 0 | C33: =C25-C31 -> 0 | D33: =D25-D31 -> 0 | E33: =E25-E31 -> 0
A36: Effect on Deferral and Variance Account Rate Riders
A37: Closing balance in Account 1575 | F37: =IF(ISERROR(E33), 0, E33) -> 0 | H37: WACC
A38: Return on Rate Base Associated with Account 1575 balance at WACC - Note 2 | F38: =E33*I37*I38 -> 0 | G38: # of years of rate rider disposition period
A39: Amount included in Deferral and Variance Account Rate Rider Calculation | F39: =F37+F38 -> 0
A41: Notes:
A42: 1 For an applicant that adopted IFRS on January 1, 2015, the PP&E values as of January 1, 2014 under both CGAAP and MIFRS should be the same.
A43: 2 Return on rate base associated with deferred balance is calculated as:
A44: the deferral account closing balance as of 2017 x WACC X # of years of rate rider disposition period
A45: * Please note that the calculation should be adjusted once WACC is updated and finalized in the rate application.
A46: 3 The PP&E deferral account is cleared by including the total balance in the deferral and variance account rate rider calculation.
A47: 4 Net additions are additions net of disposals; Net depreciation is additions to depreciation net of disposals.

Sheet App.2-EB_Account 1576 (2012) (hidden)
K1: File Number: | L1: =EBNUMBER -> EB-2020-0020
K2: Exhibit:
K3: Tab:
K4: Schedule:
K5: Page:
K7: Date:
A9: Appendix 2-EB
A10: Account 1576 - Accounting Changes under CGAAP
A11: 2012 Changes in Accounting Policies under CGAAP
A13: For applicants with a balance in Account 1576 and made capitalization and depreciation expense accounting policy changes under CGAAP effective January 1, 2012. This is the first time the applicant is rebasing with changes in these accounting policies.
B17: Prior Years Rebasing | C17: 2012 | D17: 2013 | E17: 2014 | F17: 2015 | G17: 2016 | H17: 2017 | I17: 2018 Rebasing Year
A18: Reporting Basis | B18: CGAAP | C18: CGAAP | D18: CGAAP | E18: CGAAP | F18: MIFRS - Note 5 | G18: MIFRS | H18: MIFRS | I18: MIFRS
B19: Forecast | C19: Actual | D19: Actual | E19: Actual | F19: Actual | G19: Actual | H19: Forecast | I19: Forecast
C20: $ | D20: $ | E20: $ | F20: $ | G20: $ | H20: $
A21: PP&E Values under former CGAAP
A22: Opening net PP&E - Note 1 | D22: =+C25 -> 0 | E22: =+D25 -> 0 | F22: =+E25 -> 0 | G22: =+F25 -> 0 | H22: =+G25 -> 0
A23: Net Additions - Note 4
A24: Net Depreciation (amounts should be negative) - Note 4
A25: Closing net PP&E (1) | C25: =C22+C23+C24 -> 0 | D25: 0 | E25: 0 | F25: 0 | G25: 0 | H25: 0
A27: PP&E Values under revised CGAAP (Starts from 2012)
A28: Opening net PP&E - Note 1 | D28: =+C31 -> 0 | E28: =+D31 -> 0 | F28: =+E31 -> 0 | G28: =+F31 -> 0 | H28: =+G31 -> 0
A29: Net Additions - Note 4
A30: Net Depreciation (amounts should be negative) - Note 4
A31: Closing net PP&E (2) | C31: =SUM(C28:C30) -> 0 | D31: 0 | E31: 0 | F31: 0 | G31: 0 | H31: 0
A33: Difference in Closing net PP&E, former CGAAP vs. revised CGAAP | C33: =C25-C31 -> 0 | D33: 0 | E33: 0 | F33: 0 | G33: 0 | H33: 0
A36: Effect on Deferral and Variance Account Rate Riders
A37: Closing balance in Account 1576 | I37: =IF(ISERROR(H33), 0, H33) -> 0 | K37: WACC
A38: Return on Rate Base Associated with Account 1576 balance at WACC - Note 2 | I38: =H33*L37*L38 -> 0 | J38: # of years of rate rider disposition period
A39: Amount included in Deferral and Variance Account Rate Rider Calculation | I39: =I37+I38 -> 0
A41: Notes:
A42: 1 For an applicant that made the capitalization and depreciation expense accounting policy changes on January 1, 2012, the PP&E values as of January 1, 2012 under both former CGAAP and revised CGAAP should be the same.
A43: 2 Return on rate base associated with Account 1576 balance is calculated as:
A44: the variance account ending balance as of 2017 x WACC X # of years of rate rider disposition period
A45: * Please note that the calculation should be adjusted once WACC is updated and finalized in the rate application.
A46: 3 Account 1576 is cleared by including the total balance in the deferral and variance account rate rider calculation.
A47: 4 Net additions are additions net of disposals; Net depreciation is additions to depreciation net of disposals.
A48: 5 Differences due to the adoption of MIFRS are to be shown separately in Account 1575 in Appendix 2-EA as Accounts 1575 and 1576 cannot be used interchangably.

Sheet App.2-EC_Account 1576 (2013) (hidden)
J1: File Number: | K1: =EBNUMBER -> EB-2020-0020
J2: Exhibit:
J3: Tab:
J4: Schedule:
J5: Page:
J7: Date:
A9: Appendix 2-EC
A10: Account 1576 - Accounting Changes under CGAAP
A11: 2013 Changes in Accounting Policies under CGAAP
A13: For applicants with a balance in Account 1576 and made capitalization and depreciation expense accounting policy changes under CGAAP effective January 1, 2013. This is the first time the applicant is rebasing with changes in these accounting policies.
B17: Prior Years Rebasing | C17: 2013 | D17: 2014 | E17: 2015 | F17: 2016 | G17: 2017 | H17: 2018 Rebasing Year
A18: Reporting Basis | B18: CGAAP | C18: CGAAP | D18: CGAAP | E18: MIFRS - Note 5 | F18: MIFRS | G18: MIFRS | H18: MIFRS
B19: Actual | C19: Actual | D19: Actual | E19: Actual | F19: Actual | G19: Forecast | H19: Forecast
C20: $ | D20: $ | F20: $
A21: PP&E Values under former CGAAP
A22: Opening net PP&E - Note 1 | D22: =+C25 -> 0 | E22: =+D25 -> 0 | F22: =+E25 -> 0 | G22: =+F25 -> 0
A23: Net Additions - Note 4
A24: Net Depreciation (amounts should be negative) - Note 4
A25: Closing net PP&E (1) | C25: =C22+C23+C24 -> 0 | D25: =D22+D23+D24 -> 0 | E25: =E22+E23+E24 -> 0 | F25: =F22+F23+F24 -> 0 | G25: =G22+G23+G24 -> 0
A27: PP&E Values under revised CGAAP (Starts from 2012)
A28: Opening net PP&E - Note 1 | D28: =+C31 -> 0 | E28: =+D31 -> 0 | F28: =+E31 -> 0 | G28: =+F31 -> 0
A29: Net Additions - Note 4
A30: Net Depreciation (amounts should be negative) - Note 4
A31: Closing net PP&E (2) | C31: =SUM(C28:C30) -> 0 | D31: =SUM(D28:D30) -> 0 | E31: =SUM(E28:E30) -> 0 | F31: =SUM(F28:F30) -> 0 | G31: =SUM(G28:G30) -> 0
A33: Difference in Closing net PP&E, former CGAAP vs. revised CGAAP | C33: =C25-C31 -> 0 | D33: =D25-D31 -> 0 | E33: =E25-E31 -> 0 | F33: =F25-F31 -> 0 | G33: =G25-G31 -> 0
A36: Effect on Deferral and Variance Account Rate Riders
A37: Closing balance in Account 1576 | H37: =IF(ISERROR(G33), 0, G33) -> 0 | J37: WACC
A38: Return on Rate Base Associated with Account 1576 balance at WACC - Note 2 | H38: =G33*K37*K38 -> 0 | I38: # of years of rate rider disposition period
A39: Amount included in Deferral and Variance Account Rate Rider Calculation | H39: =H37+H38 -> 0
A41: Notes:
A42: 1 For an applicant that made the capitalization and depreciation expense accounting policy changes on January 1, 2013, the PP&E values as of January 1, 2013 under both former CGAAP and revised CGAAP should be the same.
A43: 2 Return on rate base associated with Account 1576 balance is calculated as:
A44: the variance account ending balance as of 2017 x WACC X # of years of rate rider disposition period
A45: * Please note that the calculation should be adjusted once WACC is updated and finalized in the rate application.
A46: 3 Account 1576 is cleared by including the total balance in the deferral and variance account rate rider calculation.
A47: 4 Net additions are additions net of disposals; Net depreciation is additions to depreciation net of disposals.
A48: 5 Differences due to the adoption of MIFRS are to be shown separately in Account 1575 in Appendix 2-EA as Accounts 1575 and 1576 cannot be used interchangably.

Sheet Hidden_REG Invest. (hidden)
A1: Utility Name | B1: EB Number | C1: Test Year | D1: Bridge Year | E1: Last Rebasing Year | F1: Renewable Generation Connection Investment Summary | G1: Year | H1: Amount
A2: ='LDC Info'!$E$14 -> North Bay Hydro Distribution Limited - Espanola service territory | B2: =EBNUMBER -> EB-2020-0020 | C2: =TestYear -> 2021 | D2: =BridgeYear -> 2020 | E2: =RebaseYear -> 2012 | F2: REI Investments_A_Total Capital Costs | G2: ='App.2-FA Proposed REG Invest.'!$C$31 -> 2016 | H2: ='App.2-FA Proposed REG Invest.'!C62 -> 0
A3: ='LDC Info'!$E$14 -> North Bay Hydro Distribution Limited - Espanola service territory | B3: EB-2020-0020 | C3: 2021 | D3: 2020 | E3: 2012 | F3: REI Investments_A_Total OM&A Start-Up | G3: ='App.2-FA Proposed REG Invest.'!$C$31 -> 2016 | H3: ='App.2-FA Proposed REG Invest.'!$C63 -> 0
A4: ='LDC Info'!$E$14 -> North Bay Hydro Distribution Limited - Espanola service territory | B4: EB-2020-0020 | C4: 2021 | D4: 2020 | E4: 2012 | F4: REI Investments_A_Total OM&A Ongoing | G4: ='App.2-FA Proposed REG Invest.'!$C$31 -> 2016 | H4: ='App.2-FA Proposed REG Invest.'!$C64 -> 0
A5: ='LDC Info'!$E$14 -> North Bay Hydro Distribution Limited - Espanola service territory | B5: EB-2020-0020 | C5: 2021 | D5: 2020 | E5: 2012 | F5: REI Investments_A_Total Capital Costs | G5: ='App.2-FA Proposed REG Invest.'!$D$31 -> 2017 | H5: ='App.2-FA Proposed REG Invest.'!D62 -> 0
A6: ='LDC Info'!$E$14 -> North Bay Hydro Distribution Limited - Espanola service territory | B6: EB-2020-0020 | C6: 2021 | D6: 2020 | E6: 2012 | F6: REI Investments_A_Total OM&A Start-Up | G6: ='App.2-FA Proposed REG Invest.'!$D$31 -> 2017 | H6: ='App.2-FA Proposed REG Invest.'!D63 -> 0
A7: ='LDC Info'!$E$14 -> North Bay Hydro Distribution Limited - Espanola service territory | B7: EB-2020-0020 | C7: 2021 | D7: 2020 | E7: 2012 | F7: REI Investments_A_Total OM&A Ongoing | G7: ='App.2-FA Proposed REG Invest.'!$D$31 -> 2017 | H7: ='App.2-FA Proposed REG Invest.'!D64 -> 0
A8: ='LDC Info'!$E$14 -> North Bay Hydro Distribution Limited - Espanola service territory | B8: EB-2020-0020 | C8: 2021 | D8: 2020 | E8: 2012 | F8: REI Investments_A_Total Capital Costs | G8: ='App.2-FA Proposed REG Invest.'!$E$31 -> 2018 | H8: ='App.2-FA Proposed REG Invest.'!E62 -> 0
A9: ='LDC Info'!$E$14 -> North Bay Hydro Distribution Limited - Espanola service territory | B9: EB-2020-0020 | C9: 2021 | D9: 2020 | E9: 2012 | F9: REI Investments_A_Total OM&A Start-Up | G9: ='App.2-FA Proposed REG Invest.'!$E$31 -> 2018 | H9: ='App.2-FA Proposed REG Invest.'!E63 -> 0
A10: ='LDC Info'!$E$14 -> North Bay Hydro Distribution Limited - Espanola service territory | B10: EB-2020-0020 | C10: 2021 | D10: 2020 | E10: 2012 | F10: REI Investments_A_Total OM&A Ongoing | G10: ='App.2-FA Proposed REG Invest.'!$E$31 -> 2018 | H10: ='App.2-FA Proposed REG Invest.'!E64 -> 0
A11: ='LDC Info'!$E$14 -> North Bay Hydro Distribution Limited - Espanola service territory | B11: EB-2020-0020 | C11: 2021 | D11: 2020 | E11: 2012 | F11: REI Investments_A_Total Capital Costs | G11: ='App.2-FA Proposed REG Invest.'!$F$31 -> 2019 | H11: ='App.2-FA Proposed REG Invest.'!F62 -> 0
A12: ='LDC Info'!$E$14 -> North Bay Hydro Distribution Limited - Espanola service territory | B12: EB-2020-0020 | C12: 2021 | D12: 2020 | E12: 2012 | F12: REI Investments_A_Total OM&A Start-Up | G12: ='App.2-FA Proposed REG Invest.'!$F$31 -> 2019 | H12: ='App.2-FA Proposed REG Invest.'!F63 -> 0
A13: ='LDC Info'!$E$14 -> North Bay Hydro Distribution Limited - Espanola service territory | B13: EB-2020-0020 | C13: 2021 | D13: 2020 | E13: 2012 | F13: REI Investments_A_Total OM&A Ongoing | G13: ='App.2-FA Proposed REG Invest.'!$F$31 -> 2019 | H13: ='App.2-FA Proposed REG Invest.'!F64 -> 0
A14: ='LDC Info'!$E$14 -> North Bay Hydro Distribution Limited - Espanola service territory | B14: EB-2020-0020 | C14: 2021 | D14: 2020 | E14: 2012 | F14: REI Investments_A_Total Capital Costs | G14: ='App.2-FA Proposed REG Invest.'!$G$31 -> 2020 | H14: ='App.2-FA Proposed REG Invest.'!G62 -> 0
A15: ='LDC Info'!$E$14 -> North Bay Hydro Distribution Limited - Espanola service territory | B15: EB-2020-0020 | C15: 2021 | D15: 2020 | E15: 2012 | F15: REI Investments_A_Total OM&A Start-Up | G15: ='App.2-FA Proposed REG Invest.'!$G$31 -> 2020 | H15: ='App.2-FA Proposed REG Invest.'!G63 -> 0
A16: ='LDC Info'!$E$14 -> North Bay Hydro Distribution Limited - Espanola service territory | B16: EB-2020-0020 | C16: 2021 | D16: 2020 | E16: 2012 | F16: REI Investments_A_Total OM&A Ongoing | G16: ='App.2-FA Proposed REG Invest.'!$G$31 -> 2020 | H16: ='App.2-FA Proposed REG Invest.'!G64 -> 0
A17: ='LDC Info'!$E$14 -> North Bay Hydro Distribution Limited - Espanola service territory | B17: EB-2020-0020 | C17: 2021 | D17: 2020 | E17: 2012 | F17: REI Investments_A_Total Capital Costs | G17: ='App.2-FA Proposed REG Invest.'!$H$31 -> 2021 | H17: ='App.2-FA Proposed REG Invest.'!H62 -> 0
A18: ='LDC Info'!$E$14 -> North Bay Hydro Distribution Limited - Espanola service territory | B18: EB-2020-0020 | C18: 2021 | D18: 2020 | E18: 2012 | F18: REI Investments_A_Total OM&A Start-Up | G18: ='App.2-FA Proposed REG Invest.'!$H$31 -> 2021 | H18: ='App.2-FA Proposed REG Invest.'!H63 -> 0
A19: ='LDC Info'!$E$14 -> North Bay Hydro Distribution Limited - Espanola service territory | B19: EB-2020-0020 | C19: 2021 | D19: 2020 | E19: 2012 | F19: REI Investments_A_Total OM&A Ongoing | G19: ='App.2-FA Proposed REG Invest.'!$H$31 -> 2021 | H19: ='App.2-FA Proposed REG Invest.'!H64 -> 0
A20: ='LDC Info'!$E$14 -> North Bay Hydro Distribution Limited - Espanola service territory | B20: EB-2020-0020 | C20: 2021 | D20: 2020 | E20: 2012 | F20: REI Investments_A_Total Capital Costs | G20: ='App.2-FA Proposed REG Invest.'!$I$31 -> 2022 | H20: ='App.2-FA Proposed REG Invest.'!I62 -> 0
A21: ='LDC Info'!$E$14 -> North Bay Hydro Distribution Limited - Espanola service territory | B21: EB-2020-0020 | C21: 2021 | D21: 2020 | E21: 2012 | F21: REI Investments_A_Total OM&A Start-Up | G21: ='App.2-FA Proposed REG Invest.'!$I$31 -> 2022 | H21: ='App.2-FA Proposed REG Invest.'!I63 -> 0
A22: ='LDC Info'!$E$14 -> North Bay Hydro Distribution Limited - Espanola service territory | B22: EB-2020-0020 | C22: 2021 | D22: 2020 | E22: 2012 | F22: REI Investments_A_Total OM&A Ongoing | G22: ='App.2-FA Proposed REG Invest.'!$I$31 -> 2022 | H22: ='App.2-FA Proposed REG Invest.'!I64 -> 0
A23: ='LDC Info'!$E$14 -> North Bay Hydro Distribution Limited - Espanola service territory | B23: EB-2020-0020 | C23: 2021 | D23: 2020 | E23: 2012 | F23: REI Investments_A_Total Capital Costs | G23: ='App.2-FA Proposed REG Invest.'!$J$31 -> 2023 | H23: ='App.2-FA Proposed REG Invest.'!J62 -> 0
A24: ='LDC Info'!$E$14 -> North Bay Hydro Distribution Limited - Espanola service territory | B24: EB-2020-0020 | C24: 2021 | D24: 2020 | E24: 2012 | F24: REI Investments_A_Total OM&A Start-Up | G24: ='App.2-FA Proposed REG Invest.'!$J$31 -> 2023 | H24: ='App.2-FA Proposed REG Invest.'!J63 -> 0
A25: ='LDC Info'!$E$14 -> North Bay Hydro Distribution Limited - Espanola service territory | B25: EB-2020-0020 | C25: 2021 | D25: 2020 | E25: 2012 | F25: REI Investments_A_Total OM&A Ongoing | G25: ='App.2-FA Proposed REG Invest.'!$J$31 -> 2023 | H25: ='App.2-FA Proposed REG Invest.'!J64 -> 0
A26: ='LDC Info'!$E$14 -> North Bay Hydro Distribution Limited - Espanola service territory | B26: EB-2020-0020 | C26: 2021 | D26: 2020 | E26: 2012 | F26: REI Investments_A_Total Capital Costs | G26: ='App.2-FA Proposed REG Invest.'!$K$31 -> 2024 | H26: ='App.2-FA Proposed REG Invest.'!K62 -> 0
A27: ='LDC Info'!$E$14 -> North Bay Hydro Distribution Limited - Espanola service territory | B27: EB-2020-0020 | C27: 2021 | D27: 2020 | E27: 2012 | F27: REI Investments_A_Total OM&A Start-Up | G27: ='App.2-FA Proposed REG Invest.'!$K$31 -> 2024 | H27: ='App.2-FA Proposed REG Invest.'!K63 -> 0
A28: ='LDC Info'!$E$14 -> North Bay Hydro Distribution Limited - Espanola service territory | B28: EB-2020-0020 | C28: 2021 | D28: 2020 | E28: 2012 | F28: REI Investments_A_Total OM&A Ongoing | G28: ='App.2-FA Proposed REG Invest.'!$K$31 -> 2024 | H28: ='App.2-FA Proposed REG Invest.'!K64 -> 0
A29: ='LDC Info'!$E$14 -> North Bay Hydro Distribution Limited - Espanola service territory | B29: EB-2020-0020 | C29: 2021 | D29: 2020 | E29: 2012 | F29: REI Investments_A_Total Capital Costs | G29: ='App.2-FA Proposed REG Invest.'!$L$31 -> 2025 | H29: ='App.2-FA Proposed REG Invest.'!L62 -> 0
A30: ='LDC Info'!$E$14 -> North Bay Hydro Distribution Limited - Espanola service territory | B30: EB-2020-0020 | C30: 2021 | D30: 2020 | E30: 2012 | F30: REI Investments_A_Total OM&A Start-Up | G30: ='App.2-FA Proposed REG Invest.'!$L$31 -> 2025 | H30: ='App.2-FA Proposed REG Invest.'!L63 -> 0
A31: ='LDC Info'!$E$14 -> North Bay Hydro Distribution Limited - Espanola service territory | B31: EB-2020-0020 | C31: 2021 | D31: 2020 | E31: 2012 | F31: REI Investments_A_Total OM&A Ongoing | G31: ='App.2-FA Proposed REG Invest.'!$L$31 -> 2025 | H31: ='App.2-FA Proposed REG Invest.'!L64 -> 0
A32: ='LDC Info'!$E$14 -> North Bay Hydro Distribution Limited - Espanola service territory | B32: EB-2020-0020 | C32: 2021 | D32: 2020 | E32: 2012 | F32: Expansion Investments_B_Total Capital Costs | G32: ='App.2-FA Proposed REG Invest.'!$C$31 -> 2016 | H32: ='App.2-FA Proposed REG Invest.'!C99 -> 0
A33: ='LDC Info'!$E$14 -> North Bay Hydro Distribution Limited - Espanola service territory | B33: EB-2020-0020 | C33: 2021 | D33: 2020 | E33: 2012 | F33: Expansion Investments_B_Total OM&A Start-Up | G33: ='App.2-FA Proposed REG Invest.'!$C$31 -> 2016 | H33: ='App.2-FA Proposed REG Invest.'!C100 -> 0
A34: ='LDC Info'!$E$14 -> North Bay Hydro Distribution Limited - Espanola service territory | B34: EB-2020-0020 | C34: 2021 | D34: 2020 | E34: 2012 | F34: Expansion Investments_B_Total OM&A Ongoing | G34: ='App.2-FA Proposed REG Invest.'!$C$31 -> 2016 | H34: ='App.2-FA Proposed REG Invest.'!C101 -> 0
A35: ='LDC Info'!$E$14 -> North Bay Hydro Distribution Limited - Espanola service territory | B35: EB-2020-0020 | C35: 2021 | D35: 2020 | E35: 2012 | F35: Expansion Investments_B_Total Capital Costs | G35: ='App.2-FA Proposed REG Invest.'!$D$31 -> 2017 | H35: ='App.2-FA Proposed REG Invest.'!D99 -> 0
A36: ='LDC Info'!$E$14 -> North Bay Hydro Distribution Limited - Espanola service territory | B36: EB-2020-0020 | C36: 2021 | D36: 2020 | E36: 2012 | F36: Expansion Investments_B_Total OM&A Start-Up | G36: ='App.2-FA Proposed REG Invest.'!$D$31 -> 2017 | H36: ='App.2-FA Proposed REG Invest.'!D100 -> 0
A37: ='LDC Info'!$E$14 -> North Bay Hydro Distribution Limited - Espanola service territory | B37: EB-2020-0020 | C37: 2021 | D37: 2020 | E37: 2012 | F37: Expansion Investments_B_Total OM&A Ongoing | G37: ='App.2-FA Proposed REG Invest.'!$D$31 -> 2017 | H37: ='App.2-FA Proposed REG Invest.'!D101 -> 0
A38: ='LDC Info'!$E$14 -> North Bay Hydro Distribution Limited - Espanola service territory | B38: EB-2020-0020 | C38: 2021 | D38: 2020 | E38: 2012 | F38: Expansion Investments_B_Total Capital Costs | G38: ='App.2-FA Proposed REG Invest.'!$E$31 -> 2018 | H38: ='App.2-FA Proposed REG Invest.'!E99 -> 0
A39: ='LDC Info'!$E$14 -> North Bay Hydro Distribution Limited - Espanola service territory | B39: EB-2020-0020 | C39: 2021 | D39: 2020 | E39: 2012 | F39: Expansion Investments_B_Total OM&A Start-Up | G39: ='App.2-FA Proposed REG Invest.'!$E$31 -> 2018 | H39: ='App.2-FA Proposed REG Invest.'!E100 -> 0
A40: ='LDC Info'!$E$14 -> North Bay Hydro Distribution Limited - Espanola service territory | B40: EB-2020-0020 | C40: 2021 | D40: 2020 | E40: 2012 | F40: Expansion Investments_B_Total OM&A Ongoing | G40: ='App.2-FA Proposed REG Invest.'!$E$31 -> 2018 | H40: ='App.2-FA Proposed REG Invest.'!E101 -> 0
A41: ='LDC Info'!$E$14 -> North Bay Hydro Distribution Limited - Espanola service territory | B41: EB-2020-0020 | C41: 2021 | D41: 2020 | E41: 2012 | F41: Expansion Investments_B_Total Capital Costs | G41: ='App.2-FA Proposed REG Invest.'!$F$31 -> 2019 | H41: ='App.2-FA Proposed REG Invest.'!F99 -> 0
A42: ='LDC Info'!$E$14 -> North Bay Hydro Distribution Limited - Espanola service territory | B42: EB-2020-0020 | C42: 2021 | D42: 2020 | E42: 2012 | F42: Expansion Investments_B_Total OM&A Start-Up | G42: ='App.2-FA Proposed REG Invest.'!$F$31 -> 2019 | H42: ='App.2-FA Proposed REG Invest.'!F100 -> 0
A43: ='LDC Info'!$E$14 -> North Bay Hydro Distribution Limited - Espanola service territory | B43: EB-2020-0020 | C43: 2021 | D43: 2020 | E43: 2012 | F43: Expansion Investments_B_Total OM&A Ongoing | G43: ='App.2-FA Proposed REG Invest.'!$F$31 -> 2019 | H43: ='App.2-FA Proposed REG Invest.'!F101 -> 0
A44: ='LDC Info'!$E$14 -> North Bay Hydro Distribution Limited - Espanola service territory | B44: EB-2020-0020 | C44: 2021 | D44: 2020 | E44: 2012 | F44: Expansion Investments_B_Total Capital Costs | G44: ='App.2-FA Proposed REG Invest.'!$G$31 -> 2020 | H44: ='App.2-FA Proposed REG Invest.'!G99 -> 0
A45: ='LDC Info'!$E$14 -> North Bay Hydro Distribution Limited - Espanola service territory | B45: EB-2020-0020 | C45: 2021 | D45: 2020 | E45: 2012 | F45: Expansion Investments_B_Total OM&A Start-Up | G45: ='App.2-FA Proposed REG Invest.'!$G$31 -> 2020 | H45: ='App.2-FA Proposed REG Invest.'!G100 -> 0
A46: ='LDC Info'!$E$14 -> North Bay Hydro Distribution Limited - Espanola service territory | B46: EB-2020-0020 | C46: 2021 | D46: 2020 | E46: 2012 | F46: Expansion Investments_B_Total OM&A Ongoing | G46: ='App.2-FA Proposed REG Invest.'!$G$31 -> 2020 | H46: ='App.2-FA Proposed REG Invest.'!G101 -> 0
A47: ='LDC Info'!$E$14 -> North Bay Hydro Distribution Limited - Espanola service territory | B47: EB-2020-0020 | C47: 2021 | D47: 2020 | E47: 2012 | F47: Expansion Investments_B_Total Capital Costs | G47: ='App.2-FA Proposed REG Invest.'!$H$31 -> 2021 | H47: ='App.2-FA Proposed REG Invest.'!H99 -> 0
A48: ='LDC Info'!$E$14 -> North Bay Hydro Distribution Limited - Espanola service territory | B48: EB-2020-0020 | C48: 2021 | D48: 2020 | E48: 2012 | F48: Expansion Investments_B_Total OM&A Start-Up | G48: ='App.2-FA Proposed REG Invest.'!$H$31 -> 2021 | H48: ='App.2-FA Proposed REG Invest.'!H100 -> 0
A49: ='LDC Info'!$E$14 -> North Bay Hydro Distribution Limited - Espanola service territory | B49: EB-2020-0020 | C49: 2021 | D49: 2020 | E49: 2012 | F49: Expansion Investments_B_Total OM&A Ongoing | G49: ='App.2-FA Proposed REG Invest.'!$H$31 -> 2021 | H49: ='App.2-FA Proposed REG Invest.'!H101 -> 0
A50: ='LDC Info'!$E$14 -> North Bay Hydro Distribution Limited - Espanola service territory | B50: EB-2020-0020 | C50: 2021 | D50: 2020 | E50: 2012 | F50: Expansion Investments_B_Total Capital Costs | G50: ='App.2-FA Proposed REG Invest.'!$I$31 -> 2022 | H50: ='App.2-FA Proposed REG Invest.'!I99 -> 0
A51: ='LDC Info'!$E$14 -> North Bay Hydro Distribution Limited - Espanola service territory | B51: EB-2020-0020 | C51: 2021 | D51: 2020 | E51: 2012 | F51: Expansion Investments_B_Total OM&A Start-Up | G51: ='App.2-FA Proposed REG Invest.'!$I$31 -> 2022 | H51: ='App.2-FA Proposed REG Invest.'!I100 -> 0
A52: ='LDC Info'!$E$14 -> North Bay Hydro Distribution Limited - Espanola service territory | B52: EB-2020-0020 | C52: 2021 | D52: 2020 | E52: 2012 | F52: Expansion Investments_B_Total OM&A Ongoing | G52: ='App.2-FA Proposed REG Invest.'!$I$31 -> 2022 | H52: ='App.2-FA Proposed REG Invest.'!I101 -> 0
A53: ='LDC Info'!$E$14 -> North Bay Hydro Distribution Limited - Espanola service territory | B53: EB-2020-0020 | C53: 2021 | D53: 2020 | E53: 2012 | F53: Expansion Investments_B_Total Capital Costs | G53: ='App.2-FA Proposed REG Invest.'!$J$31 -> 2023 | H53: ='App.2-FA Proposed REG Invest.'!J99 -> 0
A54: ='LDC Info'!$E$14 -> North Bay Hydro Distribution Limited - Espanola service territory | B54: EB-2020-0020 | C54: 2021 | D54: 2020 | E54: 2012 | F54: Expansion Investments_B_Total OM&A Start-Up | G54: ='App.2-FA Proposed REG Invest.'!$J$31 -> 2023 | H54: ='App.2-FA Proposed REG Invest.'!J100 -> 0
A55: ='LDC Info'!$E$14 -> North Bay Hydro Distribution Limited - Espanola service territory | B55: EB-2020-0020 | C55: 2021 | D55: 2020 | E55: 2012 | F55: Expansion Investments_B_Total OM&A Ongoing | G55: ='App.2-FA Proposed REG Invest.'!$J$31 -> 2023 | H55: ='App.2-FA Proposed REG Invest.'!J101 -> 0
A56: ='LDC Info'!$E$14 -> North Bay Hydro Distribution Limited - Espanola service territory | B56: EB-2020-0020 | C56: 2021 | D56: 2020 | E56: 2012 | F56: Expansion Investments_B_Total Capital Costs | G56: ='App.2-FA Proposed REG Invest.'!$K$31 -> 2024 | H56: ='App.2-FA Proposed REG Invest.'!K99 -> 0
A57: ='LDC Info'!$E$14 -> North Bay Hydro Distribution Limited - Espanola service territory | B57: EB-2020-0020 | C57: 2021 | D57: 2020 | E57: 2012 | F57: Expansion Investments_B_Total OM&A Start-Up | G57: ='App.2-FA Proposed REG Invest.'!$K$31 -> 2024 | H57: ='App.2-FA Proposed REG Invest.'!K100 -> 0
A58: ='LDC Info'!$E$14 -> North Bay Hydro Distribution Limited - Espanola service territory | B58: EB-2020-0020 | C58: 2021 | D58: 2020 | E58: 2012 | F58: Expansion Investments_B_Total OM&A Ongoing | G58: ='App.2-FA Proposed REG Invest.'!$K$31 -> 2024 | H58: ='App.2-FA Proposed REG Invest.'!K101 -> 0
A59: ='LDC Info'!$E$14 -> North Bay Hydro Distribution Limited - Espanola service territory | B59: EB-2020-0020 | C59: 2021 | D59: 2020 | E59: 2012 | F59: Expansion Investments_B_Total Capital Costs | G59: ='App.2-FA Proposed REG Invest.'!$L$31 -> 2025 | H59: ='App.2-FA Proposed REG Invest.'!L99 -> 0
A60: ='LDC Info'!$E$14 -> North Bay Hydro Distribution Limited - Espanola service territory | B60: EB-2020-0020 | C60: 2021 | D60: 2020 | E60: 2012 | F60: Expansion Investments_B_Total OM&A Start-Up | G60: ='App.2-FA Proposed REG Invest.'!$L$31 -> 2025 | H60: ='App.2-FA Proposed REG Invest.'!L100 -> 0
A61: ='LDC Info'!$E$14 -> North Bay Hydro Distribution Limited - Espanola service territory | B61: EB-2020-0020 | C61: 2021 | D61: 2020 | E61: 2012 | F61: Expansion Investments_B_Total OM&A Ongoing | G61: ='App.2-FA Proposed REG Invest.'!$L$31 -> 2025 | H61: ='App.2-FA Proposed REG Invest.'!L101 -> 0

Sheet Hidden_REG Improvement (hidden)
A1: Utility Name | B1: EB Number | C1: Test Year | D1: Bridge Year | E1: Last Rebasing Year | F1: Renewable Generation Connection Direct Benefits/Provincial Amount Renewable Enabling Improvement Investments | G1: Year | H1: Amount
A2: ='LDC Info'!$E$14 -> North Bay Hydro Distribution Limited - Espanola service territory | B2: =EBNUMBER -> EB-2020-0020 | C2: =TestYear -> 2021 | D2: =BridgeYear -> 2020 | E2: =RebaseYear -> 2012 | F2: Provincial Rate Protection | G2: ='App.2-FB Calc of REG Improvemnt'!D17 -> 2016 | H2: ='App.2-FB Calc of REG Improvemnt'!F$44 -> 0
A3: ='LDC Info'!$E$14 -> North Bay Hydro Distribution Limited - Espanola service territory | B3: EB-2020-0020 | C3: 2021 | D3: 2020 | E3: 2012 | F3: Provincial Rate Protection | G3: ='App.2-FB Calc of REG Improvemnt'!G17 -> 2017 | H3: ='App.2-FB Calc of REG Improvemnt'!I$44 -> 0
A4: ='LDC Info'!$E$14 -> North Bay Hydro Distribution Limited - Espanola service territory | B4: EB-2020-0020 | C4: 2021 | D4: 2020 | E4: 2012 | F4: Provincial Rate Protection | G4: ='App.2-FB Calc of REG Improvemnt'!J17 -> 2018 | H4: ='App.2-FB Calc of REG Improvemnt'!L$44 -> 0
A5: ='LDC Info'!$E$14 -> North Bay Hydro Distribution Limited - Espanola service territory | B5: EB-2020-0020 | C5: 2021 | D5: 2020 | E5: 2012 | F5: Provincial Rate Protection | G5: ='App.2-FB Calc of REG Improvemnt'!M17 -> 2019 | H5: ='App.2-FB Calc of REG Improvemnt'!O$44 -> 0
A6: ='LDC Info'!$E$14 -> North Bay Hydro Distribution Limited - Espanola service territory | B6: EB-2020-0020 | C6: 2021 | D6: 2020 | E6: 2012 | F6: Provincial Rate Protection | G6: ='App.2-FB Calc of REG Improvemnt'!P17 -> 2020 | H6: ='App.2-FB Calc of REG Improvemnt'!R$44 -> 0
A7: ='LDC Info'!$E$14 -> North Bay Hydro Distribution Limited - Espanola service territory | B7: EB-2020-0020 | C7: 2021 | D7: 2020 | E7: 2012 | F7: Provincial Rate Protection | G7: ='App.2-FB Calc of REG Improvemnt'!S17 -> 2021 | H7: ='App.2-FB Calc of REG Improvemnt'!U$44 -> 0
A8: ='LDC Info'!$E$14 -> North Bay Hydro Distribution Limited - Espanola service territory | B8: EB-2020-0020 | C8: 2021 | D8: 2020 | E8: 2012 | F8: Provincial Rate Protection | G8: ='App.2-FB Calc of REG Improvemnt'!V17 -> 2022 | H8: ='App.2-FB Calc of REG Improvemnt'!X$44 -> 0
A9: ='LDC Info'!$E$14 -> North Bay Hydro Distribution Limited - Espanola service territory | B9: EB-2020-0020 | C9: 2021 | D9: 2020 | E9: 2012 | F9: Provincial Rate Protection | G9: ='App.2-FB Calc of REG Improvemnt'!Y17 -> 2023 | H9: ='App.2-FB Calc of REG Improvemnt'!AA$44 -> 0
A10: ='LDC Info'!$E$14 -> North Bay Hydro Distribution Limited - Espanola service territory | B10: EB-2020-0020 | C10: 2021 | D10: 2020 | E10: 2012 | F10: Provincial Rate Protection | G10: ='App.2-FB Calc of REG Improvemnt'!AB17 -> 2024 | H10: ='App.2-FB Calc of REG Improvemnt'!AD$44 -> 0
A11: ='LDC Info'!$E$14 -> North Bay Hydro Distribution Limited - Espanola service territory | B11: EB-2020-0020 | C11: 2021 | D11: 2020 | E11: 2012 | F11: Provincial Rate Protection | G11: ='App.2-FB Calc of REG Improvemnt'!AE17 -> 2025 | H11: ='App.2-FB Calc of REG Improvemnt'!AG$44 -> 0

Sheet Hidden_REG Expansion (hidden)
A1: Utility Name | B1: EB Number | C1: Test Year | D1: Bridge Year | E1: Last Rebasing Year | F1: Calculation of Renewable Generation Connection Direct Benefits/Provincial Amount Renewable Expansion Investments | G1: Year | H1: Amount
A2: ='LDC Info'!$E$14 -> North Bay Hydro Distribution Limited - Espanola service territory | B2: =EBNUMBER -> EB-2020-0020 | C2: =TestYear -> 2021 | D2: =BridgeYear -> 2020 | E2: =RebaseYear -> 2012 | F2: Provincial Rate Protection | G2: ='App.2-FC Calc of REG Expansion'!D$17 -> 2016 | H2: ='App.2-FC Calc of REG Expansion'!F$44 -> 0
A3: ='LDC Info'!$E$14 -> North Bay Hydro Distribution Limited - Espanola service territory | B3: EB-2020-0020 | C3: 2021 | D3: 2020 | E3: 2012 | F3: Provincial Rate Protection | G3: ='App.2-FC Calc of REG Expansion'!G$17 -> 2017 | H3: ='App.2-FC Calc of REG Expansion'!I$44 -> 0
A4: ='LDC Info'!$E$14 -> North Bay Hydro Distribution Limited - Espanola service territory | B4: EB-2020-0020 | C4: 2021 | D4: 2020 | E4: 2012 | F4: Provincial Rate Protection | G4: ='App.2-FC Calc of REG Expansion'!J$17 -> 2018 | H4: ='App.2-FC Calc of REG Expansion'!L$44 -> 0
A5: ='LDC Info'!$E$14 -> North Bay Hydro Distribution Limited - Espanola service territory | B5: EB-2020-0020 | C5: 2021 | D5: 2020 | E5: 2012 | F5: Provincial Rate Protection | G5: ='App.2-FC Calc of REG Expansion'!M$17 -> 2019 | H5: ='App.2-FC Calc of REG Expansion'!O$44 -> 0
A6: ='LDC Info'!$E$14 -> North Bay Hydro Distribution Limited - Espanola service territory | B6: EB-2020-0020 | C6: 2021 | D6: 2020 | E6: 2012 | F6: Provincial Rate Protection | G6: ='App.2-FC Calc of REG Expansion'!P$17 -> 2020 | H6: ='App.2-FC Calc of REG Expansion'!R$44 -> 0
A7: ='LDC Info'!$E$14 -> North Bay Hydro Distribution Limited - Espanola service territory | B7: EB-2020-0020 | C7: 2021 | D7: 2020 | E7: 2012 | F7: Provincial Rate Protection | G7: ='App.2-FC Calc of REG Expansion'!S$17 -> 2021 | H7: ='App.2-FC Calc of REG Expansion'!U$44 -> 0
A8: ='LDC Info'!$E$14 -> North Bay Hydro Distribution Limited - Espanola service territory | B8: EB-2020-0020 | C8: 2021 | D8: 2020 | E8: 2012 | F8: Provincial Rate Protection | G8: ='App.2-FC Calc of REG Expansion'!V$17 -> 2022 | H8: ='App.2-FC Calc of REG Expansion'!X$44 -> 0
A9: ='LDC Info'!$E$14 -> North Bay Hydro Distribution Limited - Espanola service territory | B9: EB-2020-0020 | C9: 2021 | D9: 2020 | E9: 2012 | F9: Provincial Rate Protection | G9: ='App.2-FC Calc of REG Expansion'!Y$17 -> 2023 | H9: ='App.2-FC Calc of REG Expansion'!AA$44 -> 0
A10: ='LDC Info'!$E$14 -> North Bay Hydro Distribution Limited - Espanola service territory | B10: EB-2020-0020 | C10: 2021 | D10: 2020 | E10: 2012 | F10: Provincial Rate Protection | G10: ='App.2-FC Calc of REG Expansion'!AB$17 -> 2024 | H10: ='App.2-FC Calc of REG Expansion'!AD$44 -> 0
A11: ='LDC Info'!$E$14 -> North Bay Hydro Distribution Limited - Espanola service territory | B11: EB-2020-0020 | C11: 2021 | D11: 2020 | E11: 2012 | F11: Provincial Rate Protection | G11: ='App.2-FC Calc of REG Expansion'!AE$17 -> 2025 | H11: ='App.2-FC Calc of REG Expansion'!AG$44 -> 0

Sheet App.2-FA Proposed REG Invest.
K1: File Number: | L1: 0
K2: Exhibit:
K3: Tab:
A4: TO BE UPDATED AT DRAFT RATE ORDER STAGE | K4: Schedule:
K5: Page:
K7: Date:
A9: Appendix 2-FA
A10: Renewable Generation Connection Investment Summary (past investments or over the future rate setting period)
A12: Enter the details of the Renewable Generation Connection projects as described in the appropriate section of the Filing Requirements.
A13: All costs entered on this page will be transferred to the appropriate cells in the appendices that follow.
A14: For Part A, Renewable Enabling Improvements (REI), these amounts will be transferred to Appendix 2 - FB
A15: For Part B, Expansions, these amounts will be transferred to Appendix 2 - FC
A17: If there are more than five projects proposed to be in-service in a certain year, please amend the tables below and ensure that the formulae for the Total Amounts in any given rate year are updated.
A18: Based on the current methodology and allocation, amounts allocated represent 6% for REI Connection Investments and 17% for Expansion Investments. (EB-2009-0349, 6-10-2010, p. 15, note 9)
A19: Ensure that OM&A costs below are not included in Recoverable OM&A (App. 2-JA)
A20: There are two scenarios described below. Separate sets of spreadsheets (2-FA, 2-FB, 2-FC) should be submited for each scenario as required.
A21: Scenario 1: | B21: Past Investments with No Recovery. The distributor has made investments in the past (during the IRM Years), but has not received approval for these projects and therefore did not receive
B22: revenue from the IESO under Regulation 330/09 and did not receive ratepayer revenue for the direct benefit portion of the investment.
B23: The WCA percentage, debt percentages, interest rates, kWh, tax rates, amortization period, CCA Class and percentage should correspond to the distributor's last Cost of Service approval.
B24: The Direct Benefit portion of the calculated Revenue Requirement for each year should be summed and can be applied for recovery from the distributor's ratepayers through a rate rider.
B25: The Provincial Recovery portion of the calculated Revenue Requirement for each year should be summed and can be applied for recovery from the IESO through a separate order.
A27: Scenario 2: | B27: Investments in the Test Year and Beyond. Distributor plans to make investments in 2021 and/or beyond. These investments should be added to 2-FA in the appropriate year.
B28: The WCA percentage, debt percentages, interest rates, kWh, tax rates, amortization period, CCA Class and percentage should correspond to the distributor's current application.
A30: Part A | H30: Test Year
A31: REI Investments (Direct Benefit at 6%) | C31: =D31-1 -> 2016 | D31: =E31-1 -> 2017 | E31: =F31-1 -> 2018 | F31: =G31-1 -> 2019 | G31: =H31-1 -> 2020 | H31: ='LDC Info'!$E$24 -> 2021 | I31: =H31+1 -> 2022 | J31: =I31+1 -> 2023 | K31: =J31+1 -> 2024 | L31: =K31+1 -> 2025
A32: Project 1
A33: Name: REI Connection Project
A34: Capital Costs | C34: 0 | D34: 0 | E34: 0 | F34: 0 | G34: 0 | H34: 0 | I34: 0 | J34: 0 | K34: 0 | L34: 0
A35: Incremental OM&A (Start-Up) | C35: 0 | D35: 0 | E35: 0 | F35: 0 | G35: 0 | H35: 0 | I35: 0 | J35: 0 | K35: 0 | L35: 0
A36: Incremental OM&A (Ongoing) | C36: 0 | D36: 0 | E36: 0 | F36: 0 | G36: 0 | H36: 0 | I36: 0 | J36: 0 | K36: 0 | L36: 0
A38: Project 2
A39: Name: REI Connection Project
A40: Capital Costs | C40: 0 | D40: 0 | E40: 0 | F40: 0 | G40: 0 | H40: 0 | I40: 0 | J40: 0 | K40: 0 | L40: 0
A41: Incremental OM&A (Start-Up) | C41: 0 | D41: 0 | E41: 0 | F41: 0 | G41: 0 | H41: 0 | I41: 0 | J41: 0 | K41: 0 | L41: 0
A42: Incremental OM&A (Ongoing) | C42: 0 | D42: 0 | E42: 0 | F42: 0 | G42: 0 | H42: 0 | I42: 0 | J42: 0 | K42: 0 | L42: 0
A44: Project 3
A45: Name: REI Connection Project
A46: Capital Costs | C46: 0 | D46: 0 | E46: 0 | F46: 0 | G46: 0 | H46: 0 | I46: 0 | J46: 0 | K46: 0 | L46: 0
A47: Incremental OM&A (Start-Up) | C47: 0 | D47: 0 | E47: 0 | F47: 0 | G47: 0 | H47: 0 | I47: 0 | J47: 0 | K47: 0 | L47: 0
A48: Incremental OM&A (Ongoing) | C48: 0 | D48: 0 | E48: 0 | F48: 0 | G48: 0 | H48: 0 | I48: 0 | J48: 0 | K48: 0 | L48: 0
A50: Project 4
A51: Name: REI Connection Project
A52: Capital Costs | C52: 0 | D52: 0 | E52: 0 | F52: 0 | G52: 0 | H52: 0 | I52: 0 | J52: 0 | K52: 0 | L52: 0
A53: Incremental OM&A (Start-Up) | C53: 0 | D53: 0 | E53: 0 | F53: 0 | G53: 0 | H53: 0 | I53: 0 | J53: 0 | K53: 0 | L53: 0
A54: Incremental OM&A (Ongoing) | C54: 0 | D54: 0 | E54: 0 | F54: 0 | G54: 0 | H54: 0 | I54: 0 | J54: 0 | K54: 0 | L54: 0
A56: Project 5
A57: Name: REI Connection Project
A58: Capital Costs | C58: 0 | D58: 0 | E58: 0 | F58: 0 | G58: 0 | H58: 0 | I58: 0 | J58: 0 | K58: 0 | L58: 0
A59: Incremental OM&A (Start-Up) | C59: 0 | D59: 0 | E59: 0 | F59: 0 | G59: 0 | H59: 0 | I59: 0 | J59: 0 | K59: 0 | L59: 0
A60: Incremental OM&A (Ongoing) | C60: 0 | D60: 0 | E60: 0 | F60: 0 | G60: 0 | H60: 0 | I60: 0 | J60: 0 | K60: 0 | L60: 0
A62: Total Capital Costs | C62: =SUM(C58,C52,C46,C40,C34) -> 0 | D62: 0 | E62: 0 | F62: 0 | G62: 0 | H62: 0 | I62: 0 | J62: 0 | K62: 0 | L62: 0
A63: Total Incremental OM&A (Start-Up) | C63: 0 | D63: 0 | E63: 0 | F63: 0 | G63: 0 | H63: 0 | I63: 0 | J63: 0 | K63: 0 | L63: 0
A64: Total Incremental OM&A (Ongoing) | C64: 0 | D64: 0 | E64: 0 | F64: 0 | G64: 0 | H64: 0 | I64: 0 | J64: 0 | K64: 0 | L64: 0
A67: Part B | H67: Test Year
A68: Expansion Investments (Direct Benefit at 17%) | C68: =D68-1 -> 2016 | D68: =E68-1 -> 2017 | E68: =F68-1 -> 2018 | F68: =G68-1 -> 2019 | G68: =H68-1 -> 2020 | H68: =H31 -> 2021 | I68: =H68+1 -> 2022 | J68: =I68+1 -> 2023 | K68: =J68+1 -> 2024 | L68: =K68+1 -> 2025
A69: Project 1
A70: Name: Expansion Connection Project
A71: Capital Costs | C71: 0 | D71: 0 | E71: 0 | F71: 0 | G71: 0 | H71: 0 | I71: 0 | J71: 0 | K71: 0 | L71: 0
A72: Incremental OM&A (Start-Up) | C72: 0 | D72: 0 | E72: 0 | F72: 0 | G72: 0 | H72: 0 | I72: 0 | J72: 0 | K72: 0 | L72: 0
A73: Incremental OM&A (Ongoing) | C73: 0 | D73: 0 | E73: 0 | F73: 0 | G73: 0 | H73: 0 | I73: 0 | J73: 0 | K73: 0 | L73: 0
A75: Project 2
A76: Name: Expansion Connection Project
A77: Capital Costs | C77: 0 | D77: 0 | E77: 0 | F77: 0 | G77: 0 | H77: 0 | I77: 0 | J77: 0 | K77: 0 | L77: 0
A78: Incremental OM&A (Start-Up) | C78: 0 | D78: 0 | E78: 0 | F78: 0 | G78: 0 | H78: 0 | I78: 0 | J78: 0 | K78: 0 | L78: 0
A79: Incremental OM&A (Ongoing) | C79: 0 | D79: 0 | E79: 0 | F79: 0 | G79: 0 | H79: 0 | I79: 0 | J79: 0 | K79: 0 | L79: 0
A81: Project 3
A82: Name: Expansion Connection Project
A83: Capital Costs | C83: 0 | D83: 0 | E83: 0 | F83: 0 | G83: 0 | H83: 0 | I83: 0 | J83: 0 | K83: 0 | L83: 0
A84: Incremental OM&A (Start-Up) | C84: 0 | D84: 0 | E84: 0 | F84: 0 | G84: 0 | H84: 0 | I84: 0 | J84: 0 | K84: 0 | L84: 0
A85: Incremental OM&A (Ongoing) | C85: 0 | D85: 0 | E85: 0 | F85: 0 | G85: 0 | H85: 0 | I85: 0 | J85: 0 | K85: 0 | L85: 0
A87: Project 4
A88: Name: Expansion Connection Project
A89: Capital Costs | C89: 0 | D89: 0 | E89: 0 | F89: 0 | G89: 0 | H89: 0 | I89: 0 | J89: 0 | K89: 0 | L89: 0
A90: Incremental OM&A (Start-Up) | C90: 0 | D90: 0 | E90: 0 | F90: 0 | G90: 0 | H90: 0 | I90: 0 | J90: 0 | K90: 0 | L90: 0
A91: Incremental OM&A (Ongoing) | C91: 0 | D91: 0 | E91: 0 | F91: 0 | G91: 0 | H91: 0 | I91: 0 | J91: 0 | K91: 0 | L91: 0
A93: Project 5
A94: Name: Expansion Connection Project
A95: Capital Costs | C95: 0 | D95: 0 | E95: 0 | F95: 0 | G95: 0 | H95: 0 | I95: 0 | J95: 0 | K95: 0 | L95: 0
A96: Incremental OM&A (Start-Up) | C96: 0 | D96: 0 | E96: 0 | F96: 0 | G96: 0 | H96: 0 | I96: 0 | J96: 0 | K96: 0 | L96: 0
A97: Incremental OM&A (Ongoing) | C97: 0 | D97: 0 | E97: 0 | F97: 0 | G97: 0 | H97: 0 | I97: 0 | J97: 0 | K97: 0 | L97: 0
A99: Total Capital Costs | C99: =SUM(C95,C89,C83,C77,C71) -> 0 | D99: 0 | E99: 0 | F99: 0 | G99: 0 | H99: 0 | I99: 0 | J99: 0 | K99: 0 | L99: 0
A100: Total Incremental OM&A (Start-Up) | C100: 0 | D100: 0 | E100: 0 | F100: 0 | G100: 0 | H100: 0 | I100: 0 | J100: 0 | K100: 0 | L100: 0
A101: Total Incremental OM&A (Ongoing) | C101: 0 | D101: 0 | E101: 0 | F101: 0 | G101: 0 | H101: 0 | I101: 0 | J101: 0 | K101: 0 | L101: 0

Sheet App.2-FB Calc of REG Improvemnt
R1: File Number: | S1: 0
R2: Exhibit:
R3: Tab:
A4: TO BE UPDATED AT DRAFT RATE ORDER STAGE | R4: Schedule:
R5: Page:
R7: Date:
A9: Appendix 2-FB
A10: Calculation of Renewable Generation Connection Direct Benefits/Provincial Amount: Renewable Enabling Improvement Investments
A12: This table will calculate the distributor/provincial shares of the investments entered in Part A of Appendix 2-FA.
A13: Enter values in green shaded cells: WCA percentage, debt percentages, interest rates, kWh, tax rates, amortization period, CCA Class and percentage.
A14: For historical investments, enter these variables that were approved in your last cost of service test year. For 2021 and beyond, enter variables as in the application.
A15: Rate Riders related to the direct benefit portion of the renewable investments are not calculated for the Test Year as these assets and costs are already in the distributor's rate base/revenue requirement.
S16: Test Year
D17: =G17-1 -> 2016 | G17: =J17-1 -> 2017 | J17: =M17-1 -> 2018 | M17: =P17-1 -> 2019 | P17: =S17-1 -> 2020 | S17: ='LDC Info'!$E$24 -> 2021 | V17: =S17+1 -> 2022 | Y17: =V17+1 -> 2023 | Z17: 2016 | AB17: =Y17+1 -> 2024 | AE17: =AB17+1 -> 2025 | AH17: =AE17+1 -> 2026
E18: Direct Benefit | F18: Provincial | H18: Direct Benefit | I18: Provincial | K18: Direct Benefit | L18: Provincial | N18: Direct Benefit | O18: Provincial | Q18: Direct Benefit | R18: Provincial | T18: Direct Benefit | U18: Provincial | W18: Direct Benefit | X18: Provincial | Z18: Direct Benefit | AA18: Provincial | AC18: Direct Benefit | AD18: Provincial | AF18: Direct Benefit | AG18: Provincial | AI18: Direct Benefit | AJ18: Provincial
D19: Total | E19: 0.06 | F19: 0.94 | G19: Total | H19: 0.06 | I19: 0.94 | J19: Total | K19: 0.06 | L19: 0.94 | M19: Total | N19: 0.06 | O19: 0.94 | P19: Total | Q19: 0.06 | R19: 0.94 | S19: Total | T19: 0.06 | U19: 0.94 | V19: Total | W19: 0.06 | X19: 0.94 | Y19: Total | Z19: 0.06 | AA19: 0.94 | AB19: Total | AC19: 0.06 | AD19: 0.94 | AE19: Total | AF19: 0.06 | AG19: 0.94 | AH19: Total | AI19: 0.06 | AJ19: 0.94
A20: Net Fixed Assets (average) | D20: =E83 -> 0 | E20: =D20*E19 -> 0 | F20: =D20*F19 -> 0 | G20: =F83 -> 0 | H20: =G20*H19 -> 0 | I20: =G20*I19 -> 0 | J20: =G83 -> 0 | K20: =J20*K19 -> 0 | L20: =J20*L19 -> 0 | M20: =H83 -> 0 | N20: =M20*N19 -> 0 | O20: =M20*O19 -> 0 | P20: =I83 -> 0 | Q20: =P20*Q19 -> 0 | R20: =P20*R19 -> 0 | S20: =J83 -> 0 | T20: =S20*T19 -> 0 | U20: =S20*U19 -> 0 | V20: =K83 -> 0 | W20: =V20*W19 -> 0 | X20: =V20*X19 -> 0 | Y20: =L83 -> 0 | Z20: =Y20*Z19 -> 0 | AA20: =Y20*AA19 -> 0 | AB20: =M83 -> 0 | AC20: =AB20*AC19 -> 0 | AD20: =AB20*AD19 -> 0 | AE20: =N83 -> 0 | AF20: =AE20*AF19 -> 0 | AG20: =AE20*AG19 -> 0 | AH20: =O83 -> 0 | AI20: =AH20*AI19 -> 0 | AJ20: =AH20*AJ19 -> 0
A21: Incremental OM&A (on-going, N/A for Provincial Recovery) | D21: 0 | E21: =D21*E19 -> 0 | F21: =D21*F19 -> 0 | G21: 0 | H21: =G21*H19 -> 0 | I21: =G21*I19 -> 0 | J21: 0 | K21: =J21*K19 -> 0 | L21: =J21*L19 -> 0 | M21: 0 | N21: =M21*N19 -> 0 | O21: =M21*O19 -> 0 | P21: 0 | Q21: =P21*Q19 -> 0 | R21: =P21*R19 -> 0 | S21: 0 | T21: =S21*T19 -> 0 | U21: =S21*U19 -> 0 | V21: 0 | W21: =V21*W19 -> 0 | X21: =V21*X19 -> 0 | Y21: 0 | Z21: =Y21*Z19 -> 0 | AA21: =Y21*AA19 -> 0 | AB21: 0 | AC21: =AB21*AC19 -> 0 | AD21: =AB21*AD19 -> 0 | AE21: 0 | AF21: =AE21*AF19 -> 0 | AG21: =AE21*AG19 -> 0 | AH21: 0 | AI21: =AH21*AI19 -> 0 | AJ21: =AH21*AJ19 -> 0
A22: Incremental OM&A (start-up, applicable for Provincial Recovery) | D22: 0 | E22: =D22*E19 -> 0 | F22: =D22*F19 -> 0 | G22: 0 | H22: =G22*H19 -> 0 | I22: =G22*I19 -> 0 | J22: 0 | K22: =J22*K19 -> 0 | L22: =J22*L19 -> 0 | M22: 0 | N22: =M22*N19 -> 0 | O22: =M22*O19 -> 0 | P22: 0 | Q22: =P22*Q19 -> 0 | R22: =P22*R19 -> 0 | S22: 0 | T22: =S22*T19 -> 0 | U22: =S22*U19 -> 0 | V22: 0 | W22: =V22*W19 -> 0 | X22: =V22*X19 -> 0 | Y22: 0 | Z22: =Y22*Z19 -> 0 | AA22: =Y22*AA19 -> 0 | AB22: 0 | AC22: =AB22*AC19 -> 0 | AD22: =AB22*AD19 -> 0 | AE22: 0 | AF22: =AE22*AF19 -> 0 | AG22: =AE22*AG19 -> 0 | AH22: 0 | AI22: =AH22*AI19 -> 0 | AJ22: =AH22*AJ19 -> 0
A23: Rebasing Year vs. Test Year | B23: ='LDC Info'!E28 -> 2012 | C23: ='LDC Info'!E24 -> 2021
A24: Allowance for Working Capital (enter rate) | E24: =IF(AND(D$17>=$B$23, D$17<$C$23),(E21+E22)*$B$24,(E21+E22)*$C$24) -> 0 | F24: =IF(AND(D$17>=$B$23, D$17<$C$23),(F22)*$B$24,(F22)*$C$24) -> 0 | H24: =IF(AND(G$17>=$B$23, G$17<$C$23),(H21+H22)*$B$24,(H21+H22)*$C$24) -> 0 | I24: =IF(AND(G$17>=$B$23, G$17<$C$23),(I22)*$B$24,(I22)*$C$24) -> 0 | K24: =IF(AND(J$17>=$B$23, J$17<$C$23),(K21+K22)*$B$24,(K21+K22)*$C$24) -> 0 | L24: =IF(AND(J$17>=$B$23, J$17<$C$23),(L22)*$B$24,(L22)*$C$24) -> 0 | N24: =IF(AND(M$17>=$B$23, M$17<$C$23),(N21+N22)*$B$24,(N21+N22)*$C$24) -> 0 | O24: =IF(AND(M$17>=$B$23, M$17<$C$23),(O22)*$B$24,(O22)*$C$24) -> 0 | Q24: =IF(AND(P$17>=$B$23, P$17<$C$23),(Q21+Q22)*$B$24,(Q21+Q22)*$C$24) -> 0 | R24: =IF(AND(P$17>=$B$23, P$17<$C$23),(R22)*$B$24,(R22)*$C$24) -> 0 | T24: =IF(AND(S$17>=$B$23, S$17<$C$23),(T21+T22)*$B$24,(T21+T22)*$C$24) -> 0 | U24: =IF(AND(S$17>=$B$23, S$17<$C$23),(U22)*$B$24,(U22)*$C$24) -> 0 | W24: =IF(AND(V$17>=$B$23, V$17<$C$23),(W21+W22)*$B$24,(W21+W22)*$C$24) -> 0 | X24: =IF(AND(V$17>=$B$23, V$17<$C$23),(X22)*$B$24,(X22)*$C$24) -> 0 | Z24: =IF(AND(Y$17>=$B$23, Y$17<$C$23),(Z21+Z22)*$B$24,(Z21+Z22)*$C$24) -> 0 | AA24: =IF(AND(Y$17>=$B$23, Y$17<$C$23),(AA22)*$B$24,(AA22)*$C$24) -> 0 | AC24: =IF(AND(AB$17>=$B$23, AB$17<$C$23),(AC21+AC22)*$B$24,(AC21+AC22)*$C$24) -> 0 | AD24: =IF(AND(AB$17>=$B$23, AB$17<$C$23),(AD22)*$B$24,(AD22)*$C$24) -> 0 | AF24: =IF(AND(AE$17>=$B$23, AE$17<$C$23),(AF21+AF22)*$B$24,(AF21+AF22)*$C$24) -> 0 | AG24: =IF(AND(AE$17>=$B$23, AE$17<$C$23),(AG22)*$B$24,(AG22)*$C$24) -> 0 | AI24: =IF(AND(AH$17>=$B$23, AH$17<$C$23),(AI21+AI22)*$B$24,(AI21+AI22)*$C$24) -> 0 | AJ24: =IF(AND(AH$17>=$B$23, AH$17<$C$23),(AJ22)*$B$24,(AJ22)*$C$24) -> 0
A25: Rate Base | E25: =SUM(E20+E24) -> 0 | F25: =SUM(F20+F24) -> 0 | H25: =SUM(H20+H24) -> 0 | I25: =SUM(I20+I24) -> 0 | K25: =SUM(K20+K24) -> 0 | L25: =SUM(L20+L24) -> 0 | N25: =SUM(N20+N24) -> 0 | O25: =SUM(O20+O24) -> 0 | Q25: =SUM(Q20+Q24) -> 0 | R25: =SUM(R20+R24) -> 0 | T25: =SUM(T20+T24) -> 0 | U25: =SUM(U20+U24) -> 0 | W25: =SUM(W20+W24) -> 0 | X25: =SUM(X20+X24) -> 0 | Z25: =SUM(Z20+Z24) -> 0 | AA25: =SUM(AA20+AA24) -> 0 | AC25: =SUM(AC20+AC24) -> 0 | AD25: =SUM(AD20+AD24) -> 0 | AF25: =SUM(AF20+AF24) -> 0 | AG25: =SUM(AG20+AG24) -> 0 | AI25: =SUM(AI20+AI24) -> 0 | AJ25: =SUM(AJ20+AJ24) -> 0
A27: Rebasing Year vs. Test Year | B27: =B23 -> 2012 | C27: =C23 -> 2021
A28: Deemed ST Debt | B28: 0.04 | C28: 0.04 | E28: =E25*$B$28 -> 0 | F28: =F25*$B$28 -> 0 | H28: =H25*$B$28 -> 0 | I28: =I25*$B$28 -> 0 | K28: =K25*$B$28 -> 0 | L28: =L25*$B$28 -> 0 | N28: =N25*$B$28 -> 0 | O28: =O25*$B$28 -> 0 | Q28: =Q25*$B$28 -> 0 | R28: =R25*$B$28 -> 0 | T28: =T25*$C$28 -> 0 | U28: =U25*$C$28 -> 0 | W28: =W25*$C$28 -> 0 | X28: =X25*$C$28 -> 0 | Z28: =Z25*$C$28 -> 0 | AA28: =AA25*$C$28 -> 0 | AC28: =AC25*$C$28 -> 0 | AD28: =AD25*$C$28 -> 0 | AF28: =AF25*$C$28 -> 0 | AG28: =AG25*$C$28 -> 0 | AI28: =AI25*$C$28 -> 0 | AJ28: =AJ25*$C$28 -> 0
A29: Deemed LT Debt | B29: 0.56 | C29: 0.56 | E29: =E25*$B$29 -> 0 | F29: =F25*$B$29 -> 0 | H29: =H25*$B$29 -> 0 | I29: =I25*$B$29 -> 0 | K29: =K25*$B$29 -> 0 | L29: =L25*$B$29 -> 0 | N29: =N25*$B$29 -> 0 | O29: =O25*$B$29 -> 0 | Q29: =Q25*$B$29 -> 0 | R29: =R25*$B$29 -> 0 | T29: =T25*$C$29 -> 0 | U29: =U25*$C$29 -> 0 | W29: =W25*$C$29 -> 0 | X29: =X25*$C$29 -> 0 | Z29: =Z25*$C$29 -> 0 | AA29: =AA25*$C$29 -> 0 | AC29: =AC25*$C$29 -> 0 | AD29: =AD25*$C$29 -> 0 | AF29: =AF25*$C$29 -> 0 | AG29: =AG25*$C$29 -> 0 | AI29: =AI25*$C$29 -> 0 | AJ29: =AJ25*$C$29 -> 0
A30: Deemed Equity | B30: 0.4 | C30: 0.4 | E30: =E25*$B$30 -> 0 | F30: =F25*$B$30 -> 0 | H30: =H25*$B$30 -> 0 | I30: =I25*$B$30 -> 0 | K30: =K25*$B$30 -> 0 | L30: =L25*$B$30 -> 0 | N30: =N25*$B$30 -> 0 | O30: =O25*$B$30 -> 0 | Q30: =Q25*$B$30 -> 0 | R30: =R25*$B$30 -> 0 | T30: =T25*$C$30 -> 0 | U30: =U25*$C$30 -> 0 | W30: =W25*$C$30 -> 0 | X30: =X25*$C$30 -> 0 | Z30: =Z25*$C$30 -> 0 | AA30: =AA25*$C$30 -> 0 | AC30: =AC25*$C$30 -> 0 | AD30: =AD25*$C$30 -> 0 | AF30: =AF25*$C$30 -> 0 | AG30: =AG25*$C$30 -> 0 | AI30: =AI25*$C$30 -> 0 | AJ30: =AJ25*$C$30 -> 0
A32: ST Interest (enter rate) | E32: =E28*$B32 -> 0 | F32: 0 | H32: 0 | I32: 0 | K32: 0 | L32: 0 | N32: 0 | O32: 0 | Q32: 0 | R32: 0 | T32: =T28*$C32 -> 0 | U32: 0 | W32: =W28*$C32 -> 0 | X32: 0 | Z32: =Z28*$C32 -> 0 | AA32: 0 | AC32: =AC28*$C32 -> 0 | AD32: 0 | AF32: =AF28*$C32 -> 0 | AG32: 0 | AI32: =AI28*$C32 -> 0 | AJ32: 0
A33: LT Interest (enter rate) | E33: 0 | F33: 0 | H33: 0 | I33: 0 | K33: 0 | L33: 0 | N33: 0 | O33: 0 | Q33: 0 | R33: 0 | T33: 0 | U33: 0 | W33: 0 | X33: 0 | Z33: 0 | AA33: 0 | AC33: 0 | AD33: 0 | AF33: 0 | AG33: 0 | AI33: =AI29*$C33 -> 0 | AJ33: 0
A34: Return on Equity (enter rate) | E34: 0 | F34: 0 | H34: 0 | I34: 0 | K34: 0 | L34: 0 | N34: 0 | O34: 0 | Q34: 0 | R34: 0 | T34: 0 | U34: 0 | W34: 0 | X34: 0 | Z34: 0 | AA34: 0 | AC34: 0 | AD34: 0 | AF34: 0 | AG34: 0 | AI34: =AI30*$C34 -> 0 | AJ34: 0
A35: Cost of Capital Total | E35: =SUM(E32:E34) -> 0 | F35: =SUM(F32:F34) -> 0 | H35: =SUM(H32:H34) -> 0 | I35: =SUM(I32:I34) -> 0 | K35: =SUM(K32:K34) -> 0 | L35: =SUM(L32:L34) -> 0 | N35: =SUM(N32:N34) -> 0 | O35: =SUM(O32:O34) -> 0 | Q35: =SUM(Q32:Q34) -> 0 | R35: =SUM(R32:R34) -> 0 | T35: =SUM(T32:T34) -> 0 | U35: =SUM(U32:U34) -> 0 | W35: =SUM(W32:W34) -> 0 | X35: =SUM(X32:X34) -> 0 | Z35: =SUM(Z32:Z34) -> 0 | AA35: =SUM(AA32:AA34) -> 0 | AC35: =SUM(AC32:AC34) -> 0 | AD35: =SUM(AD32:AD34) -> 0 | AF35: =SUM(AF32:AF34) -> 0 | AG35: =SUM(AG32:AG34) -> 0 | AI35: =SUM(AI32:AI34) -> 0 | AJ35: =SUM(AJ32:AJ34) -> 0
A37: OM&A | E37: =E21+E22 -> 0 | F37: =F22 -> 0 | H37: =H21+H22 -> 0 | I37: =I22 -> 0 | K37: =K21+K22 -> 0 | L37: =L22 -> 0 | N37: =N21+N22 -> 0 | O37: =O22 -> 0 | Q37: =Q21+Q22 -> 0 | R37: =R22 -> 0 | T37: =T21+T22 -> 0 | U37: =U22 -> 0 | W37: =W21+W22 -> 0 | X37: =X22 -> 0 | Z37: =Z21+Z22 -> 0 | AA37: =AA22 -> 0 | AC37: =AC21+AC22 -> 0 | AD37: =AD22 -> 0 | AF37: =AF21+AF22 -> 0 | AG37: =AG22 -> 0 | AI37: =AI21+AI22 -> 0 | AJ37: =AJ22 -> 0
A38: Amortization | D38: =+E77+E78 -> 0 | E38: =D38*E$19 -> 0 | F38: =D38*F$19 -> 0 | G38: =+F77+F78 -> 0 | H38: =G38*H$19 -> 0 | I38: =G38*I$19 -> 0 | J38: =+G77+G78 -> 0 | K38: =J38*K$19 -> 0 | L38: =J38*L$19 -> 0 | M38: =+H77+H78 -> 0 | N38: =M38*N$19 -> 0 | O38: =M38*O$19 -> 0 | P38: =+I77+I78 -> 0 | Q38: =P38*Q$19 -> 0 | R38: =P38*R$19 -> 0 | S38: =+J77+J78 -> 0 | T38: =S38*T$19 -> 0 | U38: =S38*U$19 -> 0 | V38: =+K77+K78 -> 0 | W38: =V38*W$19 -> 0 | X38: =V38*X$19 -> 0 | Y38: =+L77+L78 -> 0 | Z38: =Y38*Z$19 -> 0 | AA38: =Y38*AA$19 -> 0 | AB38: =+M77+M78 -> 0 | AC38: =AB38*AC$19 -> 0 | AD38: =AB38*AD$19 -> 0 | AE38: =+N77+N78 -> 0 | AF38: =AE38*AF$19 -> 0 | AG38: =AE38*AG$19 -> 0 | AH38: =+O77+O78 -> 0 | AI38: =AH38*AI$19 -> 0 | AJ38: =AH38*AJ$19 -> 0
A39: Grossed-up PILs | E39: =+E66 -> 0 | F39: =+F66 -> 0 | H39: =+H66 -> 0 | I39: =+I66 -> 0 | K39: =+K66 -> 0 | L39: =+L66 -> 0 | N39: =+N66 -> 0 | O39: =+O66 -> 0 | Q39: =+Q66 -> 0 | R39: =+R66 -> 0 | T39: =+T66 -> 0 | U39: =+U66 -> 0 | W39: =+W66 -> 0 | X39: =+X66 -> 0 | Z39: =+Z66 -> 0 | AA39: =+AA66 -> 0 | AC39: =+AC66 -> 0 | AD39: =+AD66 -> 0 | AF39: =+AF66 -> 0 | AG39: =+AG66 -> 0 | AI39: =+AI66 -> 0 | AJ39: =+AJ66 -> 0
A41: Revenue Requirement | E41: =SUM(E35:E39) -> 0 | F41: =SUM(F35:F39) -> 0 | H41: =SUM(H35:H39) -> 0 | I41: 0 | K41: =SUM(K35:K39) -> 0 | L41: 0 | N41: =SUM(N35:N39) -> 0 | O41: 0 | Q41: =SUM(Q35:Q39) -> 0 | R41: 0 | T41: =SUM(T35:T39) -> 0 | U41: 0 | W41: =SUM(W35:W39) -> 0 | X41: 0 | Z41: =SUM(Z35:Z39) -> 0 | AA41: 0 | AC41: =SUM(AC35:AC39) -> 0 | AD41: 0 | AF41: =SUM(AF35:AF39) -> 0 | AG41: 0 | AI41: =SUM(AI35:AI39) -> 0 | AJ41: 0
A44: Provincial Rate Protection | F44: =F41 -> 0 | I44: =I41 -> 0 | L44: =L41 -> 0 | O44: =O41 -> 0 | R44: =R41 -> 0 | U44: =U41 -> 0 | X44: =X41 -> 0 | AA44: =AA41 -> 0 | AD44: =AD41 -> 0 | AG44: =AG41 -> 0 | AJ44: =AJ41 -> 0
A46: Monthly Amount Paid by IESO | F46: =F44/12 -> 0 | I46: =I44/12 -> 0 | L46: =L44/12 -> 0 | O46: =O44/12 -> 0 | R46: =R44/12 -> 0 | U46: =U44/12 -> 0 | X46: =X44/12 -> 0 | AA46: =AA44/12 -> 0 | AD46: =AD44/12 -> 0 | AG46: =AG44/12 -> 0 | AJ46: =AJ44/12 -> 0
A48: Note 1: The distributor should follow the regulatory accounting set out in the Accounting Procedure Handbook Guidance FAQs issued in March 2015. Q10 of the APH FAQs states that: “For approved eligible investments as defined under O.Reg. 330/09 under the OEB Act, a variance account will continue to be used for the purpose of recording variances between the revenue requirement based on actual costs of approved eligible investments and the revenue received from the IESO.” The answer for Q10 provides the accounting guidance for this variance account: “Distributors that have included eligible investments to connect qualifying facilities in their DS plans are to establish the variance Account 1533 Renewable Generation Connection Funding Adder Deferral Account, Sub-account Provincial Rate Protection Payment Variances following OEB approval for investments forecast to enter service beyond the test year for purposes of implementing rate protection pursuant to O.Reg. 330/09. The purpose of this variance account is to track the variance between the distributor’s revenue requirement associated with the portion of the actual capital and/or operating costs that are eligible for rate protection, as incurred by the distributor for eligible renewable enabling and expansion investments, and the rate protection payments collected from the IESO.” The answer further provides the journal entries to record the variances. Distributors should follow the instructions in the answer for recording the journal entries in the variance account 1533.
A50: Note 2: For the Test Year, Costs and Revenues of the Direct Benefit are to be included in the test year applicant Rate Base and Revenues.
A52: PILs Calculation | T52: Test Year
E53: =G17-1 -> 2016 | H53: =G17 -> 2017 | K53: =J17 -> 2018 | N53: =M17 -> 2019 | Q53: =P17 -> 2020 | T53: =S17 -> 2021 | W53: =V17 -> 2022 | Z53: =Y17 -> 2023 | AC53: =AB17 -> 2024 | AF53: =AE17 -> 2025 | AI53: =AH17 -> 2026
A54: Income Tax | E54: Direct Benefit | F54: Provincial | H54: Direct Benefit | I54: Provincial | K54: Direct Benefit | L54: Provincial | N54: Direct Benefit | O54: Provincial | Q54: Direct Benefit | R54: Provincial | T54: Direct Benefit | U54: Provincial | W54: Direct Benefit | X54: Provincial | Z54: Direct Benefit | AA54: Provincial | AC54: Direct Benefit | AD54: Provincial | AF54: Direct Benefit | AG54: Provincial | AI54: Direct Benefit | AJ54: Provincial
AB55: Total | AE55: Total | AH55: Total
A56: Net Income - ROE on Rate Base | E56: =E34 -> 0 | F56: =F34 -> 0 | H56: =H34 -> 0 | I56: =I34 -> 0 | K56: =K34 -> 0 | L56: =L34 -> 0 | N56: =N34 -> 0 | O56: =O34 -> 0 | Q56: =Q34 -> 0 | R56: =R34 -> 0 | T56: =T34 -> 0 | U56: =U34 -> 0 | W56: =W34 -> 0 | X56: =X34 -> 0 | Z56: =Z34 -> 0 | AA56: =AA34 -> 0 | AC56: =AC34 -> 0 | AD56: =AD34 -> 0 | AF56: =AF34 -> 0 | AG56: =AG34 -> 0 | AI56: =AI34 -> 0 | AJ56: =AJ34 -> 0
A57: Amortization (6% DB and 94% P) | E57: =E38 -> 0 | F57: =F38 -> 0 | H57: =H38 -> 0 | I57: =I38 -> 0 | K57: =K38 -> 0 | L57: =L38 -> 0 | N57: =N38 -> 0 | O57: =O38 -> 0 | Q57: =Q38 -> 0 | R57: =R38 -> 0 | T57: =T38 -> 0 | U57: =U38 -> 0 | W57: =W38 -> 0 | X57: =X38 -> 0 | Z57: =Z38 -> 0 | AA57: =AA38 -> 0 | AC57: =AC38 -> 0 | AD57: =AD38 -> 0 | AF57: =AF38 -> 0 | AG57: =AG38 -> 0 | AI57: =AI38 -> 0 | AJ57: =AJ38 -> 0
A58: CCA (6% DB and 94% P) | E58: =-E95*$E$19 -> 0 | F58: =-E95*$F$19 -> 0 | H58: =-F95*$E$19 -> 0 | I58: =-F95*$F$19 -> 0 | K58: =-G95*$E$19 -> 0 | L58: =-G95*$F$19 -> 0 | N58: =-H95*$E$19 -> 0 | O58: =-H95*$F$19 -> 0 | Q58: =-I95*$E$19 -> 0 | R58: =-I95*$F$19 -> 0 | T58: =-J95*$E$19 -> 0 | U58: =-J95*$F$19 -> 0 | W58: =-K95*$E$19 -> 0 | X58: =-K95*$F$19 -> 0 | Z58: =-L95*$E$19 -> 0 | AA58: =-L95*$F$19 -> 0 | AC58: =-M95*$E$19 -> 0 | AD58: =-M95*$F$19 -> 0 | AF58: =-N95*$E$19 -> 0 | AG58: =-N95*$F$19 -> 0 | AI58: =-Q95*$E$19 -> 0 | AJ58: =-Q95*$F$19 -> 0
A59: Taxable income | E59: =SUM(E56:E58) -> 0 | F59: =SUM(F56:F58) -> 0 | H59: =SUM(H56:H58) -> 0 | I59: 0 | K59: =SUM(K56:K58) -> 0 | L59: 0 | N59: =SUM(N56:N58) -> 0 | O59: 0 | Q59: =SUM(Q56:Q58) -> 0 | R59: 0 | T59: =SUM(T56:T58) -> 0 | U59: 0 | W59: =SUM(W56:W58) -> 0 | X59: 0 | Z59: =SUM(Z56:Z58) -> 0 | AA59: =SUM(AA56:AA58) -> 0 | AC59: =SUM(AC56:AC58) -> 0 | AD59: =SUM(AD56:AD58) -> 0 | AF59: =SUM(AF56:AF58) -> 0 | AG59: =SUM(AG56:AG58) -> 0 | AI59: =SUM(AI56:AI58) -> 0 | AJ59: =SUM(AJ56:AJ58) -> 0
B60: =B27 -> 2012 | C60: =C27 -> 2021
A61: Tax Rate (to be entered) | E61: =IF(AND(E$53>=$B$60, E$53<$C$60),$B$61,$C$61) -> 0 | F61: =IF(AND(E$53>=$B$60, E$53<$C$60),$B$61,$C$61) -> 0 | H61: =IF(AND(H$53>=$B$60, H$53<$C$60),$B$61,$C$61) -> 0 | I61: =IF(AND(H$53>=$B$60, H$53<$C$60),$B$61,$C$61) -> 0 | K61: =IF(AND(K$53>=$B$60, K$53<$C$60),$B$61,$C$61) -> 0 | L61: =IF(AND(K$53>=$B$60, K$53<$C$60),$B$61,$C$61) -> 0 | N61: =IF(AND(N$53>=$B$60, N$53<$C$60),$B$61,$C$61) -> 0 | O61: =IF(AND(N$53>=$B$60, N$53<$C$60),$B$61,$C$61) -> 0 | Q61: =IF(AND(Q$53>=$B$60, Q$53<$C$60),$B$61,$C$61) -> 0 | R61: =IF(AND(Q$53>=$B$60, Q$53<$C$60),$B$61,$C$61) -> 0 | T61: =IF(AND(T$53>=$B$60, T$53<$C$60),$B$61,$C$61) -> 0 | U61: =IF(AND(T$53>=$B$60, T$53<$C$60),$B$61,$C$61) -> 0 | W61: =IF(AND(W$53>=$B$60, W$53<$C$60),$B$61,$C$61) -> 0 | X61: =IF(AND(W$53>=$B$60, W$53<$C$60),$B$61,$C$61) -> 0 | Z61: =IF(AND(Z$53>=$B$60, Z$53<$C$60),$B$61,$C$61) -> 0 | AA61: =IF(AND(Z$53>=$B$60, Z$53<$C$60),$B$61,$C$61) -> 0 | AC61: =IF(AND(AC$53>=$B$60, AC$53<$C$60),$B$61,$C$61) -> 0 | AD61: =IF(AND(AC$53>=$B$60, AC$53<$C$60),$B$61,$C$61) -> 0 | AF61: =IF(AND(AF$53>=$B$60, AF$53<$C$60),$B$61,$C$61) -> 0 | AG61: =IF(AND(AF$53>=$B$60, AF$53<$C$60),$B$61,$C$61) -> 0 | AI61: =IF(AND(AI$53>=$B$60, AI$53<$C$60),$B$61,$C$61) -> 0 | AJ61: =IF(AND(AI$53>=$B$60, AI$53<$C$60),$B$61,$C$61) -> 0
A63: Income Taxes Payable | E63: =E59*E61 -> 0 | F63: =F59*F61 -> 0 | H63: =H59*H61 -> 0 | I63: =I59*I61 -> 0 | K63: =K59*K61 -> 0 | L63: =L59*L61 -> 0 | N63: =N59*N61 -> 0 | O63: =O59*O61 -> 0 | Q63: =Q59*Q61 -> 0 | R63: =R59*R61 -> 0 | T63: =T59*T61 -> 0 | U63: =U59*U61 -> 0 | W63: =W59*W61 -> 0 | X63: =X59*X61 -> 0 | Z63: =Z59*Z61 -> 0 | AA63: =AA59*AA61 -> 0 | AC63: =AC59*AC61 -> 0 | AD63: =AD59*AD61 -> 0 | AF63: =AF59*AF61 -> 0 | AG63: =AG59*AG61 -> 0 | AI63: =AI59*AI61 -> 0 | AJ63: =AJ59*AJ61 -> 0
A64: Gross Up
A65: Income Taxes Payable | E65: =E63/(1-E61) -> 0 | F65: =F63/(1-F61) -> 0 | H65: =H63/(1-H61) -> 0 | I65: =I63/(1-I61) -> 0 | K65: =K63/(1-K61) -> 0 | L65: =L63/(1-L61) -> 0 | N65: =N63/(1-N61) -> 0 | O65: =O63/(1-O61) -> 0 | Q65: =Q63/(1-Q61) -> 0 | R65: =R63/(1-R61) -> 0 | T65: =T63/(1-T61) -> 0 | U65: =U63/(1-U61) -> 0 | W65: =W63/(1-W61) -> 0 | X65: =X63/(1-X61) -> 0 | Z65: =Z63/(1-Z61) -> 0 | AA65: =AA63/(1-AA61) -> 0 | AC65: =AC63/(1-AC61) -> 0 | AD65: =AD63/(1-AD61) -> 0 | AF65: =AF63/(1-AF61) -> 0 | AG65: =AG63/(1-AG61) -> 0 | AI65: =AI63/(1-AI61) -> 0 | AJ65: =AJ63/(1-AJ61) -> 0
A66: Grossed Up PILs | E66: =+E65 -> 0 | F66: =+F65 -> 0 | H66: =+H65 -> 0 | I66: =+I65 -> 0 | K66: =+K65 -> 0 | L66: 0 | N66: =+N65 -> 0 | O66: 0 | Q66: =+Q65 -> 0 | R66: 0 | T66: =+T65 -> 0 | U66: 0 | W66: =+W65 -> 0 | X66: 0 | Z66: =+Z65 -> 0 | AA66: 0 | AC66: =+AC65 -> 0 | AD66: 0 | AF66: =+AF65 -> 0 | AG66: 0 | AI66: =+AI65 -> 0 | AJ66: 0
J68: Test Year
E69: =F69-1 -> 2016 | F69: =G69-1 -> 2017 | G69: =H69-1 -> 2018 | H69: =I69-1 -> 2019 | I69: =J69-1 -> 2020 | J69: ='LDC Info'!E24 -> 2021 | K69: =J69+1 -> 2022 | L69: =K69+1 -> 2023 | M69: =L69+1 -> 2024 | N69: =M69+1 -> 2025 | O69: =N69+1 -> 2026
A70: Net Fixed Assets
A71: Enter applicable amortization in years: | B71: 40
A72: Opening Gross Fixed Assets | F72: =E74 -> 0 | G72: 0 | H72: 0 | I72: 0 | J72: 0 | K72: 0 | L72: 0 | M72: 0 | N72: 0 | O72: 0
A73: Capital Additions | E73: ='App.2-FA Proposed REG Invest.'!C62 -> 0 | F73: ='App.2-FA Proposed REG Invest.'!D62 -> 0 | G73: ='App.2-FA Proposed REG Invest.'!E62 -> 0 | H73: ='App.2-FA Proposed REG Invest.'!F62 -> 0 | I73: ='App.2-FA Proposed REG Invest.'!G62 -> 0 | J73: ='App.2-FA Proposed REG Invest.'!H62 -> 0 | K73: ='App.2-FA Proposed REG Invest.'!I62 -> 0 | L73: ='App.2-FA Proposed REG Invest.'!J62 -> 0 | M73: ='App.2-FA Proposed REG Invest.'!K62 -> 0 | N73: ='App.2-FA Proposed REG Invest.'!L62 -> 0 | O73: ='App.2-FA Proposed REG Invest.'!M62 -> 0
A74: Closing Gross Fixed Assets | E74: =SUM(E72:E73) -> 0 | F74: 0 | G74: 0 | H74: 0 | I74: 0 | J74: 0 | K74: 0 | L74: 0 | M74: 0 | N74: 0 | O74: =SUM(O72:O73) -> 0
A76: Opening Accumulated Amortization | F76: =+E79 -> 0 | G76: =+F79 -> 0 | H76: 0 | I76: 0 | J76: 0 | K76: 0 | L76: 0 | M76: 0 | N76: 0 | O76: 0
A77: Current Year Amortization (before additions) | E77: =IF(ISERROR(E72/$B$71), 0, E72/$B$71) -> 0 | F77: =IF(ISERROR(F72/$B$71), 0, F72/$B$71) -> 0 | G77: 0 | H77: 0 | I77: 0 | J77: 0 | K77: 0 | L77: 0 | M77: 0 | N77: 0 | O77: =IF(ISERROR(O72/$B$71), 0, O72/$B$71) -> 0
A78: Capital Additions Amortization (half year) | E78: =E73/$B$71/2 -> 0 | F78: =F73/$B$71/2 -> 0 | G78: 0 | H78: 0 | I78: 0 | J78: 0 | K78: 0 | L78: 0 | M78: 0 | N78: 0 | O78: =O73/$B$71/2 -> 0
A79: Closing Accumulated Amortization | E79: =SUM(E76+E77+E78) -> 0 | F79: 0 | G79: 0 | H79: 0 | I79: 0 | J79: 0 | K79: 0 | L79: 0 | M79: 0 | N79: 0 | O79: =SUM(O76+O77+O78) -> 0
A81: Opening Net Fixed Assets | E81: =E72-E76 -> 0 | F81: 0 | G81: 0 | H81: 0 | I81: 0 | J81: 0 | K81: 0 | L81: 0 | M81: 0 | N81: 0 | O81: =O72-O76 -> 0
A82: Closing Net Fixed Assets | E82: =E74-E79 -> 0 | F82: 0 | G82: 0 | H82: 0 | I82: 0 | J82: 0 | K82: 0 | L82: 0 | M82: 0 | N82: 0 | O82: =O74-O79 -> 0
A83: Average Net Fixed Assets | E83: =SUM(E81:E82)/2 -> 0 | F83: 0 | G83: 0 | H83: 0 | I83: 0 | J83: 0 | K83: 0 | L83: 0 | M83: 0 | N83: 0 | O83: =SUM(O81:O82)/2 -> 0
A85: UCC for PILs Calculation | J85: Test Year
E86: =E69 -> 2016 | F86: =F69 -> 2017 | G86: =G69 -> 2018 | H86: 2019 | I86: 2020 | J86: 2021 | K86: 2022 | L86: 2023 | M86: 2024 | N86: 2025 | O86: =O69 -> 2026
A88: Opening UCC | E88: =E72 -> 0 | F88: =E96 -> 0 | G88: 0 | H88: 0 | I88: 0 | J88: 0 | K88: 0 | L88: 0 | M88: 0 | N88: 0 | O88: 0
A89: Capital Additions | E89: =E73 -> 0 | F89: 0 | G89: 0 | H89: 0 | I89: 0 | J89: 0 | K89: 0 | L89: 0 | M89: 0 | N89: 0 | O89: =O73 -> 0
A90: UCC Before Half Year Rule | E90: =SUM(E88:E89) -> 0 | F90: 0 | G90: 0 | H90: 0 | I90: 0 | J90: 0 | K90: 0 | L90: 0 | M90: 0 | N90: 0 | O90: =SUM(O88:O89) -> 0
A91: Capital Additions (half year) | E91: =E89/2 -> 0 | F91: 0 | G91: 0 | H91: 0 | I91: 0 | J91: 0 | K91: 0 | L91: 0 | M91: 0 | N91: 0 | O91: =O89/2 -> 0
A92: Reduced UCC | E92: =E90-E91 -> 0 | F92: 0 | G92: 0 | H92: 0 | I92: 0 | J92: 0 | K92: 0 | L92: 0 | M92: 0 | N92: 0 | O92: =O90-O91 -> 0
A93: CCA Rate Class (to be entered)
A94: CCA Rate (to be entered)
A95: CCA | E95: =E92*$B$94 -> 0 | F95: =F92*$B$94 -> 0 | G95: 0 | H95: 0 | I95: 0 | J95: 0 | K95: 0 | L95: 0 | M95: 0 | N95: 0 | O95: =O92*$B$94 -> 0
A96: Closing UCC | E96: =E90-E95 -> 0 | F96: 0 | G96: 0 | H96: 0 | I96: 0 | J96: 0 | K96: 0 | L96: 0 | M96: 0 | N96: 0 | O96: =O90-O95 -> 0

Sheet App.2-FC Calc of REG Expansion
R1: File Number: | S1: 0
R2: Exhibit:
R3: Tab:
A4: TO BE UPDATED AT DRAFT RATE ORDER STAGE | R4: Schedule:
R5: Page:
R7: Date:
A9: Appendix 2-FC
A10: Calculation of Renewable Generation Connection Direct Benefits/Provincial Amount: Renewable Expansion Investments
A12: This table will calculate the distributor/provincial shares of the investments entered in Part B of Appendix 2-FA.
A13: Enter values in green shaded cells: WCA percentage, debt percentages, interest rates, kWh, tax rates, amortization period, CCA Class and percentage.
A14: For historical investments, enter these variables that were approved in your last cost of service test year. For 2021 and beyond, enter variables as in the application.
A15: Rate Riders related to the direct benefit portion of the renewable investments are not calculated for the Test Year as these assets and costs are already in the distributor's rate base/revenue requirement.
S16: Test Year
D17: =G17-1 -> 2016 | G17: =J17-1 -> 2017 | J17: =M17-1 -> 2018 | M17: =P17-1 -> 2019 | P17: =S17-1 -> 2020 | S17: ='LDC Info'!$E$24 -> 2021 | V17: =S17+1 -> 2022 | Y17: =V17+1 -> 2023 | Z17: 2016 | AB17: =Y17+1 -> 2024 | AE17: =AB17+1 -> 2025 | AH17: =AE17+1 -> 2026
E18: Direct Benefit | F18: Provincial | H18: Direct Benefit | I18: Provincial | K18: Direct Benefit | L18: Provincial | N18: Direct Benefit | O18: Provincial | Q18: Direct Benefit | R18: Provincial | T18: Direct Benefit | U18: Provincial | W18: Direct Benefit | X18: Provincial | Z18: Direct Benefit | AA18: Provincial | AC18: Direct Benefit | AD18: Provincial | AF18: Direct Benefit | AG18: Provincial | AI18: Direct Benefit | AJ18: Provincial
D19: Total | E19: 0.17 | F19: 0.83 | G19: Total | H19: 0.17 | I19: 0.83 | J19: Total | K19: 0.17 | L19: 0.83 | M19: Total | N19: 0.17 | O19: 0.83 | P19: Total | Q19: 0.17 | R19: 0.83 | S19: Total | T19: 0.17 | U19: 0.83 | V19: Total | W19: 0.17 | X19: 0.83 | Y19: Total | Z19: 0.17 | AA19: 0.83 | AB19: Total | AC19: 0.17 | AD19: 0.83 | AE19: Total | AF19: 0.17 | AG19: 0.83 | AH19: Total | AI19: 0.17 | AJ19: 0.83
A20: Net Fixed Assets (average) | D20: =E83 -> 0 | E20: =D20*E19 -> 0 | F20: =D20*F19 -> 0 | G20: =F83 -> 0 | H20: =G20*H19 -> 0 | I20: =G20*I19 -> 0 | J20: =G83 -> 0 | K20: =J20*K19 -> 0 | L20: =J20*L19 -> 0 | M20: =H83 -> 0 | N20: =M20*N19 -> 0 | O20: =M20*O19 -> 0 | P20: =I83 -> 0 | Q20: =P20*Q19 -> 0 | R20: =P20*R19 -> 0 | S20: =J83 -> 0 | T20: =S20*T19 -> 0 | U20: =S20*U19 -> 0 | V20: =K83 -> 0 | W20: =V20*W19 -> 0 | X20: =V20*X19 -> 0 | Y20: =L83 -> 0 | Z20: =Y20*Z19 -> 0 | AA20: =Y20*AA19 -> 0 | AB20: =M83 -> 0 | AC20: =AB20*AC19 -> 0 | AD20: =AB20*AD19 -> 0 | AE20: =N83 -> 0 | AF20: =AE20*AF19 -> 0 | AG20: =AE20*AG19 -> 0 | AH20: =O83 -> 0 | AI20: =AH20*AI19 -> 0 | AJ20: =AH20*AJ19 -> 0
A21: Incremental OM&A (on-going, N/A for Provincial Recovery) | D21: 0 | E21: =D21*E19 -> 0 | F21: =D21*F19 -> 0 | G21: 0 | H21: =G21*H19 -> 0 | I21: =G21*I19 -> 0 | J21: 0 | K21: =J21*K19 -> 0 | L21: =J21*L19 -> 0 | M21: 0 | N21: =M21*N19 -> 0 | O21: =M21*O19 -> 0 | P21: 0 | Q21: =P21*Q19 -> 0 | R21: =P21*R19 -> 0 | S21: 0 | T21: =S21*T19 -> 0 | U21: =S21*U19 -> 0 | V21: 0 | W21: =V21*W19 -> 0 | X21: =V21*X19 -> 0 | Y21: 0 | Z21: =Y21*Z19 -> 0 | AA21: =Y21*AA19 -> 0 | AB21: 0 | AC21: =AB21*AC19 -> 0 | AD21: =AB21*AD19 -> 0 | AE21: 0 | AF21: =AE21*AF19 -> 0 | AG21: =AE21*AG19 -> 0 | AH21: 0 | AI21: =AH21*AI19 -> 0 | AJ21: =AH21*AJ19 -> 0
A22: Incremental OM&A (start-up, applicable for Provincial Recovery) | D22: 0 | E22: =D22*E19 -> 0 | F22: =D22*F19 -> 0 | G22: 0 | H22: =G22*H19 -> 0 | I22: =G22*I19 -> 0 | J22: 0 | K22: =J22*K19 -> 0 | L22: =J22*L19 -> 0 | M22: 0 | N22: =M22*N19 -> 0 | O22: =M22*O19 -> 0 | P22: 0 | Q22: =P22*Q19 -> 0 | R22: =P22*R19 -> 0 | S22: 0 | T22: =S22*T19 -> 0 | U22: =S22*U19 -> 0 | V22: 0 | W22: =V22*W19 -> 0 | X22: =V22*X19 -> 0 | Y22: 0 | Z22: =Y22*Z19 -> 0 | AA22: =Y22*AA19 -> 0 | AB22: 0 | AC22: =AB22*AC19 -> 0 | AD22: =AB22*AD19 -> 0 | AE22: 0 | AF22: =AE22*AF19 -> 0 | AG22: =AE22*AG19 -> 0 | AH22: 0 | AI22: =AH22*AI19 -> 0 | AJ22: =AH22*AJ19 -> 0
A23: Rebasing Year vs. Test Year | B23: ='LDC Info'!E28 -> 2012 | C23: ='LDC Info'!E24 -> 2021
A24: Allowance for Working Capital (enter rate) | E24: =IF(AND(D$17>=$B$23, D$17<$C$23),(E21+E22)*$B$24,(E21+E22)*$C$24) -> 0 | F24: =IF(AND(D$17>=$B$23, D$17<$C$23),(F22)*$B$24,(F22)*$C$24) -> 0 | H24: =IF(AND(G$17>=$B$23, G$17<$C$23),(H21+H22)*$B$24,(H21+H22)*$C$24) -> 0 | I24: =IF(AND(G$17>=$B$23, G$17<$C$23),(I22)*$B$24,(I22)*$C$24) -> 0 | K24: =IF(AND(J$17>=$B$23, J$17<$C$23),(K21+K22)*$B$24,(K21+K22)*$C$24) -> 0 | L24: =IF(AND(J$17>=$B$23, J$17<$C$23),(L22)*$B$24,(L22)*$C$24) -> 0 | N24: =IF(AND(M$17>=$B$23, M$17<$C$23),(N21+N22)*$B$24,(N21+N22)*$C$24) -> 0 | O24: =IF(AND(M$17>=$B$23, M$17<$C$23),(O22)*$B$24,(O22)*$C$24) -> 0 | Q24: =IF(AND(P$17>=$B$23, P$17<$C$23),(Q21+Q22)*$B$24,(Q21+Q22)*$C$24) -> 0 | R24: =IF(AND(P$17>=$B$23, P$17<$C$23),(R22)*$B$24,(R22)*$C$24) -> 0 | T24: =IF(AND(S$17>=$B$23, S$17<$C$23),(T21+T22)*$B$24,(T21+T22)*$C$24) -> 0 | U24: =IF(AND(S$17>=$B$23, S$17<$C$23),(U22)*$B$24,(U22)*$C$24) -> 0 | W24: =IF(AND(V$17>=$B$23, V$17<$C$23),(W21+W22)*$B$24,(W21+W22)*$C$24) -> 0 | X24: =IF(AND(V$17>=$B$23, V$17<$C$23),(X22)*$B$24,(X22)*$C$24) -> 0 | Z24: =IF(AND(Y$17>=$B$23, Y$17<$C$23),(Z21+Z22)*$B$24,(Z21+Z22)*$C$24) -> 0 | AA24: =IF(AND(Y$17>=$B$23, Y$17<$C$23),(AA22)*$B$24,(AA22)*$C$24) -> 0 | AC24: =IF(AND(AB$17>=$B$23, AB$17<$C$23),(AC21+AC22)*$B$24,(AC21+AC22)*$C$24) -> 0 | AD24: =IF(AND(AB$17>=$B$23, AB$17<$C$23),(AD22)*$B$24,(AD22)*$C$24) -> 0 | AF24: =IF(AND(AE$17>=$B$23, AE$17<$C$23),(AF21+AF22)*$B$24,(AF21+AF22)*$C$24) -> 0 | AG24: =IF(AND(AE$17>=$B$23, AE$17<$C$23),(AG22)*$B$24,(AG22)*$C$24) -> 0 | AI24: =IF(AND(AH$17>=$B$23, AH$17<$C$23),(AI21+AI22)*$B$24,(AI21+AI22)*$C$24) -> 0 | AJ24: =IF(AND(AH$17>=$B$23, AH$17<$C$23),(AJ22)*$B$24,(AJ22)*$C$24) -> 0
A25: Rate Base | E25: =SUM(E20+E24) -> 0 | F25: =SUM(F20+F24) -> 0 | H25: =SUM(H20+H24) -> 0 | I25: =SUM(I20+I24) -> 0 | K25: =SUM(K20+K24) -> 0 | L25: =SUM(L20+L24) -> 0 | N25: =SUM(N20+N24) -> 0 | O25: =SUM(O20+O24) -> 0 | Q25: =SUM(Q20+Q24) -> 0 | R25: =SUM(R20+R24) -> 0 | T25: =SUM(T20+T24) -> 0 | U25: =SUM(U20+U24) -> 0 | W25: =SUM(W20+W24) -> 0 | X25: =SUM(X20+X24) -> 0 | Z25: =SUM(Z20+Z24) -> 0 | AA25: =SUM(AA20+AA24) -> 0 | AC25: =SUM(AC20+AC24) -> 0 | AD25: =SUM(AD20+AD24) -> 0 | AF25: =SUM(AF20+AF24) -> 0 | AG25: =SUM(AG20+AG24) -> 0 | AI25: =SUM(AI20+AI24) -> 0 | AJ25: =SUM(AJ20+AJ24) -> 0
B27: =B23 -> 2012 | C27: =C23 -> 2021
A28: Deemed ST Debt | B28: 0.04 | C28: 0.04 | E28: =E25*$B$28 -> 0 | F28: =F25*$B$28 -> 0 | H28: =H25*$B$28 -> 0 | I28: =I25*$B$28 -> 0 | K28: =K25*$B$28 -> 0 | L28: =L25*$B$28 -> 0 | N28: =N25*$B$28 -> 0 | O28: =O25*$B$28 -> 0 | Q28: =Q25*$B$28 -> 0 | R28: =R25*$B$28 -> 0 | T28: =T25*$C$28 -> 0 | U28: =U25*$C$28 -> 0 | W28: =W25*$C$28 -> 0 | X28: =X25*$C$28 -> 0 | Z28: =Z25*$C$28 -> 0 | AA28: =AA25*$C$28 -> 0 | AC28: =AC25*$C$28 -> 0 | AD28: =AD25*$C$28 -> 0 | AF28: =AF25*$C$28 -> 0 | AG28: =AG25*$C$28 -> 0 | AI28: =AI25*$C$28 -> 0 | AJ28: =AJ25*$C$28 -> 0
A29: Deemed LT Debt | B29: 0.56 | C29: 0.56 | E29: =E25*$B$29 -> 0 | F29: =F25*$B$29 -> 0 | H29: =H25*$B$29 -> 0 | I29: =I25*$B$29 -> 0 | K29: =K25*$B$29 -> 0 | L29: =L25*$B$29 -> 0 | N29: =N25*$B$29 -> 0 | O29: =O25*$B$29 -> 0 | Q29: =Q25*$B$29 -> 0 | R29: =R25*$B$29 -> 0 | T29: =T25*$C$29 -> 0 | U29: =U25*$C$29 -> 0 | W29: =W25*$C$29 -> 0 | X29: =X25*$C$29 -> 0 | Z29: =Z25*$C$29 -> 0 | AA29: =AA25*$C$29 -> 0 | AC29: =AC25*$C$29 -> 0 | AD29: =AD25*$C$29 -> 0 | AF29: =AF25*$C$29 -> 0 | AG29: =AG25*$C$29 -> 0 | AI29: =AI25*$C$29 -> 0 | AJ29: =AJ25*$C$29 -> 0
A30: Deemed Equity | B30: 0.4 | C30: 0.4 | E30: =E25*$B$30 -> 0 | F30: =F25*$B$30 -> 0 | H30: =H25*$B$30 -> 0 | I30: =I25*$B$30 -> 0 | K30: =K25*$B$30 -> 0 | L30: =L25*$B$30 -> 0 | N30: =N25*$B$30 -> 0 | O30: =O25*$B$30 -> 0 | Q30: =Q25*$B$30 -> 0 | R30: =R25*$B$30 -> 0 | T30: =T25*$C$30 -> 0 | U30: =U25*$C$30 -> 0 | W30: =W25*$C$30 -> 0 | X30: =X25*$C$30 -> 0 | Z30: =Z25*$C$30 -> 0 | AA30: =AA25*$C$30 -> 0 | AC30: =AC25*$C$30 -> 0 | AD30: =AD25*$C$30 -> 0 | AF30: =AF25*$C$30 -> 0 | AG30: =AG25*$C$30 -> 0 | AI30: =AI25*$C$30 -> 0 | AJ30: =AJ25*$C$30 -> 0
A32: ST Interest (enter rate) | E32: =E28*$B32 -> 0 | F32: 0 | H32: 0 | I32: 0 | K32: 0 | L32: 0 | N32: 0 | O32: 0 | Q32: 0 | R32: 0 | T32: =T28*$C32 -> 0 | U32: 0 | W32: =W28*$C32 -> 0 | X32: 0 | Z32: =Z28*$C32 -> 0 | AA32: 0 | AC32: =AC28*$C32 -> 0 | AD32: 0 | AF32: =AF28*$C32 -> 0 | AG32: 0 | AI32: =AI28*$C32 -> 0 | AJ32: 0
A33: LT Interest (enter rate) | E33: 0 | F33: 0 | H33: 0 | I33: 0 | K33: 0 | L33: 0 | N33: 0 | O33: 0 | Q33: 0 | R33: 0 | T33: 0 | U33: 0 | W33: 0 | X33: 0 | Z33: 0 | AA33: 0 | AC33: 0 | AD33: 0 | AF33: 0 | AG33: 0 | AI33: =AI29*$C33 -> 0 | AJ33: 0
A34: Return on Equity (enter rate) | E34: 0 | F34: 0 | H34: 0 | I34: 0 | K34: 0 | L34: 0 | N34: 0 | O34: 0 | Q34: 0 | R34: 0 | T34: 0 | U34: 0 | W34: 0 | X34: 0 | Z34: 0 | AA34: 0 | AC34: 0 | AD34: 0 | AF34: 0 | AG34: 0 | AI34: =AI30*$C34 -> 0 | AJ34: 0
A35: Cost of Capital Total | E35: =SUM(E32:E34) -> 0 | F35: =SUM(F32:F34) -> 0 | H35: =SUM(H32:H34) -> 0 | I35: =SUM(I32:I34) -> 0 | K35: =SUM(K32:K34) -> 0 | L35: =SUM(L32:L34) -> 0 | N35: =SUM(N32:N34) -> 0 | O35: =SUM(O32:O34) -> 0 | Q35: =SUM(Q32:Q34) -> 0 | R35: =SUM(R32:R34) -> 0 | T35: =SUM(T32:T34) -> 0 | U35: =SUM(U32:U34) -> 0 | W35: =SUM(W32:W34) -> 0 | X35: =SUM(X32:X34) -> 0 | Z35: =SUM(Z32:Z34) -> 0 | AA35: =SUM(AA32:AA34) -> 0 | AC35: =SUM(AC32:AC34) -> 0 | AD35: =SUM(AD32:AD34) -> 0 | AF35: =SUM(AF32:AF34) -> 0 | AG35: =SUM(AG32:AG34) -> 0 | AI35: =SUM(AI32:AI34) -> 0 | AJ35: =SUM(AJ32:AJ34) -> 0
A37: OM&A | E37: =E21+E22 -> 0 | F37: =F22 -> 0 | H37: =H21+H22 -> 0 | I37: =I22 -> 0 | K37: =K21+K22 -> 0 | L37: =L22 -> 0 | N37: =N21+N22 -> 0 | O37: =O22 -> 0 | Q37: =Q21+Q22 -> 0 | R37: =R22 -> 0 | T37: =T21+T22 -> 0 | U37: =U22 -> 0 | W37: =W21+W22 -> 0 | X37: =X22 -> 0 | Z37: =Z21+Z22 -> 0 | AA37: =AA22 -> 0 | AC37: =AC21+AC22 -> 0 | AD37: =AD22 -> 0 | AF37: =AF21+AF22 -> 0 | AG37: =AG22 -> 0 | AI37: =AI21+AI22 -> 0 | AJ37: =AJ22 -> 0
A38: Amortization | D38: =+E77+E78 -> 0 | E38: =D38*E$19 -> 0 | F38: =D38*F$19 -> 0 | G38: =+F77+F78 -> 0 | H38: =G38*H$19 -> 0 | I38: =G38*I$19 -> 0 | J38: =+G77+G78 -> 0 | K38: =J38*K$19 -> 0 | L38: =J38*L$19 -> 0 | M38: =+H77+H78 -> 0 | N38: =M38*N$19 -> 0 | O38: =M38*O$19 -> 0 | P38: =+I77+I78 -> 0 | Q38: =P38*Q$19 -> 0 | R38: =P38*R$19 -> 0 | S38: =+J77+J78 -> 0 | T38: =S38*T$19 -> 0 | U38: =S38*U$19 -> 0 | V38: =+K77+K78 -> 0 | W38: =V38*W$19 -> 0 | X38: =V38*X$19 -> 0 | Y38: =+L77+L78 -> 0 | Z38: =Y38*Z$19 -> 0 | AA38: =Y38*AA$19 -> 0 | AB38: =+M77+M78 -> 0 | AC38: =AB38*AC$19 -> 0 | AD38: =AB38*AD$19 -> 0 | AE38: =+N77+N78 -> 0 | AF38: =AE38*AF$19 -> 0 | AG38: =AE38*AG$19 -> 0 | AH38: =+O77+O78 -> 0 | AI38: =AH38*AI$19 -> 0 | AJ38: =AH38*AJ$19 -> 0
A39: Grossed-up PILs | E39: =+E66 -> 0 | F39: =+F66 -> 0 | H39: =+H66 -> 0 | I39: =+I66 -> 0 | K39: =+K66 -> 0 | L39: =+L66 -> 0 | N39: =+N66 -> 0 | O39: =+O66 -> 0 | Q39: =+Q66 -> 0 | R39: =+R66 -> 0 | T39: =+T66 -> 0 | U39: =+U66 -> 0 | W39: =+W66 -> 0 | X39: =+X66 -> 0 | Z39: =+Z66 -> 0 | AA39: =+AA66 -> 0 | AC39: =+AC66 -> 0 | AD39: =+AD66 -> 0 | AF39: =+AF66 -> 0 | AG39: =+AG66 -> 0 | AI39: =+AI66 -> 0 | AJ39: =+AJ66 -> 0
A41: Revenue Requirement | E41: =SUM(E35:E39) -> 0 | F41: =SUM(F35:F39) -> 0 | H41: =SUM(H35:H39) -> 0 | I41: 0 | K41: =SUM(K35:K39) -> 0 | L41: 0 | N41: =SUM(N35:N39) -> 0 | O41: 0 | Q41: =SUM(Q35:Q39) -> 0 | R41: 0 | T41: =SUM(T35:T39) -> 0 | U41: 0 | W41: =SUM(W35:W39) -> 0 | X41: 0 | Z41: =SUM(Z35:Z39) -> 0 | AA41: 0 | AC41: =SUM(AC35:AC39) -> 0 | AD41: 0 | AF41: =SUM(AF35:AF39) -> 0 | AG41: 0 | AI41: =SUM(AI35:AI39) -> 0 | AJ41: 0
A44: Provincial Rate Protection | F44: =F41 -> 0 | I44: =I41 -> 0 | L44: =L41 -> 0 | O44: =O41 -> 0 | R44: =R41 -> 0 | U44: =U41 -> 0 | X44: =X41 -> 0 | AA44: =AA41 -> 0 | AD44: =AD41 -> 0 | AG44: =AG41 -> 0 | AJ44: =AJ41 -> 0
A46: Monthly Amount Paid by IESO | F46: =F44/12 -> 0 | I46: =I44/12 -> 0 | L46: =L44/12 -> 0 | O46: =O44/12 -> 0 | R46: =R44/12 -> 0 | U46: =U44/12 -> 0 | X46: =X44/12 -> 0 | AA46: =AA44/12 -> 0 | AD46: =AD44/12 -> 0 | AG46: =AG44/12 -> 0 | AJ46: =AJ44/12 -> 0
A48: Note 1: The distributor should follow the regulatory accounting set out in the Accounting Procedure Handbook Guidance FAQs issued in March 2015. Q10 of the APH FAQs states that: “For approved eligible investments as defined under O.Reg. 330/09 under the OEB Act, a variance account will continue to be used for the purpose of recording variances between the revenue requirement based on actual costs of approved eligible investments and the revenue received from the IESO.” The answer for Q10 provides the accounting guidance for this variance account: “Distributors that have included eligible investments to connect qualifying facilities in their DS plans are to establish the variance Account 1533 Renewable Generation Connection Funding Adder Deferral Account, Sub-account Provincial Rate Protection Payment Variances following OEB approval for investments forecast to enter service beyond the test year for purposes of implementing rate protection pursuant to O.Reg. 330/09. The purpose of this variance account is to track the variance between the distributor’s revenue requirement associated with the portion of the actual capital and/or operating costs that are eligible for rate protection, as incurred by the distributor for eligible renewable enabling and expansion investments, and the rate protection payments collected from the IESO.” The answer further provides the journal entries to record the variances. Distributors should follow the instructions in the answer for recording the journal entries in the variance account 1533.
